Workbook

Sheet GMIP_Death_Claim_Calc (hidden)
C2: Please input the dates in Yellow Cells only and please fill in the policyholder details in the "Input" Tab. | L2: =IF(Flag_PPT=0,"This Model is not valid if the death happens after the Term of the policy","") -> 
C4: Input | L4: Flag for Death after PPT/Term
L5: =IF((DOD-DOPI)/365.25>Term,0,1) -> 
C6: Date of Policy Issuance | D6: 2012-02-17 | H6: Monthly Policy Anniversary nearest to the Date of intimation of Death | I6: =IF(DATE(YEAR(DOI),MONTH(DOI),DAY(DOPI))<DOI,IF(MONTH(DOI)=12,DATE(YEAR(DOI)+1,1,DAY(DOPI)),DATE(YEAR(DOI),MONTH(DOI)+1,DAY(DOPI))),DATE(YEAR(DOI),MONTH(DOI),DAY(DOPI))) -> 
C7: DOD | D7: 2012-11-07 | H7: Policy Anniversary immediately after the date of intimation of Death | I7: 2013-02-17
C8: DOI | D8: 2012-11-27
C9: Next Policy Anniversary | D9: =DATE(YEAR(D6)+1,MONTH(D6),DAY(D6)) -> 2013-02-17
C11: *Input Dates in mm/dd/yyyy format. | E11: Please enter the Policy anniversary Date immediately after the Date of Intimation in cell I7.
C12: * Don't put a 31st day in the dates in yellow cells above. Instead put 30. It will not make any difference.
E13: NPV as at the end of the month of the Date of Intimation of Death. | O13: Checking
E14: ROI | H14: Monthly ROI | I14: PV | J14: PV GMI | K14: PV Terminal Benefit | L14: PV future MIB @ 6% | M14: PV MIB @ 8% | N14: PV MIB @ 10% | O14: PV TB ( change the duration of Cashflows for every model pt. ) | P14: PV MIB 6% ( change the duration of Cashflows for every model pt. ) | Q14: PV MIB 8% ( change the duration of Cashflows for every model pt. ) | R14: PV MIB 10% ( change the duration of Cashflows for every model pt. ) | S14: PV GMI ( change the duration of Cashflows for wvery model pt. | Y14: PV of the declared MIBs
E15: 0.06 | H15: =(1+E15)^(1/12)-1 -> 0.004867550565 | I15: =SUM($I$22:$I$93)*$L$5 ->  | J15: =NPV($H15,OFFSET($J$22,ROUND(($I$6-DOPI)/365.25*12,0),0,):$J$274)*(1+H15)*L5 ->  | K15: =NPV($H15,OFFSET($K$22,ROUND(($I$6-DOPI)/365.25*12,0),0,):$K$274)*(1+H15)*L5 ->  | L15: =NPV($H15,OFFSET($L$22,ROUND(($I$6-DOPI)/365.25*12,0),0,):$L$274)*(1+H15)*L5+PV_Dec_MIB_6 ->  | M15: =NPV($H15,OFFSET($M$22,ROUND(($I$6-DOPI)/365.25*12,0),0,):$M$274)*(1+H15)*L5 ->  | N15: =NPV($H15,OFFSET($N$22,ROUND(($I$6-DOPI)/365.25*12,0),0,):$N$274)*(1+H15)*L5 ->  | O15: =NPV(H15,$K$28:$K$273) ->  | P15: =NPV(H15,$L$28:$L$273) ->  | Q15: =NPV(H15,$M$28:$M$273) ->  | R15: =NPV(H15,$N$28:$N$273) ->  | S15: =NPV(H15,$J$28:$J$274) ->  | Y15: =NPV($H15,OFFSET($Y$22,ROUND(($I$6-DOPI)/365.25*12,0),0,):$Y$274)*(1+H15)*Flag_PPT -> 
E16: 0.08 | H16: =(1+E16)^(1/12)-1 -> 0.00643403011 | I16: =SUM($I$22:$I$93)*L5 ->  | J16: =NPV($H16,OFFSET($J$22,ROUND(($I$6-DOPI)/365.25*12,0),0,):$J$274)*(1+H16)*L5 ->  | K16: =NPV($H16,OFFSET($K$22,ROUND(($I$6-DOPI)/365.25*12,0),0,):$K$274)*(1+H16)*L5 ->  | L16: =NPV($H16,OFFSET($L$22,ROUND(($I$6-DOPI)/365.25*12,0),0,):$L$274)*(1+H16)*L5 ->  | M16: =NPV($H16,OFFSET($M$22,ROUND(($I$6-DOPI)/365.25*12,0),0,):$M$274)*(1+H16)*L5+PV_Dec_MIB_8 ->  | N16: =NPV($H16,OFFSET($N$22,ROUND(($I$6-DOPI)/365.25*12,0),0,):$N$274)*(1+H16)*L5 ->  | O16: =NPV(H16,$K$28:$K$273) ->  | P16: =NPV(H16,$L$28:$L$273) ->  | Q16: =NPV(H16,$M$28:$M$273) ->  | R16: =NPV(H16,$N$28:$N$273) ->  | S16: =NPV(H16,$J$28:$J$274) ->  | Y16: =NPV($H16,OFFSET($Y$22,ROUND(($I$6-DOPI)/365.25*12,0),0,):$Y$274)*(1+H16)*Flag_PPT ->  | AA16: Sum Total of Declared MIB | AB16: =SUMPRODUCT(Y22:Y274,AB22:AB274) -> 0
E17: 0.1 | H17: =(1+E17)^(1/12)-1 -> 0.007974140429 | I17: =SUM($I$22:$I$93)*L5 ->  | J17: =NPV($H17,OFFSET($J$22,ROUND(($I$6-DOPI)/365.25*12,0),0,):$J$274)*(1+H17)*L5 ->  | K17: =NPV($H17,OFFSET($K$22,ROUND(($I$6-DOPI)/365.25*12,0),0,):$K$274)*(1+H17)*L5 ->  | L17: =NPV($H17,OFFSET($L$22,ROUND(($I$6-DOPI)/365.25*12,0),0,):$L$274)*(1+H17)*L5 ->  | M17: =NPV($H17,OFFSET($M$22,ROUND(($I$6-DOPI)/365.25*12,0),0,):$M$274)*(1+H17)*L5 ->  | N17: =NPV($H17,OFFSET($N$22,ROUND(($I$6-DOPI)/365.25*12,0),0,):$N$274)*(1+H17)*L5+PV_Dec_MIB_10 ->  | O17: =NPV(H17,$K$28:$K$273) ->  | P17: =NPV(H17,$L$28:$L$273) ->  | Q17: =NPV(H17,$M$28:$M$273) ->  | R17: =NPV(H17,$N$28:$N$273) ->  | S17: =NPV(H17,$J$28:$J$274) ->  | Y17: =NPV($H17,OFFSET($Y$22,ROUND(($I$6-DOPI)/365.25*12,0),0,):$Y$274)*(1+H17)*Flag_PPT -> 
C20: Year | D20: Month | E20: Monthly Date ( Beginning of Month ) | F20: Months from the Date of Intimation of Death | H20: ROP Indicator | I20: ROP | J20: GMI | K20: Terminal Benefit | L20: MIB @ 6% | M20: MIB @ 8% | N20: MIB @ 10% | T20: Declared MIB Flag | U20: Declared MIB Amount | W20: Months | X20: Month 11 Pay | Y20: Declared MIB | Z20: % of Monthly Income | AA20: Rate of Return for MIB | AB20: Discounting Factor at time zero | AC20: Flag for discounting | AD20: Period for Discounting
C22: =INT(D22/12)+1 ->  | D22: =IF(D21<(Term+10)*12+1,D21+1,"") ->  | E22: =IF(ISERROR(IF(D22>1,(DATE(YEAR($D$6),MONTH($D$6)+D22-1,DAY(DOPI)))*(D22>0),$D$6)*(C22>0)),0,IF(D22>1,(DATE(YEAR($D$6),MONTH($D$6)+D22-1,DAY(DOPI)))*(D22>0),$D$6)*(C22>0)) -> 00:00:00 | F22: =IF((MONTH(DOI)-MONTH(DOPI))=D22,D22,F21+1) ->  | H22: =1*(E22=$I$6) ->  | I22: =(INT((DOD-DOPI)/365.25)+1)*Prem*H22 ->  | J22: =monthly_income*(C22>0)*AND(E22>$I$7,E22<=DATE(YEAR(DOPI)+Term+10,MONTH(DOPI),DAY(DOPI))) ->  | K22: =IF(D22=(Term+10)*12+1,VLOOKUP((Term+10),#REF!,7,0),0) ->  | L22: =IF(Term=6,IF(AND(D22>(Term+5)*12+1,D22<=(Term+10)*12+1),monthly_income*0.44,0),IF(AND(D22>(Term)*12+1,D22<=(Term+10)*12+1),monthly_income*0.27,0))*(1-T22) ->  | M22: =IF(Term=6,IF(AND(D22>(Term+5)*12+1,D22<=(Term+10)*12+1),monthly_income*0.88,0),IF(AND(D22>(Term)*12+1,D22<=(Term+10)*12+1),monthly_income*0.53,0))*(1-T22) ->  | N22: =IF(Term=6,IF(AND(D22>(Term+5)*12+1,D22<=(Term+10)*12+1),monthly_income*1.41,0),IF(AND(D22>(Term)*12+1,D22<=(Term+10)*12+1),monthly_income*0.84,0))*(1-T22) ->  | T22: =IF(ISERROR(IF(IF(AND(D22>=134,Term=11),VLOOKUP(D22,$W$21:$Y$123,4,0),0)>0,1,0)),0,IF(IF(AND(D22>=134,Term=11),VLOOKUP(D22,$W$21:$Y$123,4,0),0)>0,1,0))*0+IF(Y22>0,1,0) -> 0 | U22: =T22*Y22 -> 0 | W22: =D22 ->  | X22: 135 | Y22: 0 | Z22: =IF(W22>=134,Y22/monthly_income,0) ->  | AA22: =IF(Term=6,VLOOKUP(Z22,Working!#REF!,3,0),VLOOKUP(Z22,Working!#REF!,2,0)) ->  | AB22: =IF(ISERROR((1/(1+AA22)^(1/12))^AD22),0,(1/(1+AA22)^(1/12))^AD22) -> 0 | AC22: =IF(AND(E22>=$I$6,Y22>0),1,0) ->  | AD22: =IF(AC22=1,DATEDIF($I$6,E22,"m"),0) -> 
C23: =IF(ISERROR(IF(C22<=(Term+10+1),INT((D23-1)/12)+1,"")),0,IF(C22<=(Term+10+1),INT((D23-1)/12)+1,"")) -> 0 | E23: 00:00:00 | F23: =IF((MONTH(DOI)-MONTH(DOPI))=D23,D23,0) ->  | H23: =1*(E23=$I$6) ->  | K23: =IF(D23=(Term+10)*12+1,VLOOKUP((Term+10),#REF!,7,0),0) ->  | T23: 0 | U23: =T23*Y23 -> 0 | W23: =D23 ->  | X23: 136 | Y23: 0 | AA23: =IF(Term=6,VLOOKUP(Z23,Working!#REF!,3,0),VLOOKUP(Z23,Working!#REF!,2,0)) ->  | AB23: =IF(ISERROR((1/(1+AA23)^(1/12))^AD23),0,(1/(1+AA23)^(1/12))^AD23) -> 0 | AC23: =IF(AND(E23>=$I$6,Y23>0),1,0) ->  | AD23: =IF(AC23=1,DATEDIF($I$6,E23,"m"),0) -> 
C24: 0 | E24: 00:00:00 | K24: =IF(D24=(Term+10)*12+1,VLOOKUP((Term+10),#REF!,7,0),0) ->  | T24: 0 | U24: 0 | X24: 137 | Y24: 0 | AA24: =IF(Term=6,VLOOKUP(Z24,Working!#REF!,3,0),VLOOKUP(Z24,Working!#REF!,2,0)) ->  | AB24: 0
C25: 0 | E25: 00:00:00 | K25: =IF(D25=(Term+10)*12+1,VLOOKUP((Term+10),#REF!,7,0),0) ->  | T25: 0 | U25: 0 | X25: 138 | Y25: 0 | AA25: =IF(Term=6,VLOOKUP(Z25,Working!#REF!,3,0),VLOOKUP(Z25,Working!#REF!,2,0)) ->  | AB25: 0
C26: 0 | E26: 00:00:00 | K26: =IF(D26=(Term+10)*12+1,VLOOKUP((Term+10),#REF!,7,0),0) ->  | T26: 0 | U26: 0 | X26: 139 | Y26: 0 | AA26: =IF(Term=6,VLOOKUP(Z26,Working!#REF!,3,0),VLOOKUP(Z26,Working!#REF!,2,0)) ->  | AB26: 0
C27: 0 | E27: 00:00:00 | K27: =IF(D27=(Term+10)*12+1,VLOOKUP((Term+10),#REF!,7,0),0) ->  | T27: 0 | U27: 0 | X27: 140 | Y27: 0 | AA27: =IF(Term=6,VLOOKUP(Z27,Working!#REF!,3,0),VLOOKUP(Z27,Working!#REF!,2,0)) ->  | AB27: 0
C28: 0 | E28: 00:00:00 | K28: =IF(D28=(Term+10)*12+1,VLOOKUP((Term+10),#REF!,7,0),0) ->  | T28: 0 | U28: 0 | X28: 141 | Y28: 0 | AA28: =IF(Term=6,VLOOKUP(Z28,Working!#REF!,3,0),VLOOKUP(Z28,Working!#REF!,2,0)) ->  | AB28: 0
C29: 0 | E29: 00:00:00 | K29: =IF(D29=(Term+10)*12+1,VLOOKUP((Term+10),#REF!,7,0),0) ->  | T29: 0 | U29: 0 | X29: 142 | Y29: 0 | AA29: =IF(Term=6,VLOOKUP(Z29,Working!#REF!,3,0),VLOOKUP(Z29,Working!#REF!,2,0)) ->  | AB29: 0
C30: 0 | E30: 00:00:00 | K30: =IF(D30=(Term+10)*12+1,VLOOKUP((Term+10),#REF!,7,0),0) ->  | T30: 0 | U30: 0 | X30: 143 | Y30: 0 | AA30: =IF(Term=6,VLOOKUP(Z30,Working!#REF!,3,0),VLOOKUP(Z30,Working!#REF!,2,0)) ->  | AB30: 0
C31: 0 | E31: 00:00:00 | K31: =IF(D31=(Term+10)*12+1,VLOOKUP((Term+10),#REF!,7,0),0) ->  | T31: 0 | U31: 0 | X31: 144 | Y31: 0 | AA31: =IF(Term=6,VLOOKUP(Z31,Working!#REF!,3,0),VLOOKUP(Z31,Working!#REF!,2,0)) ->  | AB31: 0
C32: 0 | E32: 00:00:00 | K32: =IF(D32=(Term+10)*12+1,VLOOKUP((Term+10),#REF!,7,0),0) ->  | T32: 0 | U32: 0 | X32: 145 | Y32: 0 | AA32: =IF(Term=6,VLOOKUP(Z32,Working!#REF!,3,0),VLOOKUP(Z32,Working!#REF!,2,0)) ->  | AB32: 0
C33: 0 | E33: 00:00:00 | K33: =IF(D33=(Term+10)*12+1,VLOOKUP((Term+10),#REF!,7,0),0) ->  | T33: 0 | U33: 0 | X33: 146 | Y33: 0 | AA33: =IF(Term=6,VLOOKUP(Z33,Working!#REF!,3,0),VLOOKUP(Z33,Working!#REF!,2,0)) ->  | AB33: 0
C34: 0 | E34: 00:00:00 | K34: =IF(D34=(Term+10)*12+1,VLOOKUP((Term+10),#REF!,7,0),0) ->  | T34: 0 | U34: 0 | X34: 147 | Y34: 0 | AA34: =IF(Term=6,VLOOKUP(Z34,Working!#REF!,3,0),VLOOKUP(Z34,Working!#REF!,2,0)) ->  | AB34: 0
C35: 0 | E35: 00:00:00 | K35: =IF(D35=(Term+10)*12+1,VLOOKUP((Term+10),#REF!,7,0),0) ->  | T35: 0 | U35: 0 | X35: 148 | Y35: 0 | AA35: =IF(Term=6,VLOOKUP(Z35,Working!#REF!,3,0),VLOOKUP(Z35,Working!#REF!,2,0)) ->  | AB35: 0
C36: 0 | E36: 00:00:00 | K36: =IF(D36=(Term+10)*12+1,VLOOKUP((Term+10),#REF!,7,0),0) ->  | T36: 0 | U36: 0 | X36: 149 | Y36: 0 | AA36: =IF(Term=6,VLOOKUP(Z36,Working!#REF!,3,0),VLOOKUP(Z36,Working!#REF!,2,0)) ->  | AB36: 0
C37: 0 | E37: 00:00:00 | K37: =IF(D37=(Term+10)*12+1,VLOOKUP((Term+10),#REF!,7,0),0) ->  | T37: 0 | U37: 0 | X37: 150 | Y37: 0 | AA37: =IF(Term=6,VLOOKUP(Z37,Working!#REF!,3,0),VLOOKUP(Z37,Working!#REF!,2,0)) ->  | AB37: 0
C38: 0 | E38: 00:00:00 | K38: =IF(D38=(Term+10)*12+1,VLOOKUP((Term+10),#REF!,7,0),0) ->  | T38: 0 | U38: 0 | X38: 151 | Y38: 0 | AA38: =IF(Term=6,VLOOKUP(Z38,Working!#REF!,3,0),VLOOKUP(Z38,Working!#REF!,2,0)) ->  | AB38: 0
C39: 0 | E39: 00:00:00 | K39: =IF(D39=(Term+10)*12+1,VLOOKUP((Term+10),#REF!,7,0),0) ->  | T39: 0 | U39: 0 | X39: 152 | Y39: 0 | AA39: =IF(Term=6,VLOOKUP(Z39,Working!#REF!,3,0),VLOOKUP(Z39,Working!#REF!,2,0)) ->  | AB39: 0
C40: 0 | E40: 00:00:00 | K40: =IF(D40=(Term+10)*12+1,VLOOKUP((Term+10),#REF!,7,0),0) ->  | T40: 0 | U40: 0 | X40: 153 | Y40: 0 | AA40: =IF(Term=6,VLOOKUP(Z40,Working!#REF!,3,0),VLOOKUP(Z40,Working!#REF!,2,0)) ->  | AB40: 0
C41: 0 | E41: 00:00:00 | K41: =IF(D41=(Term+10)*12+1,VLOOKUP((Term+10),#REF!,7,0),0) ->  | T41: 0 | U41: 0 | X41: 154 | Y41: 0 | AA41: =IF(Term=6,VLOOKUP(Z41,Working!#REF!,3,0),VLOOKUP(Z41,Working!#REF!,2,0)) ->  | AB41: 0
C42: 0 | E42: 00:00:00 | K42: =IF(D42=(Term+10)*12+1,VLOOKUP((Term+10),#REF!,7,0),0) ->  | T42: 0 | U42: 0 | X42: 155 | Y42: 0 | AA42: =IF(Term=6,VLOOKUP(Z42,Working!#REF!,3,0),VLOOKUP(Z42,Working!#REF!,2,0)) ->  | AB42: 0
C43: 0 | E43: 00:00:00 | K43: =IF(D43=(Term+10)*12+1,VLOOKUP((Term+10),#REF!,7,0),0) ->  | T43: 0 | U43: 0 | X43: 156 | Y43: 0 | AA43: =IF(Term=6,VLOOKUP(Z43,Working!#REF!,3,0),VLOOKUP(Z43,Working!#REF!,2,0)) ->  | AB43: 0
C44: 0 | E44: 00:00:00 | K44: =IF(D44=(Term+10)*12+1,VLOOKUP((Term+10),#REF!,7,0),0) ->  | T44: 0 | U44: 0 | X44: 157 | Y44: 0 | AA44: =IF(Term=6,VLOOKUP(Z44,Working!#REF!,3,0),VLOOKUP(Z44,Working!#REF!,2,0)) ->  | AB44: 0
C45: 0 | E45: 00:00:00 | K45: =IF(D45=(Term+10)*12+1,VLOOKUP((Term+10),#REF!,7,0),0) ->  | T45: 0 | U45: 0 | X45: 158 | Y45: 0 | AA45: =IF(Term=6,VLOOKUP(Z45,Working!#REF!,3,0),VLOOKUP(Z45,Working!#REF!,2,0)) ->  | AB45: 0
C46: 0 | E46: 00:00:00 | K46: =IF(D46=(Term+10)*12+1,VLOOKUP((Term+10),#REF!,7,0),0) ->  | T46: 0 | U46: 0 | X46: 159 | Y46: 0 | AA46: =IF(Term=6,VLOOKUP(Z46,Working!#REF!,3,0),VLOOKUP(Z46,Working!#REF!,2,0)) ->  | AB46: 0
C47: 0 | E47: 00:00:00 | K47: =IF(D47=(Term+10)*12+1,VLOOKUP((Term+10),#REF!,7,0),0) ->  | T47: 0 | U47: 0 | X47: 160 | Y47: 0 | AA47: =IF(Term=6,VLOOKUP(Z47,Working!#REF!,3,0),VLOOKUP(Z47,Working!#REF!,2,0)) ->  | AB47: 0
C48: 0 | E48: 00:00:00 | K48: =IF(D48=(Term+10)*12+1,VLOOKUP((Term+10),#REF!,7,0),0) ->  | T48: 0 | U48: 0 | X48: 161 | Y48: 0 | AA48: =IF(Term=6,VLOOKUP(Z48,Working!#REF!,3,0),VLOOKUP(Z48,Working!#REF!,2,0)) ->  | AB48: 0
C49: 0 | E49: 00:00:00 | K49: =IF(D49=(Term+10)*12+1,VLOOKUP((Term+10),#REF!,7,0),0) ->  | T49: 0 | U49: 0 | X49: 162 | Y49: 0 | AA49: =IF(Term=6,VLOOKUP(Z49,Working!#REF!,3,0),VLOOKUP(Z49,Working!#REF!,2,0)) ->  | AB49: 0
C50: 0 | E50: 00:00:00 | K50: =IF(D50=(Term+10)*12+1,VLOOKUP((Term+10),#REF!,7,0),0) ->  | T50: 0 | U50: 0 | X50: 163 | Y50: 0 | AA50: =IF(Term=6,VLOOKUP(Z50,Working!#REF!,3,0),VLOOKUP(Z50,Working!#REF!,2,0)) ->  | AB50: 0
C51: 0 | E51: 00:00:00 | K51: =IF(D51=(Term+10)*12+1,VLOOKUP((Term+10),#REF!,7,0),0) ->  | T51: 0 | U51: 0 | X51: 164 | Y51: 0 | AA51: =IF(Term=6,VLOOKUP(Z51,Working!#REF!,3,0),VLOOKUP(Z51,Working!#REF!,2,0)) ->  | AB51: 0
C52: 0 | E52: 00:00:00 | K52: =IF(D52=(Term+10)*12+1,VLOOKUP((Term+10),#REF!,7,0),0) ->  | T52: 0 | U52: 0 | X52: 165 | Y52: 0 | AA52: =IF(Term=6,VLOOKUP(Z52,Working!#REF!,3,0),VLOOKUP(Z52,Working!#REF!,2,0)) ->  | AB52: 0
C53: 0 | E53: 00:00:00 | K53: =IF(D53=(Term+10)*12+1,VLOOKUP((Term+10),#REF!,7,0),0) ->  | T53: 0 | U53: 0 | X53: 166 | Y53: 0 | AA53: =IF(Term=6,VLOOKUP(Z53,Working!#REF!,3,0),VLOOKUP(Z53,Working!#REF!,2,0)) ->  | AB53: 0
C54: 0 | E54: 00:00:00 | I54: =(INT((DOD-DOPI)/365.25)+1)*Prem*H54 ->  | K54: =IF(D54=(Term+10)*12+1,VLOOKUP((Term+10),#REF!,7,0),0) ->  | T54: 0 | U54: 0 | X54: 167 | Y54: 0 | AA54: =IF(Term=6,VLOOKUP(Z54,Working!#REF!,3,0),VLOOKUP(Z54,Working!#REF!,2,0)) ->  | AB54: 0
C55: 0 | E55: 00:00:00 | K55: =IF(D55=(Term+10)*12+1,VLOOKUP((Term+10),#REF!,7,0),0) ->  | T55: 0 | U55: 0 | X55: 168 | Y55: 0 | AA55: =IF(Term=6,VLOOKUP(Z55,Working!#REF!,3,0),VLOOKUP(Z55,Working!#REF!,2,0)) ->  | AB55: 0
C56: 0 | E56: 00:00:00 | K56: =IF(D56=(Term+10)*12+1,VLOOKUP((Term+10),#REF!,7,0),0) ->  | T56: 0 | U56: 0 | X56: 169 | Y56: 0 | AA56: =IF(Term=6,VLOOKUP(Z56,Working!#REF!,3,0),VLOOKUP(Z56,Working!#REF!,2,0)) ->  | AB56: 0
C57: 0 | E57: 00:00:00 | K57: =IF(D57=(Term+10)*12+1,VLOOKUP((Term+10),#REF!,7,0),0) ->  | T57: 0 | U57: 0 | X57: 170 | Y57: 0 | AA57: =IF(Term=6,VLOOKUP(Z57,Working!#REF!,3,0),VLOOKUP(Z57,Working!#REF!,2,0)) ->  | AB57: 0
C58: 0 | E58: 00:00:00 | K58: =IF(D58=(Term+10)*12+1,VLOOKUP((Term+10),#REF!,7,0),0) ->  | T58: 0 | U58: 0 | X58: 171 | Y58: 0 | AA58: =IF(Term=6,VLOOKUP(Z58,Working!#REF!,3,0),VLOOKUP(Z58,Working!#REF!,2,0)) ->  | AB58: 0
C59: 0 | E59: 00:00:00 | K59: =IF(D59=(Term+10)*12+1,VLOOKUP((Term+10),#REF!,7,0),0) ->  | T59: 0 | U59: 0 | X59: 172 | Y59: 0 | AA59: =IF(Term=6,VLOOKUP(Z59,Working!#REF!,3,0),VLOOKUP(Z59,Working!#REF!,2,0)) ->  | AB59: 0
C60: 0 | E60: 00:00:00 | K60: =IF(D60=(Term+10)*12+1,VLOOKUP((Term+10),#REF!,7,0),0) ->  | T60: 0 | U60: 0 | X60: 173 | Y60: 0 | AA60: =IF(Term=6,VLOOKUP(Z60,Working!#REF!,3,0),VLOOKUP(Z60,Working!#REF!,2,0)) ->  | AB60: 0
C61: 0 | E61: 00:00:00 | K61: =IF(D61=(Term+10)*12+1,VLOOKUP((Term+10),#REF!,7,0),0) ->  | T61: 0 | U61: 0 | X61: 174 | Y61: 0 | AA61: =IF(Term=6,VLOOKUP(Z61,Working!#REF!,3,0),VLOOKUP(Z61,Working!#REF!,2,0)) ->  | AB61: 0
C62: 0 | E62: 00:00:00 | K62: =IF(D62=(Term+10)*12+1,VLOOKUP((Term+10),#REF!,7,0),0) ->  | T62: 0 | U62: 0 | X62: 175 | Y62: 0 | AA62: =IF(Term=6,VLOOKUP(Z62,Working!#REF!,3,0),VLOOKUP(Z62,Working!#REF!,2,0)) ->  | AB62: 0
C63: 0 | E63: 00:00:00 | K63: =IF(D63=(Term+10)*12+1,VLOOKUP((Term+10),#REF!,7,0),0) ->  | T63: 0 | U63: 0 | X63: 176 | Y63: 0 | AA63: =IF(Term=6,VLOOKUP(Z63,Working!#REF!,3,0),VLOOKUP(Z63,Working!#REF!,2,0)) ->  | AB63: 0
C64: 0 | E64: 00:00:00 | K64: =IF(D64=(Term+10)*12+1,VLOOKUP((Term+10),#REF!,7,0),0) ->  | T64: 0 | U64: 0 | X64: 177 | Y64: 0 | AA64: =IF(Term=6,VLOOKUP(Z64,Working!#REF!,3,0),VLOOKUP(Z64,Working!#REF!,2,0)) ->  | AB64: 0
C65: 0 | E65: 00:00:00 | K65: =IF(D65=(Term+10)*12+1,VLOOKUP((Term+10),#REF!,7,0),0) ->  | T65: 0 | U65: 0 | X65: 178 | Y65: 0 | AA65: =IF(Term=6,VLOOKUP(Z65,Working!#REF!,3,0),VLOOKUP(Z65,Working!#REF!,2,0)) ->  | AB65: 0
C66: 0 | E66: 00:00:00 | K66: =IF(D66=(Term+10)*12+1,VLOOKUP((Term+10),#REF!,7,0),0) ->  | T66: 0 | U66: 0 | X66: 179 | Y66: 0 | AA66: =IF(Term=6,VLOOKUP(Z66,Working!#REF!,3,0),VLOOKUP(Z66,Working!#REF!,2,0)) ->  | AB66: 0
C67: 0 | E67: 00:00:00 | K67: =IF(D67=(Term+10)*12+1,VLOOKUP((Term+10),#REF!,7,0),0) ->  | T67: 0 | U67: 0 | X67: 180 | Y67: 0 | AA67: =IF(Term=6,VLOOKUP(Z67,Working!#REF!,3,0),VLOOKUP(Z67,Working!#REF!,2,0)) ->  | AB67: 0
C68: 0 | E68: 00:00:00 | K68: =IF(D68=(Term+10)*12+1,VLOOKUP((Term+10),#REF!,7,0),0) ->  | T68: 0 | U68: 0 | X68: 181 | Y68: 0 | AA68: =IF(Term=6,VLOOKUP(Z68,Working!#REF!,3,0),VLOOKUP(Z68,Working!#REF!,2,0)) ->  | AB68: 0
C69: 0 | E69: 00:00:00 | K69: =IF(D69=(Term+10)*12+1,VLOOKUP((Term+10),#REF!,7,0),0) ->  | T69: 0 | U69: 0 | X69: 182 | Y69: 0 | AA69: =IF(Term=6,VLOOKUP(Z69,Working!#REF!,3,0),VLOOKUP(Z69,Working!#REF!,2,0)) ->  | AB69: 0
C70: 0 | E70: 00:00:00 | K70: =IF(D70=(Term+10)*12+1,VLOOKUP((Term+10),#REF!,7,0),0) ->  | T70: 0 | U70: 0 | X70: 183 | Y70: 0 | AA70: =IF(Term=6,VLOOKUP(Z70,Working!#REF!,3,0),VLOOKUP(Z70,Working!#REF!,2,0)) ->  | AB70: 0
C71: 0 | E71: 00:00:00 | K71: =IF(D71=(Term+10)*12+1,VLOOKUP((Term+10),#REF!,7,0),0) ->  | T71: 0 | U71: 0 | X71: 184 | Y71: 0 | AA71: =IF(Term=6,VLOOKUP(Z71,Working!#REF!,3,0),VLOOKUP(Z71,Working!#REF!,2,0)) ->  | AB71: 0
C72: 0 | E72: 00:00:00 | K72: =IF(D72=(Term+10)*12+1,VLOOKUP((Term+10),#REF!,7,0),0) ->  | T72: 0 | U72: 0 | X72: 185 | Y72: 0 | AA72: =IF(Term=6,VLOOKUP(Z72,Working!#REF!,3,0),VLOOKUP(Z72,Working!#REF!,2,0)) ->  | AB72: 0
C73: 0 | E73: 00:00:00 | K73: =IF(D73=(Term+10)*12+1,VLOOKUP((Term+10),#REF!,7,0),0) ->  | T73: 0 | U73: 0 | X73: 186 | Y73: 0 | AA73: =IF(Term=6,VLOOKUP(Z73,Working!#REF!,3,0),VLOOKUP(Z73,Working!#REF!,2,0)) ->  | AB73: 0
C74: 0 | E74: 00:00:00 | K74: =IF(D74=(Term+10)*12+1,VLOOKUP((Term+10),#REF!,7,0),0) ->  | T74: 0 | U74: 0 | X74: 187 | Y74: 0 | AA74: =IF(Term=6,VLOOKUP(Z74,Working!#REF!,3,0),VLOOKUP(Z74,Working!#REF!,2,0)) ->  | AB74: 0
C75: 0 | E75: 00:00:00 | K75: =IF(D75=(Term+10)*12+1,VLOOKUP((Term+10),#REF!,7,0),0) ->  | T75: 0 | U75: 0 | X75: 188 | Y75: 0 | AA75: =IF(Term=6,VLOOKUP(Z75,Working!#REF!,3,0),VLOOKUP(Z75,Working!#REF!,2,0)) ->  | AB75: 0
C76: 0 | E76: 00:00:00 | K76: =IF(D76=(Term+10)*12+1,VLOOKUP((Term+10),#REF!,7,0),0) ->  | T76: 0 | U76: 0 | X76: 189 | Y76: 0 | AA76: =IF(Term=6,VLOOKUP(Z76,Working!#REF!,3,0),VLOOKUP(Z76,Working!#REF!,2,0)) ->  | AB76: 0
C77: 0 | E77: 00:00:00 | K77: =IF(D77=(Term+10)*12+1,VLOOKUP((Term+10),#REF!,7,0),0) ->  | T77: 0 | U77: 0 | X77: 190 | Y77: 0 | AA77: =IF(Term=6,VLOOKUP(Z77,Working!#REF!,3,0),VLOOKUP(Z77,Working!#REF!,2,0)) ->  | AB77: 0
C78: 0 | E78: 00:00:00 | K78: =IF(D78=(Term+10)*12+1,VLOOKUP((Term+10),#REF!,7,0),0) ->  | T78: 0 | U78: 0 | X78: 191 | Y78: 0 | AA78: =IF(Term=6,VLOOKUP(Z78,Working!#REF!,3,0),VLOOKUP(Z78,Working!#REF!,2,0)) ->  | AB78: 0
C79: 0 | E79: 00:00:00 | K79: =IF(D79=(Term+10)*12+1,VLOOKUP((Term+10),#REF!,7,0),0) ->  | T79: 0 | U79: 0 | X79: 192 | Y79: 0 | AA79: =IF(Term=6,VLOOKUP(Z79,Working!#REF!,3,0),VLOOKUP(Z79,Working!#REF!,2,0)) ->  | AB79: 0
C80: 0 | E80: 00:00:00 | K80: =IF(D80=(Term+10)*12+1,VLOOKUP((Term+10),#REF!,7,0),0) ->  | T80: 0 | U80: 0 | X80: 193 | Y80: 0 | AA80: =IF(Term=6,VLOOKUP(Z80,Working!#REF!,3,0),VLOOKUP(Z80,Working!#REF!,2,0)) ->  | AB80: 0
C81: 0 | E81: 00:00:00 | K81: =IF(D81=(Term+10)*12+1,VLOOKUP((Term+10),#REF!,7,0),0) ->  | T81: 0 | U81: 0 | X81: 211 | Y81: 0 | AA81: =IF(Term=6,VLOOKUP(Z81,Working!#REF!,3,0),VLOOKUP(Z81,Working!#REF!,2,0)) ->  | AB81: 0
C82: 0 | E82: 00:00:00 | K82: =IF(D82=(Term+10)*12+1,VLOOKUP((Term+10),#REF!,7,0),0) ->  | T82: 0 | U82: 0 | X82: 212 | Y82: 0 | AA82: =IF(Term=6,VLOOKUP(Z82,Working!#REF!,3,0),VLOOKUP(Z82,Working!#REF!,2,0)) ->  | AB82: 0
C83: 0 | E83: 00:00:00 | K83: =IF(D83=(Term+10)*12+1,VLOOKUP((Term+10),#REF!,7,0),0) ->  | T83: 0 | U83: 0 | X83: 213 | Y83: 0 | AA83: =IF(Term=6,VLOOKUP(Z83,Working!#REF!,3,0),VLOOKUP(Z83,Working!#REF!,2,0)) ->  | AB83: 0
C84: 0 | E84: 00:00:00 | K84: =IF(D84=(Term+10)*12+1,VLOOKUP((Term+10),#REF!,7,0),0) ->  | T84: 0 | U84: 0 | X84: 214 | Y84: 0 | AA84: =IF(Term=6,VLOOKUP(Z84,Working!#REF!,3,0),VLOOKUP(Z84,Working!#REF!,2,0)) ->  | AB84: 0
C85: 0 | E85: 00:00:00 | K85: =IF(D85=(Term+10)*12+1,VLOOKUP((Term+10),#REF!,7,0),0) ->  | T85: 0 | U85: 0 | X85: 215 | Y85: 0 | AA85: =IF(Term=6,VLOOKUP(Z85,Working!#REF!,3,0),VLOOKUP(Z85,Working!#REF!,2,0)) ->  | AB85: 0
C86: 0 | D86: =IF(D85<(Term+10)*12+1,D85+1,"") ->  | E86: =IF(ISERROR(IF(D86>1,(DATE(YEAR($D$6),MONTH($D$6)+D86-1,DAY(DOPI)))*(D86>0),$D$6)*(C86>0)),0,IF(D86>1,(DATE(YEAR($D$6),MONTH($D$6)+D86-1,DAY(DOPI)))*(D86>0),$D$6)*(C86>0)) -> 00:00:00 | I86: =(INT((DOD-DOPI)/365.25)+1)*Prem*H86 ->  | J86: =monthly_income*(C86>0)*AND(E86>$I$7,E86<=DATE(YEAR(DOPI)+Term+10,MONTH(DOPI),DAY(DOPI))) ->  | K86: =IF(D86=(Term+10)*12+1,VLOOKUP((Term+10),#REF!,7,0),0) ->  | L86: =IF(Term=6,IF(AND(D86>(Term+5)*12+1,D86<=(Term+10)*12+1),monthly_income*0.44,0),IF(AND(D86>(Term)*12+1,D86<=(Term+10)*12+1),monthly_income*0.27,0))*(1-T86) ->  | M86: =IF(Term=6,IF(AND(D86>(Term+5)*12+1,D86<=(Term+10)*12+1),monthly_income*0.88,0),IF(AND(D86>(Term)*12+1,D86<=(Term+10)*12+1),monthly_income*0.53,0))*(1-T86) ->  | N86: =IF(Term=6,IF(AND(D86>(Term+5)*12+1,D86<=(Term+10)*12+1),monthly_income*1.41,0),IF(AND(D86>(Term)*12+1,D86<=(Term+10)*12+1),monthly_income*0.84,0))*(1-T86) ->  | T86: =IF(ISERROR(IF(IF(AND(D86>=134,Term=11),VLOOKUP(D86,$W$21:$Y$123,4,0),0)>0,1,0)),0,IF(IF(AND(D86>=134,Term=11),VLOOKUP(D86,$W$21:$Y$123,4,0),0)>0,1,0))*0+IF(Y86>0,1,0) -> 0 | U86: 0 | X86: 216 | Y86: 0 | Z86: =IF(W86>=134,Y86/monthly_income,0) ->  | AA86: =IF(Term=6,VLOOKUP(Z86,Working!#REF!,3,0),VLOOKUP(Z86,Working!#REF!,2,0)) ->  | AB86: 0
C87: =IF(ISERROR(IF(C86<=(Term+10+1),INT((D87-1)/12)+1,"")),0,IF(C86<=(Term+10+1),INT((D87-1)/12)+1,"")) -> 0 | E87: 00:00:00 | F87: =IF((MONTH(DOI)-MONTH(DOPI))=D87,D87,0) ->  | H87: =1*(E87=$I$6) ->  | K87: =IF(D87=(Term+10)*12+1,VLOOKUP((Term+10),#REF!,7,0),0) ->  | T87: 0 | U87: =T87*Y87 -> 0 | W87: =D87 ->  | X87: 217 | Y87: 0 | AA87: =IF(Term=6,VLOOKUP(Z87,Working!#REF!,3,0),VLOOKUP(Z87,Working!#REF!,2,0)) ->  | AB87: =IF(ISERROR((1/(1+AA87)^(1/12))^AD87),0,(1/(1+AA87)^(1/12))^AD87) -> 0 | AC87: =IF(AND(E87>=$I$6,Y87>0),1,0) ->  | AD87: =IF(AC87=1,DATEDIF($I$6,E87,"m"),0) -> 
C88: 0 | E88: 00:00:00 | K88: =IF(D88=(Term+10)*12+1,VLOOKUP((Term+10),#REF!,7,0),0) ->  | T88: 0 | U88: 0 | X88: 218 | Y88: 0 | AA88: =IF(Term=6,VLOOKUP(Z88,Working!#REF!,3,0),VLOOKUP(Z88,Working!#REF!,2,0)) ->  | AB88: 0
C89: 0 | E89: 00:00:00 | K89: =IF(D89=(Term+10)*12+1,VLOOKUP((Term+10),#REF!,7,0),0) ->  | T89: 0 | U89: 0 | X89: 219 | Y89: 0 | AA89: =IF(Term=6,VLOOKUP(Z89,Working!#REF!,3,0),VLOOKUP(Z89,Working!#REF!,2,0)) ->  | AB89: 0
C90: 0 | E90: 00:00:00 | K90: =IF(D90=(Term+10)*12+1,VLOOKUP((Term+10),#REF!,7,0),0) ->  | T90: 0 | U90: 0 | X90: 220 | Y90: 0 | AA90: =IF(Term=6,VLOOKUP(Z90,Working!#REF!,3,0),VLOOKUP(Z90,Working!#REF!,2,0)) ->  | AB90: 0
C91: 0 | E91: 00:00:00 | K91: =IF(D91=(Term+10)*12+1,VLOOKUP((Term+10),#REF!,7,0),0) ->  | T91: 0 | U91: 0 | X91: 221 | Y91: 0 | AA91: =IF(Term=6,VLOOKUP(Z91,Working!#REF!,3,0),VLOOKUP(Z91,Working!#REF!,2,0)) ->  | AB91: 0
C92: 0 | E92: 00:00:00 | K92: =IF(D92=(Term+10)*12+1,VLOOKUP((Term+10),#REF!,7,0),0) ->  | T92: 0 | U92: 0 | X92: 222 | Y92: 0 | AA92: =IF(Term=6,VLOOKUP(Z92,Working!#REF!,3,0),VLOOKUP(Z92,Working!#REF!,2,0)) ->  | AB92: 0
C93: 0 | E93: 00:00:00 | K93: =IF(D93=(Term+10)*12+1,VLOOKUP((Term+10),#REF!,7,0),0) ->  | T93: 0 | U93: 0 | X93: 223 | Y93: 0 | AA93: =IF(Term=6,VLOOKUP(Z93,Working!#REF!,3,0),VLOOKUP(Z93,Working!#REF!,2,0)) ->  | AB93: 0
C94: 0 | E94: 00:00:00 | K94: =IF(D94=(Term+10)*12+1,VLOOKUP((Term+10),#REF!,7,0),0) ->  | T94: 0 | U94: 0 | X94: 224 | Y94: 0 | AA94: =IF(Term=6,VLOOKUP(Z94,Working!#REF!,3,0),VLOOKUP(Z94,Working!#REF!,2,0)) ->  | AB94: 0
C95: 0 | E95: 00:00:00 | K95: =IF(D95=(Term+10)*12+1,VLOOKUP((Term+10),#REF!,7,0),0) ->  | T95: 0 | U95: 0 | X95: 225 | Y95: 0 | AA95: =IF(Term=6,VLOOKUP(Z95,Working!#REF!,3,0),VLOOKUP(Z95,Working!#REF!,2,0)) ->  | AB95: 0
C96: 0 | E96: 00:00:00 | K96: =IF(D96=(Term+10)*12+1,VLOOKUP((Term+10),#REF!,7,0),0) ->  | T96: 0 | U96: 0 | X96: 226 | Y96: 0 | AA96: =IF(Term=6,VLOOKUP(Z96,Working!#REF!,3,0),VLOOKUP(Z96,Working!#REF!,2,0)) ->  | AB96: 0
C97: 0 | E97: 00:00:00 | K97: =IF(D97=(Term+10)*12+1,VLOOKUP((Term+10),#REF!,7,0),0) ->  | T97: 0 | U97: 0 | X97: 227 | Y97: 0 | AA97: =IF(Term=6,VLOOKUP(Z97,Working!#REF!,3,0),VLOOKUP(Z97,Working!#REF!,2,0)) ->  | AB97: 0
C98: 0 | E98: 00:00:00 | K98: =IF(D98=(Term+10)*12+1,VLOOKUP((Term+10),#REF!,7,0),0) ->  | T98: 0 | U98: 0 | X98: 228 | Y98: 0 | AA98: =IF(Term=6,VLOOKUP(Z98,Working!#REF!,3,0),VLOOKUP(Z98,Working!#REF!,2,0)) ->  | AB98: 0
C99: 0 | E99: 00:00:00 | K99: =IF(D99=(Term+10)*12+1,VLOOKUP((Term+10),#REF!,7,0),0) ->  | T99: 0 | U99: 0 | X99: 229 | Y99: 0 | AA99: =IF(Term=6,VLOOKUP(Z99,Working!#REF!,3,0),VLOOKUP(Z99,Working!#REF!,2,0)) ->  | AB99: 0
C100: 0 | E100: 00:00:00 | K100: =IF(D100=(Term+10)*12+1,VLOOKUP((Term+10),#REF!,7,0),0) ->  | T100: 0 | U100: 0 | X100: 230 | Y100: 0 | AA100: =IF(Term=6,VLOOKUP(Z100,Working!#REF!,3,0),VLOOKUP(Z100,Working!#REF!,2,0)) ->  | AB100: 0
C101: 0 | E101: 00:00:00 | K101: =IF(D101=(Term+10)*12+1,VLOOKUP((Term+10),#REF!,7,0),0) ->  | T101: 0 | U101: 0 | X101: 231 | Y101: 0 | AA101: =IF(Term=6,VLOOKUP(Z101,Working!#REF!,3,0),VLOOKUP(Z101,Working!#REF!,2,0)) ->  | AB101: 0
C102: 0 | E102: 00:00:00 | K102: =IF(D102=(Term+10)*12+1,VLOOKUP((Term+10),#REF!,7,0),0) ->  | T102: 0 | U102: 0 | X102: 232 | Y102: 0 | AA102: =IF(Term=6,VLOOKUP(Z102,Working!#REF!,3,0),VLOOKUP(Z102,Working!#REF!,2,0)) ->  | AB102: 0
C103: 0 | E103: 00:00:00 | K103: =IF(D103=(Term+10)*12+1,VLOOKUP((Term+10),#REF!,7,0),0) ->  | T103: 0 | U103: 0 | X103: 233 | Y103: 0 | AA103: =IF(Term=6,VLOOKUP(Z103,Working!#REF!,3,0),VLOOKUP(Z103,Working!#REF!,2,0)) ->  | AB103: 0
C104: 0 | E104: 00:00:00 | K104: =IF(D104=(Term+10)*12+1,VLOOKUP((Term+10),#REF!,7,0),0) ->  | T104: 0 | U104: 0 | X104: 234 | Y104: 0 | AA104: =IF(Term=6,VLOOKUP(Z104,Working!#REF!,3,0),VLOOKUP(Z104,Working!#REF!,2,0)) ->  | AB104: 0
C105: 0 | E105: 00:00:00 | K105: =IF(D105=(Term+10)*12+1,VLOOKUP((Term+10),#REF!,7,0),0) ->  | T105: 0 | U105: 0 | X105: 235 | Y105: 0 | AA105: =IF(Term=6,VLOOKUP(Z105,Working!#REF!,3,0),VLOOKUP(Z105,Working!#REF!,2,0)) ->  | AB105: 0
C106: 0 | E106: 00:00:00 | K106: =IF(D106=(Term+10)*12+1,VLOOKUP((Term+10),#REF!,7,0),0) ->  | T106: 0 | U106: 0 | X106: 236 | Y106: 0 | AA106: =IF(Term=6,VLOOKUP(Z106,Working!#REF!,3,0),VLOOKUP(Z106,Working!#REF!,2,0)) ->  | AB106: 0
C107: 0 | E107: 00:00:00 | K107: =IF(D107=(Term+10)*12+1,VLOOKUP((Term+10),#REF!,7,0),0) ->  | T107: 0 | U107: 0 | X107: 237 | Y107: 0 | AA107: =IF(Term=6,VLOOKUP(Z107,Working!#REF!,3,0),VLOOKUP(Z107,Working!#REF!,2,0)) ->  | AB107: 0
C108: 0 | E108: 00:00:00 | K108: =IF(D108=(Term+10)*12+1,VLOOKUP((Term+10),#REF!,7,0),0) ->  | T108: 0 | U108: 0 | X108: 238 | Y108: 0 | AA108: =IF(Term=6,VLOOKUP(Z108,Working!#REF!,3,0),VLOOKUP(Z108,Working!#REF!,2,0)) ->  | AB108: 0
C109: 0 | E109: 00:00:00 | K109: =IF(D109=(Term+10)*12+1,VLOOKUP((Term+10),#REF!,7,0),0) ->  | T109: 0 | U109: 0 | X109: 239 | Y109: 0 | AA109: =IF(Term=6,VLOOKUP(Z109,Working!#REF!,3,0),VLOOKUP(Z109,Working!#REF!,2,0)) ->  | AB109: 0
C110: 0 | E110: 00:00:00 | K110: =IF(D110=(Term+10)*12+1,VLOOKUP((Term+10),#REF!,7,0),0) ->  | T110: 0 | U110: 0 | X110: 240 | Y110: 0 | AA110: =IF(Term=6,VLOOKUP(Z110,Working!#REF!,3,0),VLOOKUP(Z110,Working!#REF!,2,0)) ->  | AB110: 0
C111: 0 | E111: 00:00:00 | K111: =IF(D111=(Term+10)*12+1,VLOOKUP((Term+10),#REF!,7,0),0) ->  | T111: 0 | U111: 0 | X111: 241 | Y111: 0 | AA111: =IF(Term=6,VLOOKUP(Z111,Working!#REF!,3,0),VLOOKUP(Z111,Working!#REF!,2,0)) ->  | AB111: 0
C112: 0 | E112: 00:00:00 | K112: =IF(D112=(Term+10)*12+1,VLOOKUP((Term+10),#REF!,7,0),0) ->  | T112: 0 | U112: 0 | X112: 242 | Y112: 0 | AA112: =IF(Term=6,VLOOKUP(Z112,Working!#REF!,3,0),VLOOKUP(Z112,Working!#REF!,2,0)) ->  | AB112: 0
C113: 0 | E113: 00:00:00 | K113: =IF(D113=(Term+10)*12+1,VLOOKUP((Term+10),#REF!,7,0),0) ->  | T113: 0 | U113: 0 | X113: 243 | Y113: 0 | AA113: =IF(Term=6,VLOOKUP(Z113,Working!#REF!,3,0),VLOOKUP(Z113,Working!#REF!,2,0)) ->  | AB113: 0
C114: 0 | E114: 00:00:00 | K114: =IF(D114=(Term+10)*12+1,VLOOKUP((Term+10),#REF!,7,0),0) ->  | T114: 0 | U114: 0 | X114: 244 | Y114: 0 | AA114: =IF(Term=6,VLOOKUP(Z114,Working!#REF!,3,0),VLOOKUP(Z114,Working!#REF!,2,0)) ->  | AB114: 0
C115: 0 | E115: 00:00:00 | K115: =IF(D115=(Term+10)*12+1,VLOOKUP((Term+10),#REF!,7,0),0) ->  | T115: 0 | U115: 0 | X115: 245 | Y115: 0 | AA115: =IF(Term=6,VLOOKUP(Z115,Working!#REF!,3,0),VLOOKUP(Z115,Working!#REF!,2,0)) ->  | AB115: 0
C116: 0 | E116: 00:00:00 | K116: =IF(D116=(Term+10)*12+1,VLOOKUP((Term+10),#REF!,7,0),0) ->  | T116: 0 | U116: 0 | X116: 246 | Y116: 0 | AA116: =IF(Term=6,VLOOKUP(Z116,Working!#REF!,3,0),VLOOKUP(Z116,Working!#REF!,2,0)) ->  | AB116: 0
C117: 0 | E117: 00:00:00 | K117: =IF(D117=(Term+10)*12+1,VLOOKUP((Term+10),#REF!,7,0),0) ->  | T117: 0 | U117: 0 | X117: 247 | Y117: 0 | AA117: =IF(Term=6,VLOOKUP(Z117,Working!#REF!,3,0),VLOOKUP(Z117,Working!#REF!,2,0)) ->  | AB117: 0
C118: 0 | E118: 00:00:00 | K118: =IF(D118=(Term+10)*12+1,VLOOKUP((Term+10),#REF!,7,0),0) ->  | T118: 0 | U118: 0 | X118: 248 | Y118: 0 | AA118: =IF(Term=6,VLOOKUP(Z118,Working!#REF!,3,0),VLOOKUP(Z118,Working!#REF!,2,0)) ->  | AB118: 0
C119: 0 | E119: 00:00:00 | K119: =IF(D119=(Term+10)*12+1,VLOOKUP((Term+10),#REF!,7,0),0) ->  | T119: 0 | U119: 0 | X119: 249 | Y119: 0 | AA119: =IF(Term=6,VLOOKUP(Z119,Working!#REF!,3,0),VLOOKUP(Z119,Working!#REF!,2,0)) ->  | AB119: 0
C120: 0 | E120: 00:00:00 | K120: =IF(D120=(Term+10)*12+1,VLOOKUP((Term+10),#REF!,7,0),0) ->  | T120: 0 | U120: 0 | X120: 250 | Y120: 0 | AA120: =IF(Term=6,VLOOKUP(Z120,Working!#REF!,3,0),VLOOKUP(Z120,Working!#REF!,2,0)) ->  | AB120: 0
C121: 0 | E121: 00:00:00 | K121: =IF(D121=(Term+10)*12+1,VLOOKUP((Term+10),#REF!,7,0),0) ->  | T121: 0 | U121: 0 | X121: 251 | Y121: 0 | AA121: =IF(Term=6,VLOOKUP(Z121,Working!#REF!,3,0),VLOOKUP(Z121,Working!#REF!,2,0)) ->  | AB121: 0
C122: 0 | E122: 00:00:00 | K122: =IF(D122=(Term+10)*12+1,VLOOKUP((Term+10),#REF!,7,0),0) ->  | T122: 0 | U122: 0 | X122: 252 | Y122: 0 | AA122: =IF(Term=6,VLOOKUP(Z122,Working!#REF!,3,0),VLOOKUP(Z122,Working!#REF!,2,0)) ->  | AB122: 0
C123: 0 | E123: 00:00:00 | K123: =IF(D123=(Term+10)*12+1,VLOOKUP((Term+10),#REF!,7,0),0) ->  | T123: 0 | U123: 0 | X123: 253 | Y123: 0 | AA123: =IF(Term=6,VLOOKUP(Z123,Working!#REF!,3,0),VLOOKUP(Z123,Working!#REF!,2,0)) ->  | AB123: 0
C124: 0 | E124: 00:00:00 | K124: =IF(D124=(Term+10)*12+1,VLOOKUP((Term+10),#REF!,7,0),0) ->  | T124: 0 | U124: 0 | Y124: 0 | AA124: =IF(Term=6,VLOOKUP(Z124,Working!#REF!,3,0),VLOOKUP(Z124,Working!#REF!,2,0)) ->  | AB124: 0
C125: 0 | E125: 00:00:00 | K125: =IF(D125=(Term+10)*12+1,VLOOKUP((Term+10),#REF!,7,0),0) ->  | T125: 0 | U125: 0 | Y125: 0 | AA125: =IF(Term=6,VLOOKUP(Z125,Working!#REF!,3,0),VLOOKUP(Z125,Working!#REF!,2,0)) ->  | AB125: 0
C126: 0 | E126: 00:00:00 | K126: =IF(D126=(Term+10)*12+1,VLOOKUP((Term+10),#REF!,7,0),0) ->  | T126: 0 | U126: 0 | Y126: 0 | AA126: =IF(Term=6,VLOOKUP(Z126,Working!#REF!,3,0),VLOOKUP(Z126,Working!#REF!,2,0)) ->  | AB126: 0
C127: 0 | E127: 00:00:00 | K127: =IF(D127=(Term+10)*12+1,VLOOKUP((Term+10),#REF!,7,0),0) ->  | T127: 0 | U127: 0 | Y127: 0 | AA127: =IF(Term=6,VLOOKUP(Z127,Working!#REF!,3,0),VLOOKUP(Z127,Working!#REF!,2,0)) ->  | AB127: 0
C128: 0 | E128: 00:00:00 | K128: =IF(D128=(Term+10)*12+1,VLOOKUP((Term+10),#REF!,7,0),0) ->  | T128: 0 | U128: 0 | Y128: 0 | AA128: =IF(Term=6,VLOOKUP(Z128,Working!#REF!,3,0),VLOOKUP(Z128,Working!#REF!,2,0)) ->  | AB128: 0
C129: 0 | E129: 00:00:00 | K129: =IF(D129=(Term+10)*12+1,VLOOKUP((Term+10),#REF!,7,0),0) ->  | T129: 0 | U129: 0 | Y129: 0 | AA129: =IF(Term=6,VLOOKUP(Z129,Working!#REF!,3,0),VLOOKUP(Z129,Working!#REF!,2,0)) ->  | AB129: 0
C130: 0 | E130: 00:00:00 | K130: =IF(D130=(Term+10)*12+1,VLOOKUP((Term+10),#REF!,7,0),0) ->  | T130: 0 | U130: 0 | Y130: 0 | AA130: =IF(Term=6,VLOOKUP(Z130,Working!#REF!,3,0),VLOOKUP(Z130,Working!#REF!,2,0)) ->  | AB130: 0
C131: 0 | E131: 00:00:00 | K131: =IF(D131=(Term+10)*12+1,VLOOKUP((Term+10),#REF!,7,0),0) ->  | T131: 0 | U131: 0 | Y131: 0 | AA131: =IF(Term=6,VLOOKUP(Z131,Working!#REF!,3,0),VLOOKUP(Z131,Working!#REF!,2,0)) ->  | AB131: 0
C132: 0 | E132: 00:00:00 | K132: =IF(D132=(Term+10)*12+1,VLOOKUP((Term+10),#REF!,7,0),0) ->  | T132: 0 | U132: 0 | Y132: 0 | AA132: =IF(Term=6,VLOOKUP(Z132,Working!#REF!,3,0),VLOOKUP(Z132,Working!#REF!,2,0)) ->  | AB132: 0
C133: 0 | E133: 00:00:00 | K133: =IF(D133=(Term+10)*12+1,VLOOKUP((Term+10),#REF!,7,0),0) ->  | T133: 0 | U133: 0 | Y133: 0 | AA133: =IF(Term=6,VLOOKUP(Z133,Working!#REF!,3,0),VLOOKUP(Z133,Working!#REF!,2,0)) ->  | AB133: 0
C134: 0 | E134: 00:00:00 | K134: =IF(D134=(Term+10)*12+1,VLOOKUP((Term+10),#REF!,7,0),0) ->  | T134: 0 | U134: 0 | Y134: 0 | AA134: =IF(Term=6,VLOOKUP(Z134,Working!#REF!,3,0),VLOOKUP(Z134,Working!#REF!,2,0)) ->  | AB134: 0
C135: 0 | E135: 00:00:00 | K135: =IF(D135=(Term+10)*12+1,VLOOKUP((Term+10),#REF!,7,0),0) ->  | T135: 0 | U135: 0 | Y135: 0 | AA135: =IF(Term=6,VLOOKUP(Z135,Working!#REF!,3,0),VLOOKUP(Z135,Working!#REF!,2,0)) ->  | AB135: 0
C136: 0 | E136: 00:00:00 | K136: =IF(D136=(Term+10)*12+1,VLOOKUP((Term+10),#REF!,7,0),0) ->  | T136: 0 | U136: 0 | Y136: 0 | AA136: =IF(Term=6,VLOOKUP(Z136,Working!#REF!,3,0),VLOOKUP(Z136,Working!#REF!,2,0)) ->  | AB136: 0
C137: 0 | E137: 00:00:00 | K137: =IF(D137=(Term+10)*12+1,VLOOKUP((Term+10),#REF!,7,0),0) ->  | T137: 0 | U137: 0 | Y137: 0 | AA137: =IF(Term=6,VLOOKUP(Z137,Working!#REF!,3,0),VLOOKUP(Z137,Working!#REF!,2,0)) ->  | AB137: 0
C138: 0 | E138: 00:00:00 | K138: =IF(D138=(Term+10)*12+1,VLOOKUP((Term+10),#REF!,7,0),0) ->  | T138: 0 | U138: 0 | Y138: 0 | AA138: =IF(Term=6,VLOOKUP(Z138,Working!#REF!,3,0),VLOOKUP(Z138,Working!#REF!,2,0)) ->  | AB138: 0
C139: 0 | E139: 00:00:00 | K139: =IF(D139=(Term+10)*12+1,VLOOKUP((Term+10),#REF!,7,0),0) ->  | T139: 0 | U139: 0 | Y139: 0 | AA139: =IF(Term=6,VLOOKUP(Z139,Working!#REF!,3,0),VLOOKUP(Z139,Working!#REF!,2,0)) ->  | AB139: 0
C140: 0 | E140: 00:00:00 | K140: =IF(D140=(Term+10)*12+1,VLOOKUP((Term+10),#REF!,7,0),0) ->  | T140: 0 | U140: 0 | Y140: 0 | AA140: =IF(Term=6,VLOOKUP(Z140,Working!#REF!,3,0),VLOOKUP(Z140,Working!#REF!,2,0)) ->  | AB140: 0
C141: 0 | E141: 00:00:00 | K141: =IF(D141=(Term+10)*12+1,VLOOKUP((Term+10),#REF!,7,0),0) ->  | T141: 0 | U141: 0 | Y141: 0 | AA141: =IF(Term=6,VLOOKUP(Z141,Working!#REF!,3,0),VLOOKUP(Z141,Working!#REF!,2,0)) ->  | AB141: 0
C142: 0 | E142: 00:00:00 | K142: =IF(D142=(Term+10)*12+1,VLOOKUP((Term+10),#REF!,7,0),0) ->  | T142: 0 | U142: 0 | Y142: 0 | AA142: =IF(Term=6,VLOOKUP(Z142,Working!#REF!,3,0),VLOOKUP(Z142,Working!#REF!,2,0)) ->  | AB142: 0
C143: 0 | E143: 00:00:00 | K143: =IF(D143=(Term+10)*12+1,VLOOKUP((Term+10),#REF!,7,0),0) ->  | T143: 0 | U143: 0 | Y143: 0 | AA143: =IF(Term=6,VLOOKUP(Z143,Working!#REF!,3,0),VLOOKUP(Z143,Working!#REF!,2,0)) ->  | AB143: 0
C144: 0 | E144: 00:00:00 | K144: =IF(D144=(Term+10)*12+1,VLOOKUP((Term+10),#REF!,7,0),0) ->  | T144: 0 | U144: 0 | Y144: 0 | AA144: =IF(Term=6,VLOOKUP(Z144,Working!#REF!,3,0),VLOOKUP(Z144,Working!#REF!,2,0)) ->  | AB144: 0
C145: 0 | E145: 00:00:00 | K145: =IF(D145=(Term+10)*12+1,VLOOKUP((Term+10),#REF!,7,0),0) ->  | T145: 0 | U145: 0 | Y145: 0 | AA145: =IF(Term=6,VLOOKUP(Z145,Working!#REF!,3,0),VLOOKUP(Z145,Working!#REF!,2,0)) ->  | AB145: 0
C146: 0 | E146: 00:00:00 | K146: =IF(D146=(Term+10)*12+1,VLOOKUP((Term+10),#REF!,7,0),0) ->  | T146: 0 | U146: 0 | Y146: 0 | AA146: =IF(Term=6,VLOOKUP(Z146,Working!#REF!,3,0),VLOOKUP(Z146,Working!#REF!,2,0)) ->  | AB146: 0
C147: 0 | E147: 00:00:00 | K147: =IF(D147=(Term+10)*12+1,VLOOKUP((Term+10),#REF!,7,0),0) ->  | T147: 0 | U147: 0 | Y147: 0 | AA147: =IF(Term=6,VLOOKUP(Z147,Working!#REF!,3,0),VLOOKUP(Z147,Working!#REF!,2,0)) ->  | AB147: 0
C148: 0 | E148: 00:00:00 | K148: =IF(D148=(Term+10)*12+1,VLOOKUP((Term+10),#REF!,7,0),0) ->  | T148: 0 | U148: 0 | Y148: 0 | AA148: =IF(Term=6,VLOOKUP(Z148,Working!#REF!,3,0),VLOOKUP(Z148,Working!#REF!,2,0)) ->  | AB148: 0
C149: 0 | E149: 00:00:00 | K149: =IF(D149=(Term+10)*12+1,VLOOKUP((Term+10),#REF!,7,0),0) ->  | T149: 0 | U149: 0 | Y149: 0 | AA149: =IF(Term=6,VLOOKUP(Z149,Working!#REF!,3,0),VLOOKUP(Z149,Working!#REF!,2,0)) ->  | AB149: 0
C150: 0 | D150: =IF(D149<(Term+10)*12+1,D149+1,"") ->  | E150: =IF(ISERROR(IF(D150>1,(DATE(YEAR($D$6),MONTH($D$6)+D150-1,DAY(DOPI)))*(D150>0),$D$6)*(C150>0)),0,IF(D150>1,(DATE(YEAR($D$6),MONTH($D$6)+D150-1,DAY(DOPI)))*(D150>0),$D$6)*(C150>0)) -> 00:00:00 | J150: =monthly_income*(C150>0)*AND(E150>$I$7,E150<=DATE(YEAR(DOPI)+Term+10,MONTH(DOPI),DAY(DOPI))) ->  | K150: =IF(D150=(Term+10)*12+1,VLOOKUP((Term+10),#REF!,7,0),0) ->  | L150: =IF(Term=6,IF(AND(D150>(Term+5)*12+1,D150<=(Term+10)*12+1),monthly_income*0.44,0),IF(AND(D150>(Term)*12+1,D150<=(Term+10)*12+1),monthly_income*0.27,0))*(1-T150) ->  | M150: =IF(Term=6,IF(AND(D150>(Term+5)*12+1,D150<=(Term+10)*12+1),monthly_income*0.88,0),IF(AND(D150>(Term)*12+1,D150<=(Term+10)*12+1),monthly_income*0.53,0))*(1-T150) ->  | N150: =IF(Term=6,IF(AND(D150>(Term+5)*12+1,D150<=(Term+10)*12+1),monthly_income*1.41,0),IF(AND(D150>(Term)*12+1,D150<=(Term+10)*12+1),monthly_income*0.84,0))*(1-T150) ->  | T150: =IF(ISERROR(IF(IF(AND(D150>=134,Term=11),VLOOKUP(D150,$W$21:$Y$123,4,0),0)>0,1,0)),0,IF(IF(AND(D150>=134,Term=11),VLOOKUP(D150,$W$21:$Y$123,4,0),0)>0,1,0))*0+IF(Y150>0,1,0) -> 0 | U150: 0 | Y150: 0 | Z150: =IF(W150>=134,Y150/monthly_income,0) ->  | AA150: =IF(Term=6,VLOOKUP(Z150,Working!#REF!,3,0),VLOOKUP(Z150,Working!#REF!,2,0)) ->  | AB150: 0
C151: =IF(ISERROR(IF(C150<=(Term+10+1),INT((D151-1)/12)+1,"")),0,IF(C150<=(Term+10+1),INT((D151-1)/12)+1,"")) -> 0 | E151: 00:00:00 | F151: =IF((MONTH(DOI)-MONTH(DOPI))=D151,D151,0) ->  | H151: =1*(E151=$I$6) ->  | K151: =IF(D151=(Term+10)*12+1,VLOOKUP((Term+10),#REF!,7,0),0) ->  | T151: 0 | U151: =T151*Y151 -> 0 | W151: =D151 ->  | Y151: 0 | AA151: =IF(Term=6,VLOOKUP(Z151,Working!#REF!,3,0),VLOOKUP(Z151,Working!#REF!,2,0)) ->  | AB151: =IF(ISERROR((1/(1+AA151)^(1/12))^AD151),0,(1/(1+AA151)^(1/12))^AD151) -> 0 | AC151: =IF(AND(E151>=$I$6,Y151>0),1,0) ->  | AD151: =IF(AC151=1,DATEDIF($I$6,E151,"m"),0) -> 
C152: 0 | E152: 00:00:00 | K152: =IF(D152=(Term+10)*12+1,VLOOKUP((Term+10),#REF!,7,0),0) ->  | T152: 0 | U152: 0 | Y152: 0 | AA152: =IF(Term=6,VLOOKUP(Z152,Working!#REF!,3,0),VLOOKUP(Z152,Working!#REF!,2,0)) ->  | AB152: 0
C153: 0 | E153: 00:00:00 | K153: =IF(D153=(Term+10)*12+1,VLOOKUP((Term+10),#REF!,7,0),0) ->  | T153: 0 | U153: 0 | Y153: 0 | AA153: =IF(Term=6,VLOOKUP(Z153,Working!#REF!,3,0),VLOOKUP(Z153,Working!#REF!,2,0)) ->  | AB153: 0
C154: 0 | E154: 00:00:00 | K154: =IF(D154=(Term+10)*12+1,VLOOKUP((Term+10),#REF!,7,0),0) ->  | T154: 0 | U154: 0 | Y154: 0 | AA154: =IF(Term=6,VLOOKUP(Z154,Working!#REF!,3,0),VLOOKUP(Z154,Working!#REF!,2,0)) ->  | AB154: 0
C155: 0 | E155: 00:00:00 | K155: =IF(D155=(Term+10)*12+1,VLOOKUP((Term+10),#REF!,7,0),0) ->  | T155: 0 | U155: 0 | Y155: 0 | AA155: =IF(Term=6,VLOOKUP(Z155,Working!#REF!,3,0),VLOOKUP(Z155,Working!#REF!,2,0)) ->  | AB155: 0
C156: 0 | E156: 00:00:00 | K156: =IF(D156=(Term+10)*12+1,VLOOKUP((Term+10),#REF!,7,0),0) ->  | T156: 0 | U156: 0 | Y156: 0 | AA156: =IF(Term=6,VLOOKUP(Z156,Working!#REF!,3,0),VLOOKUP(Z156,Working!#REF!,2,0)) ->  | AB156: 0
C157: 0 | E157: 00:00:00 | K157: =IF(D157=(Term+10)*12+1,VLOOKUP((Term+10),#REF!,7,0),0) ->  | T157: 0 | U157: 0 | Y157: 0 | AA157: =IF(Term=6,VLOOKUP(Z157,Working!#REF!,3,0),VLOOKUP(Z157,Working!#REF!,2,0)) ->  | AB157: 0
C158: 0 | E158: 00:00:00 | K158: =IF(D158=(Term+10)*12+1,VLOOKUP((Term+10),#REF!,7,0),0) ->  | T158: 0 | U158: 0 | Y158: 0 | AA158: =IF(Term=6,VLOOKUP(Z158,Working!#REF!,3,0),VLOOKUP(Z158,Working!#REF!,2,0)) ->  | AB158: 0
C159: 0 | E159: 00:00:00 | K159: =IF(D159=(Term+10)*12+1,VLOOKUP((Term+10),#REF!,7,0),0) ->  | T159: 0 | U159: 0 | Y159: 0 | AA159: =IF(Term=6,VLOOKUP(Z159,Working!#REF!,3,0),VLOOKUP(Z159,Working!#REF!,2,0)) ->  | AB159: 0
C160: 0 | E160: 00:00:00 | K160: =IF(D160=(Term+10)*12+1,VLOOKUP((Term+10),#REF!,7,0),0) ->  | T160: 0 | U160: 0 | Y160: 0 | AA160: =IF(Term=6,VLOOKUP(Z160,Working!#REF!,3,0),VLOOKUP(Z160,Working!#REF!,2,0)) ->  | AB160: 0
C161: 0 | E161: 00:00:00 | K161: =IF(D161=(Term+10)*12+1,VLOOKUP((Term+10),#REF!,7,0),0) ->  | T161: 0 | U161: 0 | Y161: 0 | AA161: =IF(Term=6,VLOOKUP(Z161,Working!#REF!,3,0),VLOOKUP(Z161,Working!#REF!,2,0)) ->  | AB161: 0
C162: 0 | E162: 00:00:00 | K162: =IF(D162=(Term+10)*12+1,VLOOKUP((Term+10),#REF!,7,0),0) ->  | T162: 0 | U162: 0 | Y162: 0 | AA162: =IF(Term=6,VLOOKUP(Z162,Working!#REF!,3,0),VLOOKUP(Z162,Working!#REF!,2,0)) ->  | AB162: 0
C163: 0 | E163: 00:00:00 | K163: =IF(D163=(Term+10)*12+1,VLOOKUP((Term+10),#REF!,7,0),0) ->  | T163: 0 | U163: 0 | Y163: 0 | AA163: =IF(Term=6,VLOOKUP(Z163,Working!#REF!,3,0),VLOOKUP(Z163,Working!#REF!,2,0)) ->  | AB163: 0
C164: 0 | E164: 00:00:00 | K164: =IF(D164=(Term+10)*12+1,VLOOKUP((Term+10),#REF!,7,0),0) ->  | T164: 0 | U164: 0 | Y164: 0 | AA164: =IF(Term=6,VLOOKUP(Z164,Working!#REF!,3,0),VLOOKUP(Z164,Working!#REF!,2,0)) ->  | AB164: 0
C165: 0 | E165: 00:00:00 | K165: =IF(D165=(Term+10)*12+1,VLOOKUP((Term+10),#REF!,7,0),0) ->  | T165: 0 | U165: 0 | Y165: 0 | AA165: =IF(Term=6,VLOOKUP(Z165,Working!#REF!,3,0),VLOOKUP(Z165,Working!#REF!,2,0)) ->  | AB165: 0
C166: 0 | E166: 00:00:00 | K166: =IF(D166=(Term+10)*12+1,VLOOKUP((Term+10),#REF!,7,0),0) ->  | T166: 0 | U166: 0 | Y166: 0 | AA166: =IF(Term=6,VLOOKUP(Z166,Working!#REF!,3,0),VLOOKUP(Z166,Working!#REF!,2,0)) ->  | AB166: 0
C167: 0 | E167: 00:00:00 | K167: =IF(D167=(Term+10)*12+1,VLOOKUP((Term+10),#REF!,7,0),0) ->  | T167: 0 | U167: 0 | Y167: 0 | AA167: =IF(Term=6,VLOOKUP(Z167,Working!#REF!,3,0),VLOOKUP(Z167,Working!#REF!,2,0)) ->  | AB167: 0
C168: 0 | E168: 00:00:00 | K168: =IF(D168=(Term+10)*12+1,VLOOKUP((Term+10),#REF!,7,0),0) ->  | T168: 0 | U168: 0 | Y168: 0 | AA168: =IF(Term=6,VLOOKUP(Z168,Working!#REF!,3,0),VLOOKUP(Z168,Working!#REF!,2,0)) ->  | AB168: 0
C169: 0 | E169: 00:00:00 | K169: =IF(D169=(Term+10)*12+1,VLOOKUP((Term+10),#REF!,7,0),0) ->  | T169: 0 | U169: 0 | Y169: 0 | AA169: =IF(Term=6,VLOOKUP(Z169,Working!#REF!,3,0),VLOOKUP(Z169,Working!#REF!,2,0)) ->  | AB169: 0
C170: 0 | E170: 00:00:00 | K170: =IF(D170=(Term+10)*12+1,VLOOKUP((Term+10),#REF!,7,0),0) ->  | T170: 0 | U170: 0 | Y170: 0 | AA170: =IF(Term=6,VLOOKUP(Z170,Working!#REF!,3,0),VLOOKUP(Z170,Working!#REF!,2,0)) ->  | AB170: 0
C171: 0 | E171: 00:00:00 | K171: =IF(D171=(Term+10)*12+1,VLOOKUP((Term+10),#REF!,7,0),0) ->  | T171: 0 | U171: 0 | Y171: 0 | AA171: =IF(Term=6,VLOOKUP(Z171,Working!#REF!,3,0),VLOOKUP(Z171,Working!#REF!,2,0)) ->  | AB171: 0
C172: 0 | E172: 00:00:00 | K172: =IF(D172=(Term+10)*12+1,VLOOKUP((Term+10),#REF!,7,0),0) ->  | T172: 0 | U172: 0 | Y172: 0 | AA172: =IF(Term=6,VLOOKUP(Z172,Working!#REF!,3,0),VLOOKUP(Z172,Working!#REF!,2,0)) ->  | AB172: 0
C173: 0 | E173: 00:00:00 | K173: =IF(D173=(Term+10)*12+1,VLOOKUP((Term+10),#REF!,7,0),0) ->  | T173: 0 | U173: 0 | Y173: 0 | AA173: =IF(Term=6,VLOOKUP(Z173,Working!#REF!,3,0),VLOOKUP(Z173,Working!#REF!,2,0)) ->  | AB173: 0
C174: 0 | E174: 00:00:00 | K174: =IF(D174=(Term+10)*12+1,VLOOKUP((Term+10),#REF!,7,0),0) ->  | T174: 0 | U174: 0 | Y174: 0 | AA174: =IF(Term=6,VLOOKUP(Z174,Working!#REF!,3,0),VLOOKUP(Z174,Working!#REF!,2,0)) ->  | AB174: 0
C175: 0 | E175: 00:00:00 | K175: =IF(D175=(Term+10)*12+1,VLOOKUP((Term+10),#REF!,7,0),0) ->  | T175: 0 | U175: 0 | Y175: 0 | AA175: =IF(Term=6,VLOOKUP(Z175,Working!#REF!,3,0),VLOOKUP(Z175,Working!#REF!,2,0)) ->  | AB175: 0
C176: 0 | E176: 00:00:00 | K176: =IF(D176=(Term+10)*12+1,VLOOKUP((Term+10),#REF!,7,0),0) ->  | T176: 0 | U176: 0 | Y176: 0 | AA176: =IF(Term=6,VLOOKUP(Z176,Working!#REF!,3,0),VLOOKUP(Z176,Working!#REF!,2,0)) ->  | AB176: 0
C177: 0 | E177: 00:00:00 | K177: =IF(D177=(Term+10)*12+1,VLOOKUP((Term+10),#REF!,7,0),0) ->  | T177: 0 | U177: 0 | Y177: 0 | AA177: =IF(Term=6,VLOOKUP(Z177,Working!#REF!,3,0),VLOOKUP(Z177,Working!#REF!,2,0)) ->  | AB177: 0
C178: 0 | E178: 00:00:00 | K178: =IF(D178=(Term+10)*12+1,VLOOKUP((Term+10),#REF!,7,0),0) ->  | T178: 0 | U178: 0 | Y178: 0 | AA178: =IF(Term=6,VLOOKUP(Z178,Working!#REF!,3,0),VLOOKUP(Z178,Working!#REF!,2,0)) ->  | AB178: 0
C179: 0 | E179: 00:00:00 | K179: =IF(D179=(Term+10)*12+1,VLOOKUP((Term+10),#REF!,7,0),0) ->  | T179: 0 | U179: 0 | Y179: 0 | AA179: =IF(Term=6,VLOOKUP(Z179,Working!#REF!,3,0),VLOOKUP(Z179,Working!#REF!,2,0)) ->  | AB179: 0
C180: 0 | E180: 00:00:00 | K180: =IF(D180=(Term+10)*12+1,VLOOKUP((Term+10),#REF!,7,0),0) ->  | T180: 0 | U180: 0 | Y180: 0 | AA180: =IF(Term=6,VLOOKUP(Z180,Working!#REF!,3,0),VLOOKUP(Z180,Working!#REF!,2,0)) ->  | AB180: 0
C181: 0 | E181: 00:00:00 | K181: =IF(D181=(Term+10)*12+1,VLOOKUP((Term+10),#REF!,7,0),0) ->  | T181: 0 | U181: 0 | Y181: 0 | AA181: =IF(Term=6,VLOOKUP(Z181,Working!#REF!,3,0),VLOOKUP(Z181,Working!#REF!,2,0)) ->  | AB181: 0
C182: 0 | E182: 00:00:00 | K182: =IF(D182=(Term+10)*12+1,VLOOKUP((Term+10),#REF!,7,0),0) ->  | T182: 0 | U182: 0 | Y182: 0 | AA182: =IF(Term=6,VLOOKUP(Z182,Working!#REF!,3,0),VLOOKUP(Z182,Working!#REF!,2,0)) ->  | AB182: 0
C183: 0 | E183: 00:00:00 | K183: =IF(D183=(Term+10)*12+1,VLOOKUP((Term+10),#REF!,7,0),0) ->  | T183: 0 | U183: 0 | Y183: 0 | AA183: =IF(Term=6,VLOOKUP(Z183,Working!#REF!,3,0),VLOOKUP(Z183,Working!#REF!,2,0)) ->  | AB183: 0
C184: 0 | E184: 00:00:00 | K184: =IF(D184=(Term+10)*12+1,VLOOKUP((Term+10),#REF!,7,0),0) ->  | T184: 0 | U184: 0 | Y184: 0 | AA184: =IF(Term=6,VLOOKUP(Z184,Working!#REF!,3,0),VLOOKUP(Z184,Working!#REF!,2,0)) ->  | AB184: 0
C185: 0 | E185: 00:00:00 | K185: =IF(D185=(Term+10)*12+1,VLOOKUP((Term+10),#REF!,7,0),0) ->  | T185: 0 | U185: 0 | Y185: 0 | AA185: =IF(Term=6,VLOOKUP(Z185,Working!#REF!,3,0),VLOOKUP(Z185,Working!#REF!,2,0)) ->  | AB185: 0
C186: 0 | E186: 00:00:00 | K186: =IF(D186=(Term+10)*12+1,VLOOKUP((Term+10),#REF!,7,0),0) ->  | T186: 0 | U186: 0 | Y186: 0 | AA186: =IF(Term=6,VLOOKUP(Z186,Working!#REF!,3,0),VLOOKUP(Z186,Working!#REF!,2,0)) ->  | AB186: 0
C187: 0 | E187: 00:00:00 | K187: =IF(D187=(Term+10)*12+1,VLOOKUP((Term+10),#REF!,7,0),0) ->  | T187: 0 | U187: 0 | Y187: 0 | AA187: =IF(Term=6,VLOOKUP(Z187,Working!#REF!,3,0),VLOOKUP(Z187,Working!#REF!,2,0)) ->  | AB187: 0
C188: 0 | E188: 00:00:00 | K188: =IF(D188=(Term+10)*12+1,VLOOKUP((Term+10),#REF!,7,0),0) ->  | T188: 0 | U188: 0 | Y188: 0 | AA188: =IF(Term=6,VLOOKUP(Z188,Working!#REF!,3,0),VLOOKUP(Z188,Working!#REF!,2,0)) ->  | AB188: 0
C189: 0 | E189: 00:00:00 | K189: =IF(D189=(Term+10)*12+1,VLOOKUP((Term+10),#REF!,7,0),0) ->  | T189: 0 | U189: 0 | Y189: 0 | AA189: =IF(Term=6,VLOOKUP(Z189,Working!#REF!,3,0),VLOOKUP(Z189,Working!#REF!,2,0)) ->  | AB189: 0
C190: 0 | E190: 00:00:00 | K190: =IF(D190=(Term+10)*12+1,VLOOKUP((Term+10),#REF!,7,0),0) ->  | T190: 0 | U190: 0 | Y190: 0 | AA190: =IF(Term=6,VLOOKUP(Z190,Working!#REF!,3,0),VLOOKUP(Z190,Working!#REF!,2,0)) ->  | AB190: 0
C191: 0 | E191: 00:00:00 | K191: =IF(D191=(Term+10)*12+1,VLOOKUP((Term+10),#REF!,7,0),0) ->  | T191: 0 | U191: 0 | Y191: 0 | AA191: =IF(Term=6,VLOOKUP(Z191,Working!#REF!,3,0),VLOOKUP(Z191,Working!#REF!,2,0)) ->  | AB191: 0
C192: 0 | E192: 00:00:00 | K192: =IF(D192=(Term+10)*12+1,VLOOKUP((Term+10),#REF!,7,0),0) ->  | T192: 0 | U192: 0 | Y192: 0 | AA192: =IF(Term=6,VLOOKUP(Z192,Working!#REF!,3,0),VLOOKUP(Z192,Working!#REF!,2,0)) ->  | AB192: 0
C193: 0 | E193: 00:00:00 | K193: =IF(D193=(Term+10)*12+1,VLOOKUP((Term+10),#REF!,7,0),0) ->  | T193: 0 | U193: 0 | Y193: 0 | AA193: =IF(Term=6,VLOOKUP(Z193,Working!#REF!,3,0),VLOOKUP(Z193,Working!#REF!,2,0)) ->  | AB193: 0
C194: 0 | E194: 00:00:00 | K194: =IF(D194=(Term+10)*12+1,VLOOKUP((Term+10),#REF!,7,0),0) ->  | T194: 0 | U194: 0 | Y194: 0 | AA194: =IF(Term=6,VLOOKUP(Z194,Working!#REF!,3,0),VLOOKUP(Z194,Working!#REF!,2,0)) ->  | AB194: 0
C195: 0 | E195: 00:00:00 | K195: =IF(D195=(Term+10)*12+1,VLOOKUP((Term+10),#REF!,7,0),0) ->  | T195: 0 | U195: 0 | Y195: 0 | AA195: =IF(Term=6,VLOOKUP(Z195,Working!#REF!,3,0),VLOOKUP(Z195,Working!#REF!,2,0)) ->  | AB195: 0
C196: 0 | E196: 00:00:00 | K196: =IF(D196=(Term+10)*12+1,VLOOKUP((Term+10),#REF!,7,0),0) ->  | T196: 0 | U196: 0 | Y196: 0 | AA196: =IF(Term=6,VLOOKUP(Z196,Working!#REF!,3,0),VLOOKUP(Z196,Working!#REF!,2,0)) ->  | AB196: 0
C197: 0 | E197: 00:00:00 | K197: =IF(D197=(Term+10)*12+1,VLOOKUP((Term+10),#REF!,7,0),0) ->  | T197: 0 | U197: 0 | Y197: 0 | AA197: =IF(Term=6,VLOOKUP(Z197,Working!#REF!,3,0),VLOOKUP(Z197,Working!#REF!,2,0)) ->  | AB197: 0
C198: 0 | E198: 00:00:00 | K198: =IF(D198=(Term+10)*12+1,VLOOKUP((Term+10),#REF!,7,0),0) ->  | T198: 0 | U198: 0 | Y198: 0 | AA198: =IF(Term=6,VLOOKUP(Z198,Working!#REF!,3,0),VLOOKUP(Z198,Working!#REF!,2,0)) ->  | AB198: 0
C199: 0 | E199: 00:00:00 | K199: =IF(D199=(Term+10)*12+1,VLOOKUP((Term+10),#REF!,7,0),0) ->  | T199: 0 | U199: 0 | Y199: 0 | AA199: =IF(Term=6,VLOOKUP(Z199,Working!#REF!,3,0),VLOOKUP(Z199,Working!#REF!,2,0)) ->  | AB199: 0
C200: 0 | E200: 00:00:00 | K200: =IF(D200=(Term+10)*12+1,VLOOKUP((Term+10),#REF!,7,0),0) ->  | T200: 0 | U200: 0 | Y200: 0 | AA200: =IF(Term=6,VLOOKUP(Z200,Working!#REF!,3,0),VLOOKUP(Z200,Working!#REF!,2,0)) ->  | AB200: 0
C201: 0 | E201: 00:00:00 | K201: =IF(D201=(Term+10)*12+1,VLOOKUP((Term+10),#REF!,7,0),0) ->  | T201: 0 | U201: 0 | Y201: 0 | AA201: =IF(Term=6,VLOOKUP(Z201,Working!#REF!,3,0),VLOOKUP(Z201,Working!#REF!,2,0)) ->  | AB201: 0
C202: 0 | E202: 00:00:00 | K202: =IF(D202=(Term+10)*12+1,VLOOKUP((Term+10),#REF!,7,0),0) ->  | T202: 0 | U202: 0 | Y202: 0 | AA202: =IF(Term=6,VLOOKUP(Z202,Working!#REF!,3,0),VLOOKUP(Z202,Working!#REF!,2,0)) ->  | AB202: 0
C203: 0 | E203: 00:00:00 | K203: =IF(D203=(Term+10)*12+1,VLOOKUP((Term+10),#REF!,7,0),0) ->  | T203: 0 | U203: 0 | Y203: 0 | AA203: =IF(Term=6,VLOOKUP(Z203,Working!#REF!,3,0),VLOOKUP(Z203,Working!#REF!,2,0)) ->  | AB203: 0
C204: 0 | E204: 00:00:00 | K204: =IF(D204=(Term+10)*12+1,VLOOKUP((Term+10),#REF!,7,0),0) ->  | T204: 0 | U204: 0 | Y204: 0 | AA204: =IF(Term=6,VLOOKUP(Z204,Working!#REF!,3,0),VLOOKUP(Z204,Working!#REF!,2,0)) ->  | AB204: 0
C205: 0 | E205: 00:00:00 | K205: =IF(D205=(Term+10)*12+1,VLOOKUP((Term+10),#REF!,7,0),0) ->  | T205: 0 | U205: 0 | Y205: 0 | AA205: =IF(Term=6,VLOOKUP(Z205,Working!#REF!,3,0),VLOOKUP(Z205,Working!#REF!,2,0)) ->  | AB205: 0
C206: 0 | E206: 00:00:00 | K206: =IF(D206=(Term+10)*12+1,VLOOKUP((Term+10),#REF!,7,0),0) ->  | T206: 0 | U206: 0 | Y206: 0 | AA206: =IF(Term=6,VLOOKUP(Z206,Working!#REF!,3,0),VLOOKUP(Z206,Working!#REF!,2,0)) ->  | AB206: 0
... 68 more rows

Sheet Audit Trail (hidden)
B2: Product Name | F2: Max Life Smart Online Flexi Deposit Plan
B3: Track Changes
B4: Date | F4: =TODAY() -> 2026-04-22
A6: Sr. No | B6: Date | C6: Sheet | D6: Cell Number | E6: Before Modification | F6: After Modification | G6: Comment | H6: Version Control
A7: 1 | B7: 2022-03-24 | C7: Calculation | D7: E14 | E7: ='Maturity Benefit Rates'!$AJ$9*+(IF(IF(Cover_Option="Joint Life",Input!D10,Input!I10)="Female",IF(PT=5,0.25%,0.5%),0))+'Maturity Benefit Rates'!$AJ$30 | F7: =('Maturity Benefit Rates'!$AJ$9*(1+'Maturity Benefit Rates'!$AJ$30))+(IF(IF(Cover_Option="Joint Life",Input!D10,Input!I10)="Female",IF(PT=5,0.25%,0.5%),0)) | G7: Additional maturity rate formula revised | H7: V1.1
A8: =A7+1 -> 2 | B8: 2022-04-20 | C8: Maturity Benefit Rates | D8: P65:Q70 | E8: =B29*PPT*($AJ$9+IF(IF(Cover_Option="Joint Life",Input!$D$10,Input!$I$10)="Female",IF(PT=5,0.25%,0.5%),0)+AA29) | F8: =B65*PPT*($K$3*(1+AA65)+IF(IF(Cover_Option="Joint Life",Input!$D$10,Input!$I$10)="Female",IF(PT=5,0.25%,0.5%),0)) | G8: Plan name revised as per F&U | H8: V1.2
A9: =A8+1 -> 3 | B9: 2022-04-20 | C9: Validation | D9: J2 | E9: =IF(Error=0,"Max Life Smart Fixed Return Digital Plan",VLOOKUP(Error,$I$4:$J$46,2,0)) | F9: =IF(Error=0,"Max Life Smart Fixed Return Digital Plan",VLOOKUP(Error,$I$4:$J$46,2,0)) | G9: Plan name revised as per F&U | H9: V1.2
A10: 4 | B10: 2022-04-20 | C10: Input | D10: AB28:AB31 | E10: NA | F10: DB Multiples | G10: Death Benefit multiple revised as per F&U | H10: V1.2
A11: 5 | B11: 2022-04-20 | C11: Working | D11: J4:J63 | E11: =IF(A4="","",((MIN(A4,PPT)/PPT*Calculation!$D$1)+IF(A4<PPT,0,SUM($D$4:$D$63)))*(VLOOKUP(A4,'SSV Factors'!$B$6:$F$15,IF(PPT=1,IF(PT=5,2,3),IF(PT=5,4,5)),FALSE))) | F11: =IF(A4="","",((MIN(A4,PPT)/PPT*Calculation!$D$5)+IF(A4<PPT,0,SUM($D$4:$D$63)))*(VLOOKUP(A4,'SSV Factors'!$B$6:$F$15,IF(PPT=1,IF(PT=5,2,3),IF(PT=5,4,5)),FALSE))) | G11: SSV formula revised | H11: V1.2
A12: 6 | B12: 2022-04-20 | C12: Calculation | D12: N7 | E12: =IF(Solver="Enter Desired SA",N1/(('Maturity Benefit Rates'!AJ9+'Maturity Benefit Rates'!$AJ$34)*PPT),Input!$D$15) | F12: =IF(Solver="Enter Desired SA",N1/(('Maturity Benefit Rates'!AJ9*(1+'Maturity Benefit Rates'!$AJ$30))*PPT),Input!$D$15) | G12: Additional maturity rate formula revised | H12: V1.2
A13: 7 | B13: 2022-04-20 | C13: Calculation | D13: E27 | E13: 1 | F13: =VLOOKUP(Input!$I$11,INDIRECT(CONCATENATE("SL_",Variant,"_",DB_Multiple)),IF(PT=5,2,3)) | G13: EMR rates updated | H13: V1.2
A14: 8 | B14: 2022-04-20 | C14: Calculation | D14: G27 | E14: 1 | F14: =INDEX(INDIRECT(CONCATENATE("JL_",PT)),MATCH(Input!$D$11,EMR!$BK$9:$BK$51,0),MATCH(Input!$I$11,EMR!$BK$8:$DB$8,0)) | G14: EMR rates updated | H14: V1.2
A15: 9 | B15: 2022-04-20 | C15: Calculation | D15: E28 | E15: =IF(Cover_Option<>"Joint Life",IF(EMR="Yes",E27*EMR_Rate*Ann_Prem,0),IF(EMR="Yes",EMR_Rate*E27*Ann_Prem/2,0)) | F15: =IF(Cover_Option<>"Joint Life",IF(EMR="Yes",E27*EMR_Rate*Ann_Prem,0),IF(EMR="Yes",EMR_Rate*G27*Ann_Prem,0)) | G15: EMR rates updated | H15: V1.2
A16: 10 | B16: 2022-04-20 | C16: Calculation | D16: B28 | E16: =IF(Cover_Option="Joint Life","EMR Premium (First Life)","EMR Premium") | F16: EMR Premium | G16: EMR rates updated | H16: V1.2
A17: 11 | B17: 2022-04-20 | C17: Calculation | D17: B27 | E17: =IF(Cover_Option="Joint Life","EMR Rate (First Life)","EMR Rate") | F17: EMR Rate (Single Life) | G17: EMR rates updated
A18: 12 | B18: 2022-04-20 | C18: Calculation | D18: F27 | E18: =IF(Cover_Option="Joint Life","EMR Rate (Second Life)","") | F18: EMR Rate (Joint Life) | G18: EMR rates updated
A19: 13 | B19: 2022-04-20 | C19: Calculation | D19: D48:D67 | E19: =IF(FALSE,Base_EMR_Prem*Prem_Freq*Prem_Mod_Fact,0)+IF(AND(Cover_Option="Joint Life",Input!$D$38="Yes",B48<=PPT),Calculation!$G$28*Prem_Freq*Prem_Mod_Fact,0) | F19: =IF(B48<=PPT,Base_EMR_Prem*Prem_Freq*Prem_Mod_Fact,0) | G19: EMR rates updated | H19: V1.2
A20: 14 | B20: 2022-04-20 | C20: Output | D20: B100 | E20: • Guaranteed Additions (GA) are not payable on death. GA (if any) are payable on maturity and surrender only if all due premiums have been paid. | F20: =IF(Variant="Titanium","• Guaranteed Additions (GA) are not payable on death. GA (if any) are payable on maturity and surrender only if all due premiums have been paid. ","") | G20: Clause updated as per request | H20: V1.2
A21: 15 | B21: 2022-04-20 | C21: Output | D21: B104 | E21: Blank | F21: =IF(Channel="POSP",CONCATENATE("· For Point of Sale (POS) polices, there is a waiting period of 90 days from the Date of Commencement of Risk of this Policy (“Waiting Period”). ","In case of death (for other than accidental death only) during this Waiting Period, 100% of the total premiums paid till the date of death will be payable excluding applicable taxes, cesses, levies, if any. ","The Death Benefit will not be payable. In case of death of Life Insured due to accident, the Waiting Period is not applicable, and Death Benefit shall be payable. The waiting period is not applicable on the revival of a policy."),"") | G21: Clause updated as per request | H21: V1.2
A22: 16 | B22: 2022-04-20 | C22: EMR | D22: NA | E22: NA | F22: EMR Rates | G22: EMR rates updated | H22: V1.2
A23: 17 | B23: 2022-04-20 | C23: IRR | D23: NA | E23: NA | F23: IRR calculation added | G23: Added IRR calculations | H23: V1.2
A24: =A23+1 -> 18 | B24: 2022-04-20 | C24: Maturity Benefit Rates | D24: B65:C69 | E24: Old bands | F24: New Bands | G24: Bands revised for additional maturity benefit | H24: V1.2
A25: 19 | B25: 2022-04-20 | C25: Maturity Benefit Rates | D25: A1:DE53 | E25: NA | F25: New Rates | G25: Maturity rates updated | H25: V1.2
A26: 20 | B26: 2022-04-20 | C26: Validation | D26: J34 | E26: 1.25X not available with Platinum and Titanium Variants | F26: Invalid Death benefit multiple | G26: Validation Formula updated as per new DB multiple applicibility | H26: V1.2
A27: 21 | B27: 2022-04-20 | C27: Validation | D27: F33 <-> F8 | E27: =IF(Variant<>"Gold",IF(DB_Multiple<>"1.25X",0,I34),0) | F27: =IF(Variant<>"Gold",IF(AND(DB_Multiple<>"1.25X",DB_Multiple<>"10X"),0,I34),IF(DB_Multiple="11X",I34,0)) | G27: Validation Formula updated as per new DB multiple applicibility | H27: V1.2
A28: 22 | B28: 2022-04-20 | C28: Validation | D28: C4 | E28: '=IF(Cover_Option="Joint Life",MAX(Input!D11,Input!I11),Input!I11) | F28: =IF(Cover_Option="Joint Life",MIN(Input!D11,Input!I11),Input!I11) | G28: Validation updated to capture joint life | H28: V1.2
A29: 23 | B29: 2022-04-20 | C29: Validation | D29: V21:V24 | E29: Old minimas | F29: New minimas | G29: Minimum premium updated as per the F&U | H29: V1.2
A30: 24 | B30: 2022-04-20 | C30: Validation | D30: O30 | E30: =IF(Variant="Gold",36000,VLOOKUP(Prem_Freq,$U$20:$V$24,2,0)) | F30: =IF(Variant="Gold",35000,VLOOKUP(Prem_Freq,$U$20:$V$24,2,0)) | G30: Minimum premium updated as per the F&U | H30: V1.2
A31: 25 | B31: 2022-04-20 | C31: Validation | D31: O30 | E31: =IF(Variant="Gold",36000,VLOOKUP(Prem_Freq,$U$20:$V$24,2,0)) | F31: =IF(Variant="Gold",35000,VLOOKUP(Prem_Freq,$U$20:$V$24,2,0)) | G31: Minimum premium updated as per the F&U | H31: V1.2
A32: 26 | B32: 2022-04-20 | C32: Calculation | D32: E14 | E32: =('Maturity Benefit Rates'!$AJ$9*(1+'Maturity Benefit Rates'!$AJ$30))+(IF(IF(Cover_Option="Joint Life",Input!D10,Input!I10)="Female",IF(PT=5,0.25%,0.5%),0)) | F32: =ROUND(('Maturity Benefit Rates'!$K$3*(1+'Maturity Benefit Rates'!$AJ$66))+(IF(IF(Cover_Option="Joint Life",Input!D10,Input!I10)="Female",IF(PT=5,0.25%,0.5%),0)),5) | G32: Maturity rates formula updated | H32: V1.2
A33: 27 | B33: 2022-04-20 | C33: Validation | D33: J7 | E33: ="Maximum ADD SA is Rs."&E16 | F33: =IF(C16<D16,"Minimum ADD SA is Rs."&D16,"Maximum ADD SA is Rs."&E16) | G33: Validation updated for rider SA | H33: V1.2
A34: 28 | B34: 2022-04-20 | C34: Output | D34: B18 | E34: Policy Option | F34: Policy Variant | G34: Text revised as per new BI text | H34: V1.2
A35: 29 | B35: 2022-04-20 | C35: Output | D35: F18 | E35: Sum Assured (in Rs.) | F35: =IF(Variant="Titanium","Sum Assured (in Rs.)","Sum Assured on Maturity (in Rs.)") | G35: Text revised as per new BI text | H35: V1.2
A36: 30 | B36: 2022-04-20 | C36: Calculation | D36: E15 | E36: =IF(DB_Multiple="1.25X",1.25,10) | F36: =IF(DB_Multiple="1.25X",1.25,IF(DB_Multiple="10X",10,11)) | G36: Validation Formula updated as per new DB multiple applicibility | H36: V1.2
A37: 31 | B37: 2022-04-20 | C37: Working | D37: H4:H63 | E37: =IF(A4="","",MAX(IF(Cover_Option="Joint Life",10,Calculation!$E$15)*($M$4+$O$4+$Q$4),105%*(SUM($N$4:N4)+SUM($O$4:O4)+SUM($Q$4:Q4)))+IF(AND(Term_Plus="Yes",A4<=Term_Term),Term_Plus_SA)) | F37: =IF(A4="","",MAX(IF(Cover_Option="Joint Life",10,Calculation!$E$15)*($M$4+$O$4+$Q$4),105%*(SUM($M$4:M4)+SUM($O$4:O4)+SUM($Q$4:Q4)))+IF(AND(Term_Plus="Yes",A4<=Term_Term),Term_Plus_SA)) | G37: Formula revised as per revised TPP definition | H37: V1.2
A38: 32 | B38: 2022-04-20 | C38: Calculation | D38: D1 | E38: =$E$14*SUM(Working!$N$4:$N$63) | F38: =$E$14*SUM(Working!$M$4:$M$63) | G38: Formula revised as per revised TPP definition | H38: V1.2
A39: 33 | B39: 2022-04-20 | C39: Calculation | D39: D5 | E39: =105%*SUM(Working!N4:N63) | F39: =105%*SUM(Working!M4:M63) | G39: Formula revised as per revised TPP definition | H39: V1.2
A40: 34 | B40: 2022-04-20 | C40: Input | D40: B38:E38 | E40: Second life EMR inputs | F40: Blank | G40: Removed EMR rate input for second life | H40: V1.2
A41: 35 | B41: 2022-04-20 | C41: Output | D41: M29:M30 | E41: Blank | F41: Maturity Internal Rate of Return (%) | G41: IRR output added | H41: V1.2
A43: 36 | B43: 2022-05-04 | C43: Calculation | D43: D2 | E43: =IF(Variant="Lump Sum",Ann_Prem*E19,0) | F43: '=MAX(Working!D4:D63) | G43: Reverse calculator formula updated | H43: V1.3
A44: =A43+1 -> 37 | B44: 2022-05-04 | C44: Calculation | D44: N2 | E44: =IF(Solver="Enter Desired SA",N1/('Maturity Benefit Rates'!I3*PPT),Input!$D$15) | F44: =IF(Solver="Enter Desired SA",N1/('Maturity Benefit Rates'!K3*PPT),Input!$D$15) | G44: Reverse calculator formula updated | H44: V1.3
A45: =A44+1 -> 38 | B45: 2022-05-04 | C45: Calculation | D45: N7 | E45: =IF(Solver="Enter Desired SA",N1/(('Maturity Benefit Rates'!I3*(1+'Maturity Benefit Rates'!$AJ$66))*PPT),Input!$D$15) | F45: =IF(Solver="Enter Desired SA",N1/(ROUND('Maturity Benefit Rates'!K3*(1+'Maturity Benefit Rates'!$AJ$66)*(1+(IF(IF(Cover_Option="Joint Life",Input!D10,Input!I10)="Female",IF(PT=5,0.25%,0.5%),0))),5)*PPT),Input!$D$15) | G45: Formula updated for female life additional maturity benefit | H45: V1.3
A46: =A45+1 -> 39 | B46: 2022-05-04 | C46: Calculation | D46: E14 | E46: =ROUND(('Maturity Benefit Rates'!$K$3*(1+'Maturity Benefit Rates'!$AJ$66))+(IF(IF(Cover_Option="Joint Life",Input!D10,Input!I10)="Female",IF(PT=5,0.25%,0.5%),0)),5) | F46: =ROUND(('Maturity Benefit Rates'!$K$3*(1+'Maturity Benefit Rates'!$AJ$66)*(1+(IF(IF(Cover_Option="Joint Life",Input!D10,Input!I10)="Female",IF(PT=5,0.25%,0.5%),0)))),5) | G46: Formula updated for female life additional maturity benefit | H46: V1.3
A47: 40 | B47: 2022-05-04 | C47: Working | D47: I4:I63 | E47: =IF(A4="","",(VLOOKUP(A4,'GSV Factors'!$B$6:$F$15,IF(PPT=1,IF(PT=5,2,3),IF(PT=5,4,5)),FALSE)*(SUM($N$4:N4)+SUM($O$4:O4)+SUM($Q$4:Q4)))+IF(A4<PPT,0,SUM($D$4:$D$63))*30%) | F47: =IF(A4="","",(VLOOKUP(A4,'GSV Factors'!$B$6:$F$15,IF(PPT=1,IF(PT=5,2,3),IF(PT=5,4,5)),FALSE)*(SUM($N$4:N4)))+IF(A4<PPT,0,SUM($D$4:$D$63))*30%) | G47: Formula revised for GSV calculation | H47: V1.3
A48: 41 | B48: 2022-05-04 | C48: Working | D48: G4:G63 | E48: =IF(A4="","",IF(Cover_Option="Joint Life",MAX(J4,1.25*($M$4+$O$4+$Q$4),105%*(SUM($N$4:N4)+SUM($O$4:O4)+SUM($Q$4:Q4))),"")) | F48: =IF(A4="","",IF(Cover_Option="Joint Life",MAX(1.25*($M$4+$O$4+$Q$4),105%*(SUM($N$4:N4)+SUM($O$4:O4)+SUM($Q$4:Q4))),"")) | G48: Formula revised for minimum death benefit flooring | H48: V1.3
A49: 42 | B49: 2022-05-04 | C49: Working | D49: H4:H63 | E49: =IF(A4="","",MAX(IF(Cover_Option="Joint Life",10,Calculation!$E$15)*($M$4+$O$4+$Q$4),105%*(SUM($M$4:M4)+SUM($O$4:O4)+SUM($Q$4:Q4)))+IF(AND(Term_Plus="Yes",A4<=Term_Term),Term_Plus_SA)) | F49: =IF(A4="","",MAX(J4,IF(Cover_Option="Joint Life",10,Calculation!$E$15)*($M$4+$O$4+$Q$4),105%*(SUM($M$4:M4)+SUM($O$4:O4)+SUM($Q$4:Q4)))+IF(AND(Term_Plus="Yes",A4<=Term_Term),Term_Plus_SA)) | G49: Formula revised for minimum death benefit flooring | H49: V1.3
A50: 43 | B50: 2022-05-04 | C50: Calculation | D50: G48:G67 | E50: =IF(AND(WOP="Yes",B48<=$H$43),(Working!M4+Base_FE_Prem+Base_EMR_Prem+IF(B48<=ADD_PPT,ADD_Prem+ADD_EMR_Prem,0)+TermP_Prem+TermP_EMR_Prem+TermP_FE_Prem+IF(B48<=PPT,$E$44+$F$44+IF(Calculation!B48<=Input!$I$37,Calculation!$G$44,0),0))*$D$43/100*IF(AND(WOP_EMR="Yes",B48<=$H$43),1+WOP_EMR_Rate,1)*(Prem_Freq*Prem_Mod_Fact),0) | F50: =IF(AND(WOP="Yes",B48<=$H$43),(Working!M4+C48+Base_EMR_Prem+IF(B48<=ADD_PPT,ADD_Prem+ADD_EMR_Prem,0)+TermP_Prem+TermP_EMR_Prem+TermP_FE_Prem+IF(B48<=PPT,$E$44+$F$44+IF(Calculation!B48<=Input!$I$37,Calculation!$G$44,0),0))*$D$43/100*IF(AND(WOP_EMR="Yes",B48<=$H$43),1+WOP_EMR_Rate,1)*(Prem_Freq*Prem_Mod_Fact),0) | G50: Updated WOP Plus rider formula | H50: V1.3
A51: 44 | B51: 2022-05-04 | C51: Output | D51: M29:M30 | E51: IRR | F51: NA | G51: Updated IRR as per BI Text | H51: V1.3
A52: 45 | B52: 2022-05-04 | C52: Output | D52: B34:J34 | E52: NA | F52: IRR | G52: Updated IRR as per BI Text | H52: V1.3
A53: 46 | B53: 2022-05-04 | C53: Validation Sheet | D53: J38 | E53: ="Maximum Sum Assured for CI and Disability Rider is Rs. "&E22 | F53: =IF(C22<D22,"Minimum Sum Assured for CI and Disability Rider is Rs. "&D22,"Maximum Sum Assured for CI and Disability Rider is Rs. "&E22) | G53: Updated CID Rider validation | H53: V1.3
A54: 47 | B54: 2022-05-04 | C54: Output | D54: I18 | E54: =Calculation!D1 | F54: =IF(Variant="Titanium",Calculation!D5,Calculation!D1) | G54: Updated as per BI Text | H54: V1.3
A55: 48 | B55: 2022-05-04 | C55: Validation Sheet | D55: A39-F39 <-> A16-F16 | E55: =IF(SUM(F4:F36)=0,IF(AND(Solver="Enter Desired SA",C39=0),I32,0),0) | F55: =IF(SUM(F4:F15)=0,IF(AND(Solver="Enter Desired SA",C16=0),I32,0),0) | G55: Validation moved to avoid circular referencing | H55: V1.3
A56: 49 | B56: 2022-05-04 | C56: Maturity Benefit Rates | D56: Q64 | E56: =IFERROR(INDEX($P$65:$P$70,MATCH(Calculation!$N$1,'Maturity Benefit Rates'!$P$65:$P$70,1)+1,0),0) | F56: =IFERROR(INDEX($P$65:$P$70,MATCH(Calculation!$N$1,'Maturity Benefit Rates'!$P$65:$P$70,1)+1,0),P65) | G56: Updated validation for minimum SA amount | H56: V1.3
A57: 50 | B57: 2022-05-04 | C57: Validation Sheet | D57: J23 | E57: Maximum Term allowed under term plus rider is 8 years | F57: Blank | G57: Removed validation message (untriggered) | H57: V1.3
A59: 51 | B59: 2022-05-11 | C59: Calculation | D59: K5:K7 | E59: Old Factors | F59: New Factors | H59: V1.4
A60: =A59+1 -> 52 | B60: 2022-05-11 | C60: Maturity Benefit Rates | D60: P65:Q70 | E60: =B65*PPT*($K$3*(1+AA65)+IF(IF(Cover_Option="Joint Life",Input!$D$10,Input!$I$10)="Female",IF(PT=5,0.25%,0.5%),0)) | F60: =B65*PPT*ROUND(($K$3*(1+$AA65)*(1+IF(IF(Cover_Option="Joint Life",Input!$D$10,Input!$I$10)="Female",IF(PT=5,0.25%,0.5%),0))),5) | H60: V1.4
A61: =A60+1 -> 53 | B61: 2022-05-11 | C61: Calculation | D61: N2 | E61: =IF(Solver="Enter Desired SA",N1/('Maturity Benefit Rates'!K3*PPT),Input!$D$15) | F61: =IF(Solver="Enter Desired SA",N1/(ROUND(('Maturity Benefit Rates'!K3*(1+(IF(IF(Cover_Option="Joint Life",Input!D10,Input!I10)="Female",IF(PT=5,0.25%,0.5%),0)))),5)*PPT),Input!$D$15) | H61: V1.4
A62: =A61+1 -> 54 | B62: 2022-05-11 | C62: Calculation | D62: N4 | E62: =IF(Solver="Enter Desired SA",N1/(E14*PPT),Input!D15) | F62: =IF(Solver="Enter Desired SA",N1/(ROUND(('Maturity Benefit Rates'!$K$3*(1+'Maturity Benefit Rates'!$AJ$66))*(1+(IF(IF(Cover_Option="Joint Life",Input!D10,Input!I10)="Female",IF(PT=5,0.25%,0.5%),0))),5)*PPT),Input!D15) | H62: V1.4
A63: 55 | B63: 2022-05-11 | C63: Calculation | D63: N7 | E63: =IF(Solver="Enter Desired SA",N1/(ROUND('Maturity Benefit Rates'!K3*(1+'Maturity Benefit Rates'!$AJ$66)*(1+(IF(IF(Cover_Option="Joint Life",Input!D10,Input!I10)="Female",IF(PT=5,0.25%,0.5%),0))),5)*PPT),Input!$D$15) | F63: =ROUND(IF(Solver="Enter Desired SA",N1/(ROUND('Maturity Benefit Rates'!K3*(1+'Maturity Benefit Rates'!$AJ$70)*(1+IF(IF(Cover_Option="Joint Life",Input!D10,Input!I10)="Female",IF(PT=5,0.25%,0.5%),0)),5)*PPT),Input!$D$15),2) | H63: V1.4
A64: 56 | B64: 2022-05-11 | C64: Calculation | D64: E14 | E64: =ROUND(('Maturity Benefit Rates'!$K$3*(1+'Maturity Benefit Rates'!$AJ$66)*(1+(IF(IF(Cover_Option="Joint Life",Input!D10,Input!I10)="Female",IF(PT=5,0.25%,0.5%),0)))),5) | F64: =ROUND(('Maturity Benefit Rates'!$K$3*(1+'Maturity Benefit Rates'!$AJ$70))*(1+(IF(IF(Cover_Option="Joint Life",Input!D10,Input!I10)="Female",IF(PT=5,0.25%,0.5%),0))),5) | H64: V1.4
A65: 57 | B65: 2022-05-11 | C65: IRR | D65: C6:C667 | E65: =IF(B6="","",IF(AND(B6<=2*12,(MOD(B6-1,12/Prem_Freq)=0)),-Calculation!$E$23,IF(B6=(PT*12+1),-SUM($C$6:$C$125)*Calculation!$E$14,0))) | F65: =IF(B6="","",IF(AND(B6<=2*12,(MOD(B6-1,12/Prem_Freq)=0)),-Calculation!$E$23,IF(B6=(PT*12+1),-SUM($C$5:OFFSET($C$5,PPT*12,0))*Calculation!$E$14,0))) | H65: V1.4
A66: 58 | B66: 2022-05-11 | C66: IRR | D66: F6:F667 | E66: =IF(E6="","",IF(AND(E6<=3*12,(MOD(E6-1,12/Prem_Freq)=0)),-Calculation!$E$23,IF(E6=(PT*12+1),-SUM($F$6:$F$125)*Calculation!$E$14,0))) | F66: =IF(E6="","",IF(AND(E6<=3*12,(MOD(E6-1,12/Prem_Freq)=0)),-Calculation!$E$23,IF(E6=(PT*12+1),-SUM($F$5:OFFSET($F$5,PPT*12,0))*Calculation!$E$14,0))) | H66: V1.4
A67: 59 | B67: 2022-05-11 | C67: IRR | D67: I6:I667 | E67: =IF(H6="","",IF(AND(H6<=4*12,(MOD(H6-1,12/Prem_Freq)=0)),-Calculation!$E$23,IF(H6=(PT*12+1),-SUM($I$6:$I$125)*Calculation!$E$14,0))) | F67: =IF(H6="","",IF(AND(H6<=4*12,(MOD(H6-1,12/Prem_Freq)=0)),-Calculation!$E$23,IF(H6=(PT*12+1),-SUM($I$5:OFFSET($I$5,PPT*12,0))*Calculation!$E$14,0))) | H67: V1.4
A68: 60 | B68: 2022-05-11 | C68: Validation Sheet | D68: F10 | E68: =IF(SUM(F4:F9)=0,IF(C10<D10,I8,0),0) | F68: =IF(Solver="Enter Desired SA",0,IF(SUM(F4:F9)=0,IF(C10<D10,I8,0),0)) | H68: V1.4
A69: 61 | B69: 2022-05-11 | C69: Maturity Benefit Rates | D69: J3 | E69: =INDEX(INDIRECT(CONCATENATE("MR_","JL_",PT)),MATCH(Input!$D$11,EMR!$BK$9:$BK$51,0)+1,MATCH(Input!$I$11,$U$10:$U$53,0)) | F69: =INDEX(INDIRECT(CONCATENATE("MR_","JL_",PT)),MATCH(Input!$D$11,EMR!$R$9:$R$51,0)+1,MATCH(Input!$I$11,$U$10:$U$53,0)) | H69: V1.4
A70: 62 | B70: 2022-05-11 | C70: Input | D70: B38:H38 | E70: Blank | F70: EMR Second life (Joint Life) | H70: V1.4
A71: 63 | B71: 2022-05-11 | C71: EMR | D71: R3:DB51 | E71: Extra Mortality Rates for Joint Life | F71: Blank | H71: V1.4
A72: 64 | B72: 2022-05-11 | C72: EMR | D72: R3:T51 | E72: Blank | F72: Revised Extra Mortality Rates for Joint Life | H72: V1.4
A73: 65 | B73: 2022-05-11 | C73: Calculation | D73: E27 | E73: =VLOOKUP(Input!$I$11,INDIRECT(CONCATENATE("SL_",Variant,"_",DB_Multiple)),IF(PT=5,2,3)) | F73: =IF(AND(Variant=Variant_1,Cover_Option="Joint Life"),VLOOKUP(Input!$D$11,JL_Gold,IF(PT=5,2,3),0),VLOOKUP(Input!$I$11,INDIRECT(CONCATENATE("SL_",Variant,"_",DB_Multiple)),IF(PT=5,2,3))) | H73: V1.4
A74: 66 | B74: 2022-05-11 | C74: Calculation | D74: E28 | E74: =IF(Cover_Option<>"Joint Life",IF(EMR="Yes",E27*EMR_Rate*Ann_Prem,0),IF(EMR="Yes",EMR_Rate*G27*Ann_Prem,0)) | F74: =IF(AND(Variant=Variant_1,Cover_Option="Joint Life"),IF(EMR="Yes",E27*EMR_Rate*Ann_Prem/2,0),IF(EMR="Yes",E27*EMR_Rate*Ann_Prem,0)) | H74: V1.4
A75: 67 | B75: 2022-05-11 | C75: Calculation | D75: G27 | E75: =INDEX(INDIRECT(CONCATENATE("JL_",PT)),MATCH(Input!$D$11,EMR!$BK$9:$BK$51,0),MATCH(Input!$I$11,EMR!$BK$8:$DB$8,0)) | F75: =IF(AND(Variant=Variant_1,Cover_Option="Joint Life",Input!D38="Yes"),VLOOKUP(Input!$I$11,JL_Gold,IF(PT=5,2,3),0),0) | H75: V1.4
A76: 68 | B76: 2022-05-11 | C76: Calculation | D76: F28:G28 | E76: Blank | F76: =G27*Input!G38*Ann_Prem/2 | H76: V1.4
A77: 69 | B77: 2022-05-11 | C77: Calculation | D77: D48:D67 | E77: =IF(B48<=PPT,Base_EMR_Prem*Prem_Freq*Prem_Mod_Fact,0) | F77: =IF(B48<=PPT,Base_EMR_Prem*Prem_Freq*Prem_Mod_Fact,0)+IF(AND(B48<=PPT,Variant=Variant_1,Cover_Option="Joint Life",Input!$D$38="Yes"),$G$28*Prem_Freq*Prem_Mod_Fact,0) | H77: V1.4
A78: 70 | B78: 2022-05-11 | C78: Calculation | D78: M10:N10 | E78: Blank | F78: =ROUND(IF(Variant="Titanium",IF(Solver="Enter Desired SA",N1/(105%*PPT),Input!$D$15),0),2) | H78: V1.4
A79: 71 | B79: 2022-05-11 | C79: Calculation | D79: D3 | E79: =IF(Solver="Enter Desired SA",N7,Input!$D$15) | F79: =IF(Solver="Enter Desired SA",IF(Variant="Titanium",N10,N7),Input!$D$15) | H79: V1.4
A81: 72 | B81: 2022-05-16 | C81: Maturity Benefit Rates | D81: AH66 AH70 | E81: =VLOOKUP(Calculation!$N$4,'Maturity Benefit Rates'!$B$64:$M$70,IF(PT=5,11,12),TRUE) | F81: =VLOOKUP(Calculation!$N$10,'Maturity Benefit Rates'!$B$64:$M$70,IF(PT=5,11,12),TRUE) | H81: V1.5
A83: 73 | B83: 2022-05-17 | C83: Validatio Sheet | D83: J2 | E83: =IF(Error=0,"Max Life Smart Fixed Return Digital Plan",VLOOKUP(Error,$I$4:$J$46,2,0)) | F83: =IF(Error=0,"Max Life Smart Fixed-return Digital Plan",VLOOKUP(Error,$I$4:$J$46,2,0)) | G83: Updated plan name as per BI Text | H83: V1.6
A84: 74 | B84: 2022-05-17 | C84: Output | D84: B101-B107 | E84: Old text | F84: New Text | G84: New Text added in cell B104, B105 and made cell B107 (previously B105) static | H84: V1.6
A85: 75 | B85: 2022-05-17 | C85: Output | D85: B34 | E85: Net Rate of Interest* : | F85: Net Rate of Return : | G85: Text Updated | H85: V1.6
A87: 76 | B87: 2022-05-30 | C87: Calculation | D87: G48:G67 | E87: =IF(AND(WOP="Yes",B48<=$H$43),(Working!M4+C48+Base_EMR_Prem+IF(B48<=ADD_PPT,ADD_Prem+ADD_EMR_Prem,0)+TermP_Prem+TermP_EMR_Prem+TermP_FE_Prem+IF(B48<=PPT,$E$44+$F$44+IF(Calculation!B48<=Input!$I$37,Calculation!$G$44,0),0))*$D$43/100*IF(AND(WOP_EMR="Yes",B48<=$H$43),1+WOP_EMR_Rate,1)*(Prem_Freq*Prem_Mod_Fact),0) | F87: =IF(AND(WOP="Yes",B48<=$H$43),(Working!M4+IF(PPT<=Input!$I$31,Base_FE_Prem,0)+Base_EMR_Prem+IF(B48<=ADD_PPT,ADD_Prem+ADD_EMR_Prem,0)+TermP_Prem+TermP_EMR_Prem+TermP_FE_Prem+IF(B48<=PPT,$E$44+$F$44+IF(Calculation!B48<=Input!$I$37,Calculation!$G$44,0),0))*$D$43/100*IF(AND(WOP_EMR="Yes",B48<=$H$43),1+WOP_EMR_Rate,1)*(Prem_Freq*Rider_Prem_Mod_Fact),0) | G87: Updated rider modal loading | H87: V1.7
A88: 77 | B88: 2022-05-30 | C88: Calculation | D88: F48:F67 | E88: =IF(AND(Term_Plus="Yes",B48<=PPT),(TermP_Prem+IF(B48<=Term_Term,TermP_EMR_Prem,0)+IF(B48<=Term_Plus_Flat_Dur,TermP_FE_Prem,0))*Prem_Freq*Prem_Mod_Fact,0) | F88: =IF(AND(Term_Plus="Yes",B48<=PPT),(TermP_Prem+IF(B48<=Term_Term,TermP_EMR_Prem,0)+IF(B48<=Term_Plus_Flat_Dur,TermP_FE_Prem,0))*Prem_Freq*Rider_Prem_Mod_Fact,0) | G88: Updated rider modal loading | H88: V1.7
A89: 78 | B89: 2022-05-30 | C89: Calculation | D89: E48:E67 | E89: =IF(AND(ADD="Yes",B48<=ADD_PPT),(ADD_Prem+IF(B48<=ADD_PPT,ADD_EMR_Prem,0))*Prem_Freq*Prem_Mod_Fact,0) | F89: =IF(AND(ADD="Yes",B48<=ADD_PPT),(ADD_Prem+IF(B48<=ADD_PPT,ADD_EMR_Prem,0))*Prem_Freq*Rider_Prem_Mod_Fact,0) | G89: Updated rider modal loading | H89: V1.7
A90: 79 | B90: 2022-05-30 | C90: Calculation | D90: D43 | E90: =IF(WOP="Yes",IF(OR(Channel=Input!X26,Channel=Input!X31,Channel=Input!X32,Channel=Input!X33,Channel=Input!X34),'WOP Prem rates'!O2*0.9,'WOP Prem rates'!O2),0) | F90: =IF(WOP="Yes",IF(OR(Channel=Input!X26,Channel=Input!X31,Channel=Input!X32,Channel=Input!X33,Channel=Input!X34,Channel=Input!X40),'WOP Prem rates'!O2*0.9,'WOP Prem rates'!O2),0) | G90: online channels updated | H90: V1.7
A91: 80 | B91: 2022-05-30 | C91: Input | D91: X26:X40 | E91: - | F91: - | G91: channels updated | H91: V1.7
A92: 81 | B92: 2022-05-30 | C92: Calculation | D92: I14:K19 B16:E16 | E92: NA | F92: Modal factors | G92: Updated rider modal loading | H92: V1.7
A94: 82 | B94: 2022-06-02 | C94: Validation Sheet | D94: A41:F41 | G94: Addded POSP validation | H94: V1.8
A95: 83 | B95: 2022-06-02 | C95: Validation Sheet | D95: F2 | E95: '=MAX(F4:F40) | F95: =MAX(F4:F41) | G95: Addded POSP validation | H95: V1.8
A96: 84 | B96: 2022-06-02 | C96: Calculation | D96: D43 | E96: =IF(WOP="Yes",IF(OR(Channel=Input!X26,Channel=Input!X31,Channel=Input!X32,Channel=Input!X33,Channel=Input!X34,Channel=Input!X40),'WOP Prem rates'!O2*0.9,'WOP Prem rates'!O2),0) | F96: =IF(WOP="Yes",IF(OR(Channel=Input!X26,Channel=Input!X31,Channel=Input!X32,Channel=Input!X33,Channel=Input!X34),'WOP Prem rates'!O2*0.9,'WOP Prem rates'!O2),0) | G96: online channels updated reversed | H96: V1.9
A97: 85 | B97: 2022-06-02 | C97: Input | D97: X26:X40 | F97: - | G97: channels updated reversed | H97: V1.9
A99: 86 | B99: 2022-06-10 | C99: Validation Sheet | D99: F16 | E99: =IF(SUM(F4:F15)=0,IF(AND(Solver="Enter Desired SA",C16=0),I32,0),0) | F99: =IF(SUM(F4:F15)=0,IF(AND(Solver="Enter Desired SA",IF(Variant="Titanium",Input!D15<57750,C16=0)),I32,0),0) | G99: Updated Titanium variant minimum SA | H99: V2.0
A100: 87 | B100: 2022-06-10 | C100: Validation Sheet | D100: J32 | E100: ="Please select SA of Rs. "&'Maturity Benefit Rates'!Q64 | F100: ="Please select SA of Rs. "&IF(Variant="Titanium",57750,'Maturity Benefit Rates'!Q64) | G100: Updated Titanium variant minimum SA | H100: V2.0
A102: 88 | B102: 2022-06-13 | C102: Output | D102: C34 | E102: =IRR!L2 | F102: =ROUND(IRR!L2,4) | G102: Rounded IRR to 4 decimal places | H102: V2.1
A104: 89 | B104: 2022-06-20 | C104: IRR | D104: C6 | E104: =IF(B6="","",IF(AND(B6<=2*12,(MOD(B6-1,12/Prem_Freq)=0)),-Calculation!$E$23,IF(B6=(PT*12+1),-SUM($C$5:OFFSET($C$5,PPT*12,0))*Calculation!$E$14,0))) | F104: =IF(B6="","",IF(AND(B6<=2*12,(MOD(B6-1,12/Prem_Freq)=0)),-Calculation!$E$23,IF(B6=(PT*12+1),SUM(Working!$M$4:$M$5)*Calculation!$E$14,0))) | G104: Paid up IRR added | H104: V2.2
A105: 90 | B105: 2022-06-20 | C105: IRR | D105: F6 | E105: =IF(E6="","",IF(AND(E6<=3*12,(MOD(E6-1,12/Prem_Freq)=0)),-Calculation!$E$23,IF(E6=(PT*12+1),-SUM($F$5:OFFSET($F$5,PPT*12,0))*Calculation!$E$14,0))) | F105: =IF(E6="","",IF(AND(E6<=3*12,(MOD(E6-1,12/Prem_Freq)=0)),-Calculation!$E$23,IF(E6=(PT*12+1),SUM(Working!$M$4:$M$6)*Calculation!$E$14,0))) | G105: Paid up IRR added | H105: V2.2
A106: 91 | B106: 2022-06-20 | C106: IRR | D106: I6 | E106: =IF(H6="","",IF(AND(H6<=4*12,(MOD(H6-1,12/Prem_Freq)=0)),-Calculation!$E$23,IF(H6=(PT*12+1),-SUM($I$5:OFFSET($I$5,PPT*12,0))*Calculation!$E$14,0))) | F106: =IF(H6="","",IF(AND(H6<=4*12,(MOD(H6-1,12/Prem_Freq)=0)),-Calculation!$E$23,IF(H6=(PT*12+1),SUM(Working!$M$4:$M$7)*Calculation!$E$14,0))) | G106: Paid up IRR added | H106: V2.2
A108: 92 | B108: 2022-06-29 | C108: IRR | D108: C6:C667 F6:F667 I6:I667 | E108: =IF(B6="","",IF(AND(B6<=2*12,(MOD(B6-1,12/Prem_Freq)=0)),-Calculation!$E$23,IF(B6=(PT*12+1),SUM(Working!$M$4:$M$5)*Calculation!$E$14,0))) | F108: =IF(B6="","",IF(AND(B6<=2*12,(MOD(B6-1,12/Prem_Freq)=0)),-Calculation!$E$23,IF(B6=(PT*12+1),SUM(Working!$M$4:$M$5)*IF(Variant="Titanium",105%,Calculation!$E$14),0))) | G108: Paid up IRR added | H108: V2.3
A109: 93 | B109: 2022-06-29 | C109: IRR | D109: C2 F2 I2 | E109: =(IRR(C6:C667,0.001)+1)^12-1 | F109: =IF(Variant="Gold","NA",(IRR(C6:C667,0.001)+1)^12-1) | G109: Paid up IRR added | H109: V2.3
A110: 94 | B110: 2022-06-29 | C110: Certificate of Guarantee - MLI | D110: I6 | E110: NA | F110: New Output sheet added | G110: Paid up IRR added | H110: V2.3
A112: 95 | B112: 2022-08-20 | C112: Validation Sheet | D112: N33:O34 | E112: NA | F112: EDC | G112: EDC control added | H112: V2.4
A113: =A112+1 -> 96 | B113: 2022-08-20 | C113: Maturity Benefit Rates (2) SSV Factors (2) | E113: NA | F113: Old rates | G113: Old rates shifted to Maturity Benefit Rates (2) and SSV Factors (2) | H113: V2.4
A114: =A113+1 -> 97 | B114: 2022-08-20 | C114: Maturity Benefit Rates SSV Factors | D114: All rates | E114: Old rates | F114: New rates | G114: Maturity factor Rates and SSV Factors updated | H114: V2.4
A115: =A114+1 -> 98 | B115: 2022-08-20 | C115: Maturity Benefit Rates | D115: I3 | E115: =VLOOKUP(Input!$I$11,INDIRECT(CONCATENATE("MR_","SL_",Variant,"_",DB_Multiple)),IF(PT=5,2,3)) | F115: =VLOOKUP(Input!$I$11,INDIRECT(CONCATENATE(IF('Validation Sheet'!O34="V01","Old_",""),"MR_","SL_",Variant,"_",DB_Multiple)),IF(PT=5,2,3)) | G115: formula updated for EDC control | H115: V2.4
A116: 99 | B116: 2022-08-20 | C116: Maturity Benefit Rates | D116: J3 | E116: =INDEX(INDIRECT(CONCATENATE("MR_","JL_",PT)),MATCH(Input!$D$11,EMR!$R$9:$R$51,0)+1,MATCH(Input!$I$11,$U$10:$U$53,0)) | F116: =INDEX(INDIRECT(CONCATENATE(IF('Validation Sheet'!O34="V01","Old_",""),"MR_","JL_",PT)),MATCH(Input!$D$11,EMR!$R$9:$R$51,0)+1,MATCH(Input!$I$11,$U$10:$U$53,0)) | G116: formula updated for EDC control | H116: V2.4
A117: 100 | B117: 2022-08-20 | C117: Working | D117: J4:J63 | E117: =IF(A4="","",((MIN(A4,PPT)/PPT*IF(Variant="Titanium",Calculation!$D$5,Calculation!$D$1))+IF(A4<PPT,0,SUM($D$4:$D$63)))*(VLOOKUP(A4,'SSV Factors'!$B$6:$F$15,IF(PPT=1,IF(PT=5,2,3),IF(PT=5,4,5)),FALSE))) | F117: '=IF(A4="","",((MIN(A4,PPT)/PPT*IF(Variant="Titanium",Calculation!$D$5,Calculation!$D$1))+IF(A4<PPT,0,SUM($D$4:$D$63)))*(VLOOKUP(A4,IF('Validation Sheet'!$O$34="V01",'SSV Factors (2)'!$B$6:$F$15,'SSV Factors'!$B$6:$F$15),IF(PPT=1,IF(PT=5,2,3),IF(PT=5,4,5)),FALSE))) | G117: formula updated for EDC control | H117: V2.4
A118: 101 | B118: 2022-08-20 | C118: Output | D118: I7 | E118: 104NXXXV01 | F118: '=IF('Validation Sheet'!$O$34="V01","104NXXXV01","104NXXXV02") | G118: formula updated for EDC control | H118: V2.4
A119: =A118+1 -> 102 | B119: 2022-08-26 | C119: SSV Factors | D119: E7:F15 | E119: Updated SSV rates | G119: Updated SSV rates | H119: V2.5
A120: 103 | B120: 2022-11-03 | C120: Update Rates | D120: All | E120: Added New Sheet | F120: Added New Sheet | G120: To automate rate changes | H120: V2.5
A121: 104 | B121: 2022-11-03 | C121: Validation Sheet | D121: O34 | E121: =IF(Input!I12<'Validation Sheet'!$O$33,"V01","V02") | F121: =IF(Input!I12<'Validation Sheet'!$O$33,RIGHT('Update Rates'!B3,3),RIGHT('Update Rates'!B4,3))'Added New Sheet | G121: To automate change in UIN | H121: V2.5
A122: 105 | B122: 2022-11-03 | C122: Output | D122: I7 | E122: =IF('Validation Sheet'!$O$34="V01","104NXXXV01","104NXXXV02") | F122: =IF(Input!I12<'Validation Sheet'!O33,'Update Rates'!B3,'Update Rates'!B4) | G122: To automate change in UIN | H122: V2.5
A123: 106 | B123: 2022-11-03 | C123: Maturity Benefit Rates | D123: I3 | E123: =VLOOKUP(Input!$I$11,INDIRECT(CONCATENATE(IF('Validation Sheet'!O34="V01","Old_",""),"MR_","SL_",Variant,"_",DB_Multiple)),IF(PT=5,2,3)) | F123: =VLOOKUP(Input!$I$11,INDIRECT(CONCATENATE(IF('Validation Sheet'!O34=RIGHT('Update Rates'!B3,3),"Old_",""),"MR_","SL_",Variant,"_",DB_Multiple)),IF(PT=5,2,3)) | H123: V2.5
A124: 107 | B124: 2022-11-03 | C124: Maturity Benefit Rates | D124: J3 | E124: =INDEX(INDIRECT(CONCATENATE(IF('Validation Sheet'!O34="V01","Old_",""),"MR_","JL_",PT)),MATCH(Input!$D$11,EMR!$R$9:$R$51,0)+1,MATCH(Input!$I$11,$U$10:$U$53,0)) | F124: =INDEX(INDIRECT(CONCATENATE(IF('Validation Sheet'!O34=RIGHT('Update Rates'!B3,3),"Old_",""),"MR_","JL_",PT)),MATCH(Input!$D$11,EMR!$R$9:$R$51,0)+1,MATCH(Input!$I$11,$U$10:$U$53,0)) | H124: V2.5
A125: 108 | B125: 2022-11-30 | C125: Maturity Benefit Rates (2) | D125: All | E125: V01 Rates | F125: V02 Rates | G125: Updated V02 Rates | H125: V2.6
A126: 109 | B126: 2022-11-30 | C126: SSV Factors (2) | D126: All | E126: V01 Rates | F126: V02 Rates | G126: Updated V02 Rates | H126: V2.6
A127: 110 | B127: 2022-11-30 | C127: Maturity Benefit Rates | D127: All | E127: V02 Rates | F127: V03 Rates | G127: Updated V03 Rates | H127: V2.6
A128: 111 | B128: 2022-11-30 | C128: SSV Factors | D128: All | E128: V02 Rates | F128: V03 Rates | G128: Updated V03 Rates | H128: V2.6
A129: 112 | B129: 2022-12-06 | C129: SSV Factors | D129: All | E129: values without rounding off | F129: values with rounding off | G129: SSV rates rounded off to 2 decimal points | H129: V2.7
A130: 113 | B130: 2022-12-07 | C130: Validation Sheet | D130: F41 | E130: IF(SUM(F5:F40)=0,IF(AND(Channel="POSP",C41>2500000),I29,0),0) | F130: IF(SUM(F4:F40)=0,IF(AND(Channel="POSP",C41>2500000),I29,0),0) | G130: Updated the formula | H130: V2.8
A131: 114 | B131: 2022-12-07 | C131: Working | D131: J4:J63 | E131: IF(A4="","",((MIN(A4,PPT)/PPT*IF(Variant="Titanium",Calculation!$D$5,Calculation!$D$1))+IF(A4<PPT,0,SUM($D$4:$D$63)))*(VLOOKUP(A4,IF('Validation Sheet'!$O$34=RIGHT('Update Rates'!B3,3),'SSV Factors (2)'!$B$6:$F$15,'SSV Factors'!$B$6:$F$15),IF(PPT=1,IF(PT=5,2,3),IF(PT=5,4,5)),FALSE))) | F131: IF(A4="","",((MIN(A4,PPT)/PPT*IF(Variant="Titanium",Calculation!$D$5,Calculation!$D$1))+IF(A4<PPT,0,SUM($D$4:$D$63)))*(VLOOKUP(A4,IF('Validation Sheet'!$O$34=RIGHT('Update Rates'!$B$3,3),'SSV Factors (2)'!$B$6:$F$15,'SSV Factors'!$B$6:$F$15),IF(PPT=1,IF(PT=5,2,3),IF(PT=5,4,5)),FALSE))) | G131: Updated the formula | H131: V2.9
A132: 115 | B132: 2022-12-07 | C132: SSV Factors (2) | D132: C9 | E132: values without rounding off | F132: values with rounding off | G132: SSV rates rounded off to 2 decimal points | H132: V2.9
A133: 116 | B133: 2022-12-08 | C133: Maturity Benefit Rates | D133: O33 | E133: 0.55051 | F133: 0.55591 | G133: Maturity factor Rates updated | H133: V2.10
A135: =A133+1 -> 117 | B135: 2023-06-26 | C135: Validation Sheet | D135: O33 | E135: 2022-12-15 | F135: 2023-07-07 | G135: EDC for V04 | H135: V3.0
A136: =A135+1 -> 118 | B136: 2023-06-26 | C136: Update Rates | D136: B3 | E136: 104N123V02 | F136: 104N123V03 | G136: Existing UIN updated | H136: V3.0
A137: =A136+1 -> 119 | B137: 2023-06-26 | C137: Update Rates | D137: B4 | E137: 104N123V03 | F137: 104N123V04 | G137: UIN updated for V04 | H137: V3.0
A138: =A137+1 -> 120 | B138: 2023-06-26 | C138: Maturity Benefit Rates (2) | D138: All | E138: V02 Rates | F138: V03 Rates | G138: Updated V03 Rates | H138: V3.0
A139: =A138+1 -> 121 | B139: 2023-06-26 | C139: SSV Factors (2) | D139: All | E139: V02 Rates | F139: V03 Rates | G139: Updated V03 Rates | H139: V3.0
A140: =A139+1 -> 122 | B140: 2023-06-26 | C140: Maturity Benefit Rates | D140: All | E140: V03 Rates | F140: V04 Rates | G140: Updated V04 Rates | H140: V3.0
A141: 123 | B141: 2023-06-26 | C141: SSV Factors | D141: All | E141: V03 Rates | F141: V04 Rates | G141: Updated V04 Rates | H141: V3.0
A143: =A141+1 -> 124 | B143: 2023-08-23 | C143: Calculation | D143: E23 | E143: =E21*Prem_Mod_Fact | F143: =ROUND(E21*Prem_Mod_Fact,2) | G143: Modal premium rounded off to 2 decimal points | H143: V3.1
A144: =A143+1 -> 125 | B144: 2023-08-23 | C144: Calculation | D144: C48:C67 | E144: =IF(AND(Input!$D$31="Yes",B48<=Input!$I$31,B48<=PPT),Base_FE_Prem*Prem_Freq*Prem_Mod_Fact,0) | F144: =ROUND(IF(AND(Input!$D$31="Yes",B48<=Input!$I$31,B48<=PPT),Base_FE_Prem*Prem_Freq*Prem_Mod_Fact,0),2) | G144: EMR premium rounded off to 2 decimal points | H144: V3.1
A145: =A144+1 -> 126 | B145: 2023-08-23 | C145: Calculation | D145: D48:D67 | E145: =IF(B48<=PPT,Base_EMR_Prem*Prem_Freq*Prem_Mod_Fact,0)+IF(AND(B48<=PPT,Variant=Variant_1,Cover_Option="Joint Life",Input!$D$38="Yes"),$G$28*Prem_Freq*Prem_Mod_Fact,0) | F145: =ROUND(IF(B48<=PPT,Base_EMR_Prem*Prem_Freq*Prem_Mod_Fact,0)+IF(AND(B48<=PPT,Variant=Variant_1,Cover_Option="Joint Life",Input!$D$38="Yes"),$G$28*Prem_Freq*Prem_Mod_Fact,0),2) | G145: FE premium rounded off to 2 decimal points | H145: V3.1
A146: 127 | B146: 2023-08-23 | C146: Validation Sheet | D146: F16 | E146: =IF(SUM(F4:F15)=0,IF(AND(Solver="Enter Desired SA",IF(Variant="Titanium",Input!D15<57750,C16=0)),I32,0),0) | F146: =IF(SUM(F4:F15)=0,IF(AND(Solver="Enter Desired SA",IF(Variant="Titanium",Input!D15<57750,IF(Variant="Gold",Input!D15<'Maturity Benefit Rates'!$P$66,C16=0))),I32,0),0) | G146: Corrected minimum SA validation formula for "Gold" variant | H146: V3.1
A147: 128 | B147: 2023-08-23 | C147: Validation Sheet | D147: J32 | E147: ="Please select SA of Rs. "&IF(Variant="Titanium",57750,'Maturity Benefit Rates'!Q64) | F147: ="Please select SA of Rs. "&IF(Variant="Titanium",57750,IF(Variant="Gold",'Maturity Benefit Rates'!$P$66,'Maturity Benefit Rates'!Q64)) | G147: Corrected minimum SA validation message for "Gold" variant | H147: V3.1
A148: 129 | B148: 2023-08-24 | C148: Input | D148: X36 | E148: Empty Cell | F148: Axis Bank Ltd. | G148: Added Axis Bank channel to channel list | H148: V3.1
A149: 130 | B149: 2023-08-24 | C149: Input | D149: I5 | E149: =$X$26:$X$35 | F149: =$X$26:$X$36 | G149: Added Axis Bank channel to channel dropdown list | H149: V3.1
A151: 131 | B151: 2023-04-16 | C151: Validation Sheet | D151: J38 | E151: =IF(C41<D41,"Minimum Sum Assured for CI and Disability Rider is Rs. "&D41,"Maximum Sum Assured for CI and Disability Rider is Rs. "&E41) | F151: =IF(C41<D41,"Minimum Sum Assured for CI and Disability Rider is Rs. "&D41,IF(C41>E41,"Maximum Sum Assured for CI and Disability Rider is Rs. "&E41,"CI and Disability Rider Sum Assured can be chosen in multiple of 1L only")) | G151: Validation message added for the check "CIDR SA should be in multiples of 1 Lakh" | H151: V3.2
A153: =A151+1 -> 132 | B153: 2024-07-29 | C153: Output | D153: L37:L97 | E153: Blank | F153: =IF(Error=0,IF($B38="","",ROUND(IF(Input!$I$12<'Validation Sheet'!$O$36,MAX(Working!I4,Working!J4),Working!V4),0)),0) | G153: Updates for New regs | H153: V3.3
A154: =A153+1 -> 133 | B154: 2024-07-29 | C154: Output | D154: K38:K97 | E154: =IF(Error=0,IF($B38="","",ROUND(Working!J4,0)),0) | F154: =IF(Error=0,IF($B38="","",ROUND(IF(Input!$I$12<'Validation Sheet'!$O$36,Working!J4,Working!U4),0)),0) | G154: Updates for New regs | H154: V3.3
A155: =A154+1 -> 134 | B155: 2024-07-29 | C155: Output | D155: L37 | E155: Blank | F155: Surrender Value (EOY) | G155: Column header added | H155: V3.3
A156: 135 | B156: 2024-07-29 | C156: SSV Rates_Regs | E156: New sheet added | G156: Updates for New regs | H156: V3.3
A157: 136 | B157: 2024-07-29 | C157: Validation Sheet | D157: N36:O36 | E157: EDC for new regs added | G157: Updates for New regs | H157: V3.3
A158: 137 | B158: 2024-07-29 | C158: Working | D158: S2:V68 | E158: Calculation added for new regulation based SSVs | G158: Updates for New regs | H158: V3.3
A159: =A158+1 -> 138 | B159: 2024-07-29 | C159: Validation Sheet | D159: A42:F42 | E159: New row added for validation | G159: Updates for New regs | H159: V3.3
A160: 139 | B160: 2024-07-29 | C160: Validation Sheet | D160: I47:J47 | E160: New row added for validation message | G160: Updates for New regs | H160: V3.3
A161: 140 | B161: 2024-07-29 | C161: Validation Sheet | D161: F2 | E161: =MAX(F4:F41) | F161: =MAX(F4:F42) | G161: Updates for New regs | H161: V3.3
A162: 141 | B162: 2024-07-29 | C162: Validation Sheet | D162: J2 | E162: =IF(Error=0,"Max Life Smart Fixed-return Digital Plan",VLOOKUP(Error,$I$4:$J$46,2,0)) | F162: =IF(Error=0,"Max Life Smart Fixed-return Digital Plan",VLOOKUP(Error,$I$4:$J$47,2,0)) | G162: Updates for New regs | H162: V3.3
A163: 142 | B163: 2024-07-29 | C163: Update Rates | D163: B3 | E163: 104N123V03 | F163: 104N123V04 | G163: Updates for New regs | H163: V3.3
A164: 143 | B164: 2024-07-29 | C164: Update Rates | D164: B4 | E164: 104N123V04 | F164: 104N123V05 | G164: Updates for New regs | H164: V3.3
A165: 144 | B165: 2024-07-29 | C165: Working | D165: J4:J63 | E165: =IF(A4="","",((MIN(A4,PPT)/PPT*IF(Variant="Titanium",Calculation!$D$5,Calculation!$D$1))+IF(A4<PPT,0,SUM($D$4:$D$63)))*(VLOOKUP(A4,IF('Validation Sheet'!$O$34=RIGHT('Update Rates'!$B$3,3),'SSV Factors (2)'!$B$6:$F$15,'SSV Factors'!$B$6:$F$15),IF(PPT=1,IF(PT=5,2,3),IF(PT=5,4,5)),FALSE))) | F165: =IF(A4="","",((MIN(A4,PPT)/PPT*IF(Variant="Titanium",Calculation!$D$5,Calculation!$D$1))+IF(A4<PPT,0,SUM($D$4:$D$63)))*(VLOOKUP(A4,'SSV Factors (2)'!$B$6:$F$15,IF(PPT=1,IF(PT=5,2,3),IF(PT=5,4,5)),FALSE))) | G165: Updates for New regs | H165: V3.3
A166: 145 | B166: 2024-07-29 | C166: Validation Sheet | D166: O33 | E166: 07-07-2023 | F166: 01-10-2024 | G166: Updates for New regs | H166: V3.3
A168: =A166+1 -> 146 | B168: 2024-08-12 | C168: Maturity Benefit Rates | D168: All | E168: Benefit rates updated for V05 | H168: V3.4
A169: =A168+1 -> 147 | B169: 2024-08-12 | C169: SSV Rates_Regs | D169: All | E169: SSV Rates updated for V05 | H169: V3.4
A170: 148 | B170: 2024-08-12 | C170: Validation Sheet | D170: A42:F42 | E170: Validation deleted | H170: V3.4
A171: 149 | B171: 2024-08-12 | C171: Validation Sheet | D171: A4:F4 | E171: Row added for Gold variant Validation | H171: V3.4
A172: 150 | B172: 2024-08-12 | C172: Validation Sheet | D172: F5 | E172: =IF(C5<D5,I4,0) | F172: =IF(SUM(F4:F4)=0,IF(C5<D5,I4,0),0) | G172: Formula updated | H172: V3.4
A173: 151 | B173: 2024-08-12 | C173: SSV Rates_Regs | D173: B4 | E173: =Input!I11 | F173: =IF(Input!I10="Female",Input!I11-3,Input!I11) | G173: Formula updated | H173: V3.4
A175: =A173+1 -> 152 | B175: 2024-08-14 | C175: Working | D175: S4:S63 | E175: =IF(A4="","",IFERROR((MIN(1,A4/PPT)*Base_SA+D4)*'SSV Rates_Regs'!D5,0)) | F175: =IF(A4="","",IFERROR((MIN(1,A4/PPT)*IF(Variant="Titanium",Calculation!$D$5,Calculation!$D$1)+IF(A4<PPT,0,SUM($D$4:$D$63)))*'SSV Rates_Regs'!D5,0)) | G175: Formula updated | H175: V3.5
A176: =A175+1 -> 153 | B176: 2024-08-14 | C176: Output | D176: J37 | E176: Min Guaranteed Surrender value (EOY) | F176: =IF(Input!I12<'Validation Sheet'!O36,"Min ","")& "Guaranteed Surrender value (EOY)" | G176: Updated as per New Regs | H176: V3.5
A178: 154 | B178: 2024-08-27 | C178: SSV Rates_Regs | E178: Rates updated | H178: V3.6
A180: 155 | B180: 2025-03-21 | C180: Validation Sheet | D180: P9 | E180: 3000000 | F180: =IF(Input!$I$12<$O$37,3000000,5000000) | G180: CIDR Sum Asuured limit updated | H180: V3.7
A181: =A180+1 -> 156 | B181: 2025-03-21 | C181: Validation Sheet | D181: P10 | E181: 2000000 | F181: =IF(Input!$I$12<$O$37,2000000,4000000) | G181: CIDR Sum Asuured limit updated | H181: V3.7
A182: =A181+1 -> 157 | B182: 2025-03-21 | C182: Validation Sheet | D182: P11 | E182: 1000000 | F182: =IF(Input!$I$12<$O$37,1000000,2000000) | G182: CIDR Sum Asuured limit updated | H182: V3.7
A183: =A182+1 -> 158 | B183: 2025-03-21 | C183: Validation Sheet | D183: P12 | E183: 500000 | F183: =IF(Input!$I$12<$O$37,500000,1000000) | G183: CIDR Sum Asuured limit updated | H183: V3.7
A184: =A183+1 -> 159 | B184: 2025-03-21 | C184: Validation Sheet | D184: N37:O37 | E184: EDC added for revised CIDR maximum Sum Assured limit | G184: EDC added for revised CIDR maximum Sum Assured limit | H184: V3.7
A186: =A184+1 -> 160 | B186: 2025-05-20 | C186: Validation Sheet | D186: X2 | E186: 2024-10-01 | F186: 2025-06-22 | G186: EDC for new UIN | H186: V3.8
A187: =A186+1 -> 161 | B187: 2025-05-20 | C187: Validation Sheet | D187: W7:X7 | E187: New row added | G187: EDC for SPARK launch date | H187: V3.8
A188: =A187+1 -> 162 | B188: 2025-05-20 | C188: Validation Sheet | D188: A4:F4 | E188: New row added | G188: Validation for Application | H188: V3.8
A189: 163 | B189: 2025-05-20 | C189: Validation Sheet | D189: I48:J48 | E189: New row added | G189: Validation message for Application | H189: V3.8
A190: 164 | B190: 2025-05-20 | C190: Validation Sheet | D190: F5:F41 | E190: Formulas updated to work correctly | H190: V3.8
A191: 165 | B191: 2025-05-20 | C191: Validation Sheet | D191: J13 | E191: ="Maxmium maturity age allowed is"&E13 | F191: ="Maxmium maturity age allowed is "&E13&" years" | G191: Formula updated | H191: V3.8
A192: =A191+1 -> 166 | B192: 2025-05-20 | C192: Validation Sheet | D192: J14 | E192: ="Minimium maturity age allowed is "&D35 | F192: ="Minimium maturity age allowed is "&D13&" years" | G192: Formula updated | H192: V3.8
A193: =A192+1 -> 167 | B193: 2025-05-20 | C193: Validation Sheet | D193: M16:R34 | E193: Table updated for max maturity age | H193: V3.8
A194: 168 | B194: 2025-05-20 | C194: Validation Sheet | D194: S16 | E194: Lookup for max maturity age | H194: V3.8
A195: 169 | B195: 2025-05-20 | C195: Validation Sheet | D195: E13 | E195: =IF(PT=5,IF(DB_Multiple="10X",50,55),IF(AND(Variant="Gold",DB_Multiple="10X"),55,60)) | F195: =IF(Xinput_edc<$X$7,IF(PT=5,IF(DB_Multiple="10X",50,55),IF(AND(Variant="Gold",DB_Multiple="10X"),55,60)),$S$16) | G195: Max maturity age updated | H195: V3.8
A196: =A195+1 -> 170 | B196: 2025-05-20 | C196: Validation Sheet | D196: M37:S56 | E196: Table added for max entry age | H196: V3.8
A197: 171 | B197: 2025-05-20 | C197: Validation Sheet | D197: E7 | E197: =IF(AND(Variant="Gold",DB_Multiple="10X"),45,50) | F197: =IF(Xinput_edc<$X$7,IF(AND(Variant="Gold",DB_Multiple="10X"),45,50),$S$38) | G197: Max entry age updated | H197: V3.8
A198: 172 | B198: 2025-05-20 | C198: Validation Sheet | D198: U15:V22 | E198: Table added for min entry age | H198: V3.8
A199: 173 | B199: 2025-05-20 | C199: Validation Sheet | D199: D6 | E199: =IF(PT=5,13,8) | F199: =IF(Xinput_edc<$X$7,IF(PT=5,13,8),VLOOKUP(Xinput_policyTerm,$U$16:$V$22,2,0)) | G199: Min entry age updated | H199: V3.8
A200: 174 | B200: 2025-05-20 | C200: Validation Sheet | D200: Q3 | E200: 11000 | F200: =IF(Xinput_edc<X7,11000,5000) | G200: Premium updated | H200: V3.8
A201: 175 | B201: 2025-05-20 | C201: Validation Sheet | D201: Q4 | E201: 5582.5 | F201: =IF(Xinput_edc<X7,5582.5,2537.5) | G201: Premium updated | H201: V3.8
A202: =A201+1 -> 176 | B202: 2025-05-20 | C202: Validation Sheet | D202: Q5 | E202: 2813.8 | F202: =IF(Xinput_edc<X7,2813.8,1279) | G202: Premium updated | H202: V3.8
A203: 177 | B203: 2025-05-20 | C203: Validation Sheet | D203: Q6 | E203: 1000 | F203: =IF(Xinput_edc<X7,1000,428) | G203: Premium updated | H203: V3.8
A204: =A203+1 -> 178 | B204: 2025-05-20 | C204: Validation Sheet | D204: Z2:AA3 | E204: New table added | G204: UINs | H204: V3.8
A205: 179 | B205: 2025-05-20 | C205: Validation Sheet | D205: F2 | E205: =MAX(F5:F42) | F205: =MAX(F4:F41) | G205: Formula updated | H205: V3.8
A206: =A205+1 -> 180 | B206: 2025-05-20 | C206: Validation Sheet | D206: J2 | E206: =IF(Error=0,"Max Life Smart Fixed-return Digital Plan",VLOOKUP(Error,$I$4:$J$47,2,0)) | F206: =IF(Error=0,"Axis Max Life Smart Fixed-return Digital Plan",VLOOKUP(Error,$I$4:$J$48,2,0)) | G206: Formula updated | H206: V3.8
A207: 181 | B207: 2025-05-20 | C207: Input | D207: AA4:AD11 | E207: New table added | G207: Policy Terms added | H207: V3.8
A208: 182 | B208: 2025-05-20 | C208: Input | D208: AA13:AB16 | E208: New table added | G208: PPT added | H208: V3.8
A209: 183 | B209: 2025-05-20 | C209: Input | D209: I16 | E209: =IF($D$5="Gold",$W$5,$W$7) | F209: =IF(Xinput_edc<'Validation Sheet'!$X$7,IF($D$5="Gold",$W$5,$W$7),IF($D$5="Gold",$AA$15,$AB$15:$AB$16)) | G209: Data validation updated for PPT | H209: V3.8
A210: 184 | B210: 2025-05-20 | C210: Input | D210: I17 | E210: 5,10 | F210: =IF(Xinput_edc<'Validation Sheet'!$X$7,$X$7:$Y$7,OFFSET(INDEX($AB$5:$AD$11,1,MATCH($I$16,$AB$5:$AD$5,0)),1,0,6,1)) | G210: Data validation updated for PT | H210: V3.8
A211: 185 | B211: 2025-05-20 | C211: Input | D211: AK4:AO9 | E211: New table added | G211: PPT and PT Check added | H211: V3.8
A212: 186 | B212: 2025-05-20 | C212: Maturity Benefit Rates (2) | D212: A7:DE51 | E212: V04 Rates | F212: V05 Rates | G212: Rates updated | H212: V3.8
A213: 187 | B213: 2025-05-20 | C213: Maturity Benefit Rates | D213: A9:FV71 | E213: V05 Rates | F213: V06 Rates | G213: Rates updated | H213: V3.8
A214: 188 | B214: 2025-05-20 | C214: Maturity Benefit Rates | D214: A91:AA131 | E214: New tables added | G214: Calculation for Additional Maturity Benefits for new UIN | H214: V3.8
A215: 189 | B215: 2025-05-20 | C215: Maturity Benefit Rates | D215: P83:P88 | E215: =B83*PPT*ROUND(($K$3*(1+$AA83)*(1+IF(IF(Cover_Option="Joint Life",Input!$D$11,Input!$I$11)="Female",IF(PT=5,0.25%,0.5%),0))),5) | F215: =B83*PPT*ROUND(($K$3*(1+IF(Xinput_edc<'Validation Sheet'!$X$7,$AA83,$R98))*(1+IF(IF(Cover_Option="Joint Life",Input!$D$11,Input!$I$11)="Female",IF(PT=5,0.25%,0.5%),0))),5) | H215: V3.8
A216: =A215+1 -> 190 | B216: 2025-05-20 | C216: Maturity Benefit Rates | D216: Q83:Q87 | E216: =C83*PPT*ROUND(($K$3*(1+$AA83)*(1+IF(IF(Cover_Option="Joint Life",Input!$D$11,Input!$I$11)="Female",IF(PT=5,0.25%,0.5%),0))),5) | F216: =C83*PPT*ROUND(($K$3*(1+IF(Xinput_edc<'Validation Sheet'!$X$7,$AA83,$R98))*(1+IF(IF(Cover_Option="Joint Life",Input!$D$11,Input!$I$11)="Female",IF(PT=5,0.25%,0.5%),0))),5) | H216: V3.8
A217: 191 | B217: 2025-05-20 | C217: Maturity Benefit Rates | D217: AJ84:AJ88 | E217: New column added | G217: For old rates | H217: V3.8
A218: 192 | B218: 2025-05-20 | C218: Maturity Benefit Rates | D218: AK84 | E218: =IF(Variant="Platinum",'Maturity Benefit Rates'!$AG$84,IF(Variant="Titanium",'Maturity Benefit Rates'!$AH$84,IF(Variant="Gold",IF(Cover_Option="Joint Life",'Maturity Benefit Rates'!$AF$84,IF(DB_Multiple="1.25X",'Maturity Benefit Rates'!$AD$84,'Maturity Benefit Rates'!AE84))))) | F218: =IF(Xinput_edc<'Validation Sheet'!$X$7,AJ84,AA99) | G218: Formula updated | H218: V3.8
A219: =A218+1 -> 193 | B219: 2025-05-20 | C219: Maturity Benefit Rates | D219: AK88 | E219: =IF(Variant="Platinum",'Maturity Benefit Rates'!$AG$88,IF(Variant="Titanium",'Maturity Benefit Rates'!$AH$88,IF(Variant="Gold",IF(Cover_Option="Joint Life",'Maturity Benefit Rates'!$AF$88,IF(DB_Multiple="1.25X",'Maturity Benefit Rates'!$AD$88,'Maturity Benefit Rates'!AE88))))) | F219: =IF(Xinput_edc<'Validation Sheet'!$X$7,AJ88,AA103) | G219: Formula updated | H219: V3.8
A220: 194 | B220: 2025-05-20 | C220: Maturity Benefit Rates | D220: I3 | E220: =VLOOKUP(Input!$I$12,INDIRECT(CONCATENATE(IF('Validation Sheet'!X3=RIGHT('Validation Sheet'!AA2,3),"Old_",""),"MR_","SL_",Variant,"_",DB_Multiple)),IF(PT=5,2,3)) | F220: =IF(Xinput_edc<'Validation Sheet'!$X$7,VLOOKUP(Input!$I$12,INDIRECT(CONCATENATE(IF('Validation Sheet'!X3=RIGHT('Validation Sheet'!AA2,3),"Old_",""),"MR_","SL_",Variant,"_",DB_Multiple)),IF(PT=5,2,3)),VLOOKUP(Xinput_ageLI,INDIRECT(CONCATENATE(IF('Validation Sheet'!X3=RIGHT('Validation Sheet'!AA2,3),"Old_",""),"MR_","SL_",Variant,"_",DB_Multiple,IF(Xinput_variant<>Variant_1,"_"&Xinput_pPT&"Pay",""))),MATCH(Xinput_policyTerm,IF(Xinput_variant=Variant_1,$A$9:$C$9,IF(Xinput_pPT=5,$I$9:$O$9,$Q$9:$V$9)),0),0)) | G220: Formula updated | H220: V3.8
A221: 195 | B221: 2025-05-20 | C221: Maturity Benefit Rates | D221: J3 | E221: =@INDEX(INDIRECT(CONCATENATE(IF('Validation Sheet'!O34=RIGHT('Update Rates'!B3,3),"Old_",""),"MR_","JL_",PT)),MATCH(Input!$D$11,EMR!$R$9:$R$51,0)+1,MATCH(Input!$I$11,$U$10:$U$53,0)) | F221: =@IF(Xinput_coverOption="Joint Life",INDEX(INDIRECT(CONCATENATE(IF('Validation Sheet'!X3=RIGHT('Validation Sheet'!AA2,3),"Old_",""),"MR_","JL_",PT)),MATCH(Input!$D$12,EMR!$R$9:$R$51,0)+1,MATCH(Input!$I$12,$BB$10:$BB$71,0)),0) | G221: Formula updated | H221: V3.8
A222: 196 | B222: 2025-05-20 | C222: Calculation | D222: P2 | E222: =VLOOKUP(N2,'Maturity Benefit Rates'!$B$83:$N$88,13,TRUE) | F222: =IF(Xinput_edc<'Validation Sheet'!$X$7,VLOOKUP(N2,'Maturity Benefit Rates'!$B$83:$N$88,13,TRUE),VLOOKUP(N2,'Maturity Benefit Rates'!$B$97:$J$103,9,TRUE)) | G222: Band lookup updated | H222: V3.8
... 141 more rows

Sheet Validation Sheet (hidden)
S1: WOP Max SA (For new Customers)
E2: Error # | F2: =MAX(F4:F42) -> 0 | J2: =IF(Error=0,"Axis Max Life Smart Fixed-return Digital Plan",VLOOKUP(Error,$I$4:$J$48,2,0)) -> Axis Max Life Smart Fixed-return Digital Plan | P2: Mode | Q2: Min. Premium | S2: Premium Payment Term (years) | T2: Max Annual Premium (incl. rider premium, modal premium and UW extra, excl. taxes) | W2: Date of change of Version | X2: 2026-03-06 | Z2: Old UIN | AA2: 104N123V06
A3: S.no. | B3: Particular | C3: Input | D3: Minimum | E3: Maximum | F3: Trigger | I3: Error Code | J3: Messages | M3: Minimum Premium | N3: =IF(Variant="Gold",35000,VLOOKUP(Prem_Freq,$P$2:$Q$6,2,0)) -> 5000 | P3: 1 | Q3: =IF(Xinput_eDC<X7,11000,5000) -> 5000 | S3: 5 | T3: 1100000 | W3: Active version | X3: =IF(Input!I13<'Validation Sheet'!$X$2,RIGHT('Validation Sheet'!AA2,3),RIGHT('Validation Sheet'!AA3,3)) -> V07 | Z3: New UIN | AA3: 104N123V07
A4: 1 | B4: Application Name | C4: =Xinput_appName -> Dolphin | D4: =IF(((C4="Dolphin")+(C4="mQuoteUW"))*(Xinput_eDC<=$X$2),"Old Version","NA") -> NA | E4: 2099-01-01 | F4: =IF(((C4="Others")+(C4="mQuote")+(C4="NEO")+(C4="mPRO"))*(Xinput_eDC<$X$2),I48,0) -> 0 | I4: 1 | J4: ="Minimum entry age is "&D6&" years" -> Minimum entry age is 0 years | M4: Minimum Annualised Premium | N4: =IF(Variant="Gold",N3,ROUND(N3/Prem_Mod_Fact,0)) -> 5000 | P4: 2 | Q4: =IF(Xinput_eDC<X7,5582.5,2537.5) -> 2537.5 | S4: 6 | T4: 1000000
A5: =A4+1 -> 2 | B5: Gold Variant availability | F5: =IF(SUM($F$4:F4)=0,IF(AND(Input!I13>=X5,Variant="Gold"),I47,0),0) -> 0 | I5: 2 | J5: ="Maximum entry age is "&E7&" years" -> Maximum entry age is 55 years | P5: 4 | Q5: =IF(Xinput_eDC<X7,2813.8,1279) -> 1279 | S5: 7 | T5: 850000 | W5: New regulations EDC | X5: 2024-10-01
A6: =A5+1 -> 3 | B6: Minimum Age of Life insured | C6: =IF(Cover_Option="Joint Life",MIN(Input!D12,Input!I12),Input!I12) -> 13 | D6: =IF(Xinput_eDC<$X$7,IF(PT=5,13,8),VLOOKUP(Xinput_pT,$U$16:$V$22,2,0)) -> 0 | F6: =IF(SUM($F$4:F5)=0,IF(C6<D6,I4,0),0) -> 0 | I6: 3 | J6: Selected solver not available with Lump Sum variant | P6: 12 | Q6: =IF(Xinput_eDC<X7,1000,428.5) -> 428.5 | S6: 8 | T6: 800000 | W6: CIDR maximum Sum Assured change | X6: 2025-04-24
A7: =A6+1 -> 4 | B7: Maximum Age of Life insured | C7: =IF(Cover_Option="Joint Life",MAX(Input!D12,Input!I12),Input!I12) -> 13 | E7: =IF(Xinput_eDC<$X$7,IF(AND(Variant="Gold",DB_Multiple="10X"),45,50),$S$38) -> 55 | F7: =IF(SUM($F$4:F6)=0,IF(C7>E7,I5,0),0) -> 0 | I7: 5 | J7: =IF(C30<D30,"Minimum ADD SA is Rs."&D30,"Maximum ADD SA is Rs."&E30) -> Maximum ADD SA is Rs.55000 | S7: 10 | T7: 650000 | W7: SPARK Launch Date | X7: 2025-07-21
A8: 5 | B8: Premium Payment Term | F8: =IF(SUM($F$4:F7)=0,IF(PPT_Check<>0,I11,0),0) -> 0 | I8: 6 | J8: ="Annualised Premium should be more than Rs."&N4 -> Annualised Premium should be more than Rs.5000 | M8: NML Grid for CI and Disability Rider | N8: Age | P8: Sum Assured | S8: 11 | T8: 600000 | W8: CIDR V03 | X8: 2099-11-07
A9: 6 | B9: Policy Term | F9: =IF(SUM($F$4:F8)=0,IF(Xinput_eDC<X7,IF(AND(Xinput_pT<>5,Xinput_pT<>10),I10,0),IF(PT_Check<>0,I10,0)),0) -> 0 | I9: 7 | J9: =IF(C14<D14,"Minimum age of Policyholder is 18 years","Maximum age of Policyholder is 99 years") -> Maximum age of Policyholder is 99 years | N9: 18 | O9: 35 | P9: =IF(Input!$I$13<$X$6,3000000,5000000) -> 5000000 | S9: 12 | T9: 500000 | U9: 15 | W9: EDC for GST rate changes | X9: 2025-09-22
A10: 7 | B10: DB Multiple validation | F10: =IF(SUM($F$4:F9)=0,IF(Variant<>"Gold",IF(AND(DB_Multiple<>"1.25X",DB_Multiple<>"10X"),0,I34),IF(DB_Multiple="11X",I34,0)),0) -> 0 | I10: 8 | J10: Please select the correct Policy Term | N10: 36 | O10: 45 | P10: =IF(Input!$I$13<$X$6,2000000,4000000) -> 4000000 | S10: 16 | T10: 400000 | U10: 24 | W10: SSV Rates update (V07) | X10: 2026-03-06
A11: 8 | B11: Single pay is only available with gold variant | F11: =IF(SUM($F$4:F10)=0,IF(Variant<>"Gold",IF(PPT<>1,0,I33),IF(Variant="Gold",IF(PPT=1,0,I33),0)),0) -> 0 | I11: 9 | J11: Please select the correct Premium Payment Term | N11: 46 | O11: 50 | P11: =IF(Input!$I$13<$X$6,1000000,2000000) -> 2000000 | S11: 25 | T11: 350000 | U11: 36
A12: 9 | B12: Premium | C12: =IF(Solver="Enter Desired Sum Assured",Calculation!N2,Calculation!E23) -> 5000 | D12: =N3 -> 5000 | F12: =IF(SUM($F$4:F11)=0,IF(Solver="Enter Desired Sum Assured",0,IF(SUM($F$4:F11)=0,IF(C12<D12,I8,0),0)),0) -> 0 | I12: 10 | J12: Please select the correct Premium Payment Mode | N12: 51 | O12: 55 | P12: =IF(Input!$I$13<$X$6,500000,1000000) -> 1000000 | S12: 37 | T12: 300000 | U12: 52
A13: 10 | B13: Maximum Maturity Age | C13: =IF(Cover_Option="Joint Life",MAX(Input!D12,Input!I12),Input!I12)+PT -> 43 | D13: 18 | E13: =IF(Xinput_eDC<$X$7,IF(PT=5,IF(DB_Multiple="10X",50,55),IF(AND(Variant="Gold",DB_Multiple="10X"),55,60)),$S$16) -> 85 | F13: =IF(SUM($F$4:F12)=0,IF(C13>E13,I13,IF(C13<D13,I14,0)),0) -> 0 | I13: 11 | J13: ="Maxmium maturity age allowed is "&E13&" years" -> Maxmium maturity age allowed is 85 years | N13: 56
A14: 11 | B14: Age of Policy Holder | C14: =Input!D12 -> 50 | D14: 18 | E14: 99 | F14: =IF(SUM($F$4:F13)=0,IF(Cover_Option="Joint Life",0,IF(OR(C14<D14,C14>E14),I9,0)),0) -> 0 | I14: 12 | J14: ="Minimium maturity age allowed is "&D13&" years" -> Minimium maturity age allowed is 18 years
A15: 12 | B15: Max Flat Extra Duration | C15: =Input!I32 -> 5 | D15: 1 | E15: =PPT -> 10 | F15: =IF(SUM($F$4:F14)=0,IF(Input!D32="Yes",IF(OR(C15<D15,C15>E15),I15,0),0),0) -> 0 | I15: 13 | J15: Flat extra duration is incorrect | M15: Max Maturity Age | U15: Min Entry Age
A16: 13 | B16: Premium Payment Mode | F16: =IF(SUM($F$4:F15)=0,IF(PPT=1,IF(Prem_Mode="Single",0,I16),IF(Prem_Mode="Single",I16,0)),0) -> 0 | I16: 14 | J16: Please select the correct premium paying mode | M16: Key | N16: Variant | O16: Policy Term | P16: Coverage Type (Single/Joint) | Q16: Death Benefit Multiple | R16: Maximum Maturity Age | S16: =VLOOKUP(Xinput_variant&"_"&Xinput_pT&"_"&Xinput_coverOption&"_"&Xinput_deathBenefitMultiple,$M$16:$R$34,6,0) -> 85 | U16: Policy Term | V16: Minimum Entry Age
A17: 14 | B17: Riders not available | F17: =IF(SUM($F$4:F16)=0,IF(AND(PPT=1,OR(ADD="Yes",Term_Plus="Yes",WOP="Yes",Input!I24="Yes")),I17,0),0) -> 0 | I17: 15 | J17: Rider are not available with Single Pay policies | M17: =N17&"_"&O17&"_"&P17&"_"&Q17 -> Gold_5_Single Life_1.25X | N17: Gold | O17: 5 | P17: Single Life | Q17: 1.25X | R17: 55 | U17: 5 | V17: 13
A18: 15 | B18: SA Solver validation | C18: ='Additional Mat Benefit Rates'!V7 -> 0 | F18: =IF(SUM($F$4:F17)=0,IF(AND(Solver="Enter Desired Sum Assured",IF(Variant="Titanium",Input!D16<IF(Xinput_eDC<'Validation Sheet'!$X$7,57750,IF(PPT=5,26250,52500)),IF(Variant="Gold",Input!D16<'Additional Mat Benefit Rates'!$T$9,C18=0))),I32,0),0) -> 0 | I18: 16 | J18: ="Maximum Sum Assured for Term Plus Rider is Rs. "&E25 -> Maximum Sum Assured for Term Plus Rider is Rs. 55000 | M18: =N18&"_"&O18&"_"&P18&"_"&Q18 -> Gold_5_Single Life_10X | N18: Gold | O18: 5 | P18: Single Life | Q18: 10X | R18: 50 | U18: 10 | V18: 8
A19: =A18+1 -> 16 | B19: Give Get | C19: =MAX(Working!$F$4:$F$63)/SUM(Working!$N$4:$N$63) -> 4.10577 | D19: 1 | F19: =IF(SUM($F$4:F18)=0,IF(C19<D19,I46,0),0) -> 0 | I19: 17 | J19: ="Maximum sum at risk for Waiver of Premium Plus Rider is Rs."&E32 -> Maximum sum at risk for Waiver of Premium Plus Rider is Rs.55000 | M19: Gold_10_Single Life_1.25X | N19: Gold | O19: 10 | P19: Single Life | Q19: 1.25X | R19: 60 | U19: 15 | V19: 3
A20: =A19+1 -> 17 | B20: Maximum SA on Maturity for POSP | C20: =IF(Cover_Option="Joint Life",Working!G4,Working!H4) -> 55000 | E20: 2500000 | F20: =IF(SUM($F$4:F19)=0,IF(AND(Xinput_pOSP="yes",E20<C20),I29,0),0) -> 0 | I20: 18 | J20: ADD Rider Premium cannot be less than Rs. 50 | M20: Gold_10_Single Life_10X | N20: Gold | O20: 10 | P20: Single Life | Q20: 10X | R20: 55 | U20: 20 | V20: 0
A21: 18 | B21: POSP max Term | C21: =Xinput_pT -> 30 | E21: 20 | F21: =IF(SUM($F$4:F20)=0,IF(AND(Xinput_pOSP="yes",C21>E21),I44,0),0) -> 0 | I21: 19 | J21: Minimum Age for ADD Rider is 18 years. | M21: Gold_5_Joint Life_1.25X | N21: Gold | O21: 5 | P21: Joint Life | Q21: 1.25X | R21: 55 | U21: 25 | V21: 0
A22: 19 | B22: Riders not available with POSP | F22: =IF(SUM($F$4:F21)=0,IF(AND(Xinput_pOSP="yes",OR(ADD="Yes",Term_Plus="Yes",WOP="Yes",Input!I24="Yes")),I28,0),0) -> 0 | I22: 20 | J22: Maximum Age of PH for WOP Plus rider is 65 years | M22: Gold_10_Joint Life_1.25X | N22: Gold | O22: 10 | P22: Joint Life | Q22: 1.25X | R22: 60 | U22: 30 | V22: 0
A23: 20 | B23: Term rider age | C23: =IF(Cover_Option="Joint Life",Input!D12,Input!I12) -> 13 | D23: 18 | E23: 65 | F23: =IF(SUM($F$4:F22)=0,IF(Term_Plus="Yes",IF(OR(C23<D23,C23>E23),I25,0),0),0) -> 0 | I23: 21 | J23: =IF(C24<D24,"Minimum Term allowed under Term Plus Rider is "&D24&" years","Maximum Term allowed under Term Plus Rider is "&E24&" years") -> Maximum Term allowed under Term Plus Rider is 10 years | M23: Platinum_5_Single Life_11X | N23: Platinum | O23: 5 | P23: Single Life | Q23: 11X | R23: 65
A24: 21 | B24: Term Plus Term | C24: =Term_Term -> 10 | D24: 5 | E24: 10 | F24: =IF(SUM($F$4:F23)=0,IF(Term_Plus="Yes",IF(OR(C24<D24,C24>E24),I23,0),0),0) -> 0 | I24: 22 | J24: Term Plus Rider Premium cannot be less than Rs. 91 | M24: Platinum_10_Single Life_11X | N24: Platinum | O24: 10 | P24: Single Life | Q24: 11X | R24: 70
A25: 22 | B25: Term Plus Sum Assured | C25: =Term_Plus_SA -> 500000 | D25: 50000 | E25: =IFERROR(MIN(Working!$H$4-IF(Term_Plus="Yes",Term_Plus_SA,0),1500000),0) -> 55000 | F25: =IF(SUM($F$4:F24)=0,IF(Term_Plus="Yes",IF(OR(C25<D25,C25>E25),I18,0),0),0) -> 0 | I25: 23 | J25: Minimum Age for Term Plus Rider is 18 years. | M25: Platinum_15_Single Life_11X | N25: Platinum | O25: 15 | P25: Single Life | Q25: 11X | R25: 75
A26: 23 | B26: Term Rider Flat Extra Duration | C26: =Term_Plus_Flat_Dur -> 3 | E26: =Input!V23 -> 10 | F26: =IF(SUM($F$4:F25)=0,IF(AND(Term_Plus="Yes",Term_Plus_Flat_Extra="Yes"),IF(C26>E26,I27,0),0),0) -> 0 | I26: 24 | J26: Total Rider Premium is greater than 30% of the Base Premium | M26: Platinum_20_Single Life_11X | N26: Platinum | O26: 20 | P26: Single Life | Q26: 11X | R26: 80
A27: 24 | B27: Term Plus Rider Premium | C27: =TermP_Prem -> 0 | D27: 91 | E27: 46287 | F27: =IF(SUM($F$4:F26)=0,IF(Term_Plus="Yes",IF(OR(C27<D27,C27>E27),I24,0),0),0) -> 0 | I27: 25 | J27: Flat Extra duration for Term Plus rider cannot be greater than rider term. | M27: Platinum_25_Single Life_11X | N27: Platinum | O27: 25 | P27: Single Life | Q27: 11X | R27: 85
A28: 25 | B28: ADD rider age | C28: =IF(Cover_Option="Joint Life",Input!D12,Input!I12) -> 13 | D28: 18 | E28: 65 | F28: =IF(SUM($F$4:F27)=0,IF(ADD="Yes",IF(OR(C28<D28,C28>E28),I21,0),0),0) -> 0 | I28: 26 | J28: Rider are not available with POSP channel | M28: Platinum_30_Single Life_11X | N28: Platinum | O28: 30 | P28: Single Life | Q28: 11X | R28: 85
A29: 26 | B29: ADD Rider Term | C29: =Input!D24 -> 11 | D29: =IF(PPT=PT,ADD_PPT,MIN(75-Input!I12,ADD_PPT+1)) -> 11 | E29: =IF(PPT=PT,ADD_PPT,MIN(75-Input!I12,PT,57)) -> 30 | F29: =IF(SUM($F$4:F28)=0,IF(AND(ADD="Yes",OR('Validation Sheet'!C29<'Validation Sheet'!D29,'Validation Sheet'!C29>'Validation Sheet'!E29)),I43,0),0) -> 0 | I29: 27 | J29: Maximum SA on Death for POSP channel is 25L | M29: Titanium_5_Single Life_11X | N29: Titanium | O29: 5 | P29: Single Life | Q29: 11X | R29: 65
A30: 27 | B30: ADD Rider Sum Assured | C30: =ADD_SA -> 200000 | D30: 50000 | E30: =IFERROR(MIN(Working!$H$4-IF(Term_Plus="Yes",Term_Plus_SA,0),10000000),0) -> 55000 | F30: =IF(SUM($F$4:F29)=0,IF(ADD="Yes",IF(OR(C30<D30,C30>E30),I7,0),0),0) -> 0 | I30: 28 | J30: Flat extra not applicable with Joint Life | M30: Titanium_10_Single Life_11X | N30: Titanium | O30: 10 | P30: Single Life | Q30: 11X | R30: 70
A31: 28 | B31: ADD rider premium | C31: =Calculation!E41 -> 0 | D31: 50 | E31: 46502 | F31: =IF(SUM($F$4:F30)=0,IF(ADD="Yes",IF(OR(C31<D31,C31>E31),I20,0),0),0) -> 0 | I31: 29 | J31: Total Health Rider Premium is greater than 100% of the Base Premium | M31: Titanium_15_Single Life_11X | N31: Titanium | O31: 15 | P31: Single Life | Q31: 11X | R31: 75
A32: 29 | B32: Wop Rider Sum Assured | C32: =Calculation!E22+Calculation!C48+Calculation!D48+Calculation!E48+Calculation!F48+Calculation!H48 -> 5000 | D32: 1000 | E32: =IFERROR(MIN(VLOOKUP(WOP_Rider_Term,$S$3:$T$12,2,TRUE),Working!$H$4-IF(Term_Plus="Yes",Term_Plus_SA,0)),0) -> 55000 | F32: =IF(SUM($F$4:F31)=0,IF(WOP="Yes",IF(OR(C32<D32,C32>E32),I19,0),0),0) -> 0 | I32: 30 | J32: ="Please increase the SA to Rs. "&IF(Variant="Titanium",IF(Xinput_eDC<'Validation Sheet'!$X$7,57750,IF(PPT=5,26250,52500)),IF(Variant="Gold",'Additional Mat Benefit Rates'!$T$9,'Additional Mat Benefit Rates'!U7)) -> Please increase the SA to Rs. 205288.5 | M32: Titanium_20_Single Life_11X | N32: Titanium | O32: 20 | P32: Single Life | Q32: 11X | R32: 80
A33: 30 | B33: WOP Rider Entry Age | C33: =Input!D12 -> 50 | D33: 18 | E33: 65 | F33: =IF(SUM($F$4:F32)=0,IF(WOP="Yes",IF(OR(C33<D33,C33>E33),I22,0),0),0) -> 0 | I33: 31 | J33: Single pay variant is available only with Gold Variant | M33: Titanium_25_Single Life_11X | N33: Titanium | O33: 25 | P33: Single Life | Q33: 11X | R33: 85
A34: 31 | B34: CI and Disability Rider Entry Age | C34: =IF(Cover_Option="Joint Life",Input!D12,Input!I12) -> 13 | D34: 18 | E34: 55 | F34: =IF(SUM($F$4:F33)=0,IF(Input!I24="Yes",IF(OR(C34<D34,C34>E34),I40,0),0),0) -> 0 | I34: 32 | J34: Invalid Death benefit multiple | M34: Titanium_30_Single Life_11X | N34: Titanium | O34: 30 | P34: Single Life | Q34: 11X | R34: 85
A35: 32 | B35: CI and Disability Rider Maturity Age | C35: =IF(Cover_Option="Joint Life",Input!D12,Input!I12)+Input!I25 -> 33 | E35: =IF(OR(Input!I26="Gold",Input!I26="Platinum"),85,75) -> 75 | F35: =IF(SUM($F$4:F34)=0,IF(Input!I24="Yes",IF(C35>E35,I41,0),0),0) -> 0 | I35: 33 | J35: Joint life is only available with Gold Variant
A36: 33 | B36: CI and Disability Rider Term | C36: =Input!I25 -> 20 | D36: =IF(PPT=PT,CI_PPT,MAX(5,MIN(IF(OR(Input!I26="Gold",Input!I26="Platinum"),85,75)-Input!I12,IF(Xinput_eDC<X7,CI_PPT+1,CI_PPT)))) -> 10 | E36: =IF(PPT=PT,CI_PPT,MIN(IF(OR(Input!J26="Gold",Input!J26="Platinum"),85,75)-IF(Cover_Option="Joint Life",Input!D12,Input!I12),PT,IF(Xinput_eDC<X7,67,IF(Xinput_eDC<'Validation Sheet'!$X$8,20,30)))) -> 20 | F36: =IF(SUM($F$4:F35)=0,IF(Input!I24="Yes",IF(OR(C36<D36,C36>E36),I39,0),0),0) -> 0 | I36: 34 | J36: WOP Plus Rider cannot be selected when LI and PH are different
A37: 34 | B37: CI and Disability Rider Sum Assured | C37: =Input!I27 -> 100000 | D37: 100000 | E37: =IFERROR(ROUNDDOWN(IF(IF(Cover_Option="Joint Life",Input!D12,Input!I12)>=N13,MIN(10000000,Working!$H$4-IF(Term_Plus="Yes",Term_Plus_SA,0)),IF(IF(Cover_Option="Joint Life",Input!D12,Input!I12)>=N12,MIN(P12,Working!$H$4-IF(Term_Plus="Yes",Term_Plus_SA,0)),IF(IF(Cover_Option="Joint Life",Input!D12,Input!I12)>=N11,MIN(P11,Working!$H$4-IF(Term_Plus="Yes",Term_Plus_SA,0)),IF(IF(Cover_Option="Joint Life",Input!D12,Input!I12)>=N10,MIN(P10,Working!$H$4-IF(Term_Plus="Yes",Term_Plus_SA,0)),IF(IF(Cover_Option="Joint Life",Input!D12,Input!I12)>=N9,MIN(P9,Working!$H$4-IF(Term_Plus="Yes",Term_Plus_SA,0))))))),-5),0) -> 0 | F37: =IF(SUM($F$4:F36)=0,IF(Input!I24="Yes",IF(Input!I12<18,I37,IF(Working!H4<D37,I38,IF(OR(C37<D37,C37>E37,MOD(C37,100000)<>0),I38,0))),0),0) -> 0 | I37: 35 | J37: Minimum Age for CID Rider is 18 years. | M37: Max Entry Age
A38: 35 | B38: Life Rider Premium not greater than 30% of base premium | C38: =IFERROR(Calculation!F48,0) -> 0 | E38: =IFERROR(30%*(Calculation!E22+Calculation!C48+Calculation!D48),0) -> 1500 | F38: =IF(SUM($F$4:F37)=0,IF(C38>E38,I26,0),0) -> 0 | I38: 36 | J38: =IF(Working!H4<D37,"CI and Disability Rider is not available",IF(C37<D37,"Minimum Sum Assured for CI and Disability Rider is Rs. "&D37,IF(C37>E37,"Maximum Sum Assured for CI and Disability Rider is Rs. "&E37,"CI and Disability Rider Sum Assured can be chosen in multiple of 1L only"))) -> CI and Disability Rider is not available | M38: Key | N38: Variant | O38: Policy Term | P38: Coverage Type (Single/Joint) | Q38: Death Benefit Multiple | R38: Maximum Entry Age | S38: =VLOOKUP(Xinput_variant&"_"&Xinput_pT&"_"&Xinput_coverOption&"_"&Xinput_deathBenefitMultiple,$M$38:$R$56,6,0) -> 55
A39: 36 | B39: Health Rider Premium not greater than 100% of base premium | C39: =IFERROR(Calculation!E48+Calculation!G48+Calculation!H48,0) -> 0 | E39: =IFERROR(Calculation!E22+Calculation!C48+Calculation!D48,0) -> 5000 | F39: =IF(SUM($F$4:F38)=0,IF(C39>E39,I31,0),0) -> 0 | I39: 37 | J39: =IF(C36<D36,"Minimum Policy Term for CI and Disability Rider allowed is "&D36,"Maximum Policy Term for CI and Disability Rider allowed is "&E36) -> Maximum Policy Term for CI and Disability Rider allowed is 20 | M39: =N39&"_"&O39&"_"&P39&"_"&Q39 -> Gold_5_Single Life_1.25X | N39: Gold | O39: 5 | P39: Single Life | Q39: 1.25X | R39: 50
A40: 37 | B40: Single life and Joint Life validation | F40: =IF(SUM($F$4:F39)=0,IF(Cover_Option="Joint Life",IF(Variant="Gold",0,I35),0),0) -> 0 | I40: 38 | J40: Minimum entry age for CI and Disability Rider is 18 years | M40: =N40&"_"&O40&"_"&P40&"_"&Q40 -> Gold_5_Single Life_10X | N40: Gold | O40: 5 | P40: Single Life | Q40: 10X | R40: 45
A41: 38 | B41: Flat extra not applicable with Joint Life | F41: =IF(SUM($F$4:F40)=0,IF(AND(Cover_Option="Joint Life",Input!D32="Yes"),'Validation Sheet'!I30,0),0) -> 0 | I41: 39 | J41: ="Maximum maturity age for CI and Disability Rider is "&E35 -> Maximum maturity age for CI and Disability Rider is 75 | M41: Gold_10_Single Life_1.25X | N41: Gold | O41: 10 | P41: Single Life | Q41: 1.25X | R41: 50
A42: 39 | B42: CI and Disability Rider is not available when Base LI gender is "Others" | F42: =IF(SUM($F$4:F41)=0,IF(Input!I24="Yes",IF(Input!I11="Others",0*I42,0),0),0) -> 0 | I42: 40 | J42: CI and Disability Rider is not available. | M42: Gold_10_Single Life_10X | N42: Gold | O42: 10 | P42: Single Life | Q42: 10X | R42: 45
I43: 41 | J43: =IF(C29<D29,"Minimum Policy Term for ADD Rider allowed is "&D29,"ADD term cannot be more than base term") -> ADD term cannot be more than base term | M43: Gold_5_Joint Life_1.25X | N43: Gold | O43: 5 | P43: Joint Life | Q43: 1.25X | R43: 50
I44: 42 | J44: Maximum Policy Term for POSP channel allowed is 20 Years | M44: Gold_10_Joint Life_1.25X | N44: Gold | O44: 10 | P44: Joint Life | Q44: 1.25X | R44: 50
I45: 43 | J45: Minimum Policy Term for ADD Rider allowed is 9 years | M45: Platinum_5_Single Life_11X | N45: Platinum | O45: 5 | P45: Single Life | Q45: 11X | R45: 60
I46: 44 | J46: The combination of inputs is not allowed due to low returns | M46: Platinum_10_Single Life_11X | N46: Platinum | O46: 10 | P46: Single Life | Q46: 11X | R46: 60
I47: 45 | J47: Gold variant is unavailable | M47: Platinum_15_Single Life_11X | N47: Platinum | O47: 15 | P47: Single Life | Q47: 11X | R47: 60
I48: 46 | J48: EDC prior to product launch / UIN change date is not allowed | M48: Platinum_20_Single Life_11X | N48: Platinum | O48: 20 | P48: Single Life | Q48: 11X | R48: 60
M49: Platinum_25_Single Life_11X | N49: Platinum | O49: 25 | P49: Single Life | Q49: 11X | R49: 60
M50: Platinum_30_Single Life_11X | N50: Platinum | O50: 30 | P50: Single Life | Q50: 11X | R50: 55
M51: Titanium_5_Single Life_11X | N51: Titanium | O51: 5 | P51: Single Life | Q51: 11X | R51: 60
M52: Titanium_10_Single Life_11X | N52: Titanium | O52: 10 | P52: Single Life | Q52: 11X | R52: 60
M53: Titanium_15_Single Life_11X | N53: Titanium | O53: 15 | P53: Single Life | Q53: 11X | R53: 60
M54: Titanium_20_Single Life_11X | N54: Titanium | O54: 20 | P54: Single Life | Q54: 11X | R54: 60
M55: Titanium_25_Single Life_11X | N55: Titanium | O55: 25 | P55: Single Life | Q55: 11X | R55: 60
M56: Titanium_30_Single Life_11X | N56: Titanium | O56: 30 | P56: Single Life | Q56: 11X | R56: 55

Sheet Input
B1: Enter Desired Premium
AG3: CI and Disability Rider Policy Term | AH3: ADD Rider Policy Term
B4: =Message -> Axis Max Life Smart Fixed-return Digital Plan | R4: Policyholder State Name | S4: Max Life Registered State Name | V4: Variant | W4: PPT Type | X4: PT | AA4: Policy Term | AG4: 5 | AH4: 5 | AK4: Variant | AL4: PT | AM4: =MAX(AM5:AM9) -> 0 | AN4: PPT | AO4: =MAX(AO5:AO9) -> 0
B5: Variant | D5: Platinum | G5: Distribution Channel | I5: Axis Bank Ltd. | R5: Andaman and Nicobar Islands UT | S5: Andaman and Nicoba | V5: Gold | W5: 1 | X5: 5 | Y5: 10 | AA5: PPT | AB5: 1 | AC5: 5 | AD5: 10 | AG5: =AG4+1 -> 6 | AH5: =AH4+1 -> 6 | AK5: Gold | AL5: =IF(Xinput_variant=Variant_1,IF(Xinput_pPT=AB5,IF(ISERROR(VLOOKUP(Xinput_pT,$AB$6:$AB$7,1,0))=TRUE,FALSE,TRUE),TRUE),TRUE) -> TRUE | AM5: =IF(AL5=TRUE,0,1) -> 0 | AN5: =IF(Xinput_variant=Variant_1,IF(ISERROR(VLOOKUP(Xinput_pPT,$AA$15:$AA$16,1,0))=TRUE,FALSE,TRUE),TRUE) -> TRUE | AO5: =IF(AN5=TRUE,0,1) -> 0
B6: Max Life Registered State | D6: Madhya Pradesh | G6: POSP | I6: no | R6: Andhra Pradesh | S6: Andhra Pradesh | W6: 1 | X6: 5 | Y6: 10 | AA6: Policy Term | AB6: 5 | AC6: 5 | AD6: 10 | AG6: =AG5+1 -> 7 | AH6: =AH5+1 -> 7 | AK6: Platinum | AL6: =IF(Xinput_variant=Variant_2,IF(Xinput_pPT=AC5,IF(ISERROR(VLOOKUP(Xinput_pT,$AC$6:$AC$11,1,0))=TRUE,FALSE,TRUE),TRUE),TRUE) -> TRUE | AM6: =IF(AL6=TRUE,0,1) -> 0 | AN6: =IF(Xinput_variant=Variant_2,IF(ISERROR(VLOOKUP(Xinput_pPT,$AB$15:$AB$16,1,0))=TRUE,FALSE,TRUE),TRUE) -> TRUE | AO6: =IF(AN6=TRUE,0,1) -> 0
B7: Nationality | D7: Indian | G7: Application Name | I7: Dolphin | R7: Arunachal Pradesh | S7: Arunachal Pradesh | V7: Platinum | W7: 5 | X7: 5 | Y7: 10 | AB7: 10 | AC7: 10 | AD7: 15 | AG7: 8 | AH7: 8 | AL7: =IF(Xinput_variant=Variant_2,IF(Xinput_pPT=AD5,IF(ISERROR(VLOOKUP(Xinput_pT,$AD$6:$AD$10,1,0))=TRUE,FALSE,TRUE),TRUE),TRUE) -> TRUE | AM7: 0
R8: Assam | S8: Assam | V8: Titanium | W8: 5 | X8: 5 | Y8: 10 | AC8: 15 | AD8: 20 | AG8: 9 | AH8: 9 | AK8: Titanium | AL8: =IF(Xinput_variant=Variant_2,IF(Xinput_pPT=AC7,IF(ISERROR(VLOOKUP(Xinput_pT,$AC$6:$AC$11,1,0))=TRUE,FALSE,TRUE),TRUE),TRUE) -> TRUE | AM8: 0 | AN8: =IF(Xinput_variant=Variant_3,IF(ISERROR(VLOOKUP(Xinput_pPT,$AB$15:$AB$16,1,0))=TRUE,FALSE,TRUE),TRUE) -> TRUE | AO8: =IF(AN8=TRUE,0,1) -> 0
B9: =IF(AND(Variant=Variant_1,Cover_Option="Joint Life"),"Policyholder (Primary Life Assured) Details","Policyholder Details") -> Policyholder Details | G9: =IF(AND(Variant=Variant_1,Cover_Option="Joint Life"),"Secondary Life Assured Details","Life Assured Details") -> Life Assured Details | R9: Bihar | S9: Bihar | AC9: 20 | AD9: 25 | AG9: 10 | AH9: 10 | AL9: =IF(Xinput_variant=Variant_2,IF(Xinput_pPT=AD7,IF(ISERROR(VLOOKUP(Xinput_pT,$AD$6:$AD$10,1,0))=TRUE,FALSE,TRUE),TRUE),TRUE) -> TRUE | AM9: 0
B10: Name | D10: Random | G10: Name | I10: Aditya | R10: Chandigarh | S10: Chandigarh | AC10: 25 | AD10: 30 | AG10: 11 | AH10: 11
B11: Gender | D11: Male | G11: Gender | I11: Female | R11: Chattisgarh | S11: Chhattisgarh | X11: Premium Payment Mode | AC11: 30 | AG11: 12 | AH11: 12
B12: Age | D12: 50 | G12: Age | I12: 13 | R12: Dadra and Nagar Haveli UT | S12: Dadra and Nagar Ha | V12: Nationality | X12: Single | Y12: Monthly | AG12: 13 | AH12: 13
B13: Residential State | D13: Kerala | G13: Effective Date of Commencement | I13: 2026-03-08 | R13: Daman and Diu UT | S13: Daman and Diu | V13: Indian | X13: Annual | Y13: Quarterly | AA13: PPT | AG13: 14 | AH13: 14
R14: Delhi | S14: Delhi | V14: NRI | X14: Monthly | Y14: Semi-Annual | AA14: Gold | AB14: Platinum/Titanium | AG14: 15 | AH14: 15
B15: Policy Details | R15: Goa | S15: Goa | Y15: Annual | AA15: 1 | AB15: 5 | AG15: 16 | AH15: 16
B16: =IF(Solver=AA22,"Annualised Premium","Sum Assured") -> Annualised Premium | D16: 5000 | G16: Premium Payment Term | I16: 10 | R16: Gujarat | S16: Gujarat | AB16: =IF(Xinput_eDC<'Validation Sheet'!X7,"",10) -> 10 | AG16: 17 | AH16: 17
B17: Premium Payment mode | D17: Annual | G17: Policy Term | I17: 30 | R17: Haryana | S17: Haryana | AG17: 18 | AH17: 18
B18: Cover Option | D18: Single Life | R18: Himachal Pradesh | S18: Himachal Pradesh | AG18: 19 | AH18: 19
B19: Death Benefit Multiple | D19: 11X | R19: Jammu & Kashmir | S19: Jammu and Kashmir | AG19: 20 | AH19: 20
R20: Jammu and Kashmir | S20: Jharkhand | X20: Variant | Z20: Solver Reference | AG20: =IF(Xinput_eDC<'Validation Sheet'!$X$8,"",AG19+1) ->  | AH20: 21
B21: Riders | R21: Jharkhand | S21: Karnataka | X21: Gold | Z21: Solver Type | AA21: Input details | AG21: =IF(Xinput_eDC<'Validation Sheet'!$X$8,"",AG20+1) ->  | AH21: 22
B22: ADD Rider | D22: no | G22: WOP Plus Rider | I22: no | R22: Karnataka | S22: Kerala | V22: Term Plus Rider Term | X22: Platinum | Z22: 1. Calculate Income from Premium | AA22: Enter Desired Premium | AG22: =IF(Xinput_eDC<'Validation Sheet'!$X$8,"",AG21+1) ->  | AH22: 23
B23: ADD Sum Assured | D23: 200000 | R23: Kerala | S23: Ladakh | V23: =MAX(MIN(35,PPT,70-I12),5) -> 10 | X23: Titanium | Z23: 2. Calculate Premium from SA | AA23: Enter Desired Sum Assured | AG23: =IF(Xinput_eDC<'Validation Sheet'!$X$8,"",AG22+1) ->  | AH23: 24
B24: ADD Rider Term | D24: 11 | G24: CI and Disability Rider | I24: no | R24: Ladakh UT | S24: Lakshadweep | AG24: =IF(Xinput_eDC<'Validation Sheet'!$X$8,"",AG23+1) ->  | AH24: 25
G25: CI and Disability Rider Policy Term | I25: 20 | R25: Lakshyadeep UT | S25: Madhya Pradesh | X25: Channel | AG25: =IF(Xinput_eDC<'Validation Sheet'!$X$8,"",AG24+1) ->  | AH25: 26
B26: Term Plus Rider | D26: no | G26: CI and Disability Rider Variant | I26: Platinum Plus | R26: Madhya Pradesh | S26: Maharashtra | V26: Flat Extra | X26: Axis Online (Thanos) | AG26: =IF(Xinput_eDC<'Validation Sheet'!$X$8,"",AG25+1) ->  | AH26: 27
B27: Term Plus Sum Assured | D27: 500000 | G27: CI and Disability Rider Sum Assured | I27: =10^5 -> 100000 | R27: Maharashtra | S27: Manipur | V27: yes | X27: Broker | AG27: =IF(Xinput_eDC<'Validation Sheet'!$X$8,"",AG26+1) ->  | AH27: 28
R28: Manipur | S28: Meghalaya | V28: no | X28: Corporate Agency | AA28: Cover Option | AB28: DB Multiple | AG28: =IF(Xinput_eDC<'Validation Sheet'!$X$8,"",AG27+1) ->  | AH28: 29
B29: Extra Mortality Loading | R29: Meghalaya | S29: Mizoram | X29: =IF(Xinput_eDC<'Validation Sheet'!X7,"Employee Sales Team (CAT)","") ->  | AA29: Single Life | AB29: 1.25X | AG29: =IF(Xinput_eDC<'Validation Sheet'!$X$8,"",AG28+1) ->  | AH29: 30
G30: Rate | I30: Duration | R30: Mizoram | S30: Nagaland | V30: Application Name | X30: POSP | AA30: Joint Life | AB30: 10X | AH30: 31
B31: =IF(Cover_Option="Joint Life","Extra Mortality Base (First Life)","Extra Mortality Base") -> Extra Mortality Base | D31: no | G31: 1 | R31: Nagaland | S31: Odisha | V31: Dolphin | X31: Web Aggregators | AB31: 11X | AH31: 32
B32: Flat Extra Base | D32: no | G32: 10 | I32: 5 | R32: Orissa | S32: Puducherry | V32: mQuoteUW | X32: Direct online | AH32: 33
B33: ADD Rider | D33: no | G33: 0.7 | R33: Ponducherry UT | S33: Punjab | V33: mPRO | X33: =IF(Xinput_eDC<'Validation Sheet'!X7,"SPARC (Online)","") ->  | AH33: 34
B34: Term Plus Rider | D34: no | G34: 0.5 | R34: Punjab | S34: Rajasthan | V34: NEO | X34: YBL Online (NIS) | AH34: 35
B35: Term Plus Flat Extra | D35: no | G35: 7 | I35: 3 | R35: Rajasthan | S35: Sikkim | V35: mQuote | X35: Axis Online: Thanos Seller Assisted D2C/DIY | AH35: 36
B36: WOP Plus Rider | D36: no | G36: 2 | R36: Sikkim | S36: Tamil Nadu | V36: Others | X36: Axis Bank Ltd. | AH36: 37
B37: CI and Disability Rider EMR | D37: no | G37: 2 | R37: Tamil nadu | S37: Telangana | V37: mSales | AH37: 38
B38: CI and Disability Rider Flat Extra | D38: no | G38: 5 | I38: 1 | R38: Telangana | S38: Tripura | AH38: 39
B39: =IF(AND(Variant=Variant_1,Cover_Option="Joint Life"),"Extra Mortality Base (Second Life)","") ->  | D39: no | G39: 1 | R39: Tripura | S39: Uttar Pradesh | AH39: 40
R40: Uttar Pradesh | S40: Uttarakhand | AH40: 41
R41: Uttarakhand | S41: West Bengal | AH41: 42
R42: West Bengal | AH42: 43
AH43: 44
AH44: 45
AH45: 46
AH46: 47
AH47: 48
AH48: 49
AH49: 50
AH50: 51
AH51: 52
AH52: 53
AH53: 54
AH54: 55
AH55: 56
AH56: 57

Sheet Output
E1: BENEFIT ILLUSTRATION
E2: [Date and Time of Illustration | F2: =NOW() -> 2026-04-22T19:23:26.560
B4: =IF(Cover_Option="Joint Life","Name of the Prospect/Policyholder (Insured Person 1):","Name of the Prospect/Policyholder:") -> Name of the Prospect/Policyholder: | D4: =CONCATENATE(IF(Input!D11="Male","Mr. ",IF(Input!D11="Female","Ms. ",IF(Input!D11="Others","Mx. ",""))),Input!D10) -> Mr. Random | G4: Proposal No:
B5: Age & Gender: | D5: =CONCATENATE(Input!D12," Years, ",IF(Input!D11="Others","Transgender",Input!D11)) -> 50 Years, Male | G5: Name of the Product: | I5: =Input!B4 -> Axis Max Life Smart Fixed-return Digital Plan
B6: =IF(Cover_Option="Joint Life","Name of the Insured Person 2:","Name of the Life Assured:") -> Name of the Life Assured: | D6: =CONCATENATE(IF(Input!I11="Male","Mr. ",IF(Input!I11="Female","Ms. ",IF(Input!I11="Others","Mx. ",""))),Input!I10) -> Ms. Aditya | G6: Tag Line: | I6: A Non-linked Non Participating Individual Life Insurance Savings Plan
B7: Age & Gender: | D7: =CONCATENATE(Input!I12," Years, ",IF(Input!I11="Others","Transgender",Input!I11)) -> 13 Years, Female | G7: Unique Identification No: | I7: =IF(Input!I13<'Validation Sheet'!X2,'Validation Sheet'!AA2,'Validation Sheet'!AA3) -> 104N123V07
B8: Policy Term | D8: =PT&" years" -> 30 years | G8: GST Rate (Base Policy, First Year): | I8: =First_Yr_ST -> 0
B9: Premium Payment Term: | D9: =PPT&IF(PPT=1," year"," years") -> 10 years | G9: GST Rate (Base Policy, Subsequent Year): | I9: =IF(PPT=1,"NA",Ren_Yr_ST) -> 0 | AC9: Premium,Death Benefit ,Stamp duty, GDB
B10: Amount of Installment Premium: | D10: ="Rs. "&ROUND(J31,0) -> Rs. 5000 | G10: GST Rate (Rider, First Year): | I10: =IF(OR(ADD="Yes",Term_Plus="Yes",WOP="Yes",Xinput_cIDisabilityRiderOption="yes"),Rider_ST,"NA") -> NA
B11: Mode of payment of premium: | D11: =Prem_Mode -> Annual | G11: GST Rate (Rider, Subsequent Year): | I11: =IF(OR(ADD="Yes",Term_Plus="Yes",WOP="Yes",Xinput_cIDisabilityRiderOption="yes"),Rider_ST_2nd,"NA") -> NA
G13: Max Life State: | I13: =MLI_State -> Madhya Pradesh
G14: Policyholder Residential State: | I14: =PH_State -> Kerala
B16: This benefit illustration is intended to show year-wise premiums payable and benefits under the policy
B17: Policy Details
B18: Policy Variant | D18: =Variant -> Platinum | F18: =IF(Variant="Titanium","Sum Assured (in Rs.)","Sum Assured on Maturity (in Rs.)") -> Sum Assured on Maturity (in Rs.) | I18: =IF(Variant="Titanium",Calculation!D5,Calculation!D1) -> 205288.5
B19: Death Benefit Option | D19: =IF(Cover_Option="Joint Life",1.25,Calculation!E16) -> 11 | F19: Sum Assured on Death (at inception of the policy) Rs. | I19: =IF(Cover_Option="Joint Life",H38,I38) -> 55000
B21: Rider Details
B22: Accidental Death & Dismemberment (ADD) Rider Premium Payment Term and Rider Term | E22: =IF(ADD="Yes",Calculation!I41&" Pay "&Calculation!H41,"NA") -> NA | G22: Accidental Death & Dismemberment (ADD) Rider Sum Assured (in Rs.) | J22: =IF(ADD="Yes",ADD_SA,"NA") -> NA
B23: Term Plus Rider Term | E23: =IF(Term_Plus="Yes",Calculation!H42,"NA") -> NA | G23: Term Plus Rider Sum Assured (in Rs.) | J23: =IF(Term_Plus="Yes",Term_Plus_SA,"NA") -> NA
B24: Waiver of Premium (WOP) Plus Rider Term | E24: =IF(WOP="Yes",Calculation!H43,"NA") -> NA
B25: Critical Illness and Disability Rider - Rider Premium Payment Term and Rider Term | E25: =IF(Input!I24="No","NA",CI_PPT&" Pay "&Input!I25) -> NA | G25: Critical Illness and Disability Rider - Coverage Variant | J25: =IF(Input!I24="No","NA",Input!I26) -> NA
G26: Critical Illness and Disability Rider - Rider Sum Assured | J26: =IF(Input!I24="No","NA",Input!I27) -> NA
B28: Premium Summary
D29: Base Plan | E29: Accidental Death & Dismemberment Rider | F29: Term Plus Rider | G29: Waiver of Premium Plus Rider | I29: Critical Illness and Disability Rider | J29: Total Installment Premium
B30: Installment Premium without GST (in Rs.) | D30: =ROUND(Calculation!E23+(Calculation!C48/Prem_Freq)+(Calculation!D48/Prem_Freq),0) -> 5000 | E30: =IF(ADD="Yes",ROUND(Calculation!E48/Prem_Freq,0),0) -> 0 | F30: =IF(Term_Plus="Yes",ROUND(Calculation!F48/Prem_Freq,0),0) -> 0 | G30: =IF(WOP="Yes",ROUND(Calculation!G48/Prem_Freq,0),0) -> 0 | I30: =IF(Input!I24="Yes",ROUND(Calculation!H48/Prem_Freq,0),0) -> 0 | J30: =D30+E30+F30+G30+H30+I30 -> 5000
B31: Installment Premium with first year GST (in Rs.) | D31: =ROUND(D30*(1+First_Yr_ST),0) -> 5000 | E31: =ROUND(E30*(1+Rider_ST),0) -> 0 | F31: =ROUND(F30*(1+Rider_ST),0) -> 0 | G31: =ROUND(G30*(1+Rider_ST),0) -> 0 | I31: =ROUND(I30*(1+Rider_ST),0) -> 0 | J31: =D31+E31+F31+G31+H31+I31 -> 5000
B32: Installment Premium with GST 2nd year onwards (in Rs.) | D32: =IF(PPT=1,"NA",ROUND(((Calculation!E23)+(Calculation!C48/Prem_Freq)+(Calculation!D48/Prem_Freq))*(1+Ren_Yr_ST),0)) -> 5000 | E32: =ROUND(E30*(1+Rider_ST_2nd),0) -> 0 | F32: =ROUND(F30*(1+Rider_ST_2nd),0) -> 0 | G32: =ROUND(G30*(1+Rider_ST_2nd),0) -> 0 | I32: =ROUND(I30*(1+Rider_ST_2nd),0) -> 0 | J32: =IF(PPT=1,0,D32)+E32+F32+G32+H32+I32 -> 5000
B34: Net Rate of Return : | C34: =ROUND(IRR!L2,4) -> 0.0564
B35: (Amount in Rupees)
B36: Policy Year | C36: Single/Annualized Premium (BOY) | D36: Total Annual Premium (BOY) | E36: Guaranteed | K36: Non Guaranteed
E37: Accrued Guaranteed Additions (if any) (EOY) | F37: Other Benefits, if any (Guaranteed Sum Assured at Maturity) (EOY) | G37: Total Maturity Benefit (EOY) | H37: =IF(Cover_Option="Joint Life","Death Benefit (On the first death of the insured lives) (BOY) ","") ->  | I37: =IF(Cover_Option="Joint Life"," Death Benefit (On the death of last surviving insured life) (BOY) ","Death Benefit (BOY)") -> Death Benefit (BOY) | J37: =IF(Input!I13<'Validation Sheet'!X5,"Min ","")&"Guaranteed Surrender value"&IF(Xinput_eDC>='Validation Sheet'!$X$7,," (EOY)") -> Guaranteed Surrender value | K37: Special surrender value (EOY) | L37: Surrender Value (EOY)
B38: =Working!A4 -> 1 | C38: =IF(Error=0,IF(B38="","",ROUND(Working!B4,0)),0) -> 5000 | D38: =IF(Error=0,IF(B38="","",ROUND(Working!C4,0)),0) -> 5000 | E38: =IF(Error=0,IF($B38="","",ROUND(Working!D4,0)),0) -> 0 | F38: =IF(Error=0,IF($B38="","",ROUND(Working!E4,0)),0) -> 0 | G38: =IF(Error=0,IF($B38="","",ROUND(Working!F4,0)),0) -> 0 | H38: =IFERROR(IF(Error=0,IF($B38="","",ROUND(Working!G4,0)),0),"") ->  | I38: =IF(Error=0,IF($B38="","",ROUND(Working!H4,0)),0) -> 55000 | J38: =IF(Error=0,IF($B38="","",ROUND(Working!I4,0)),0) -> 0 | K38: =IF(Error=0,IF($B38="","",ROUND(IF(Input!$I$13<'Validation Sheet'!$X$5,Working!J4,Working!U4),0)),0) -> 2676 | L38: =IF(Error=0,IF($B38="","",ROUND(IF(Input!$I$13<'Validation Sheet'!$X$5,MAX(Working!I4,Working!J4),Working!V4),0)),0) -> 2676
B39: =Working!A5 -> 2 | C39: =IF(Error=0,IF(B39="","",ROUND(Working!B5,0)),0) -> 5000 | D39: =IF(Error=0,IF(B39="","",ROUND(Working!C5,0)),0) -> 5000 | E39: =IF(Error=0,IF(B39="","",ROUND(Working!D5,0)),0) -> 0 | F39: =IF(Error=0,IF($B39="","",ROUND(Working!E5,0)),0) -> 0 | G39: =IF(Error=0,IF($B39="","",ROUND(Working!F5,0)),0) -> 0 | H39: =IFERROR(IF(Error=0,IF($B39="","",ROUND(Working!G5,0)),0),"") ->  | I39: =IF(Error=0,IF($B39="","",ROUND(Working!H5,0)),0) -> 55000 | J39: =IF(Error=0,IF($B39="","",ROUND(Working!I5,0)),0) -> 3000 | K39: =IF(Error=0,IF($B39="","",ROUND(IF(Input!$I$13<'Validation Sheet'!$X$5,Working!J5,Working!U5),0)),0) -> 5739 | L39: =IF(Error=0,IF($B39="","",ROUND(IF(Input!$I$13<'Validation Sheet'!$X$5,MAX(Working!I5,Working!J5),Working!V5),0)),0) -> 5739
B40: =Working!A6 -> 3 | C40: =IF(Error=0,IF(B40="","",ROUND(Working!B6,0)),0) -> 5000 | D40: =IF(Error=0,IF(B40="","",ROUND(Working!C6,0)),0) -> 5000 | E40: =IF(Error=0,IF(B40="","",ROUND(Working!D6,0)),0) -> 0 | F40: =IF(Error=0,IF($B40="","",ROUND(Working!E6,0)),0) -> 0 | G40: =IF(Error=0,IF($B40="","",ROUND(Working!F6,0)),0) -> 0 | H40: =IFERROR(IF(Error=0,IF($B40="","",ROUND(Working!G6,0)),0),"") ->  | I40: =IF(Error=0,IF($B40="","",ROUND(Working!H6,0)),0) -> 55000 | J40: =IF(Error=0,IF($B40="","",ROUND(Working!I6,0)),0) -> 5250 | K40: =IF(Error=0,IF($B40="","",ROUND(IF(Input!$I$13<'Validation Sheet'!$X$5,Working!J6,Working!U6),0)),0) -> 9232 | L40: =IF(Error=0,IF($B40="","",ROUND(IF(Input!$I$13<'Validation Sheet'!$X$5,MAX(Working!I6,Working!J6),Working!V6),0)),0) -> 9232
B41: =Working!A7 -> 4 | C41: =IF(Error=0,IF(B41="","",ROUND(Working!B7,0)),0) -> 5000 | D41: =IF(Error=0,IF(B41="","",ROUND(Working!C7,0)),0) -> 5000 | E41: =IF(Error=0,IF(B41="","",ROUND(Working!D7,0)),0) -> 0 | F41: =IF(Error=0,IF($B41="","",ROUND(Working!E7,0)),0) -> 0 | G41: =IF(Error=0,IF($B41="","",ROUND(Working!F7,0)),0) -> 0 | H41: =IFERROR(IF(Error=0,IF($B41="","",ROUND(Working!G7,0)),0),"") ->  | I41: =IF(Error=0,IF($B41="","",ROUND(Working!H7,0)),0) -> 55000 | J41: =IF(Error=0,IF($B41="","",ROUND(Working!I7,0)),0) -> 10000 | K41: =IF(Error=0,IF($B41="","",ROUND(IF(Input!$I$13<'Validation Sheet'!$X$5,Working!J7,Working!U7),0)),0) -> 13199 | L41: =IF(Error=0,IF($B41="","",ROUND(IF(Input!$I$13<'Validation Sheet'!$X$5,MAX(Working!I7,Working!J7),Working!V7),0)),0) -> 13199
B42: =Working!A8 -> 5 | C42: =IF(Error=0,IF(B42="","",ROUND(Working!B8,0)),0) -> 5000 | D42: =IF(Error=0,IF(B42="","",ROUND(Working!C8,0)),0) -> 5000 | E42: =IF(Error=0,IF(B42="","",ROUND(Working!D8,0)),0) -> 0 | F42: =IF(Error=0,IF($B42="","",ROUND(Working!E8,0)),0) -> 0 | G42: =IF(Error=0,IF($B42="","",ROUND(Working!F8,0)),0) -> 0 | H42: =IFERROR(IF(Error=0,IF($B42="","",ROUND(Working!G8,0)),0),"") ->  | I42: =IF(Error=0,IF($B42="","",ROUND(Working!H8,0)),0) -> 55000 | J42: =IF(Error=0,IF($B42="","",ROUND(Working!I8,0)),0) -> 18750 | K42: =IF(Error=0,IF($B42="","",ROUND(IF(Input!$I$13<'Validation Sheet'!$X$5,Working!J8,Working!U8),0)),0) -> 17694 | L42: =IF(Error=0,IF($B42="","",ROUND(IF(Input!$I$13<'Validation Sheet'!$X$5,MAX(Working!I8,Working!J8),Working!V8),0)),0) -> 18750
B43: =Working!A9 -> 6 | C43: =IF(Error=0,IF(B43="","",ROUND(Working!B9,0)),0) -> 5000 | D43: =IF(Error=0,IF(B43="","",ROUND(Working!C9,0)),0) -> 5000 | E43: =IF(Error=0,IF(B43="","",ROUND(Working!D9,0)),0) -> 0 | F43: =IF(Error=0,IF($B43="","",ROUND(Working!E9,0)),0) -> 0 | G43: =IF(Error=0,IF($B43="","",ROUND(Working!F9,0)),0) -> 0 | H43: =IFERROR(IF(Error=0,IF($B43="","",ROUND(Working!G9,0)),0),"") ->  | I43: =IF(Error=0,IF($B43="","",ROUND(Working!H9,0)),0) -> 55000 | J43: =IF(Error=0,IF($B43="","",ROUND(Working!I9,0)),0) -> 30000 | K43: =IF(Error=0,IF($B43="","",ROUND(IF(Input!$I$13<'Validation Sheet'!$X$5,Working!J9,Working!U9),0)),0) -> 22770 | L43: =IF(Error=0,IF($B43="","",ROUND(IF(Input!$I$13<'Validation Sheet'!$X$5,MAX(Working!I9,Working!J9),Working!V9),0)),0) -> 30000
B44: =Working!A10 -> 7 | C44: =IF(Error=0,IF(B44="","",ROUND(Working!B10,0)),0) -> 5000 | D44: =IF(Error=0,IF(B44="","",ROUND(Working!C10,0)),0) -> 5000 | E44: =IF(Error=0,IF(B44="","",ROUND(Working!D10,0)),0) -> 0 | F44: =IF(Error=0,IF($B44="","",ROUND(Working!E10,0)),0) -> 0 | G44: =IF(Error=0,IF($B44="","",ROUND(Working!F10,0)),0) -> 0 | H44: =IFERROR(IF(Error=0,IF($B44="","",ROUND(Working!G10,0)),0),"") ->  | I44: =IF(Error=0,IF($B44="","",ROUND(Working!H10,0)),0) -> 55000 | J44: =IF(Error=0,IF($B44="","",ROUND(Working!I10,0)),0) -> 35000 | K44: =IF(Error=0,IF($B44="","",ROUND(IF(Input!$I$13<'Validation Sheet'!$X$5,Working!J10,Working!U10),0)),0) -> 28488 | L44: =IF(Error=0,IF($B44="","",ROUND(IF(Input!$I$13<'Validation Sheet'!$X$5,MAX(Working!I10,Working!J10),Working!V10),0)),0) -> 35000
B45: =Working!A11 -> 8 | C45: =IF(Error=0,IF(B45="","",ROUND(Working!B11,0)),0) -> 5000 | D45: =IF(Error=0,IF(B45="","",ROUND(Working!C11,0)),0) -> 5000 | E45: =IF(Error=0,IF(B45="","",ROUND(Working!D11,0)),0) -> 0 | F45: =IF(Error=0,IF($B45="","",ROUND(Working!E11,0)),0) -> 0 | G45: =IF(Error=0,IF($B45="","",ROUND(Working!F11,0)),0) -> 0 | H45: =IFERROR(IF(Error=0,IF($B45="","",ROUND(Working!G11,0)),0),"") ->  | I45: =IF(Error=0,IF($B45="","",ROUND(Working!H11,0)),0) -> 55000 | J45: =IF(Error=0,IF($B45="","",ROUND(Working!I11,0)),0) -> 40000 | K45: =IF(Error=0,IF($B45="","",ROUND(IF(Input!$I$13<'Validation Sheet'!$X$5,Working!J11,Working!U11),0)),0) -> 34918 | L45: =IF(Error=0,IF($B45="","",ROUND(IF(Input!$I$13<'Validation Sheet'!$X$5,MAX(Working!I11,Working!J11),Working!V11),0)),0) -> 40000
B46: =Working!A12 -> 9 | C46: =IF(Error=0,IF(B46="","",ROUND(Working!B12,0)),0) -> 5000 | D46: =IF(Error=0,IF(B46="","",ROUND(Working!C12,0)),0) -> 5000 | E46: =IF(Error=0,IF(B46="","",ROUND(Working!D12,0)),0) -> 0 | F46: =IF(Error=0,IF($B46="","",ROUND(Working!E12,0)),0) -> 0 | G46: =IF(Error=0,IF($B46="","",ROUND(Working!F12,0)),0) -> 0 | H46: =IFERROR(IF(Error=0,IF($B46="","",ROUND(Working!G12,0)),0),"") ->  | I46: =IF(Error=0,IF($B46="","",ROUND(Working!H12,0)),0) -> 55000 | J46: =IF(Error=0,IF($B46="","",ROUND(Working!I12,0)),0) -> 45000 | K46: =IF(Error=0,IF($B46="","",ROUND(IF(Input!$I$13<'Validation Sheet'!$X$5,Working!J12,Working!U12),0)),0) -> 42131 | L46: =IF(Error=0,IF($B46="","",ROUND(IF(Input!$I$13<'Validation Sheet'!$X$5,MAX(Working!I12,Working!J12),Working!V12),0)),0) -> 45000
B47: =Working!A13 -> 10 | C47: =IF(Error=0,IF(B47="","",ROUND(Working!B13,0)),0) -> 5000 | D47: =IF(Error=0,IF(B47="","",ROUND(Working!C13,0)),0) -> 5000 | E47: =IF(Error=0,IF(B47="","",ROUND(Working!D13,0)),0) -> 0 | F47: =IF(Error=0,IF($B47="","",ROUND(Working!E13,0)),0) -> 0 | G47: =IF(Error=0,IF($B47="","",ROUND(Working!F13,0)),0) -> 0 | H47: =IFERROR(IF(Error=0,IF($B47="","",ROUND(Working!G13,0)),0),"") ->  | I47: =IF(Error=0,IF($B47="","",ROUND(Working!H13,0)),0) -> 55000 | J47: =IF(Error=0,IF($B47="","",ROUND(Working!I13,0)),0) -> 50000 | K47: =IF(Error=0,IF($B47="","",ROUND(IF(Input!$I$13<'Validation Sheet'!$X$5,Working!J13,Working!U13),0)),0) -> 50207 | L47: =IF(Error=0,IF($B47="","",ROUND(IF(Input!$I$13<'Validation Sheet'!$X$5,MAX(Working!I13,Working!J13),Working!V13),0)),0) -> 50207
B48: =Working!A14 -> 11 | C48: =IF(Error=0,IF(B48="","",ROUND(Working!B14,0)),0) -> 0 | D48: =IF(Error=0,IF(B48="","",ROUND(Working!C14,0)),0) -> 0 | E48: =IF(Error=0,IF(B48="","",ROUND(Working!D14,0)),0) -> 0 | F48: =IF(Error=0,IF($B48="","",ROUND(Working!E14,0)),0) -> 0 | G48: =IF(Error=0,IF($B48="","",ROUND(Working!F14,0)),0) -> 0 | H48: =IFERROR(IF(Error=0,IF($B48="","",ROUND(Working!G14,0)),0),"") ->  | I48: =IF(Error=0,IF($B48="","",ROUND(Working!H14,0)),0) -> 55000 | J48: =IF(Error=0,IF($B48="","",ROUND(Working!I14,0)),0) -> 50000 | K48: =IF(Error=0,IF($B48="","",ROUND(IF(Input!$I$13<'Validation Sheet'!$X$5,Working!J14,Working!U14),0)),0) -> 53854 | L48: =IF(Error=0,IF($B48="","",ROUND(IF(Input!$I$13<'Validation Sheet'!$X$5,MAX(Working!I14,Working!J14),Working!V14),0)),0) -> 53854
B49: =Working!A15 -> 12 | C49: =IF(Error=0,IF(B49="","",ROUND(Working!B15,0)),0) -> 0 | D49: =IF(Error=0,IF(B49="","",ROUND(Working!C15,0)),0) -> 0 | E49: =IF(Error=0,IF(B49="","",ROUND(Working!D15,0)),0) -> 0 | F49: =IF(Error=0,IF($B49="","",ROUND(Working!E15,0)),0) -> 0 | G49: =IF(Error=0,IF($B49="","",ROUND(Working!F15,0)),0) -> 0 | H49: =IFERROR(IF(Error=0,IF($B49="","",ROUND(Working!G15,0)),0),"") ->  | I49: =IF(Error=0,IF($B49="","",ROUND(Working!H15,0)),0) -> 57764 | J49: =IF(Error=0,IF($B49="","",ROUND(Working!I15,0)),0) -> 50000 | K49: =IF(Error=0,IF($B49="","",ROUND(IF(Input!$I$13<'Validation Sheet'!$X$5,Working!J15,Working!U15),0)),0) -> 57764 | L49: =IF(Error=0,IF($B49="","",ROUND(IF(Input!$I$13<'Validation Sheet'!$X$5,MAX(Working!I15,Working!J15),Working!V15),0)),0) -> 57764
B50: =Working!A16 -> 13 | C50: =IF(Error=0,IF(B50="","",ROUND(Working!B16,0)),0) -> 0 | D50: =IF(Error=0,IF(B50="","",ROUND(Working!C16,0)),0) -> 0 | E50: =IF(Error=0,IF(B50="","",ROUND(Working!D16,0)),0) -> 0 | F50: =IF(Error=0,IF($B50="","",ROUND(Working!E16,0)),0) -> 0 | G50: =IF(Error=0,IF($B50="","",ROUND(Working!F16,0)),0) -> 0 | H50: =IFERROR(IF(Error=0,IF($B50="","",ROUND(Working!G16,0)),0),"") ->  | I50: =IF(Error=0,IF($B50="","",ROUND(Working!H16,0)),0) -> 61964 | J50: =IF(Error=0,IF($B50="","",ROUND(Working!I16,0)),0) -> 50000 | K50: =IF(Error=0,IF($B50="","",ROUND(IF(Input!$I$13<'Validation Sheet'!$X$5,Working!J16,Working!U16),0)),0) -> 61964 | L50: =IF(Error=0,IF($B50="","",ROUND(IF(Input!$I$13<'Validation Sheet'!$X$5,MAX(Working!I16,Working!J16),Working!V16),0)),0) -> 61964
B51: =Working!A17 -> 14 | C51: =IF(Error=0,IF(B51="","",ROUND(Working!B17,0)),0) -> 0 | D51: =IF(Error=0,IF(B51="","",ROUND(Working!C17,0)),0) -> 0 | E51: =IF(Error=0,IF(B51="","",ROUND(Working!D17,0)),0) -> 0 | F51: =IF(Error=0,IF($B51="","",ROUND(Working!E17,0)),0) -> 0 | G51: =IF(Error=0,IF($B51="","",ROUND(Working!F17,0)),0) -> 0 | H51: =IFERROR(IF(Error=0,IF($B51="","",ROUND(Working!G17,0)),0),"") ->  | I51: =IF(Error=0,IF($B51="","",ROUND(Working!H17,0)),0) -> 66469 | J51: =IF(Error=0,IF($B51="","",ROUND(Working!I17,0)),0) -> 50000 | K51: =IF(Error=0,IF($B51="","",ROUND(IF(Input!$I$13<'Validation Sheet'!$X$5,Working!J17,Working!U17),0)),0) -> 66469 | L51: =IF(Error=0,IF($B51="","",ROUND(IF(Input!$I$13<'Validation Sheet'!$X$5,MAX(Working!I17,Working!J17),Working!V17),0)),0) -> 66469
B52: =Working!A18 -> 15 | C52: =IF(Error=0,IF(B52="","",ROUND(Working!B18,0)),0) -> 0 | D52: =IF(Error=0,IF(B52="","",ROUND(Working!C18,0)),0) -> 0 | E52: =IF(Error=0,IF(B52="","",ROUND(Working!D18,0)),0) -> 0 | F52: =IF(Error=0,IF($B52="","",ROUND(Working!E18,0)),0) -> 0 | G52: =IF(Error=0,IF($B52="","",ROUND(Working!F18,0)),0) -> 0 | H52: =IFERROR(IF(Error=0,IF($B52="","",ROUND(Working!G18,0)),0),"") ->  | I52: =IF(Error=0,IF($B52="","",ROUND(Working!H18,0)),0) -> 71306 | J52: =IF(Error=0,IF($B52="","",ROUND(Working!I18,0)),0) -> 50000 | K52: =IF(Error=0,IF($B52="","",ROUND(IF(Input!$I$13<'Validation Sheet'!$X$5,Working!J18,Working!U18),0)),0) -> 71306 | L52: =IF(Error=0,IF($B52="","",ROUND(IF(Input!$I$13<'Validation Sheet'!$X$5,MAX(Working!I18,Working!J18),Working!V18),0)),0) -> 71306
B53: =Working!A19 -> 16 | C53: =IF(Error=0,IF(B53="","",ROUND(Working!B19,0)),0) -> 0 | D53: =IF(Error=0,IF(B53="","",ROUND(Working!C19,0)),0) -> 0 | E53: =IF(Error=0,IF(B53="","",ROUND(Working!D19,0)),0) -> 0 | F53: =IF(Error=0,IF($B53="","",ROUND(Working!E19,0)),0) -> 0 | G53: =IF(Error=0,IF($B53="","",ROUND(Working!F19,0)),0) -> 0 | H53: =IFERROR(IF(Error=0,IF($B53="","",ROUND(Working!G19,0)),0),"") ->  | I53: =IF(Error=0,IF($B53="","",ROUND(Working!H19,0)),0) -> 76496 | J53: =IF(Error=0,IF($B53="","",ROUND(Working!I19,0)),0) -> 50000 | K53: =IF(Error=0,IF($B53="","",ROUND(IF(Input!$I$13<'Validation Sheet'!$X$5,Working!J19,Working!U19),0)),0) -> 76496 | L53: =IF(Error=0,IF($B53="","",ROUND(IF(Input!$I$13<'Validation Sheet'!$X$5,MAX(Working!I19,Working!J19),Working!V19),0)),0) -> 76496
B54: =Working!A20 -> 17 | C54: =IF(Error=0,IF(B54="","",ROUND(Working!B20,0)),0) -> 0 | D54: =IF(Error=0,IF(B54="","",ROUND(Working!C20,0)),0) -> 0 | E54: =IF(Error=0,IF(B54="","",ROUND(Working!D20,0)),0) -> 0 | F54: =IF(Error=0,IF($B54="","",ROUND(Working!E20,0)),0) -> 0 | G54: =IF(Error=0,IF($B54="","",ROUND(Working!F20,0)),0) -> 0 | H54: =IFERROR(IF(Error=0,IF($B54="","",ROUND(Working!G20,0)),0),"") ->  | I54: =IF(Error=0,IF($B54="","",ROUND(Working!H20,0)),0) -> 82067 | J54: =IF(Error=0,IF($B54="","",ROUND(Working!I20,0)),0) -> 50000 | K54: =IF(Error=0,IF($B54="","",ROUND(IF(Input!$I$13<'Validation Sheet'!$X$5,Working!J20,Working!U20),0)),0) -> 82067 | L54: =IF(Error=0,IF($B54="","",ROUND(IF(Input!$I$13<'Validation Sheet'!$X$5,MAX(Working!I20,Working!J20),Working!V20),0)),0) -> 82067
B55: =Working!A21 -> 18 | C55: =IF(Error=0,IF(B55="","",ROUND(Working!B21,0)),0) -> 0 | D55: =IF(Error=0,IF(B55="","",ROUND(Working!C21,0)),0) -> 0 | E55: =IF(Error=0,IF(B55="","",ROUND(Working!D21,0)),0) -> 0 | F55: =IF(Error=0,IF($B55="","",ROUND(Working!E21,0)),0) -> 0 | G55: =IF(Error=0,IF($B55="","",ROUND(Working!F21,0)),0) -> 0 | H55: =IFERROR(IF(Error=0,IF($B55="","",ROUND(Working!G21,0)),0),"") ->  | I55: =IF(Error=0,IF($B55="","",ROUND(Working!H21,0)),0) -> 88045 | J55: =IF(Error=0,IF($B55="","",ROUND(Working!I21,0)),0) -> 50000 | K55: =IF(Error=0,IF($B55="","",ROUND(IF(Input!$I$13<'Validation Sheet'!$X$5,Working!J21,Working!U21),0)),0) -> 88045 | L55: =IF(Error=0,IF($B55="","",ROUND(IF(Input!$I$13<'Validation Sheet'!$X$5,MAX(Working!I21,Working!J21),Working!V21),0)),0) -> 88045
B56: =Working!A22 -> 19 | C56: =IF(Error=0,IF(B56="","",ROUND(Working!B22,0)),0) -> 0 | D56: =IF(Error=0,IF(B56="","",ROUND(Working!C22,0)),0) -> 0 | E56: =IF(Error=0,IF(B56="","",ROUND(Working!D22,0)),0) -> 0 | F56: =IF(Error=0,IF($B56="","",ROUND(Working!E22,0)),0) -> 0 | G56: =IF(Error=0,IF($B56="","",ROUND(Working!F22,0)),0) -> 0 | H56: =IFERROR(IF(Error=0,IF($B56="","",ROUND(Working!G22,0)),0),"") ->  | I56: =IF(Error=0,IF($B56="","",ROUND(Working!H22,0)),0) -> 94462 | J56: =IF(Error=0,IF($B56="","",ROUND(Working!I22,0)),0) -> 50000 | K56: =IF(Error=0,IF($B56="","",ROUND(IF(Input!$I$13<'Validation Sheet'!$X$5,Working!J22,Working!U22),0)),0) -> 94462 | L56: =IF(Error=0,IF($B56="","",ROUND(IF(Input!$I$13<'Validation Sheet'!$X$5,MAX(Working!I22,Working!J22),Working!V22),0)),0) -> 94462
B57: =Working!A23 -> 20 | C57: =IF(Error=0,IF(B57="","",ROUND(Working!B23,0)),0) -> 0 | D57: =IF(Error=0,IF(B57="","",ROUND(Working!C23,0)),0) -> 0 | E57: =IF(Error=0,IF(B57="","",ROUND(Working!D23,0)),0) -> 0 | F57: =IF(Error=0,IF($B57="","",ROUND(Working!E23,0)),0) -> 0 | G57: =IF(Error=0,IF($B57="","",ROUND(Working!F23,0)),0) -> 0 | H57: =IFERROR(IF(Error=0,IF($B57="","",ROUND(Working!G23,0)),0),"") ->  | I57: =IF(Error=0,IF($B57="","",ROUND(Working!H23,0)),0) -> 101348 | J57: =IF(Error=0,IF($B57="","",ROUND(Working!I23,0)),0) -> 50000 | K57: =IF(Error=0,IF($B57="","",ROUND(IF(Input!$I$13<'Validation Sheet'!$X$5,Working!J23,Working!U23),0)),0) -> 101348 | L57: =IF(Error=0,IF($B57="","",ROUND(IF(Input!$I$13<'Validation Sheet'!$X$5,MAX(Working!I23,Working!J23),Working!V23),0)),0) -> 101348
B58: =Working!A24 -> 21 | C58: =IF(Error=0,IF(B58="","",ROUND(Working!B24,0)),0) -> 0 | D58: =IF(Error=0,IF(B58="","",ROUND(Working!C24,0)),0) -> 0 | E58: =IF(Error=0,IF(B58="","",ROUND(Working!D24,0)),0) -> 0 | F58: =IF(Error=0,IF($B58="","",ROUND(Working!E24,0)),0) -> 0 | G58: =IF(Error=0,IF($B58="","",ROUND(Working!F24,0)),0) -> 0 | H58: =IFERROR(IF(Error=0,IF($B58="","",ROUND(Working!G24,0)),0),"") ->  | I58: =IF(Error=0,IF($B58="","",ROUND(Working!H24,0)),0) -> 108741 | J58: =IF(Error=0,IF($B58="","",ROUND(Working!I24,0)),0) -> 50000 | K58: =IF(Error=0,IF($B58="","",ROUND(IF(Input!$I$13<'Validation Sheet'!$X$5,Working!J24,Working!U24),0)),0) -> 108741 | L58: =IF(Error=0,IF($B58="","",ROUND(IF(Input!$I$13<'Validation Sheet'!$X$5,MAX(Working!I24,Working!J24),Working!V24),0)),0) -> 108741
B59: =Working!A25 -> 22 | C59: =IF(Error=0,IF(B59="","",ROUND(Working!B25,0)),0) -> 0 | D59: =IF(Error=0,IF(B59="","",ROUND(Working!C25,0)),0) -> 0 | E59: =IF(Error=0,IF(B59="","",ROUND(Working!D25,0)),0) -> 0 | F59: =IF(Error=0,IF($B59="","",ROUND(Working!E25,0)),0) -> 0 | G59: =IF(Error=0,IF($B59="","",ROUND(Working!F25,0)),0) -> 0 | H59: =IFERROR(IF(Error=0,IF($B59="","",ROUND(Working!G25,0)),0),"") ->  | I59: =IF(Error=0,IF($B59="","",ROUND(Working!H25,0)),0) -> 116675 | J59: =IF(Error=0,IF($B59="","",ROUND(Working!I25,0)),0) -> 50000 | K59: =IF(Error=0,IF($B59="","",ROUND(IF(Input!$I$13<'Validation Sheet'!$X$5,Working!J25,Working!U25),0)),0) -> 116675 | L59: =IF(Error=0,IF($B59="","",ROUND(IF(Input!$I$13<'Validation Sheet'!$X$5,MAX(Working!I25,Working!J25),Working!V25),0)),0) -> 116675
B60: =Working!A26 -> 23 | C60: =IF(Error=0,IF(B60="","",ROUND(Working!B26,0)),0) -> 0 | D60: =IF(Error=0,IF(B60="","",ROUND(Working!C26,0)),0) -> 0 | E60: =IF(Error=0,IF(B60="","",ROUND(Working!D26,0)),0) -> 0 | F60: =IF(Error=0,IF($B60="","",ROUND(Working!E26,0)),0) -> 0 | G60: =IF(Error=0,IF($B60="","",ROUND(Working!F26,0)),0) -> 0 | H60: =IFERROR(IF(Error=0,IF($B60="","",ROUND(Working!G26,0)),0),"") ->  | I60: =IF(Error=0,IF($B60="","",ROUND(Working!H26,0)),0) -> 125195 | J60: =IF(Error=0,IF($B60="","",ROUND(Working!I26,0)),0) -> 50000 | K60: =IF(Error=0,IF($B60="","",ROUND(IF(Input!$I$13<'Validation Sheet'!$X$5,Working!J26,Working!U26),0)),0) -> 125195 | L60: =IF(Error=0,IF($B60="","",ROUND(IF(Input!$I$13<'Validation Sheet'!$X$5,MAX(Working!I26,Working!J26),Working!V26),0)),0) -> 125195
B61: =Working!A27 -> 24 | C61: =IF(Error=0,IF(B61="","",ROUND(Working!B27,0)),0) -> 0 | D61: =IF(Error=0,IF(B61="","",ROUND(Working!C27,0)),0) -> 0 | E61: =IF(Error=0,IF(B61="","",ROUND(Working!D27,0)),0) -> 0 | F61: =IF(Error=0,IF($B61="","",ROUND(Working!E27,0)),0) -> 0 | G61: =IF(Error=0,IF($B61="","",ROUND(Working!F27,0)),0) -> 0 | H61: =IFERROR(IF(Error=0,IF($B61="","",ROUND(Working!G27,0)),0),"") ->  | I61: =IF(Error=0,IF($B61="","",ROUND(Working!H27,0)),0) -> 134340 | J61: =IF(Error=0,IF($B61="","",ROUND(Working!I27,0)),0) -> 50000 | K61: =IF(Error=0,IF($B61="","",ROUND(IF(Input!$I$13<'Validation Sheet'!$X$5,Working!J27,Working!U27),0)),0) -> 134340 | L61: =IF(Error=0,IF($B61="","",ROUND(IF(Input!$I$13<'Validation Sheet'!$X$5,MAX(Working!I27,Working!J27),Working!V27),0)),0) -> 134340
B62: =Working!A28 -> 25 | C62: =IF(Error=0,IF(B62="","",ROUND(Working!B28,0)),0) -> 0 | D62: =IF(Error=0,IF(B62="","",ROUND(Working!C28,0)),0) -> 0 | E62: =IF(Error=0,IF(B62="","",ROUND(Working!D28,0)),0) -> 0 | F62: =IF(Error=0,IF($B62="","",ROUND(Working!E28,0)),0) -> 0 | G62: =IF(Error=0,IF($B62="","",ROUND(Working!F28,0)),0) -> 0 | H62: =IFERROR(IF(Error=0,IF($B62="","",ROUND(Working!G28,0)),0),"") ->  | I62: =IF(Error=0,IF($B62="","",ROUND(Working!H28,0)),0) -> 144158 | J62: =IF(Error=0,IF($B62="","",ROUND(Working!I28,0)),0) -> 50000 | K62: =IF(Error=0,IF($B62="","",ROUND(IF(Input!$I$13<'Validation Sheet'!$X$5,Working!J28,Working!U28),0)),0) -> 144158 | L62: =IF(Error=0,IF($B62="","",ROUND(IF(Input!$I$13<'Validation Sheet'!$X$5,MAX(Working!I28,Working!J28),Working!V28),0)),0) -> 144158
B63: =Working!A29 -> 26 | C63: =IF(Error=0,IF(B63="","",ROUND(Working!B29,0)),0) -> 0 | D63: =IF(Error=0,IF(B63="","",ROUND(Working!C29,0)),0) -> 0 | E63: =IF(Error=0,IF(B63="","",ROUND(Working!D29,0)),0) -> 0 | F63: =IF(Error=0,IF($B63="","",ROUND(Working!E29,0)),0) -> 0 | G63: =IF(Error=0,IF($B63="","",ROUND(Working!F29,0)),0) -> 0 | H63: =IFERROR(IF(Error=0,IF($B63="","",ROUND(Working!G29,0)),0),"") ->  | I63: =IF(Error=0,IF($B63="","",ROUND(Working!H29,0)),0) -> 154703 | J63: =IF(Error=0,IF($B63="","",ROUND(Working!I29,0)),0) -> 50000 | K63: =IF(Error=0,IF($B63="","",ROUND(IF(Input!$I$13<'Validation Sheet'!$X$5,Working!J29,Working!U29),0)),0) -> 154703 | L63: =IF(Error=0,IF($B63="","",ROUND(IF(Input!$I$13<'Validation Sheet'!$X$5,MAX(Working!I29,Working!J29),Working!V29),0)),0) -> 154703
B64: =Working!A30 -> 27 | C64: =IF(Error=0,IF(B64="","",ROUND(Working!B30,0)),0) -> 0 | D64: =IF(Error=0,IF(B64="","",ROUND(Working!C30,0)),0) -> 0 | E64: =IF(Error=0,IF(B64="","",ROUND(Working!D30,0)),0) -> 0 | F64: =IF(Error=0,IF($B64="","",ROUND(Working!E30,0)),0) -> 0 | G64: =IF(Error=0,IF($B64="","",ROUND(Working!F30,0)),0) -> 0 | H64: =IFERROR(IF(Error=0,IF($B64="","",ROUND(Working!G30,0)),0),"") ->  | I64: =IF(Error=0,IF($B64="","",ROUND(Working!H30,0)),0) -> 166027 | J64: =IF(Error=0,IF($B64="","",ROUND(Working!I30,0)),0) -> 50000 | K64: =IF(Error=0,IF($B64="","",ROUND(IF(Input!$I$13<'Validation Sheet'!$X$5,Working!J30,Working!U30),0)),0) -> 166027 | L64: =IF(Error=0,IF($B64="","",ROUND(IF(Input!$I$13<'Validation Sheet'!$X$5,MAX(Working!I30,Working!J30),Working!V30),0)),0) -> 166027
B65: =Working!A31 -> 28 | C65: =IF(Error=0,IF(B65="","",ROUND(Working!B31,0)),0) -> 0 | D65: =IF(Error=0,IF(B65="","",ROUND(Working!C31,0)),0) -> 0 | E65: =IF(Error=0,IF(B65="","",ROUND(Working!D31,0)),0) -> 0 | F65: =IF(Error=0,IF($B65="","",ROUND(Working!E31,0)),0) -> 0 | G65: =IF(Error=0,IF($B65="","",ROUND(Working!F31,0)),0) -> 0 | H65: =IFERROR(IF(Error=0,IF($B65="","",ROUND(Working!G31,0)),0),"") ->  | I65: =IF(Error=0,IF($B65="","",ROUND(Working!H31,0)),0) -> 178187 | J65: =IF(Error=0,IF($B65="","",ROUND(Working!I31,0)),0) -> 50000 | K65: =IF(Error=0,IF($B65="","",ROUND(IF(Input!$I$13<'Validation Sheet'!$X$5,Working!J31,Working!U31),0)),0) -> 178187 | L65: =IF(Error=0,IF($B65="","",ROUND(IF(Input!$I$13<'Validation Sheet'!$X$5,MAX(Working!I31,Working!J31),Working!V31),0)),0) -> 178187
B66: =Working!A32 -> 29 | C66: =IF(Error=0,IF(B66="","",ROUND(Working!B32,0)),0) -> 0 | D66: =IF(Error=0,IF(B66="","",ROUND(Working!C32,0)),0) -> 0 | E66: =IF(Error=0,IF(B66="","",ROUND(Working!D32,0)),0) -> 0 | F66: =IF(Error=0,IF($B66="","",ROUND(Working!E32,0)),0) -> 0 | G66: =IF(Error=0,IF($B66="","",ROUND(Working!F32,0)),0) -> 0 | H66: =IFERROR(IF(Error=0,IF($B66="","",ROUND(Working!G32,0)),0),"") ->  | I66: =IF(Error=0,IF($B66="","",ROUND(Working!H32,0)),0) -> 191253 | J66: =IF(Error=0,IF($B66="","",ROUND(Working!I32,0)),0) -> 50000 | K66: =IF(Error=0,IF($B66="","",ROUND(IF(Input!$I$13<'Validation Sheet'!$X$5,Working!J32,Working!U32),0)),0) -> 191253 | L66: =IF(Error=0,IF($B66="","",ROUND(IF(Input!$I$13<'Validation Sheet'!$X$5,MAX(Working!I32,Working!J32),Working!V32),0)),0) -> 191253
B67: =Working!A33 -> 30 | C67: =IF(Error=0,IF(B67="","",ROUND(Working!B33,0)),0) -> 0 | D67: =IF(Error=0,IF(B67="","",ROUND(Working!C33,0)),0) -> 0 | E67: =IF(Error=0,IF(B67="","",ROUND(Working!D33,0)),0) -> 0 | F67: =IF(Error=0,IF($B67="","",ROUND(Working!E33,0)),0) -> 205289 | G67: =IF(Error=0,IF($B67="","",ROUND(Working!F33,0)),0) -> 205289 | H67: =IFERROR(IF(Error=0,IF($B67="","",ROUND(Working!G33,0)),0),"") ->  | I67: =IF(Error=0,IF($B67="","",ROUND(Working!H33,0)),0) -> 205289 | J67: =IF(Error=0,IF($B67="","",ROUND(Working!I33,0)),0) -> 50000 | K67: =IF(Error=0,IF($B67="","",ROUND(IF(Input!$I$13<'Validation Sheet'!$X$5,Working!J33,Working!U33),0)),0) -> 205289 | L67: =IF(Error=0,IF($B67="","",ROUND(IF(Input!$I$13<'Validation Sheet'!$X$5,MAX(Working!I33,Working!J33),Working!V33),0)),0) -> 205289
B68: =Working!A34 ->  | C68: =IF(Error=0,IF(B68="","",ROUND(Working!B34,0)),0) ->  | D68: =IF(Error=0,IF(B68="","",ROUND(Working!C34,0)),0) ->  | E68: =IF(Error=0,IF(B68="","",ROUND(Working!D34,0)),0) ->  | F68: =IF(Error=0,IF($B68="","",ROUND(Working!E34,0)),0) ->  | G68: =IF(Error=0,IF($B68="","",ROUND(Working!F34,0)),0) ->  | H68: =IFERROR(IF(Error=0,IF($B68="","",ROUND(Working!G34,0)),0),"") ->  | I68: =IF(Error=0,IF($B68="","",ROUND(Working!H34,0)),0) ->  | J68: =IF(Error=0,IF($B68="","",ROUND(Working!I34,0)),0) ->  | K68: =IF(Error=0,IF($B68="","",ROUND(IF(Input!$I$13<'Validation Sheet'!$X$5,Working!J34,Working!U34),0)),0) ->  | L68: =IF(Error=0,IF($B68="","",ROUND(IF(Input!$I$13<'Validation Sheet'!$X$5,MAX(Working!I34,Working!J34),Working!V34),0)),0) -> 
B69: =Working!A35 ->  | C69: =IF(Error=0,IF(B69="","",ROUND(Working!B35,0)),0) ->  | D69: =IF(Error=0,IF(B69="","",ROUND(Working!C35,0)),0) ->  | E69: =IF(Error=0,IF(B69="","",ROUND(Working!D35,0)),0) ->  | F69: =IF(Error=0,IF($B69="","",ROUND(Working!E35,0)),0) ->  | G69: =IF(Error=0,IF($B69="","",ROUND(Working!F35,0)),0) ->  | H69: =IFERROR(IF(Error=0,IF($B69="","",ROUND(Working!G35,0)),0),"") ->  | I69: =IF(Error=0,IF($B69="","",ROUND(Working!H35,0)),0) ->  | J69: =IF(Error=0,IF($B69="","",ROUND(Working!I35,0)),0) ->  | K69: =IF(Error=0,IF($B69="","",ROUND(IF(Input!$I$13<'Validation Sheet'!$X$5,Working!J35,Working!U35),0)),0) ->  | L69: =IF(Error=0,IF($B69="","",ROUND(IF(Input!$I$13<'Validation Sheet'!$X$5,MAX(Working!I35,Working!J35),Working!V35),0)),0) -> 
B70: =Working!A36 ->  | C70: =IF(Error=0,IF(B70="","",ROUND(Working!B36,0)),0) ->  | D70: =IF(Error=0,IF(B70="","",ROUND(Working!C36,0)),0) ->  | E70: =IF(Error=0,IF(B70="","",ROUND(Working!D36,0)),0) ->  | F70: =IF(Error=0,IF($B70="","",ROUND(Working!E36,0)),0) ->  | G70: =IF(Error=0,IF($B70="","",ROUND(Working!F36,0)),0) ->  | H70: =IFERROR(IF(Error=0,IF($B70="","",ROUND(Working!G36,0)),0),"") ->  | I70: =IF(Error=0,IF($B70="","",ROUND(Working!H36,0)),0) ->  | J70: =IF(Error=0,IF($B70="","",ROUND(Working!I36,0)),0) ->  | K70: =IF(Error=0,IF($B70="","",ROUND(IF(Input!$I$13<'Validation Sheet'!$X$5,Working!J36,Working!U36),0)),0) ->  | L70: =IF(Error=0,IF($B70="","",ROUND(IF(Input!$I$13<'Validation Sheet'!$X$5,MAX(Working!I36,Working!J36),Working!V36),0)),0) -> 
B71: =Working!A37 ->  | C71: =IF(Error=0,IF(B71="","",ROUND(Working!B37,0)),0) ->  | D71: =IF(Error=0,IF(B71="","",ROUND(Working!C37,0)),0) ->  | E71: =IF(Error=0,IF(B71="","",ROUND(Working!D37,0)),0) ->  | F71: =IF(Error=0,IF($B71="","",ROUND(Working!E37,0)),0) ->  | G71: =IF(Error=0,IF($B71="","",ROUND(Working!F37,0)),0) ->  | H71: =IFERROR(IF(Error=0,IF($B71="","",ROUND(Working!G37,0)),0),"") ->  | I71: =IF(Error=0,IF($B71="","",ROUND(Working!H37,0)),0) ->  | J71: =IF(Error=0,IF($B71="","",ROUND(Working!I37,0)),0) ->  | K71: =IF(Error=0,IF($B71="","",ROUND(IF(Input!$I$13<'Validation Sheet'!$X$5,Working!J37,Working!U37),0)),0) ->  | L71: =IF(Error=0,IF($B71="","",ROUND(IF(Input!$I$13<'Validation Sheet'!$X$5,MAX(Working!I37,Working!J37),Working!V37),0)),0) -> 
B72: =Working!A38 ->  | C72: =IF(Error=0,IF(B72="","",ROUND(Working!B38,0)),0) ->  | D72: =IF(Error=0,IF(B72="","",ROUND(Working!C38,0)),0) ->  | E72: =IF(Error=0,IF(B72="","",ROUND(Working!D38,0)),0) ->  | F72: =IF(Error=0,IF($B72="","",ROUND(Working!E38,0)),0) ->  | G72: =IF(Error=0,IF($B72="","",ROUND(Working!F38,0)),0) ->  | H72: =IFERROR(IF(Error=0,IF($B72="","",ROUND(Working!G38,0)),0),"") ->  | I72: =IF(Error=0,IF($B72="","",ROUND(Working!H38,0)),0) ->  | J72: =IF(Error=0,IF($B72="","",ROUND(Working!I38,0)),0) ->  | K72: =IF(Error=0,IF($B72="","",ROUND(IF(Input!$I$13<'Validation Sheet'!$X$5,Working!J38,Working!U38),0)),0) ->  | L72: =IF(Error=0,IF($B72="","",ROUND(IF(Input!$I$13<'Validation Sheet'!$X$5,MAX(Working!I38,Working!J38),Working!V38),0)),0) -> 
B73: =Working!A39 ->  | C73: =IF(Error=0,IF(B73="","",ROUND(Working!B39,0)),0) ->  | D73: =IF(Error=0,IF(B73="","",ROUND(Working!C39,0)),0) ->  | E73: =IF(Error=0,IF(B73="","",ROUND(Working!D39,0)),0) ->  | F73: =IF(Error=0,IF($B73="","",ROUND(Working!E39,0)),0) ->  | G73: =IF(Error=0,IF($B73="","",ROUND(Working!F39,0)),0) ->  | H73: =IFERROR(IF(Error=0,IF($B73="","",ROUND(Working!G39,0)),0),"") ->  | I73: =IF(Error=0,IF($B73="","",ROUND(Working!H39,0)),0) ->  | J73: =IF(Error=0,IF($B73="","",ROUND(Working!I39,0)),0) ->  | K73: =IF(Error=0,IF($B73="","",ROUND(IF(Input!$I$13<'Validation Sheet'!$X$5,Working!J39,Working!U39),0)),0) ->  | L73: =IF(Error=0,IF($B73="","",ROUND(IF(Input!$I$13<'Validation Sheet'!$X$5,MAX(Working!I39,Working!J39),Working!V39),0)),0) -> 
B74: =Working!A40 ->  | C74: =IF(Error=0,IF(B74="","",ROUND(Working!B40,0)),0) ->  | D74: =IF(Error=0,IF(B74="","",ROUND(Working!C40,0)),0) ->  | E74: =IF(Error=0,IF(B74="","",ROUND(Working!D40,0)),0) ->  | F74: =IF(Error=0,IF($B74="","",ROUND(Working!E40,0)),0) ->  | G74: =IF(Error=0,IF($B74="","",ROUND(Working!F40,0)),0) ->  | H74: =IFERROR(IF(Error=0,IF($B74="","",ROUND(Working!G40,0)),0),"") ->  | I74: =IF(Error=0,IF($B74="","",ROUND(Working!H40,0)),0) ->  | J74: =IF(Error=0,IF($B74="","",ROUND(Working!I40,0)),0) ->  | K74: =IF(Error=0,IF($B74="","",ROUND(IF(Input!$I$13<'Validation Sheet'!$X$5,Working!J40,Working!U40),0)),0) ->  | L74: =IF(Error=0,IF($B74="","",ROUND(IF(Input!$I$13<'Validation Sheet'!$X$5,MAX(Working!I40,Working!J40),Working!V40),0)),0) -> 
B75: =Working!A41 ->  | C75: =IF(Error=0,IF(B75="","",ROUND(Working!B41,0)),0) ->  | D75: =IF(Error=0,IF(B75="","",ROUND(Working!C41,0)),0) ->  | E75: =IF(Error=0,IF(B75="","",ROUND(Working!D41,0)),0) ->  | F75: =IF(Error=0,IF($B75="","",ROUND(Working!E41,0)),0) ->  | G75: =IF(Error=0,IF($B75="","",ROUND(Working!F41,0)),0) ->  | H75: =IFERROR(IF(Error=0,IF($B75="","",ROUND(Working!G41,0)),0),"") ->  | I75: =IF(Error=0,IF($B75="","",ROUND(Working!H41,0)),0) ->  | J75: =IF(Error=0,IF($B75="","",ROUND(Working!I41,0)),0) ->  | K75: =IF(Error=0,IF($B75="","",ROUND(IF(Input!$I$13<'Validation Sheet'!$X$5,Working!J41,Working!U41),0)),0) ->  | L75: =IF(Error=0,IF($B75="","",ROUND(IF(Input!$I$13<'Validation Sheet'!$X$5,MAX(Working!I41,Working!J41),Working!V41),0)),0) -> 
B76: =Working!A42 ->  | C76: =IF(Error=0,IF(B76="","",ROUND(Working!B42,0)),0) ->  | D76: =IF(Error=0,IF(B76="","",ROUND(Working!C42,0)),0) ->  | E76: =IF(Error=0,IF(B76="","",ROUND(Working!D42,0)),0) ->  | F76: =IF(Error=0,IF($B76="","",ROUND(Working!E42,0)),0) ->  | G76: =IF(Error=0,IF($B76="","",ROUND(Working!F42,0)),0) ->  | H76: =IFERROR(IF(Error=0,IF($B76="","",ROUND(Working!G42,0)),0),"") ->  | I76: =IF(Error=0,IF($B76="","",ROUND(Working!H42,0)),0) ->  | J76: =IF(Error=0,IF($B76="","",ROUND(Working!I42,0)),0) ->  | K76: =IF(Error=0,IF($B76="","",ROUND(IF(Input!$I$13<'Validation Sheet'!$X$5,Working!J42,Working!U42),0)),0) ->  | L76: =IF(Error=0,IF($B76="","",ROUND(IF(Input!$I$13<'Validation Sheet'!$X$5,MAX(Working!I42,Working!J42),Working!V42),0)),0) -> 
B77: =Working!A43 ->  | C77: =IF(Error=0,IF(B77="","",ROUND(Working!B43,0)),0) ->  | D77: =IF(Error=0,IF(B77="","",ROUND(Working!C43,0)),0) ->  | E77: =IF(Error=0,IF(B77="","",ROUND(Working!D43,0)),0) ->  | F77: =IF(Error=0,IF($B77="","",ROUND(Working!E43,0)),0) ->  | G77: =IF(Error=0,IF($B77="","",ROUND(Working!F43,0)),0) ->  | H77: =IFERROR(IF(Error=0,IF($B77="","",ROUND(Working!G43,0)),0),"") ->  | I77: =IF(Error=0,IF($B77="","",ROUND(Working!H43,0)),0) ->  | J77: =IF(Error=0,IF($B77="","",ROUND(Working!I43,0)),0) ->  | K77: =IF(Error=0,IF($B77="","",ROUND(IF(Input!$I$13<'Validation Sheet'!$X$5,Working!J43,Working!U43),0)),0) ->  | L77: =IF(Error=0,IF($B77="","",ROUND(IF(Input!$I$13<'Validation Sheet'!$X$5,MAX(Working!I43,Working!J43),Working!V43),0)),0) -> 
B78: =Working!A44 ->  | C78: =IF(Error=0,IF(B78="","",ROUND(Working!B44,0)),0) ->  | D78: =IF(Error=0,IF(B78="","",ROUND(Working!C44,0)),0) ->  | E78: =IF(Error=0,IF(B78="","",ROUND(Working!D44,0)),0) ->  | F78: =IF(Error=0,IF($B78="","",ROUND(Working!E44,0)),0) ->  | G78: =IF(Error=0,IF($B78="","",ROUND(Working!F44,0)),0) ->  | H78: =IFERROR(IF(Error=0,IF($B78="","",ROUND(Working!G44,0)),0),"") ->  | I78: =IF(Error=0,IF($B78="","",ROUND(Working!H44,0)),0) ->  | J78: =IF(Error=0,IF($B78="","",ROUND(Working!I44,0)),0) ->  | K78: =IF(Error=0,IF($B78="","",ROUND(IF(Input!$I$13<'Validation Sheet'!$X$5,Working!J44,Working!U44),0)),0) ->  | L78: =IF(Error=0,IF($B78="","",ROUND(IF(Input!$I$13<'Validation Sheet'!$X$5,MAX(Working!I44,Working!J44),Working!V44),0)),0) -> 
B79: =Working!A45 ->  | C79: =IF(Error=0,IF(B79="","",ROUND(Working!B45,0)),0) ->  | D79: =IF(Error=0,IF(B79="","",ROUND(Working!C45,0)),0) ->  | E79: =IF(Error=0,IF(B79="","",ROUND(Working!D45,0)),0) ->  | F79: =IF(Error=0,IF($B79="","",ROUND(Working!E45,0)),0) ->  | G79: =IF(Error=0,IF($B79="","",ROUND(Working!F45,0)),0) ->  | H79: =IFERROR(IF(Error=0,IF($B79="","",ROUND(Working!G45,0)),0),"") ->  | I79: =IF(Error=0,IF($B79="","",ROUND(Working!H45,0)),0) ->  | J79: =IF(Error=0,IF($B79="","",ROUND(Working!I45,0)),0) ->  | K79: =IF(Error=0,IF($B79="","",ROUND(IF(Input!$I$13<'Validation Sheet'!$X$5,Working!J45,Working!U45),0)),0) ->  | L79: =IF(Error=0,IF($B79="","",ROUND(IF(Input!$I$13<'Validation Sheet'!$X$5,MAX(Working!I45,Working!J45),Working!V45),0)),0) -> 
B80: =Working!A46 ->  | C80: =IF(Error=0,IF(B80="","",ROUND(Working!B46,0)),0) ->  | D80: =IF(Error=0,IF(B80="","",ROUND(Working!C46,0)),0) ->  | E80: =IF(Error=0,IF(B80="","",ROUND(Working!D46,0)),0) ->  | F80: =IF(Error=0,IF($B80="","",ROUND(Working!E46,0)),0) ->  | G80: =IF(Error=0,IF($B80="","",ROUND(Working!F46,0)),0) ->  | H80: =IFERROR(IF(Error=0,IF($B80="","",ROUND(Working!G46,0)),0),"") ->  | I80: =IF(Error=0,IF($B80="","",ROUND(Working!H46,0)),0) ->  | J80: =IF(Error=0,IF($B80="","",ROUND(Working!I46,0)),0) ->  | K80: =IF(Error=0,IF($B80="","",ROUND(IF(Input!$I$13<'Validation Sheet'!$X$5,Working!J46,Working!U46),0)),0) ->  | L80: =IF(Error=0,IF($B80="","",ROUND(IF(Input!$I$13<'Validation Sheet'!$X$5,MAX(Working!I46,Working!J46),Working!V46),0)),0) -> 
B81: =Working!A47 ->  | C81: =IF(Error=0,IF(B81="","",ROUND(Working!B47,0)),0) ->  | D81: =IF(Error=0,IF(B81="","",ROUND(Working!C47,0)),0) ->  | E81: =IF(Error=0,IF(B81="","",ROUND(Working!D47,0)),0) ->  | F81: =IF(Error=0,IF($B81="","",ROUND(Working!E47,0)),0) ->  | G81: =IF(Error=0,IF($B81="","",ROUND(Working!F47,0)),0) ->  | H81: =IFERROR(IF(Error=0,IF($B81="","",ROUND(Working!G47,0)),0),"") ->  | I81: =IF(Error=0,IF($B81="","",ROUND(Working!H47,0)),0) ->  | J81: =IF(Error=0,IF($B81="","",ROUND(Working!I47,0)),0) ->  | K81: =IF(Error=0,IF($B81="","",ROUND(IF(Input!$I$13<'Validation Sheet'!$X$5,Working!J47,Working!U47),0)),0) ->  | L81: =IF(Error=0,IF($B81="","",ROUND(IF(Input!$I$13<'Validation Sheet'!$X$5,MAX(Working!I47,Working!J47),Working!V47),0)),0) -> 
B82: =Working!A48 ->  | C82: =IF(Error=0,IF(B82="","",ROUND(Working!B48,0)),0) ->  | D82: =IF(Error=0,IF(B82="","",ROUND(Working!C48,0)),0) ->  | E82: =IF(Error=0,IF(B82="","",ROUND(Working!D48,0)),0) ->  | F82: =IF(Error=0,IF($B82="","",ROUND(Working!E48,0)),0) ->  | G82: =IF(Error=0,IF($B82="","",ROUND(Working!F48,0)),0) ->  | H82: =IFERROR(IF(Error=0,IF($B82="","",ROUND(Working!G48,0)),0),"") ->  | I82: =IF(Error=0,IF($B82="","",ROUND(Working!H48,0)),0) ->  | J82: =IF(Error=0,IF($B82="","",ROUND(Working!I48,0)),0) ->  | K82: =IF(Error=0,IF($B82="","",ROUND(IF(Input!$I$13<'Validation Sheet'!$X$5,Working!J48,Working!U48),0)),0) ->  | L82: =IF(Error=0,IF($B82="","",ROUND(IF(Input!$I$13<'Validation Sheet'!$X$5,MAX(Working!I48,Working!J48),Working!V48),0)),0) -> 
B83: =Working!A49 ->  | C83: =IF(Error=0,IF(B83="","",ROUND(Working!B49,0)),0) ->  | D83: =IF(Error=0,IF(B83="","",ROUND(Working!C49,0)),0) ->  | E83: =IF(Error=0,IF(B83="","",ROUND(Working!D49,0)),0) ->  | F83: =IF(Error=0,IF($B83="","",ROUND(Working!E49,0)),0) ->  | G83: =IF(Error=0,IF($B83="","",ROUND(Working!F49,0)),0) ->  | H83: =IFERROR(IF(Error=0,IF($B83="","",ROUND(Working!G49,0)),0),"") ->  | I83: =IF(Error=0,IF($B83="","",ROUND(Working!H49,0)),0) ->  | J83: =IF(Error=0,IF($B83="","",ROUND(Working!I49,0)),0) ->  | K83: =IF(Error=0,IF($B83="","",ROUND(IF(Input!$I$13<'Validation Sheet'!$X$5,Working!J49,Working!U49),0)),0) ->  | L83: =IF(Error=0,IF($B83="","",ROUND(IF(Input!$I$13<'Validation Sheet'!$X$5,MAX(Working!I49,Working!J49),Working!V49),0)),0) -> 
B84: =Working!A50 ->  | C84: =IF(Error=0,IF(B84="","",ROUND(Working!B50,0)),0) ->  | D84: =IF(Error=0,IF(B84="","",ROUND(Working!C50,0)),0) ->  | E84: =IF(Error=0,IF(B84="","",ROUND(Working!D50,0)),0) ->  | F84: =IF(Error=0,IF($B84="","",ROUND(Working!E50,0)),0) ->  | G84: =IF(Error=0,IF($B84="","",ROUND(Working!F50,0)),0) ->  | H84: =IFERROR(IF(Error=0,IF($B84="","",ROUND(Working!G50,0)),0),"") ->  | I84: =IF(Error=0,IF($B84="","",ROUND(Working!H50,0)),0) ->  | J84: =IF(Error=0,IF($B84="","",ROUND(Working!I50,0)),0) ->  | K84: =IF(Error=0,IF($B84="","",ROUND(IF(Input!$I$13<'Validation Sheet'!$X$5,Working!J50,Working!U50),0)),0) ->  | L84: =IF(Error=0,IF($B84="","",ROUND(IF(Input!$I$13<'Validation Sheet'!$X$5,MAX(Working!I50,Working!J50),Working!V50),0)),0) -> 
B85: =Working!A51 ->  | C85: =IF(Error=0,IF(B85="","",ROUND(Working!B51,0)),0) ->  | D85: =IF(Error=0,IF(B85="","",ROUND(Working!C51,0)),0) ->  | E85: =IF(Error=0,IF(B85="","",ROUND(Working!D51,0)),0) ->  | F85: =IF(Error=0,IF($B85="","",ROUND(Working!E51,0)),0) ->  | G85: =IF(Error=0,IF($B85="","",ROUND(Working!F51,0)),0) ->  | H85: =IFERROR(IF(Error=0,IF($B85="","",ROUND(Working!G51,0)),0),"") ->  | I85: =IF(Error=0,IF($B85="","",ROUND(Working!H51,0)),0) ->  | J85: =IF(Error=0,IF($B85="","",ROUND(Working!I51,0)),0) ->  | K85: =IF(Error=0,IF($B85="","",ROUND(IF(Input!$I$13<'Validation Sheet'!$X$5,Working!J51,Working!U51),0)),0) ->  | L85: =IF(Error=0,IF($B85="","",ROUND(IF(Input!$I$13<'Validation Sheet'!$X$5,MAX(Working!I51,Working!J51),Working!V51),0)),0) -> 
B86: =Working!A52 ->  | C86: =IF(Error=0,IF(B86="","",ROUND(Working!B52,0)),0) ->  | D86: =IF(Error=0,IF(B86="","",ROUND(Working!C52,0)),0) ->  | E86: =IF(Error=0,IF(B86="","",ROUND(Working!D52,0)),0) ->  | F86: =IF(Error=0,IF($B86="","",ROUND(Working!E52,0)),0) ->  | G86: =IF(Error=0,IF($B86="","",ROUND(Working!F52,0)),0) ->  | H86: =IFERROR(IF(Error=0,IF($B86="","",ROUND(Working!G52,0)),0),"") ->  | I86: =IF(Error=0,IF($B86="","",ROUND(Working!H52,0)),0) ->  | J86: =IF(Error=0,IF($B86="","",ROUND(Working!I52,0)),0) ->  | K86: =IF(Error=0,IF($B86="","",ROUND(IF(Input!$I$13<'Validation Sheet'!$X$5,Working!J52,Working!U52),0)),0) ->  | L86: =IF(Error=0,IF($B86="","",ROUND(IF(Input!$I$13<'Validation Sheet'!$X$5,MAX(Working!I52,Working!J52),Working!V52),0)),0) -> 
B87: =Working!A53 ->  | C87: =IF(Error=0,IF(B87="","",ROUND(Working!B53,0)),0) ->  | D87: =IF(Error=0,IF(B87="","",ROUND(Working!C53,0)),0) ->  | E87: =IF(Error=0,IF(B87="","",ROUND(Working!D53,0)),0) ->  | F87: =IF(Error=0,IF($B87="","",ROUND(Working!E53,0)),0) ->  | G87: =IF(Error=0,IF($B87="","",ROUND(Working!F53,0)),0) ->  | H87: =IFERROR(IF(Error=0,IF($B87="","",ROUND(Working!G53,0)),0),"") ->  | I87: =IF(Error=0,IF($B87="","",ROUND(Working!H53,0)),0) ->  | J87: =IF(Error=0,IF($B87="","",ROUND(Working!I53,0)),0) ->  | K87: =IF(Error=0,IF($B87="","",ROUND(IF(Input!$I$13<'Validation Sheet'!$X$5,Working!J53,Working!U53),0)),0) ->  | L87: =IF(Error=0,IF($B87="","",ROUND(IF(Input!$I$13<'Validation Sheet'!$X$5,MAX(Working!I53,Working!J53),Working!V53),0)),0) -> 
B88: =Working!A54 ->  | C88: =IF(Error=0,IF(B88="","",ROUND(Working!B54,0)),0) ->  | D88: =IF(Error=0,IF(B88="","",ROUND(Working!C54,0)),0) ->  | E88: =IF(Error=0,IF(B88="","",ROUND(Working!D54,0)),0) ->  | F88: =IF(Error=0,IF($B88="","",ROUND(Working!E54,0)),0) ->  | G88: =IF(Error=0,IF($B88="","",ROUND(Working!F54,0)),0) ->  | H88: =IFERROR(IF(Error=0,IF($B88="","",ROUND(Working!G54,0)),0),"") ->  | I88: =IF(Error=0,IF($B88="","",ROUND(Working!H54,0)),0) ->  | J88: =IF(Error=0,IF($B88="","",ROUND(Working!I54,0)),0) ->  | K88: =IF(Error=0,IF($B88="","",ROUND(IF(Input!$I$13<'Validation Sheet'!$X$5,Working!J54,Working!U54),0)),0) ->  | L88: =IF(Error=0,IF($B88="","",ROUND(IF(Input!$I$13<'Validation Sheet'!$X$5,MAX(Working!I54,Working!J54),Working!V54),0)),0) -> 
B89: =Working!A55 ->  | C89: =IF(Error=0,IF(B89="","",ROUND(Working!B55,0)),0) ->  | D89: =IF(Error=0,IF(B89="","",ROUND(Working!C55,0)),0) ->  | E89: =IF(Error=0,IF(B89="","",ROUND(Working!D55,0)),0) ->  | F89: =IF(Error=0,IF($B89="","",ROUND(Working!E55,0)),0) ->  | G89: =IF(Error=0,IF($B89="","",ROUND(Working!F55,0)),0) ->  | H89: =IFERROR(IF(Error=0,IF($B89="","",ROUND(Working!G55,0)),0),"") ->  | I89: =IF(Error=0,IF($B89="","",ROUND(Working!H55,0)),0) ->  | J89: =IF(Error=0,IF($B89="","",ROUND(Working!I55,0)),0) ->  | K89: =IF(Error=0,IF($B89="","",ROUND(IF(Input!$I$13<'Validation Sheet'!$X$5,Working!J55,Working!U55),0)),0) ->  | L89: =IF(Error=0,IF($B89="","",ROUND(IF(Input!$I$13<'Validation Sheet'!$X$5,MAX(Working!I55,Working!J55),Working!V55),0)),0) -> 
B90: =Working!A56 ->  | C90: =IF(Error=0,IF(B90="","",ROUND(Working!B56,0)),0) ->  | D90: =IF(Error=0,IF(B90="","",ROUND(Working!C56,0)),0) ->  | E90: =IF(Error=0,IF(B90="","",ROUND(Working!D56,0)),0) ->  | F90: =IF(Error=0,IF($B90="","",ROUND(Working!E56,0)),0) ->  | G90: =IF(Error=0,IF($B90="","",ROUND(Working!F56,0)),0) ->  | H90: =IFERROR(IF(Error=0,IF($B90="","",ROUND(Working!G56,0)),0),"") ->  | I90: =IF(Error=0,IF($B90="","",ROUND(Working!H56,0)),0) ->  | J90: =IF(Error=0,IF($B90="","",ROUND(Working!I56,0)),0) ->  | K90: =IF(Error=0,IF($B90="","",ROUND(IF(Input!$I$13<'Validation Sheet'!$X$5,Working!J56,Working!U56),0)),0) ->  | L90: =IF(Error=0,IF($B90="","",ROUND(IF(Input!$I$13<'Validation Sheet'!$X$5,MAX(Working!I56,Working!J56),Working!V56),0)),0) -> 
B91: =Working!A57 ->  | C91: =IF(Error=0,IF(B91="","",ROUND(Working!B57,0)),0) ->  | D91: =IF(Error=0,IF(B91="","",ROUND(Working!C57,0)),0) ->  | E91: =IF(Error=0,IF(B91="","",ROUND(Working!D57,0)),0) ->  | F91: =IF(Error=0,IF($B91="","",ROUND(Working!E57,0)),0) ->  | G91: =IF(Error=0,IF($B91="","",ROUND(Working!F57,0)),0) ->  | H91: =IFERROR(IF(Error=0,IF($B91="","",ROUND(Working!G57,0)),0),"") ->  | I91: =IF(Error=0,IF($B91="","",ROUND(Working!H57,0)),0) ->  | J91: =IF(Error=0,IF($B91="","",ROUND(Working!I57,0)),0) ->  | K91: =IF(Error=0,IF($B91="","",ROUND(IF(Input!$I$13<'Validation Sheet'!$X$5,Working!J57,Working!U57),0)),0) ->  | L91: =IF(Error=0,IF($B91="","",ROUND(IF(Input!$I$13<'Validation Sheet'!$X$5,MAX(Working!I57,Working!J57),Working!V57),0)),0) -> 
B92: =Working!A58 ->  | C92: =IF(Error=0,IF(B92="","",ROUND(Working!B58,0)),0) ->  | D92: =IF(Error=0,IF(B92="","",ROUND(Working!C58,0)),0) ->  | E92: =IF(Error=0,IF(B92="","",ROUND(Working!D58,0)),0) ->  | F92: =IF(Error=0,IF($B92="","",ROUND(Working!E58,0)),0) ->  | G92: =IF(Error=0,IF($B92="","",ROUND(Working!F58,0)),0) ->  | H92: =IFERROR(IF(Error=0,IF($B92="","",ROUND(Working!G58,0)),0),"") ->  | I92: =IF(Error=0,IF($B92="","",ROUND(Working!H58,0)),0) ->  | J92: =IF(Error=0,IF($B92="","",ROUND(Working!I58,0)),0) ->  | K92: =IF(Error=0,IF($B92="","",ROUND(IF(Input!$I$13<'Validation Sheet'!$X$5,Working!J58,Working!U58),0)),0) ->  | L92: =IF(Error=0,IF($B92="","",ROUND(IF(Input!$I$13<'Validation Sheet'!$X$5,MAX(Working!I58,Working!J58),Working!V58),0)),0) -> 
B93: =Working!A59 ->  | C93: =IF(Error=0,IF(B93="","",ROUND(Working!B59,0)),0) ->  | D93: =IF(Error=0,IF(B93="","",ROUND(Working!C59,0)),0) ->  | E93: =IF(Error=0,IF(B93="","",ROUND(Working!D59,0)),0) ->  | F93: =IF(Error=0,IF($B93="","",ROUND(Working!E59,0)),0) ->  | G93: =IF(Error=0,IF($B93="","",ROUND(Working!F59,0)),0) ->  | H93: =IFERROR(IF(Error=0,IF($B93="","",ROUND(Working!G59,0)),0),"") ->  | I93: =IF(Error=0,IF($B93="","",ROUND(Working!H59,0)),0) ->  | J93: =IF(Error=0,IF($B93="","",ROUND(Working!I59,0)),0) ->  | K93: =IF(Error=0,IF($B93="","",ROUND(IF(Input!$I$13<'Validation Sheet'!$X$5,Working!J59,Working!U59),0)),0) ->  | L93: =IF(Error=0,IF($B93="","",ROUND(IF(Input!$I$13<'Validation Sheet'!$X$5,MAX(Working!I59,Working!J59),Working!V59),0)),0) -> 
B94: =Working!A60 ->  | C94: =IF(Error=0,IF(B94="","",ROUND(Working!B60,0)),0) ->  | D94: =IF(Error=0,IF(B94="","",ROUND(Working!C60,0)),0) ->  | E94: =IF(Error=0,IF(B94="","",ROUND(Working!D60,0)),0) ->  | F94: =IF(Error=0,IF($B94="","",ROUND(Working!E60,0)),0) ->  | G94: =IF(Error=0,IF($B94="","",ROUND(Working!F60,0)),0) ->  | H94: =IFERROR(IF(Error=0,IF($B94="","",ROUND(Working!G60,0)),0),"") ->  | I94: =IF(Error=0,IF($B94="","",ROUND(Working!H60,0)),0) ->  | J94: =IF(Error=0,IF($B94="","",ROUND(Working!I60,0)),0) ->  | K94: =IF(Error=0,IF($B94="","",ROUND(IF(Input!$I$13<'Validation Sheet'!$X$5,Working!J60,Working!U60),0)),0) ->  | L94: =IF(Error=0,IF($B94="","",ROUND(IF(Input!$I$13<'Validation Sheet'!$X$5,MAX(Working!I60,Working!J60),Working!V60),0)),0) -> 
B95: =Working!A61 ->  | C95: =IF(Error=0,IF(B95="","",ROUND(Working!B61,0)),0) ->  | D95: =IF(Error=0,IF(B95="","",ROUND(Working!C61,0)),0) ->  | E95: =IF(Error=0,IF(B95="","",ROUND(Working!D61,0)),0) ->  | F95: =IF(Error=0,IF($B95="","",ROUND(Working!E61,0)),0) ->  | G95: =IF(Error=0,IF($B95="","",ROUND(Working!F61,0)),0) ->  | H95: =IFERROR(IF(Error=0,IF($B95="","",ROUND(Working!G61,0)),0),"") ->  | I95: =IF(Error=0,IF($B95="","",ROUND(Working!H61,0)),0) ->  | J95: =IF(Error=0,IF($B95="","",ROUND(Working!I61,0)),0) ->  | K95: =IF(Error=0,IF($B95="","",ROUND(IF(Input!$I$13<'Validation Sheet'!$X$5,Working!J61,Working!U61),0)),0) ->  | L95: =IF(Error=0,IF($B95="","",ROUND(IF(Input!$I$13<'Validation Sheet'!$X$5,MAX(Working!I61,Working!J61),Working!V61),0)),0) -> 
B96: =Working!A62 ->  | C96: =IF(Error=0,IF(B96="","",ROUND(Working!B62,0)),0) ->  | D96: =IF(Error=0,IF(B96="","",ROUND(Working!C62,0)),0) ->  | E96: =IF(Error=0,IF(B96="","",ROUND(Working!D62,0)),0) ->  | F96: =IF(Error=0,IF($B96="","",ROUND(Working!E62,0)),0) ->  | G96: =IF(Error=0,IF($B96="","",ROUND(Working!F62,0)),0) ->  | H96: =IFERROR(IF(Error=0,IF($B96="","",ROUND(Working!G62,0)),0),"") ->  | I96: =IF(Error=0,IF($B96="","",ROUND(Working!H62,0)),0) ->  | J96: =IF(Error=0,IF($B96="","",ROUND(Working!I62,0)),0) ->  | K96: =IF(Error=0,IF($B96="","",ROUND(IF(Input!$I$13<'Validation Sheet'!$X$5,Working!J62,Working!U62),0)),0) ->  | L96: =IF(Error=0,IF($B96="","",ROUND(IF(Input!$I$13<'Validation Sheet'!$X$5,MAX(Working!I62,Working!J62),Working!V62),0)),0) -> 
B97: =Working!A63 ->  | C97: =IF(Error=0,IF(B97="","",ROUND(Working!B63,0)),0) ->  | D97: =IF(Error=0,IF(B97="","",ROUND(Working!C63,0)),0) ->  | E97: =IF(Error=0,IF(B97="","",ROUND(Working!D63,0)),0) ->  | F97: =IF(Error=0,IF($B97="","",ROUND(Working!E63,0)),0) ->  | G97: =IF(Error=0,IF($B97="","",ROUND(Working!F63,0)),0) ->  | H97: =IFERROR(IF(Error=0,IF($B97="","",ROUND(Working!G63,0)),0),"") ->  | I97: =IF(Error=0,IF($B97="","",ROUND(Working!H63,0)),0) ->  | J97: =IF(Error=0,IF($B97="","",ROUND(Working!I63,0)),0) ->  | K97: =IF(Error=0,IF($B97="","",ROUND(IF(Input!$I$13<'Validation Sheet'!$X$5,Working!J63,Working!U63),0)),0) ->  | L97: =IF(Error=0,IF($B97="","",ROUND(IF(Input!$I$13<'Validation Sheet'!$X$5,MAX(Working!I63,Working!J63),Working!V63),0)),0) -> 
B100: • EOY: End of Year, BOY = Beginning of Year
B101: =IF(Variant="Titanium","• Guaranteed Additions (GA) are not payable on death. GA (if any) are payable on maturity and surrender only if all due premiums have been paid. ","") -> 
B102: • Annualized Premium excludes underwriting extra premium, frequency loadings on premiums, the premiums paid towards the riders, if any, and Goods and Service Tax.
B103: • Total Annual Premium includes underwriting extra premium, frequency loadings on premiums, the premiums paid towards the riders, if any but excludes Goods and Service Tax.
B104: • The Surrender Value payable shall be higher of ‘Minimum Guaranteed Surrender Value’ and ‘Special Surrender Value’. Any additional Surrender Value over and above the ‘Minimum Guaranteed Surrender Value’ is not guaranteed.
B105: • The Net Rate of Return has been calculated based on the total maturity benefit, assuming that all premiums have been paid as and when due (excluding applicable taxes, cesses and levies and rider premiums, if any).
B106: • Refer Sales literature (Prospectus) for explanation of terms used in this illustration.
B107: • For Point of Sale (POS) polices, there is a waiting period of 90 days from the Date of Commencement of Risk of this Policy (“Waiting Period”). In case of death (for other than accidental death only) during this Waiting Period, 100% of the total premiums paid till the date of death will be payable excluding applicable taxes, cesses, levies, if any. The Death Benefit will not be payable. In case of death of Life Insured due to accident, the Waiting Period is not applicable, and Death Benefit shall be payable. The waiting period is not applicable on the revival of a policy.

Sheet Output_Format (hidden)
B2: Error Message:
B3: =IF(Error=0,"",Message) -> 
B5: Table Outputs:
B7: 1. Personal Info | E7: 2. Product Info
B8: Fields | C8: Inputs | E8: Fields | F8: Inputs
B9: fields | C9: inputs | E9: fields | F9: inputs
B10: nameOfTheProspectPolicyholder | C10: =Output!D4 -> Mr. Random | E10: proposalNo
B11: ageAndGenderPH | C11: =Output!D5 -> 50 Years, Male | E11: nameOfTheProduct | F11: =Output!I5 -> Axis Max Life Smart Fixed-return Digital Plan
B12: nameOfTheLifeAssured | C12: =Output!D6 -> Ms. Aditya | E12: tagLine | F12: =Output!I6 -> A Non-linked Non Participating Individual Life Insurance Savings Plan
B13: ageAndGenderLI | C13: =Output!D7 -> 13 Years, Female | E13: uniqueIdentificationNo | F13: =Output!I7 -> 104N123V07
B14: riskClass | E14: gstRateBasePolicyFirstYear | F14: =IF(Output!I8="NA",0,Output!I8) -> 0
B15: policyTerm | C15: =PT -> 30 | E15: gstRateBasePolicySubsequentYear | F15: =IF(Output!I9="NA",0,Output!I9) -> 0
B16: premiumPaymentTerm | C16: =PPT -> 10 | E16: gstRateRiderFirstYear | F16: =IF(Output!I10="NA",0,Output!I10) -> 0
B17: amountOfInstallmentPremium | C17: =ROUND(H45,0) -> 5000 | E17: gstRateRiderSubsequentYear | F17: =IF(Output!I11="NA",0,Output!I11) -> 0
B18: modeOfPaymentOfPremium | C18: =Prem_Mode -> Annual | E18: maxLifeState | F18: =Output!I13 -> Madhya Pradesh
E19: policyholderResidentialState | F19: =Output!I14 -> Kerala
B22: 3. Product Details
B23: Fields | C23: Inputs
B24: fields | C24: inputs
B25: planVariant | C25: =Output!D18 -> Platinum
B26: deathBenefitMultiple | C26: =Output!D19 -> 11
B28: sumAssuredInRs | C28: =Output!I18 -> 205288.5
B29: sumAssuredOnDeathAtInceptionOfThePolicyInRs | C29: =Output!I19 -> 55000
B31: 4. Rider Details
B33: Rider Name | C33: Variant | D33: Sum Assured | E33: Rider Term | F33: Rider Premium Payment Term
B34: type | C34: variant | D34: sumAssured | E34: riderTerm | F34: premiumPaymentTerm
B35: Waiver of Premium (WOP) Plus Rider | C35: NA | D35: 0 | E35: =IF(Xinput_wOPPlusRiderOption="yes",WOP_Rider_Term,0) -> 0 | F35: 0
B36: Critical Illness and Disability Rider | C36: =IF(Xinput_cIDisabilityRiderOption="yes",Xinput_cIDisabilityRiderVariant,"NA") -> NA | D36: =IF(Xinput_cIDisabilityRiderOption="yes",Xinput_cIDisabilityRiderSA,0) -> 0 | E36: =IF(Xinput_cIDisabilityRiderOption="yes",Xinput_cIDisabilityRiderTerm,0) -> 0 | F36: =IF(Xinput_cIDisabilityRiderOption="yes",CI_PPT,0) -> 0
B37: Accidental Death And Dismemberment Rider | C37: NA | D37: =IF(Xinput_addRiderOption="yes",Xinput_addRiderSA,0) -> 0 | E37: =IF(Xinput_addRiderOption="yes",Xinput_addRiderTerm,0) -> 0 | F37: 0
B38: Term Plus Rider | C38: NA | D38: =IF(Xinput_termPlusRiderOption="yes",Xinput_termPlusRiderSA,0) -> 0 | E38: =IF(Xinput_termPlusRiderOption="yes",TermPlusRiderTerm,0) -> 0 | F38: 0
B40: 5. Premium Summary
B42: Type | C42: Base Plan | D42: Accidental Death & Dismemberment Rider | E42: Term Plus Rider | F42: Waiver of Premium Plus Rider | G42: Critical Illness and Disability Rider | H42: Total Installment Premium
B43: type | C43: basePlan | D43: accidentalDeathAndDismembermentRider | E43: termPlusRider | F43: waiverOfPremiumPlusRider | G43: criticalIllnessAndDisabilityRider | H43: totalInstallmentPremium
B44: Installment Premium without GST (in Rs.) | C44: =Output!D30 -> 5000 | D44: =Output!E30 -> 0 | E44: =Output!F30 -> 0 | F44: =Output!G30 -> 0 | G44: =Output!I30 -> 0 | H44: =Output!J30 -> 5000
B45: Installment Premium with first year GST (in Rs.) | C45: =Output!D31 -> 5000 | D45: =Output!E31 -> 0 | E45: =Output!F31 -> 0 | F45: =Output!G31 -> 0 | G45: =Output!I31 -> 0 | H45: =Output!J31 -> 5000
B46: Installment Premium with GST 2nd year onwards (in Rs.) | C46: =IF(Output!D32="NA",0,Output!D32) -> 5000 | D46: =Output!E32 -> 0 | E46: =Output!F32 -> 0 | F46: =Output!G32 -> 0 | G46: =Output!I32 -> 0 | H46: =Output!J32 -> 5000
B48: netRateOfReturn | C48: =Output!C34 -> 0.0564
B50: 6. Ilustration
B51: (Amount in Rupees)
B52: Policy Year | C52: Single/Annualized Premium (BOY) | D52: Total Annual Premium (BOY) | E52: Accrued Guaranteed Additions (if any) (EOY) | F52: Other Benefits, if any (Guaranteed Sum Assured at Maturity) (EOY) | G52: Total Maturity Benefit (EOY) | H52: Death Benefit (On the first death of the insured lives) (BOY) | I52: Death Benefit (BOY) | J52: Guaranteed Surrender value (EOY) | K52: Special surrender value (EOY) | L52: Surrender Value (EOY)
B53: policyYear | C53: singleAnnualizedPremiumBOY | D53: totalAnnualPremiumBOY | E53: accruedGuaranteedAdditionsIfAnyEOY | F53: otherBenefitsIfAnyGuaranteedSumAssuredAtMaturityEOY | G53: totalMaturityBenefitEOY | H53: deathBenefitOnTheFirstDeathOfTheInsuredLivesBOY | I53: deathBenefitBOY | J53: guaranteedSurrenderValueEOY | K53: specialSurrenderValueEOY | L53: surrenderValueEOY
B54: =Output!B38 -> 1 | C54: =Output!C38 -> 5000 | D54: =Output!D38 -> 5000 | E54: =Output!E38 -> 0 | F54: =Output!F38 -> 0 | G54: =Output!G38 -> 0 | H54: =Output!H38 ->  | I54: =Output!I38 -> 55000 | J54: =Output!J38 -> 0 | K54: =Output!K38 -> 2676 | L54: =Output!L38 -> 2676
B55: =Output!B39 -> 2 | C55: =Output!C39 -> 5000 | D55: =Output!D39 -> 5000 | E55: =Output!E39 -> 0 | F55: =Output!F39 -> 0 | G55: =Output!G39 -> 0 | H55: =Output!H39 ->  | I55: =Output!I39 -> 55000 | J55: =Output!J39 -> 3000 | K55: =Output!K39 -> 5739 | L55: =Output!L39 -> 5739
B56: =Output!B40 -> 3 | C56: =Output!C40 -> 5000 | D56: =Output!D40 -> 5000 | E56: =Output!E40 -> 0 | F56: =Output!F40 -> 0 | G56: =Output!G40 -> 0 | H56: =Output!H40 ->  | I56: =Output!I40 -> 55000 | J56: =Output!J40 -> 5250 | K56: =Output!K40 -> 9232 | L56: =Output!L40 -> 9232
B57: =Output!B41 -> 4 | C57: =Output!C41 -> 5000 | D57: =Output!D41 -> 5000 | E57: =Output!E41 -> 0 | F57: =Output!F41 -> 0 | G57: =Output!G41 -> 0 | H57: =Output!H41 ->  | I57: =Output!I41 -> 55000 | J57: =Output!J41 -> 10000 | K57: =Output!K41 -> 13199 | L57: =Output!L41 -> 13199
B58: =Output!B42 -> 5 | C58: =Output!C42 -> 5000 | D58: =Output!D42 -> 5000 | E58: =Output!E42 -> 0 | F58: =Output!F42 -> 0 | G58: =Output!G42 -> 0 | H58: =Output!H42 ->  | I58: =Output!I42 -> 55000 | J58: =Output!J42 -> 18750 | K58: =Output!K42 -> 17694 | L58: =Output!L42 -> 18750
B59: =Output!B43 -> 6 | C59: =Output!C43 -> 5000 | D59: =Output!D43 -> 5000 | E59: =Output!E43 -> 0 | F59: =Output!F43 -> 0 | G59: =Output!G43 -> 0 | H59: =Output!H43 ->  | I59: =Output!I43 -> 55000 | J59: =Output!J43 -> 30000 | K59: =Output!K43 -> 22770 | L59: =Output!L43 -> 30000
B60: =Output!B44 -> 7 | C60: =Output!C44 -> 5000 | D60: =Output!D44 -> 5000 | E60: =Output!E44 -> 0 | F60: =Output!F44 -> 0 | G60: =Output!G44 -> 0 | H60: =Output!H44 ->  | I60: =Output!I44 -> 55000 | J60: =Output!J44 -> 35000 | K60: =Output!K44 -> 28488 | L60: =Output!L44 -> 35000
B61: =Output!B45 -> 8 | C61: =Output!C45 -> 5000 | D61: =Output!D45 -> 5000 | E61: =Output!E45 -> 0 | F61: =Output!F45 -> 0 | G61: =Output!G45 -> 0 | H61: =Output!H45 ->  | I61: =Output!I45 -> 55000 | J61: =Output!J45 -> 40000 | K61: =Output!K45 -> 34918 | L61: =Output!L45 -> 40000
B62: =Output!B46 -> 9 | C62: =Output!C46 -> 5000 | D62: =Output!D46 -> 5000 | E62: =Output!E46 -> 0 | F62: =Output!F46 -> 0 | G62: =Output!G46 -> 0 | H62: =Output!H46 ->  | I62: =Output!I46 -> 55000 | J62: =Output!J46 -> 45000 | K62: =Output!K46 -> 42131 | L62: =Output!L46 -> 45000
B63: =Output!B47 -> 10 | C63: =Output!C47 -> 5000 | D63: =Output!D47 -> 5000 | E63: =Output!E47 -> 0 | F63: =Output!F47 -> 0 | G63: =Output!G47 -> 0 | H63: =Output!H47 ->  | I63: =Output!I47 -> 55000 | J63: =Output!J47 -> 50000 | K63: =Output!K47 -> 50207 | L63: =Output!L47 -> 50207
B64: =Output!B48 -> 11 | C64: =Output!C48 -> 0 | D64: =Output!D48 -> 0 | E64: =Output!E48 -> 0 | F64: =Output!F48 -> 0 | G64: =Output!G48 -> 0 | H64: =Output!H48 ->  | I64: =Output!I48 -> 55000 | J64: =Output!J48 -> 50000 | K64: =Output!K48 -> 53854 | L64: =Output!L48 -> 53854
B65: =Output!B49 -> 12 | C65: =Output!C49 -> 0 | D65: =Output!D49 -> 0 | E65: =Output!E49 -> 0 | F65: =Output!F49 -> 0 | G65: =Output!G49 -> 0 | H65: =Output!H49 ->  | I65: =Output!I49 -> 57764 | J65: =Output!J49 -> 50000 | K65: =Output!K49 -> 57764 | L65: =Output!L49 -> 57764
B66: =Output!B50 -> 13 | C66: =Output!C50 -> 0 | D66: =Output!D50 -> 0 | E66: =Output!E50 -> 0 | F66: =Output!F50 -> 0 | G66: =Output!G50 -> 0 | H66: =Output!H50 ->  | I66: =Output!I50 -> 61964 | J66: =Output!J50 -> 50000 | K66: =Output!K50 -> 61964 | L66: =Output!L50 -> 61964
B67: =Output!B51 -> 14 | C67: =Output!C51 -> 0 | D67: =Output!D51 -> 0 | E67: =Output!E51 -> 0 | F67: =Output!F51 -> 0 | G67: =Output!G51 -> 0 | H67: =Output!H51 ->  | I67: =Output!I51 -> 66469 | J67: =Output!J51 -> 50000 | K67: =Output!K51 -> 66469 | L67: =Output!L51 -> 66469
B68: =Output!B52 -> 15 | C68: =Output!C52 -> 0 | D68: =Output!D52 -> 0 | E68: =Output!E52 -> 0 | F68: =Output!F52 -> 0 | G68: =Output!G52 -> 0 | H68: =Output!H52 ->  | I68: =Output!I52 -> 71306 | J68: =Output!J52 -> 50000 | K68: =Output!K52 -> 71306 | L68: =Output!L52 -> 71306
B69: =Output!B53 -> 16 | C69: =Output!C53 -> 0 | D69: =Output!D53 -> 0 | E69: =Output!E53 -> 0 | F69: =Output!F53 -> 0 | G69: =Output!G53 -> 0 | H69: =Output!H53 ->  | I69: =Output!I53 -> 76496 | J69: =Output!J53 -> 50000 | K69: =Output!K53 -> 76496 | L69: =Output!L53 -> 76496
B70: =Output!B54 -> 17 | C70: =Output!C54 -> 0 | D70: =Output!D54 -> 0 | E70: =Output!E54 -> 0 | F70: =Output!F54 -> 0 | G70: =Output!G54 -> 0 | H70: =Output!H54 ->  | I70: =Output!I54 -> 82067 | J70: =Output!J54 -> 50000 | K70: =Output!K54 -> 82067 | L70: =Output!L54 -> 82067
B71: =Output!B55 -> 18 | C71: =Output!C55 -> 0 | D71: =Output!D55 -> 0 | E71: =Output!E55 -> 0 | F71: =Output!F55 -> 0 | G71: =Output!G55 -> 0 | H71: =Output!H55 ->  | I71: =Output!I55 -> 88045 | J71: =Output!J55 -> 50000 | K71: =Output!K55 -> 88045 | L71: =Output!L55 -> 88045
B72: =Output!B56 -> 19 | C72: =Output!C56 -> 0 | D72: =Output!D56 -> 0 | E72: =Output!E56 -> 0 | F72: =Output!F56 -> 0 | G72: =Output!G56 -> 0 | H72: =Output!H56 ->  | I72: =Output!I56 -> 94462 | J72: =Output!J56 -> 50000 | K72: =Output!K56 -> 94462 | L72: =Output!L56 -> 94462
B73: =Output!B57 -> 20 | C73: =Output!C57 -> 0 | D73: =Output!D57 -> 0 | E73: =Output!E57 -> 0 | F73: =Output!F57 -> 0 | G73: =Output!G57 -> 0 | H73: =Output!H57 ->  | I73: =Output!I57 -> 101348 | J73: =Output!J57 -> 50000 | K73: =Output!K57 -> 101348 | L73: =Output!L57 -> 101348
B74: =Output!B58 -> 21 | C74: =Output!C58 -> 0 | D74: =Output!D58 -> 0 | E74: =Output!E58 -> 0 | F74: =Output!F58 -> 0 | G74: =Output!G58 -> 0 | H74: =Output!H58 ->  | I74: =Output!I58 -> 108741 | J74: =Output!J58 -> 50000 | K74: =Output!K58 -> 108741 | L74: =Output!L58 -> 108741
B75: =Output!B59 -> 22 | C75: =Output!C59 -> 0 | D75: =Output!D59 -> 0 | E75: =Output!E59 -> 0 | F75: =Output!F59 -> 0 | G75: =Output!G59 -> 0 | H75: =Output!H59 ->  | I75: =Output!I59 -> 116675 | J75: =Output!J59 -> 50000 | K75: =Output!K59 -> 116675 | L75: =Output!L59 -> 116675
B76: =Output!B60 -> 23 | C76: =Output!C60 -> 0 | D76: =Output!D60 -> 0 | E76: =Output!E60 -> 0 | F76: =Output!F60 -> 0 | G76: =Output!G60 -> 0 | H76: =Output!H60 ->  | I76: =Output!I60 -> 125195 | J76: =Output!J60 -> 50000 | K76: =Output!K60 -> 125195 | L76: =Output!L60 -> 125195
B77: =Output!B61 -> 24 | C77: =Output!C61 -> 0 | D77: =Output!D61 -> 0 | E77: =Output!E61 -> 0 | F77: =Output!F61 -> 0 | G77: =Output!G61 -> 0 | H77: =Output!H61 ->  | I77: =Output!I61 -> 134340 | J77: =Output!J61 -> 50000 | K77: =Output!K61 -> 134340 | L77: =Output!L61 -> 134340
B78: =Output!B62 -> 25 | C78: =Output!C62 -> 0 | D78: =Output!D62 -> 0 | E78: =Output!E62 -> 0 | F78: =Output!F62 -> 0 | G78: =Output!G62 -> 0 | H78: =Output!H62 ->  | I78: =Output!I62 -> 144158 | J78: =Output!J62 -> 50000 | K78: =Output!K62 -> 144158 | L78: =Output!L62 -> 144158
B79: =Output!B63 -> 26 | C79: =Output!C63 -> 0 | D79: =Output!D63 -> 0 | E79: =Output!E63 -> 0 | F79: =Output!F63 -> 0 | G79: =Output!G63 -> 0 | H79: =Output!H63 ->  | I79: =Output!I63 -> 154703 | J79: =Output!J63 -> 50000 | K79: =Output!K63 -> 154703 | L79: =Output!L63 -> 154703
B80: =Output!B64 -> 27 | C80: =Output!C64 -> 0 | D80: =Output!D64 -> 0 | E80: =Output!E64 -> 0 | F80: =Output!F64 -> 0 | G80: =Output!G64 -> 0 | H80: =Output!H64 ->  | I80: =Output!I64 -> 166027 | J80: =Output!J64 -> 50000 | K80: =Output!K64 -> 166027 | L80: =Output!L64 -> 166027
B81: =Output!B65 -> 28 | C81: =Output!C65 -> 0 | D81: =Output!D65 -> 0 | E81: =Output!E65 -> 0 | F81: =Output!F65 -> 0 | G81: =Output!G65 -> 0 | H81: =Output!H65 ->  | I81: =Output!I65 -> 178187 | J81: =Output!J65 -> 50000 | K81: =Output!K65 -> 178187 | L81: =Output!L65 -> 178187
B82: =Output!B66 -> 29 | C82: =Output!C66 -> 0 | D82: =Output!D66 -> 0 | E82: =Output!E66 -> 0 | F82: =Output!F66 -> 0 | G82: =Output!G66 -> 0 | H82: =Output!H66 ->  | I82: =Output!I66 -> 191253 | J82: =Output!J66 -> 50000 | K82: =Output!K66 -> 191253 | L82: =Output!L66 -> 191253
B83: =Output!B67 -> 30 | C83: =Output!C67 -> 0 | D83: =Output!D67 -> 0 | E83: =Output!E67 -> 0 | F83: =Output!F67 -> 205289 | G83: =Output!G67 -> 205289 | H83: =Output!H67 ->  | I83: =Output!I67 -> 205289 | J83: =Output!J67 -> 50000 | K83: =Output!K67 -> 205289 | L83: =Output!L67 -> 205289
B84: =Output!B68 ->  | C84: =Output!C68 ->  | D84: =Output!D68 ->  | E84: =Output!E68 ->  | F84: =Output!F68 ->  | G84: =Output!G68 ->  | H84: =Output!H68 ->  | I84: =Output!I68 ->  | J84: =Output!J68 ->  | K84: =Output!K68 ->  | L84: =Output!L68 -> 
B85: =Output!B69 ->  | C85: =Output!C69 ->  | D85: =Output!D69 ->  | E85: =Output!E69 ->  | F85: =Output!F69 ->  | G85: =Output!G69 ->  | H85: =Output!H69 ->  | I85: =Output!I69 ->  | J85: =Output!J69 ->  | K85: =Output!K69 ->  | L85: =Output!L69 -> 
B86: =Output!B70 ->  | C86: =Output!C70 ->  | D86: =Output!D70 ->  | E86: =Output!E70 ->  | F86: =Output!F70 ->  | G86: =Output!G70 ->  | H86: =Output!H70 ->  | I86: =Output!I70 ->  | J86: =Output!J70 ->  | K86: =Output!K70 ->  | L86: =Output!L70 -> 
B87: =Output!B71 ->  | C87: =Output!C71 ->  | D87: =Output!D71 ->  | E87: =Output!E71 ->  | F87: =Output!F71 ->  | G87: =Output!G71 ->  | H87: =Output!H71 ->  | I87: =Output!I71 ->  | J87: =Output!J71 ->  | K87: =Output!K71 ->  | L87: =Output!L71 -> 
B88: =Output!B72 ->  | C88: =Output!C72 ->  | D88: =Output!D72 ->  | E88: =Output!E72 ->  | F88: =Output!F72 ->  | G88: =Output!G72 ->  | H88: =Output!H72 ->  | I88: =Output!I72 ->  | J88: =Output!J72 ->  | K88: =Output!K72 ->  | L88: =Output!L72 -> 
B89: =Output!B73 ->  | C89: =Output!C73 ->  | D89: =Output!D73 ->  | E89: =Output!E73 ->  | F89: =Output!F73 ->  | G89: =Output!G73 ->  | H89: =Output!H73 ->  | I89: =Output!I73 ->  | J89: =Output!J73 ->  | K89: =Output!K73 ->  | L89: =Output!L73 -> 
B90: =Output!B74 ->  | C90: =Output!C74 ->  | D90: =Output!D74 ->  | E90: =Output!E74 ->  | F90: =Output!F74 ->  | G90: =Output!G74 ->  | H90: =Output!H74 ->  | I90: =Output!I74 ->  | J90: =Output!J74 ->  | K90: =Output!K74 ->  | L90: =Output!L74 -> 
B91: =Output!B75 ->  | C91: =Output!C75 ->  | D91: =Output!D75 ->  | E91: =Output!E75 ->  | F91: =Output!F75 ->  | G91: =Output!G75 ->  | H91: =Output!H75 ->  | I91: =Output!I75 ->  | J91: =Output!J75 ->  | K91: =Output!K75 ->  | L91: =Output!L75 -> 
B92: =Output!B76 ->  | C92: =Output!C76 ->  | D92: =Output!D76 ->  | E92: =Output!E76 ->  | F92: =Output!F76 ->  | G92: =Output!G76 ->  | H92: =Output!H76 ->  | I92: =Output!I76 ->  | J92: =Output!J76 ->  | K92: =Output!K76 ->  | L92: =Output!L76 -> 
B93: =Output!B77 ->  | C93: =Output!C77 ->  | D93: =Output!D77 ->  | E93: =Output!E77 ->  | F93: =Output!F77 ->  | G93: =Output!G77 ->  | H93: =Output!H77 ->  | I93: =Output!I77 ->  | J93: =Output!J77 ->  | K93: =Output!K77 ->  | L93: =Output!L77 -> 
B94: =Output!B78 ->  | C94: =Output!C78 ->  | D94: =Output!D78 ->  | E94: =Output!E78 ->  | F94: =Output!F78 ->  | G94: =Output!G78 ->  | H94: =Output!H78 ->  | I94: =Output!I78 ->  | J94: =Output!J78 ->  | K94: =Output!K78 ->  | L94: =Output!L78 -> 
B95: =Output!B79 ->  | C95: =Output!C79 ->  | D95: =Output!D79 ->  | E95: =Output!E79 ->  | F95: =Output!F79 ->  | G95: =Output!G79 ->  | H95: =Output!H79 ->  | I95: =Output!I79 ->  | J95: =Output!J79 ->  | K95: =Output!K79 ->  | L95: =Output!L79 -> 
B96: =Output!B80 ->  | C96: =Output!C80 ->  | D96: =Output!D80 ->  | E96: =Output!E80 ->  | F96: =Output!F80 ->  | G96: =Output!G80 ->  | H96: =Output!H80 ->  | I96: =Output!I80 ->  | J96: =Output!J80 ->  | K96: =Output!K80 ->  | L96: =Output!L80 -> 
B97: =Output!B81 ->  | C97: =Output!C81 ->  | D97: =Output!D81 ->  | E97: =Output!E81 ->  | F97: =Output!F81 ->  | G97: =Output!G81 ->  | H97: =Output!H81 ->  | I97: =Output!I81 ->  | J97: =Output!J81 ->  | K97: =Output!K81 ->  | L97: =Output!L81 -> 
B98: =Output!B82 ->  | C98: =Output!C82 ->  | D98: =Output!D82 ->  | E98: =Output!E82 ->  | F98: =Output!F82 ->  | G98: =Output!G82 ->  | H98: =Output!H82 ->  | I98: =Output!I82 ->  | J98: =Output!J82 ->  | K98: =Output!K82 ->  | L98: =Output!L82 -> 
B99: =Output!B83 ->  | C99: =Output!C83 ->  | D99: =Output!D83 ->  | E99: =Output!E83 ->  | F99: =Output!F83 ->  | G99: =Output!G83 ->  | H99: =Output!H83 ->  | I99: =Output!I83 ->  | J99: =Output!J83 ->  | K99: =Output!K83 ->  | L99: =Output!L83 -> 
B100: =Output!B84 ->  | C100: =Output!C84 ->  | D100: =Output!D84 ->  | E100: =Output!E84 ->  | F100: =Output!F84 ->  | G100: =Output!G84 ->  | H100: =Output!H84 ->  | I100: =Output!I84 ->  | J100: =Output!J84 ->  | K100: =Output!K84 ->  | L100: =Output!L84 -> 
B101: =Output!B85 ->  | C101: =Output!C85 ->  | D101: =Output!D85 ->  | E101: =Output!E85 ->  | F101: =Output!F85 ->  | G101: =Output!G85 ->  | H101: =Output!H85 ->  | I101: =Output!I85 ->  | J101: =Output!J85 ->  | K101: =Output!K85 ->  | L101: =Output!L85 -> 
B102: =Output!B86 ->  | C102: =Output!C86 ->  | D102: =Output!D86 ->  | E102: =Output!E86 ->  | F102: =Output!F86 ->  | G102: =Output!G86 ->  | H102: =Output!H86 ->  | I102: =Output!I86 ->  | J102: =Output!J86 ->  | K102: =Output!K86 ->  | L102: =Output!L86 -> 
B103: =Output!B87 ->  | C103: =Output!C87 ->  | D103: =Output!D87 ->  | E103: =Output!E87 ->  | F103: =Output!F87 ->  | G103: =Output!G87 ->  | H103: =Output!H87 ->  | I103: =Output!I87 ->  | J103: =Output!J87 ->  | K103: =Output!K87 ->  | L103: =Output!L87 -> 
B104: =Output!B88 ->  | C104: =Output!C88 ->  | D104: =Output!D88 ->  | E104: =Output!E88 ->  | F104: =Output!F88 ->  | G104: =Output!G88 ->  | H104: =Output!H88 ->  | I104: =Output!I88 ->  | J104: =Output!J88 ->  | K104: =Output!K88 ->  | L104: =Output!L88 -> 
B105: =Output!B89 ->  | C105: =Output!C89 ->  | D105: =Output!D89 ->  | E105: =Output!E89 ->  | F105: =Output!F89 ->  | G105: =Output!G89 ->  | H105: =Output!H89 ->  | I105: =Output!I89 ->  | J105: =Output!J89 ->  | K105: =Output!K89 ->  | L105: =Output!L89 -> 
B106: =Output!B90 ->  | C106: =Output!C90 ->  | D106: =Output!D90 ->  | E106: =Output!E90 ->  | F106: =Output!F90 ->  | G106: =Output!G90 ->  | H106: =Output!H90 ->  | I106: =Output!I90 ->  | J106: =Output!J90 ->  | K106: =Output!K90 ->  | L106: =Output!L90 -> 
B107: =Output!B91 ->  | C107: =Output!C91 ->  | D107: =Output!D91 ->  | E107: =Output!E91 ->  | F107: =Output!F91 ->  | G107: =Output!G91 ->  | H107: =Output!H91 ->  | I107: =Output!I91 ->  | J107: =Output!J91 ->  | K107: =Output!K91 ->  | L107: =Output!L91 -> 
B108: =Output!B92 ->  | C108: =Output!C92 ->  | D108: =Output!D92 ->  | E108: =Output!E92 ->  | F108: =Output!F92 ->  | G108: =Output!G92 ->  | H108: =Output!H92 ->  | I108: =Output!I92 ->  | J108: =Output!J92 ->  | K108: =Output!K92 ->  | L108: =Output!L92 -> 
B109: =Output!B93 ->  | C109: =Output!C93 ->  | D109: =Output!D93 ->  | E109: =Output!E93 ->  | F109: =Output!F93 ->  | G109: =Output!G93 ->  | H109: =Output!H93 ->  | I109: =Output!I93 ->  | J109: =Output!J93 ->  | K109: =Output!K93 ->  | L109: =Output!L93 -> 
B110: =Output!B94 ->  | C110: =Output!C94 ->  | D110: =Output!D94 ->  | E110: =Output!E94 ->  | F110: =Output!F94 ->  | G110: =Output!G94 ->  | H110: =Output!H94 ->  | I110: =Output!I94 ->  | J110: =Output!J94 ->  | K110: =Output!K94 ->  | L110: =Output!L94 -> 
B111: =Output!B95 ->  | C111: =Output!C95 ->  | D111: =Output!D95 ->  | E111: =Output!E95 ->  | F111: =Output!F95 ->  | G111: =Output!G95 ->  | H111: =Output!H95 ->  | I111: =Output!I95 ->  | J111: =Output!J95 ->  | K111: =Output!K95 ->  | L111: =Output!L95 -> 
B112: =Output!B96 ->  | C112: =Output!C96 ->  | D112: =Output!D96 ->  | E112: =Output!E96 ->  | F112: =Output!F96 ->  | G112: =Output!G96 ->  | H112: =Output!H96 ->  | I112: =Output!I96 ->  | J112: =Output!J96 ->  | K112: =Output!K96 ->  | L112: =Output!L96 -> 
B113: =Output!B97 ->  | C113: =Output!C97 ->  | D113: =Output!D97 ->  | E113: =Output!E97 ->  | F113: =Output!F97 ->  | G113: =Output!G97 ->  | H113: =Output!H97 ->  | I113: =Output!I97 ->  | J113: =Output!J97 ->  | K113: =Output!K97 ->  | L113: =Output!L97 -> 
B115: 7. Notes
B117: Notes:
B118: notes
B119: =Output!B100 -> • EOY: End of Year, BOY = Beginning of Year
B120: =Output!B101 -> 
B121: =Output!B102 -> • Annualized Premium excludes underwriting extra premium, frequency loadings on premiums, the premiums paid towards the riders, if any, and Goods and Service Tax.
B122: =Output!B103 -> • Total Annual Premium includes underwriting extra premium, frequency loadings on premiums, the premiums paid towards the riders, if any but excludes Goods and Service Tax.
B123: =Output!B104 -> • The Surrender Value payable shall be higher of ‘Minimum Guaranteed Surrender Value’ and ‘Special Surrender Value’. Any additional Surrender Value over and above the ‘Minimum Guaranteed Surrender Value’ is not guaranteed.
B124: =Output!B105 -> • The Net Rate of Return has been calculated based on the total maturity benefit, assuming that all premiums have been paid as and when due (excluding applicable taxes, cesses and levies and rider premiums, if any).
B125: =Output!B106 -> • Refer Sales literature (Prospectus) for explanation of terms used in this illustration.
B126: =Output!B107 -> • For Point of Sale (POS) polices, there is a waiting period of 90 days from the Date of Commencement of Risk of this Policy (“Waiting Period”). In case of death (for other than accidental death only) during this Waiting Period, 100% of the total premiums paid till the date of death will be payable excluding applicable taxes, cesses, levies, if any. The Death Benefit will not be payable. In case of death of Life Insured due to accident, the Waiting Period is not applicable, and Death Benefit shall be payable. The waiting period is not applicable on the revival of a policy.

Sheet Changes Tracker (SPARK) (hidden)
A1: Date | B1: 2025-05-19
A2: 0. Cleaning up
A3: 1 | B3: Removed errors (such as #REF) from the Name Manager.
A4: I. Change & Add Mappings
A5: 1 | B5: Xinput_addRiderEMRate | C5: =Input!$G$33 | D5: Input
A6: =A5+1 -> 2 | B6: Xinput_addRiderEMROption | C6: =Input!$D$33
A7: =A6+1 -> 3 | B7: Xinput_addRiderOption | C7: =Input!$D$22
A8: 4 | B8: Xinput_addRiderSA | C8: =Input!$D$23
A9: 5 | B9: Xinput_addRiderTerm | C9: =Input!$D$24
A10: 6 | B10: Xinput_ageLI | C10: =Input!$I$12
A11: 7 | B11: Xinput_agePH | C11: =Input!$D$12
A12: 8 | B12: Xinput_appName | C12: =Input!$I$7
A13: 9 | B13: Xinput_baseEMRate | C13: =Input!$G$31
A14: 10 | B14: Xinput_baseEMRate2ndLife | C14: =Input!$G$39
A15: 11 | B15: Xinput_baseEMROption | C15: =Input!$D$31
A16: 12 | B16: Xinput_baseEMROption2ndLife | C16: =Input!$D$39
A17: 13 | B17: Xinput_baseFlatExtraDur | C17: =Input!$I$32
A18: 14 | B18: Xinput_baseFlatExtraOption | C18: =Input!$D$32
A19: 15 | B19: Xinput_baseFlatExtraRate | C19: =Input!$G$32
A20: 16 | B20: Xinput_channel | C20: =Input!$I$5
A21: 17 | B21: Xinput_cIDisabilityRiderEMRate | C21: =Input!$G$37
A22: 18 | B22: Xinput_cIDisabilityRiderEMROption | C22: =Input!$D$37
A23: 19 | B23: Xinput_cIDisabilityRiderFlatExtraDur | C23: =Input!$I$38
A24: 20 | B24: Xinput_cIDisabilityRiderFlatExtraOption | C24: =Input!$D$38
A25: 21 | B25: Xinput_cIDisabilityRiderFlatExtraRate | C25: =Input!$G$38
A26: 22 | B26: Xinput_cIDisabilityRiderOption | C26: =Input!$I$24
A27: 23 | B27: Xinput_cIDisabilityRiderSA | C27: =Input!$I$27
A28: 24 | B28: Xinput_cIDisabilityRiderTerm | C28: =Input!$I$25
A29: 25 | B29: Xinput_cIDisabilityRiderVariant | C29: =Input!$I$26
A30: 26 | B30: Xinput_coverOption | C30: =Input!$D$18
A31: 27 | B31: Xinput_deathBenefitMultiple | C31: =Input!$D$19
A32: 28 | B32: Xinput_eDC | C32: =Input!$I$13
A33: 29 | B33: Xinput_genderLI | C33: =Input!$I$11
A34: 30 | B34: Xinput_genderPH | C34: =Input!$D$11
A35: 31 | B35: Xinput_mLIState | C35: =Input!$D$6
A36: 32 | B36: Xinput_nameLI | C36: =Input!$I$10
A37: 33 | B37: Xinput_namePH | C37: =Input!$D$10
A38: 34 | B38: Xinput_nationality | C38: =Input!$D$7
A39: 35 | B39: Xinput_pHState | C39: =Input!$D$13
A40: 36 | B40: Xinput_pT | C40: =Input!$I$17
A41: 37 | B41: Xinput_pOSP | C41: =Input!$I$6
A42: 38 | B42: Xinput_pPT | C42: =Input!$I$16
A43: 39 | B43: Xinput_premium | C43: =Input!$D$16
A44: 40 | B44: Xinput_premiumPaymentMode | C44: =Input!$D$17
A45: 41 | B45: Xinput_solver | C45: =Input!$B$1
A46: 42 | B46: Xinput_termPlusRiderEMRate | C46: =Input!$G$34
A47: 43 | B47: Xinput_termPlusRiderEMROption | C47: =Input!$D$34
A48: 44 | B48: Xinput_termPlusRiderFlatExtraDur | C48: =Input!$I$35
A49: 45 | B49: Xinput_termPlusRiderFlatExtraOption | C49: =Input!$D$35
A50: 46 | B50: Xinput_termPlusRiderFlatExtraRate | C50: =Input!$G$35
A51: 47 | B51: Xinput_termPlusRiderOption | C51: =Input!$D$26
A52: 48 | B52: Xinput_termPlusRiderSA | C52: =Input!$D$27
A53: 49 | B53: Xinput_variant | C53: =Input!$D$5
A54: 50 | B54: Xinput_wOPPlusRiderEMRate | C54: =Input!$G$36
A55: 51 | B55: Xinput_wOPPlusRiderEMROption | C55: =Input!$D$36
A56: 52 | B56: Xinput_wOPPlusRiderOption | C56: =Input!$I$22
A57: 53 | B57: Xouput_netRateOfReturn | C57: =Output_Format!$C$48 | D57: Output
A58: 54 | B58: Xoutput_aFYP | C58: ='Additional Fields for SPARK'!$B$1
A59: 55 | B59: Xoutput_ageGenderLI | C59: =Output_Format!$C$13
A60: 56 | B60: Xoutput_ageGenderPH | C60: =Output_Format!$C$11
A61: 57 | B61: Xoutput_annualizedGST | C61: ='Additional Fields for SPARK'!$B$2
A62: 58 | B62: Xoutput_illustration | C62: =Output_Format!$B$53:$L$113
A63: 59 | B63: Xoutput_installmentPremium | C63: =Output_Format!$C$17
A64: 60 | B64: Xoutput_nameLI | C64: =Output_Format!$C$12
A65: 61 | B65: Xoutput_namePH | C65: =Output_Format!$C$10
A66: 62 | B66: Xoutput_notes | C66: =Output_Format!$B$118:$B$126
A67: 63 | B67: Xoutput_personalInfo | C67: =Output_Format!$B$9:$C$18
A68: 64 | B68: Xoutput_policyTerm | C68: =Output_Format!$C$15
A69: 65 | B69: Xoutput_pPT | C69: =Output_Format!$C$16
A70: 66 | B70: Xoutput_premiumMode | C70: =Output_Format!$C$18
A71: =A70+1 -> 67 | B71: Xoutput_premiumSummary | C71: =Output_Format!$B$43:$H$46
A72: 68 | B72: Xoutput_productDetails | C72: =Output_Format!$B$24:$C$29
A73: 69 | B73: Xoutput_productInfo | C73: =Output_Format!$E$9:$F$19
A74: 70 | B74: Xoutput_riderDetails | C74: =Output_Format!$B$34:$F$38
A75: 71 | B75: Xoutput_riderUIN | C75: ='Rider UIN'!$B$1:$D$5
A76: 72 | B76: Xvalidate_errorMessage | C76: =Output_Format!$B$3 | D76: Validation

Sheet Additional Fields for SPARK (hidden)
A1: AFYP | B1: =ROUND(Output!C38+ADD_Prem+TermP_Prem+Calculation!E43+Calculation!E44,2) -> 5000 | E1: CGS Tags:
A2: Annualized GST | B2: =ROUND(Ann_Prem*First_Yr_ST,2) -> 0 | E2: errorCodeSFRD | F2: =Error -> 0
A3: Annual Premium | B3: =ROUND(Calculation!E22,2) -> 5000 | E3: errorMessageSFRD | F3: =Message -> Axis Max Life Smart Fixed-return Digital Plan
E4: maturityBenefitSFRD | F4: =VLOOKUP(PT,Output!$B$36:$K$97,6,0) -> 205289
A5: type | B5: value | E5: deathBenefitSFRD | F5: =Output!$I$19 -> 55000
A6: coverOption | B6: =Cover_Option -> Single Life | E6: emrPremSFRD | F6: =Base_EMR_Prem -> 0
A7: edc | B7: =Xinput_eDC -> 2026-03-08 | E7: minPremSFRD | F7: ='Validation Sheet'!$N$4 -> 5000
E9: band | F9: from | G9: to | H9: additionalMaturityRate | I9: baseMaturityRate
E10: ='Additional Mat Benefit Rates'!A8 -> 1 | F10: ='Additional Mat Benefit Rates'!B51 -> 5000 | G10: ='Additional Mat Benefit Rates'!C51 -> 34999 | H10: ='Additional Mat Benefit Rates'!R51 -> 0 | I10: ='Maturity Benefit Rates'!$K$3 -> 4.08534
E11: ='Additional Mat Benefit Rates'!A9 -> 2 | F11: ='Additional Mat Benefit Rates'!B52 -> 35000 | G11: ='Additional Mat Benefit Rates'!C52 -> 54999 | H11: ='Additional Mat Benefit Rates'!R52 -> 0.038 | I11: ='Maturity Benefit Rates'!$K$3 -> 4.08534
E12: ='Additional Mat Benefit Rates'!A10 -> 3 | F12: ='Additional Mat Benefit Rates'!B53 -> 55000 | G12: ='Additional Mat Benefit Rates'!C53 -> 114999 | H12: ='Additional Mat Benefit Rates'!R53 -> 0.049 | I12: ='Maturity Benefit Rates'!$K$3 -> 4.08534
E13: ='Additional Mat Benefit Rates'!A11 -> 4 | F13: ='Additional Mat Benefit Rates'!B54 -> 115000 | G13: ='Additional Mat Benefit Rates'!C54 -> 229999 | H13: ='Additional Mat Benefit Rates'!R54 -> 0.1095 | I13: ='Maturity Benefit Rates'!$K$3 -> 4.08534
E14: ='Additional Mat Benefit Rates'!A12 -> 5 | F14: ='Additional Mat Benefit Rates'!B55 -> 230000 | G14: ='Additional Mat Benefit Rates'!C55 -> 349999 | H14: ='Additional Mat Benefit Rates'!R55 -> 0.2495 | I14: ='Maturity Benefit Rates'!$K$3 -> 4.08534
E15: ='Additional Mat Benefit Rates'!A13 -> 6 | F15: ='Additional Mat Benefit Rates'!B56 -> 350000 | G15: ='Additional Mat Benefit Rates'!C56 -> 0 | H15: ='Additional Mat Benefit Rates'!R56 -> 0.2645 | I15: ='Maturity Benefit Rates'!$K$3 -> 4.08534

Sheet Rider UIN (hidden)
A1: S.No | B1: riderName | C1: UIN | D1: riderKey
A2: 1 | B2: Accidental Death And Dismemberment Rider | C2: 104B027V05 | D2: isAccidentalDeathAndDismembermentRider
A3: 2 | B3: Waiver of Premium Plus Rider | C3: 104B029V05 | D3: isWOPPlusRider
A4: 3 | B4: Critical Illness and Disability Rider | C4: =IF(Xinput_eDC<'Validation Sheet'!$X$8,"104B033V02","104B033V03") -> 104B033V02 | D4: isSmartHealthPlusRider
A5: 4 | B5: Term Plus Rider | C5: 104B026V04 | D5: isTermPlusRider

Sheet Certificate of Guarantee - MLI (hidden)
B2: =CONCATENATE("Dear ",Input!I10,",") -> Dear Aditya,
B3: Thank you for choosing Max Life Smart Fixed-return Digital Plan which offers benefits that are completely guaranteed right at the outset.
B4: =CONCATENATE("You have opted for ",Variant," which offers you the flexibility to pay for less than 5 years and still earn attractive returns.") -> You have opted for Platinum which offers you the flexibility to pay for less than 5 years and still earn attractive returns.
B5: The table below summarizes the benefits payable and the net rate of return that will be applicable depending on how long you pay the premiums in your plan.
B7: Life insurance benefit at inception (Death Benefit in Rs.) | F7: =Output!I19 -> 55000
B8: You pay only for | C8: You stay invested till (Policy Term) | D8: Benefit payable at maturity1 | E8: Net rate of return2 at maturity | F8: Life insurance benefit after premium payment stops
B10: 2 full years | C10: =CONCATENATE(PT," years") -> 30 years | D10: =VLOOKUP(PT*12+1,IRR!$B$6:$C$667,2,0) -> 41057.7 | E10: =IRR!C2 -> 0.04903220631 | F10: =IF(Variant="Gold",$F$7,$F$7*2/5) -> 22000
B11: 3 full years | C11: =CONCATENATE(PT," years") -> 30 years | D11: =VLOOKUP(PT*12+1,IRR!$E$6:$F$667,2,0) -> 61586.55 | E11: =IRR!F2 -> 0.04988012264 | F11: =IF(Variant="Gold",$F$7,$F$7*3/5) -> 33000
B12: 4 full years | C12: =CONCATENATE(PT," years") -> 30 years | D12: =VLOOKUP(PT*12+1,IRR!$H$6:$I$667,2,0) -> 82115.4 | E12: =IRR!I2 -> 0.05074972822 | F12: =IF(Variant="Gold",$F$7,$F$7*4/5) -> 44000
B13: 5 full years | C13: =CONCATENATE(PT," years") -> 30 years | D13: =Calculation!D1 -> 205288.5 | E13: =IRR!L2 -> 0.0564366716 | F13: =$F$7 -> 55000
B15: Please refer to the BI/ sales prospectus for more details.
B17: <Disclaimers to be added>
B18: 1The benefit payable at maturity refers to Maturity Benefit where all dues premiums for 5 years have been paid and this refers to reduced paid-up Maturity benefit when premiums for at least two full years have been paid.
B19: 2The Net Rate of Return has been calculated excluding applicable taxes, cesses and levies and rider premiums, if any.

Sheet IRR (hidden)
B1: 2nd | E1: 3rd | H1: 4th
B2: Paid Up IRR | C2: =IF(Variant="Gold","NA",(IRR(C6:C667,0.001)+1)^12-1) -> 0.04903220631 | E2: Paid Up IRR | F2: =IF(Variant="Gold","NA",(IRR(F6:F667,0.001)+1)^12-1) -> 0.04988012264 | H2: Paid Up IRR | I2: =IF(Variant="Gold","NA",(IRR(I6:I667,0.001)+1)^12-1) -> 0.05074972822 | K2: Inforce IRR | L2: =(IRR(L6:L667,0.001)+1)^12-1 -> 0.0564366716
B5: Policy Month (start) | C5: Cashflow | E5: Policy Month (start) | F5: Cashflow | H5: Policy Month (start) | I5: Cashflow | K5: Policy Month (start) | L5: Cashflow
B6: 1 | C6: =IF(B6="","",IF(AND(B6<=2*12,(MOD(B6-1,12/Prem_Freq)=0)),-Calculation!$E$23,IF(B6=(PT*12+1),SUM(Working!$M$4:$M$5)*IF(Variant="Titanium",105%,Calculation!$E$15),0))) -> -5000 | E6: 1 | F6: =IF(E6="","",IF(AND(E6<=3*12,(MOD(E6-1,12/Prem_Freq)=0)),-Calculation!$E$23,IF(E6=(PT*12+1),SUM(Working!$M$4:$M$6)*IF(Variant="Titanium",105%,Calculation!$E$15),0))) -> -5000 | H6: 1 | I6: =IF(H6="","",IF(AND(H6<=4*12,(MOD(H6-1,12/Prem_Freq)=0)),-Calculation!$E$23,IF(H6=(PT*12+1),SUM(Working!$M$4:$M$7)*IF(Variant="Titanium",105%,Calculation!$E$15),0))) -> -5000 | K6: 1 | L6: =IF(K6="","",IF(AND(K6<=PPT*12,(MOD(K6-1,12/Prem_Freq)=0)),-Calculation!$E$23,IF(K6=(PT*12+1),Calculation!$D$1,0))) -> -5000
B7: =IF(B6>(PT*12),"",B6+1) -> 2 | C7: =IF(B7="","",IF(AND(B7<=2*12,(MOD(B7-1,12/Prem_Freq)=0)),-Calculation!$E$23,IF(B7=(PT*12+1),SUM(Working!$M$4:$M$5)*IF(Variant="Titanium",105%,Calculation!$E$15),0))) -> 0 | E7: =IF(E6>(PT*12),"",E6+1) -> 2 | F7: =IF(E7="","",IF(AND(E7<=3*12,(MOD(E7-1,12/Prem_Freq)=0)),-Calculation!$E$23,IF(E7=(PT*12+1),SUM(Working!$M$4:$M$6)*IF(Variant="Titanium",105%,Calculation!$E$15),0))) -> 0 | H7: =IF(H6>(PT*12),"",H6+1) -> 2 | I7: =IF(H7="","",IF(AND(H7<=4*12,(MOD(H7-1,12/Prem_Freq)=0)),-Calculation!$E$23,IF(H7=(PT*12+1),SUM(Working!$M$4:$M$7)*IF(Variant="Titanium",105%,Calculation!$E$15),0))) -> 0 | K7: =IF(K6>(PT*12),"",K6+1) -> 2 | L7: =IF(K7="","",IF(AND(K7<=PPT*12,(MOD(K7-1,12/Prem_Freq)=0)),-Calculation!$E$23,IF(K7=(PT*12+1),Calculation!$D$1,0))) -> 0
B8: 3 | C8: =IF(B8="","",IF(AND(B8<=2*12,(MOD(B8-1,12/Prem_Freq)=0)),-Calculation!$E$23,IF(B8=(PT*12+1),SUM(Working!$M$4:$M$5)*IF(Variant="Titanium",105%,Calculation!$E$15),0))) -> 0 | E8: 3 | F8: =IF(E8="","",IF(AND(E8<=3*12,(MOD(E8-1,12/Prem_Freq)=0)),-Calculation!$E$23,IF(E8=(PT*12+1),SUM(Working!$M$4:$M$6)*IF(Variant="Titanium",105%,Calculation!$E$15),0))) -> 0 | H8: 3 | I8: =IF(H8="","",IF(AND(H8<=4*12,(MOD(H8-1,12/Prem_Freq)=0)),-Calculation!$E$23,IF(H8=(PT*12+1),SUM(Working!$M$4:$M$7)*IF(Variant="Titanium",105%,Calculation!$E$15),0))) -> 0 | K8: 3 | L8: =IF(K8="","",IF(AND(K8<=PPT*12,(MOD(K8-1,12/Prem_Freq)=0)),-Calculation!$E$23,IF(K8=(PT*12+1),Calculation!$D$1,0))) -> 0
B9: 4 | C9: =IF(B9="","",IF(AND(B9<=2*12,(MOD(B9-1,12/Prem_Freq)=0)),-Calculation!$E$23,IF(B9=(PT*12+1),SUM(Working!$M$4:$M$5)*IF(Variant="Titanium",105%,Calculation!$E$15),0))) -> 0 | E9: 4 | F9: =IF(E9="","",IF(AND(E9<=3*12,(MOD(E9-1,12/Prem_Freq)=0)),-Calculation!$E$23,IF(E9=(PT*12+1),SUM(Working!$M$4:$M$6)*IF(Variant="Titanium",105%,Calculation!$E$15),0))) -> 0 | H9: 4 | I9: =IF(H9="","",IF(AND(H9<=4*12,(MOD(H9-1,12/Prem_Freq)=0)),-Calculation!$E$23,IF(H9=(PT*12+1),SUM(Working!$M$4:$M$7)*IF(Variant="Titanium",105%,Calculation!$E$15),0))) -> 0 | K9: 4 | L9: =IF(K9="","",IF(AND(K9<=PPT*12,(MOD(K9-1,12/Prem_Freq)=0)),-Calculation!$E$23,IF(K9=(PT*12+1),Calculation!$D$1,0))) -> 0
B10: 5 | C10: =IF(B10="","",IF(AND(B10<=2*12,(MOD(B10-1,12/Prem_Freq)=0)),-Calculation!$E$23,IF(B10=(PT*12+1),SUM(Working!$M$4:$M$5)*IF(Variant="Titanium",105%,Calculation!$E$15),0))) -> 0 | E10: 5 | F10: =IF(E10="","",IF(AND(E10<=3*12,(MOD(E10-1,12/Prem_Freq)=0)),-Calculation!$E$23,IF(E10=(PT*12+1),SUM(Working!$M$4:$M$6)*IF(Variant="Titanium",105%,Calculation!$E$15),0))) -> 0 | H10: 5 | I10: =IF(H10="","",IF(AND(H10<=4*12,(MOD(H10-1,12/Prem_Freq)=0)),-Calculation!$E$23,IF(H10=(PT*12+1),SUM(Working!$M$4:$M$7)*IF(Variant="Titanium",105%,Calculation!$E$15),0))) -> 0 | K10: 5 | L10: =IF(K10="","",IF(AND(K10<=PPT*12,(MOD(K10-1,12/Prem_Freq)=0)),-Calculation!$E$23,IF(K10=(PT*12+1),Calculation!$D$1,0))) -> 0
B11: 6 | C11: =IF(B11="","",IF(AND(B11<=2*12,(MOD(B11-1,12/Prem_Freq)=0)),-Calculation!$E$23,IF(B11=(PT*12+1),SUM(Working!$M$4:$M$5)*IF(Variant="Titanium",105%,Calculation!$E$15),0))) -> 0 | E11: 6 | F11: =IF(E11="","",IF(AND(E11<=3*12,(MOD(E11-1,12/Prem_Freq)=0)),-Calculation!$E$23,IF(E11=(PT*12+1),SUM(Working!$M$4:$M$6)*IF(Variant="Titanium",105%,Calculation!$E$15),0))) -> 0 | H11: 6 | I11: =IF(H11="","",IF(AND(H11<=4*12,(MOD(H11-1,12/Prem_Freq)=0)),-Calculation!$E$23,IF(H11=(PT*12+1),SUM(Working!$M$4:$M$7)*IF(Variant="Titanium",105%,Calculation!$E$15),0))) -> 0 | K11: 6 | L11: =IF(K11="","",IF(AND(K11<=PPT*12,(MOD(K11-1,12/Prem_Freq)=0)),-Calculation!$E$23,IF(K11=(PT*12+1),Calculation!$D$1,0))) -> 0
B12: 7 | C12: =IF(B12="","",IF(AND(B12<=2*12,(MOD(B12-1,12/Prem_Freq)=0)),-Calculation!$E$23,IF(B12=(PT*12+1),SUM(Working!$M$4:$M$5)*IF(Variant="Titanium",105%,Calculation!$E$15),0))) -> 0 | E12: 7 | F12: =IF(E12="","",IF(AND(E12<=3*12,(MOD(E12-1,12/Prem_Freq)=0)),-Calculation!$E$23,IF(E12=(PT*12+1),SUM(Working!$M$4:$M$6)*IF(Variant="Titanium",105%,Calculation!$E$15),0))) -> 0 | H12: 7 | I12: =IF(H12="","",IF(AND(H12<=4*12,(MOD(H12-1,12/Prem_Freq)=0)),-Calculation!$E$23,IF(H12=(PT*12+1),SUM(Working!$M$4:$M$7)*IF(Variant="Titanium",105%,Calculation!$E$15),0))) -> 0 | K12: 7 | L12: =IF(K12="","",IF(AND(K12<=PPT*12,(MOD(K12-1,12/Prem_Freq)=0)),-Calculation!$E$23,IF(K12=(PT*12+1),Calculation!$D$1,0))) -> 0
B13: 8 | C13: =IF(B13="","",IF(AND(B13<=2*12,(MOD(B13-1,12/Prem_Freq)=0)),-Calculation!$E$23,IF(B13=(PT*12+1),SUM(Working!$M$4:$M$5)*IF(Variant="Titanium",105%,Calculation!$E$15),0))) -> 0 | E13: 8 | F13: =IF(E13="","",IF(AND(E13<=3*12,(MOD(E13-1,12/Prem_Freq)=0)),-Calculation!$E$23,IF(E13=(PT*12+1),SUM(Working!$M$4:$M$6)*IF(Variant="Titanium",105%,Calculation!$E$15),0))) -> 0 | H13: 8 | I13: =IF(H13="","",IF(AND(H13<=4*12,(MOD(H13-1,12/Prem_Freq)=0)),-Calculation!$E$23,IF(H13=(PT*12+1),SUM(Working!$M$4:$M$7)*IF(Variant="Titanium",105%,Calculation!$E$15),0))) -> 0 | K13: 8 | L13: =IF(K13="","",IF(AND(K13<=PPT*12,(MOD(K13-1,12/Prem_Freq)=0)),-Calculation!$E$23,IF(K13=(PT*12+1),Calculation!$D$1,0))) -> 0
B14: 9 | C14: =IF(B14="","",IF(AND(B14<=2*12,(MOD(B14-1,12/Prem_Freq)=0)),-Calculation!$E$23,IF(B14=(PT*12+1),SUM(Working!$M$4:$M$5)*IF(Variant="Titanium",105%,Calculation!$E$15),0))) -> 0 | E14: 9 | F14: =IF(E14="","",IF(AND(E14<=3*12,(MOD(E14-1,12/Prem_Freq)=0)),-Calculation!$E$23,IF(E14=(PT*12+1),SUM(Working!$M$4:$M$6)*IF(Variant="Titanium",105%,Calculation!$E$15),0))) -> 0 | H14: 9 | I14: =IF(H14="","",IF(AND(H14<=4*12,(MOD(H14-1,12/Prem_Freq)=0)),-Calculation!$E$23,IF(H14=(PT*12+1),SUM(Working!$M$4:$M$7)*IF(Variant="Titanium",105%,Calculation!$E$15),0))) -> 0 | K14: 9 | L14: =IF(K14="","",IF(AND(K14<=PPT*12,(MOD(K14-1,12/Prem_Freq)=0)),-Calculation!$E$23,IF(K14=(PT*12+1),Calculation!$D$1,0))) -> 0
B15: 10 | C15: =IF(B15="","",IF(AND(B15<=2*12,(MOD(B15-1,12/Prem_Freq)=0)),-Calculation!$E$23,IF(B15=(PT*12+1),SUM(Working!$M$4:$M$5)*IF(Variant="Titanium",105%,Calculation!$E$15),0))) -> 0 | E15: 10 | F15: =IF(E15="","",IF(AND(E15<=3*12,(MOD(E15-1,12/Prem_Freq)=0)),-Calculation!$E$23,IF(E15=(PT*12+1),SUM(Working!$M$4:$M$6)*IF(Variant="Titanium",105%,Calculation!$E$15),0))) -> 0 | H15: 10 | I15: =IF(H15="","",IF(AND(H15<=4*12,(MOD(H15-1,12/Prem_Freq)=0)),-Calculation!$E$23,IF(H15=(PT*12+1),SUM(Working!$M$4:$M$7)*IF(Variant="Titanium",105%,Calculation!$E$15),0))) -> 0 | K15: 10 | L15: =IF(K15="","",IF(AND(K15<=PPT*12,(MOD(K15-1,12/Prem_Freq)=0)),-Calculation!$E$23,IF(K15=(PT*12+1),Calculation!$D$1,0))) -> 0
B16: 11 | C16: =IF(B16="","",IF(AND(B16<=2*12,(MOD(B16-1,12/Prem_Freq)=0)),-Calculation!$E$23,IF(B16=(PT*12+1),SUM(Working!$M$4:$M$5)*IF(Variant="Titanium",105%,Calculation!$E$15),0))) -> 0 | E16: 11 | F16: =IF(E16="","",IF(AND(E16<=3*12,(MOD(E16-1,12/Prem_Freq)=0)),-Calculation!$E$23,IF(E16=(PT*12+1),SUM(Working!$M$4:$M$6)*IF(Variant="Titanium",105%,Calculation!$E$15),0))) -> 0 | H16: 11 | I16: =IF(H16="","",IF(AND(H16<=4*12,(MOD(H16-1,12/Prem_Freq)=0)),-Calculation!$E$23,IF(H16=(PT*12+1),SUM(Working!$M$4:$M$7)*IF(Variant="Titanium",105%,Calculation!$E$15),0))) -> 0 | K16: 11 | L16: =IF(K16="","",IF(AND(K16<=PPT*12,(MOD(K16-1,12/Prem_Freq)=0)),-Calculation!$E$23,IF(K16=(PT*12+1),Calculation!$D$1,0))) -> 0
B17: 12 | C17: =IF(B17="","",IF(AND(B17<=2*12,(MOD(B17-1,12/Prem_Freq)=0)),-Calculation!$E$23,IF(B17=(PT*12+1),SUM(Working!$M$4:$M$5)*IF(Variant="Titanium",105%,Calculation!$E$15),0))) -> 0 | E17: 12 | F17: =IF(E17="","",IF(AND(E17<=3*12,(MOD(E17-1,12/Prem_Freq)=0)),-Calculation!$E$23,IF(E17=(PT*12+1),SUM(Working!$M$4:$M$6)*IF(Variant="Titanium",105%,Calculation!$E$15),0))) -> 0 | H17: 12 | I17: =IF(H17="","",IF(AND(H17<=4*12,(MOD(H17-1,12/Prem_Freq)=0)),-Calculation!$E$23,IF(H17=(PT*12+1),SUM(Working!$M$4:$M$7)*IF(Variant="Titanium",105%,Calculation!$E$15),0))) -> 0 | K17: 12 | L17: =IF(K17="","",IF(AND(K17<=PPT*12,(MOD(K17-1,12/Prem_Freq)=0)),-Calculation!$E$23,IF(K17=(PT*12+1),Calculation!$D$1,0))) -> 0
B18: 13 | C18: =IF(B18="","",IF(AND(B18<=2*12,(MOD(B18-1,12/Prem_Freq)=0)),-Calculation!$E$23,IF(B18=(PT*12+1),SUM(Working!$M$4:$M$5)*IF(Variant="Titanium",105%,Calculation!$E$15),0))) -> -5000 | E18: 13 | F18: =IF(E18="","",IF(AND(E18<=3*12,(MOD(E18-1,12/Prem_Freq)=0)),-Calculation!$E$23,IF(E18=(PT*12+1),SUM(Working!$M$4:$M$6)*IF(Variant="Titanium",105%,Calculation!$E$15),0))) -> -5000 | H18: 13 | I18: =IF(H18="","",IF(AND(H18<=4*12,(MOD(H18-1,12/Prem_Freq)=0)),-Calculation!$E$23,IF(H18=(PT*12+1),SUM(Working!$M$4:$M$7)*IF(Variant="Titanium",105%,Calculation!$E$15),0))) -> -5000 | K18: 13 | L18: =IF(K18="","",IF(AND(K18<=PPT*12,(MOD(K18-1,12/Prem_Freq)=0)),-Calculation!$E$23,IF(K18=(PT*12+1),Calculation!$D$1,0))) -> -5000
B19: 14 | C19: =IF(B19="","",IF(AND(B19<=2*12,(MOD(B19-1,12/Prem_Freq)=0)),-Calculation!$E$23,IF(B19=(PT*12+1),SUM(Working!$M$4:$M$5)*IF(Variant="Titanium",105%,Calculation!$E$15),0))) -> 0 | E19: 14 | F19: =IF(E19="","",IF(AND(E19<=3*12,(MOD(E19-1,12/Prem_Freq)=0)),-Calculation!$E$23,IF(E19=(PT*12+1),SUM(Working!$M$4:$M$6)*IF(Variant="Titanium",105%,Calculation!$E$15),0))) -> 0 | H19: 14 | I19: =IF(H19="","",IF(AND(H19<=4*12,(MOD(H19-1,12/Prem_Freq)=0)),-Calculation!$E$23,IF(H19=(PT*12+1),SUM(Working!$M$4:$M$7)*IF(Variant="Titanium",105%,Calculation!$E$15),0))) -> 0 | K19: 14 | L19: =IF(K19="","",IF(AND(K19<=PPT*12,(MOD(K19-1,12/Prem_Freq)=0)),-Calculation!$E$23,IF(K19=(PT*12+1),Calculation!$D$1,0))) -> 0
B20: 15 | C20: =IF(B20="","",IF(AND(B20<=2*12,(MOD(B20-1,12/Prem_Freq)=0)),-Calculation!$E$23,IF(B20=(PT*12+1),SUM(Working!$M$4:$M$5)*IF(Variant="Titanium",105%,Calculation!$E$15),0))) -> 0 | E20: 15 | F20: =IF(E20="","",IF(AND(E20<=3*12,(MOD(E20-1,12/Prem_Freq)=0)),-Calculation!$E$23,IF(E20=(PT*12+1),SUM(Working!$M$4:$M$6)*IF(Variant="Titanium",105%,Calculation!$E$15),0))) -> 0 | H20: 15 | I20: =IF(H20="","",IF(AND(H20<=4*12,(MOD(H20-1,12/Prem_Freq)=0)),-Calculation!$E$23,IF(H20=(PT*12+1),SUM(Working!$M$4:$M$7)*IF(Variant="Titanium",105%,Calculation!$E$15),0))) -> 0 | K20: 15 | L20: =IF(K20="","",IF(AND(K20<=PPT*12,(MOD(K20-1,12/Prem_Freq)=0)),-Calculation!$E$23,IF(K20=(PT*12+1),Calculation!$D$1,0))) -> 0
B21: 16 | C21: =IF(B21="","",IF(AND(B21<=2*12,(MOD(B21-1,12/Prem_Freq)=0)),-Calculation!$E$23,IF(B21=(PT*12+1),SUM(Working!$M$4:$M$5)*IF(Variant="Titanium",105%,Calculation!$E$15),0))) -> 0 | E21: 16 | F21: =IF(E21="","",IF(AND(E21<=3*12,(MOD(E21-1,12/Prem_Freq)=0)),-Calculation!$E$23,IF(E21=(PT*12+1),SUM(Working!$M$4:$M$6)*IF(Variant="Titanium",105%,Calculation!$E$15),0))) -> 0 | H21: 16 | I21: =IF(H21="","",IF(AND(H21<=4*12,(MOD(H21-1,12/Prem_Freq)=0)),-Calculation!$E$23,IF(H21=(PT*12+1),SUM(Working!$M$4:$M$7)*IF(Variant="Titanium",105%,Calculation!$E$15),0))) -> 0 | K21: 16 | L21: =IF(K21="","",IF(AND(K21<=PPT*12,(MOD(K21-1,12/Prem_Freq)=0)),-Calculation!$E$23,IF(K21=(PT*12+1),Calculation!$D$1,0))) -> 0
B22: 17 | C22: =IF(B22="","",IF(AND(B22<=2*12,(MOD(B22-1,12/Prem_Freq)=0)),-Calculation!$E$23,IF(B22=(PT*12+1),SUM(Working!$M$4:$M$5)*IF(Variant="Titanium",105%,Calculation!$E$15),0))) -> 0 | E22: 17 | F22: =IF(E22="","",IF(AND(E22<=3*12,(MOD(E22-1,12/Prem_Freq)=0)),-Calculation!$E$23,IF(E22=(PT*12+1),SUM(Working!$M$4:$M$6)*IF(Variant="Titanium",105%,Calculation!$E$15),0))) -> 0 | H22: 17 | I22: =IF(H22="","",IF(AND(H22<=4*12,(MOD(H22-1,12/Prem_Freq)=0)),-Calculation!$E$23,IF(H22=(PT*12+1),SUM(Working!$M$4:$M$7)*IF(Variant="Titanium",105%,Calculation!$E$15),0))) -> 0 | K22: 17 | L22: =IF(K22="","",IF(AND(K22<=PPT*12,(MOD(K22-1,12/Prem_Freq)=0)),-Calculation!$E$23,IF(K22=(PT*12+1),Calculation!$D$1,0))) -> 0
B23: 18 | C23: =IF(B23="","",IF(AND(B23<=2*12,(MOD(B23-1,12/Prem_Freq)=0)),-Calculation!$E$23,IF(B23=(PT*12+1),SUM(Working!$M$4:$M$5)*IF(Variant="Titanium",105%,Calculation!$E$15),0))) -> 0 | E23: 18 | F23: =IF(E23="","",IF(AND(E23<=3*12,(MOD(E23-1,12/Prem_Freq)=0)),-Calculation!$E$23,IF(E23=(PT*12+1),SUM(Working!$M$4:$M$6)*IF(Variant="Titanium",105%,Calculation!$E$15),0))) -> 0 | H23: 18 | I23: =IF(H23="","",IF(AND(H23<=4*12,(MOD(H23-1,12/Prem_Freq)=0)),-Calculation!$E$23,IF(H23=(PT*12+1),SUM(Working!$M$4:$M$7)*IF(Variant="Titanium",105%,Calculation!$E$15),0))) -> 0 | K23: 18 | L23: =IF(K23="","",IF(AND(K23<=PPT*12,(MOD(K23-1,12/Prem_Freq)=0)),-Calculation!$E$23,IF(K23=(PT*12+1),Calculation!$D$1,0))) -> 0
B24: 19 | C24: =IF(B24="","",IF(AND(B24<=2*12,(MOD(B24-1,12/Prem_Freq)=0)),-Calculation!$E$23,IF(B24=(PT*12+1),SUM(Working!$M$4:$M$5)*IF(Variant="Titanium",105%,Calculation!$E$15),0))) -> 0 | E24: 19 | F24: =IF(E24="","",IF(AND(E24<=3*12,(MOD(E24-1,12/Prem_Freq)=0)),-Calculation!$E$23,IF(E24=(PT*12+1),SUM(Working!$M$4:$M$6)*IF(Variant="Titanium",105%,Calculation!$E$15),0))) -> 0 | H24: 19 | I24: =IF(H24="","",IF(AND(H24<=4*12,(MOD(H24-1,12/Prem_Freq)=0)),-Calculation!$E$23,IF(H24=(PT*12+1),SUM(Working!$M$4:$M$7)*IF(Variant="Titanium",105%,Calculation!$E$15),0))) -> 0 | K24: 19 | L24: =IF(K24="","",IF(AND(K24<=PPT*12,(MOD(K24-1,12/Prem_Freq)=0)),-Calculation!$E$23,IF(K24=(PT*12+1),Calculation!$D$1,0))) -> 0
B25: 20 | C25: =IF(B25="","",IF(AND(B25<=2*12,(MOD(B25-1,12/Prem_Freq)=0)),-Calculation!$E$23,IF(B25=(PT*12+1),SUM(Working!$M$4:$M$5)*IF(Variant="Titanium",105%,Calculation!$E$15),0))) -> 0 | E25: 20 | F25: =IF(E25="","",IF(AND(E25<=3*12,(MOD(E25-1,12/Prem_Freq)=0)),-Calculation!$E$23,IF(E25=(PT*12+1),SUM(Working!$M$4:$M$6)*IF(Variant="Titanium",105%,Calculation!$E$15),0))) -> 0 | H25: 20 | I25: =IF(H25="","",IF(AND(H25<=4*12,(MOD(H25-1,12/Prem_Freq)=0)),-Calculation!$E$23,IF(H25=(PT*12+1),SUM(Working!$M$4:$M$7)*IF(Variant="Titanium",105%,Calculation!$E$15),0))) -> 0 | K25: 20 | L25: =IF(K25="","",IF(AND(K25<=PPT*12,(MOD(K25-1,12/Prem_Freq)=0)),-Calculation!$E$23,IF(K25=(PT*12+1),Calculation!$D$1,0))) -> 0
B26: 21 | C26: =IF(B26="","",IF(AND(B26<=2*12,(MOD(B26-1,12/Prem_Freq)=0)),-Calculation!$E$23,IF(B26=(PT*12+1),SUM(Working!$M$4:$M$5)*IF(Variant="Titanium",105%,Calculation!$E$15),0))) -> 0 | E26: 21 | F26: =IF(E26="","",IF(AND(E26<=3*12,(MOD(E26-1,12/Prem_Freq)=0)),-Calculation!$E$23,IF(E26=(PT*12+1),SUM(Working!$M$4:$M$6)*IF(Variant="Titanium",105%,Calculation!$E$15),0))) -> 0 | H26: 21 | I26: =IF(H26="","",IF(AND(H26<=4*12,(MOD(H26-1,12/Prem_Freq)=0)),-Calculation!$E$23,IF(H26=(PT*12+1),SUM(Working!$M$4:$M$7)*IF(Variant="Titanium",105%,Calculation!$E$15),0))) -> 0 | K26: 21 | L26: =IF(K26="","",IF(AND(K26<=PPT*12,(MOD(K26-1,12/Prem_Freq)=0)),-Calculation!$E$23,IF(K26=(PT*12+1),Calculation!$D$1,0))) -> 0
B27: 22 | C27: =IF(B27="","",IF(AND(B27<=2*12,(MOD(B27-1,12/Prem_Freq)=0)),-Calculation!$E$23,IF(B27=(PT*12+1),SUM(Working!$M$4:$M$5)*IF(Variant="Titanium",105%,Calculation!$E$15),0))) -> 0 | E27: 22 | F27: =IF(E27="","",IF(AND(E27<=3*12,(MOD(E27-1,12/Prem_Freq)=0)),-Calculation!$E$23,IF(E27=(PT*12+1),SUM(Working!$M$4:$M$6)*IF(Variant="Titanium",105%,Calculation!$E$15),0))) -> 0 | H27: 22 | I27: =IF(H27="","",IF(AND(H27<=4*12,(MOD(H27-1,12/Prem_Freq)=0)),-Calculation!$E$23,IF(H27=(PT*12+1),SUM(Working!$M$4:$M$7)*IF(Variant="Titanium",105%,Calculation!$E$15),0))) -> 0 | K27: 22 | L27: =IF(K27="","",IF(AND(K27<=PPT*12,(MOD(K27-1,12/Prem_Freq)=0)),-Calculation!$E$23,IF(K27=(PT*12+1),Calculation!$D$1,0))) -> 0
B28: 23 | C28: =IF(B28="","",IF(AND(B28<=2*12,(MOD(B28-1,12/Prem_Freq)=0)),-Calculation!$E$23,IF(B28=(PT*12+1),SUM(Working!$M$4:$M$5)*IF(Variant="Titanium",105%,Calculation!$E$15),0))) -> 0 | E28: 23 | F28: =IF(E28="","",IF(AND(E28<=3*12,(MOD(E28-1,12/Prem_Freq)=0)),-Calculation!$E$23,IF(E28=(PT*12+1),SUM(Working!$M$4:$M$6)*IF(Variant="Titanium",105%,Calculation!$E$15),0))) -> 0 | H28: 23 | I28: =IF(H28="","",IF(AND(H28<=4*12,(MOD(H28-1,12/Prem_Freq)=0)),-Calculation!$E$23,IF(H28=(PT*12+1),SUM(Working!$M$4:$M$7)*IF(Variant="Titanium",105%,Calculation!$E$15),0))) -> 0 | K28: 23 | L28: =IF(K28="","",IF(AND(K28<=PPT*12,(MOD(K28-1,12/Prem_Freq)=0)),-Calculation!$E$23,IF(K28=(PT*12+1),Calculation!$D$1,0))) -> 0
B29: 24 | C29: =IF(B29="","",IF(AND(B29<=2*12,(MOD(B29-1,12/Prem_Freq)=0)),-Calculation!$E$23,IF(B29=(PT*12+1),SUM(Working!$M$4:$M$5)*IF(Variant="Titanium",105%,Calculation!$E$15),0))) -> 0 | E29: 24 | F29: =IF(E29="","",IF(AND(E29<=3*12,(MOD(E29-1,12/Prem_Freq)=0)),-Calculation!$E$23,IF(E29=(PT*12+1),SUM(Working!$M$4:$M$6)*IF(Variant="Titanium",105%,Calculation!$E$15),0))) -> 0 | H29: 24 | I29: =IF(H29="","",IF(AND(H29<=4*12,(MOD(H29-1,12/Prem_Freq)=0)),-Calculation!$E$23,IF(H29=(PT*12+1),SUM(Working!$M$4:$M$7)*IF(Variant="Titanium",105%,Calculation!$E$15),0))) -> 0 | K29: 24 | L29: =IF(K29="","",IF(AND(K29<=PPT*12,(MOD(K29-1,12/Prem_Freq)=0)),-Calculation!$E$23,IF(K29=(PT*12+1),Calculation!$D$1,0))) -> 0
B30: 25 | C30: =IF(B30="","",IF(AND(B30<=2*12,(MOD(B30-1,12/Prem_Freq)=0)),-Calculation!$E$23,IF(B30=(PT*12+1),SUM(Working!$M$4:$M$5)*IF(Variant="Titanium",105%,Calculation!$E$15),0))) -> 0 | E30: 25 | F30: =IF(E30="","",IF(AND(E30<=3*12,(MOD(E30-1,12/Prem_Freq)=0)),-Calculation!$E$23,IF(E30=(PT*12+1),SUM(Working!$M$4:$M$6)*IF(Variant="Titanium",105%,Calculation!$E$15),0))) -> -5000 | H30: 25 | I30: =IF(H30="","",IF(AND(H30<=4*12,(MOD(H30-1,12/Prem_Freq)=0)),-Calculation!$E$23,IF(H30=(PT*12+1),SUM(Working!$M$4:$M$7)*IF(Variant="Titanium",105%,Calculation!$E$15),0))) -> -5000 | K30: 25 | L30: =IF(K30="","",IF(AND(K30<=PPT*12,(MOD(K30-1,12/Prem_Freq)=0)),-Calculation!$E$23,IF(K30=(PT*12+1),Calculation!$D$1,0))) -> -5000
B31: 26 | C31: =IF(B31="","",IF(AND(B31<=2*12,(MOD(B31-1,12/Prem_Freq)=0)),-Calculation!$E$23,IF(B31=(PT*12+1),SUM(Working!$M$4:$M$5)*IF(Variant="Titanium",105%,Calculation!$E$15),0))) -> 0 | E31: 26 | F31: =IF(E31="","",IF(AND(E31<=3*12,(MOD(E31-1,12/Prem_Freq)=0)),-Calculation!$E$23,IF(E31=(PT*12+1),SUM(Working!$M$4:$M$6)*IF(Variant="Titanium",105%,Calculation!$E$15),0))) -> 0 | H31: 26 | I31: =IF(H31="","",IF(AND(H31<=4*12,(MOD(H31-1,12/Prem_Freq)=0)),-Calculation!$E$23,IF(H31=(PT*12+1),SUM(Working!$M$4:$M$7)*IF(Variant="Titanium",105%,Calculation!$E$15),0))) -> 0 | K31: 26 | L31: =IF(K31="","",IF(AND(K31<=PPT*12,(MOD(K31-1,12/Prem_Freq)=0)),-Calculation!$E$23,IF(K31=(PT*12+1),Calculation!$D$1,0))) -> 0
B32: 27 | C32: =IF(B32="","",IF(AND(B32<=2*12,(MOD(B32-1,12/Prem_Freq)=0)),-Calculation!$E$23,IF(B32=(PT*12+1),SUM(Working!$M$4:$M$5)*IF(Variant="Titanium",105%,Calculation!$E$15),0))) -> 0 | E32: 27 | F32: =IF(E32="","",IF(AND(E32<=3*12,(MOD(E32-1,12/Prem_Freq)=0)),-Calculation!$E$23,IF(E32=(PT*12+1),SUM(Working!$M$4:$M$6)*IF(Variant="Titanium",105%,Calculation!$E$15),0))) -> 0 | H32: 27 | I32: =IF(H32="","",IF(AND(H32<=4*12,(MOD(H32-1,12/Prem_Freq)=0)),-Calculation!$E$23,IF(H32=(PT*12+1),SUM(Working!$M$4:$M$7)*IF(Variant="Titanium",105%,Calculation!$E$15),0))) -> 0 | K32: 27 | L32: =IF(K32="","",IF(AND(K32<=PPT*12,(MOD(K32-1,12/Prem_Freq)=0)),-Calculation!$E$23,IF(K32=(PT*12+1),Calculation!$D$1,0))) -> 0
B33: 28 | C33: =IF(B33="","",IF(AND(B33<=2*12,(MOD(B33-1,12/Prem_Freq)=0)),-Calculation!$E$23,IF(B33=(PT*12+1),SUM(Working!$M$4:$M$5)*IF(Variant="Titanium",105%,Calculation!$E$15),0))) -> 0 | E33: 28 | F33: =IF(E33="","",IF(AND(E33<=3*12,(MOD(E33-1,12/Prem_Freq)=0)),-Calculation!$E$23,IF(E33=(PT*12+1),SUM(Working!$M$4:$M$6)*IF(Variant="Titanium",105%,Calculation!$E$15),0))) -> 0 | H33: 28 | I33: =IF(H33="","",IF(AND(H33<=4*12,(MOD(H33-1,12/Prem_Freq)=0)),-Calculation!$E$23,IF(H33=(PT*12+1),SUM(Working!$M$4:$M$7)*IF(Variant="Titanium",105%,Calculation!$E$15),0))) -> 0 | K33: 28 | L33: =IF(K33="","",IF(AND(K33<=PPT*12,(MOD(K33-1,12/Prem_Freq)=0)),-Calculation!$E$23,IF(K33=(PT*12+1),Calculation!$D$1,0))) -> 0
B34: 29 | C34: =IF(B34="","",IF(AND(B34<=2*12,(MOD(B34-1,12/Prem_Freq)=0)),-Calculation!$E$23,IF(B34=(PT*12+1),SUM(Working!$M$4:$M$5)*IF(Variant="Titanium",105%,Calculation!$E$15),0))) -> 0 | E34: 29 | F34: =IF(E34="","",IF(AND(E34<=3*12,(MOD(E34-1,12/Prem_Freq)=0)),-Calculation!$E$23,IF(E34=(PT*12+1),SUM(Working!$M$4:$M$6)*IF(Variant="Titanium",105%,Calculation!$E$15),0))) -> 0 | H34: 29 | I34: =IF(H34="","",IF(AND(H34<=4*12,(MOD(H34-1,12/Prem_Freq)=0)),-Calculation!$E$23,IF(H34=(PT*12+1),SUM(Working!$M$4:$M$7)*IF(Variant="Titanium",105%,Calculation!$E$15),0))) -> 0 | K34: 29 | L34: =IF(K34="","",IF(AND(K34<=PPT*12,(MOD(K34-1,12/Prem_Freq)=0)),-Calculation!$E$23,IF(K34=(PT*12+1),Calculation!$D$1,0))) -> 0
B35: 30 | C35: =IF(B35="","",IF(AND(B35<=2*12,(MOD(B35-1,12/Prem_Freq)=0)),-Calculation!$E$23,IF(B35=(PT*12+1),SUM(Working!$M$4:$M$5)*IF(Variant="Titanium",105%,Calculation!$E$15),0))) -> 0 | E35: 30 | F35: =IF(E35="","",IF(AND(E35<=3*12,(MOD(E35-1,12/Prem_Freq)=0)),-Calculation!$E$23,IF(E35=(PT*12+1),SUM(Working!$M$4:$M$6)*IF(Variant="Titanium",105%,Calculation!$E$15),0))) -> 0 | H35: 30 | I35: =IF(H35="","",IF(AND(H35<=4*12,(MOD(H35-1,12/Prem_Freq)=0)),-Calculation!$E$23,IF(H35=(PT*12+1),SUM(Working!$M$4:$M$7)*IF(Variant="Titanium",105%,Calculation!$E$15),0))) -> 0 | K35: 30 | L35: =IF(K35="","",IF(AND(K35<=PPT*12,(MOD(K35-1,12/Prem_Freq)=0)),-Calculation!$E$23,IF(K35=(PT*12+1),Calculation!$D$1,0))) -> 0
B36: 31 | C36: =IF(B36="","",IF(AND(B36<=2*12,(MOD(B36-1,12/Prem_Freq)=0)),-Calculation!$E$23,IF(B36=(PT*12+1),SUM(Working!$M$4:$M$5)*IF(Variant="Titanium",105%,Calculation!$E$15),0))) -> 0 | E36: 31 | F36: =IF(E36="","",IF(AND(E36<=3*12,(MOD(E36-1,12/Prem_Freq)=0)),-Calculation!$E$23,IF(E36=(PT*12+1),SUM(Working!$M$4:$M$6)*IF(Variant="Titanium",105%,Calculation!$E$15),0))) -> 0 | H36: 31 | I36: =IF(H36="","",IF(AND(H36<=4*12,(MOD(H36-1,12/Prem_Freq)=0)),-Calculation!$E$23,IF(H36=(PT*12+1),SUM(Working!$M$4:$M$7)*IF(Variant="Titanium",105%,Calculation!$E$15),0))) -> 0 | K36: 31 | L36: =IF(K36="","",IF(AND(K36<=PPT*12,(MOD(K36-1,12/Prem_Freq)=0)),-Calculation!$E$23,IF(K36=(PT*12+1),Calculation!$D$1,0))) -> 0
B37: 32 | C37: =IF(B37="","",IF(AND(B37<=2*12,(MOD(B37-1,12/Prem_Freq)=0)),-Calculation!$E$23,IF(B37=(PT*12+1),SUM(Working!$M$4:$M$5)*IF(Variant="Titanium",105%,Calculation!$E$15),0))) -> 0 | E37: 32 | F37: =IF(E37="","",IF(AND(E37<=3*12,(MOD(E37-1,12/Prem_Freq)=0)),-Calculation!$E$23,IF(E37=(PT*12+1),SUM(Working!$M$4:$M$6)*IF(Variant="Titanium",105%,Calculation!$E$15),0))) -> 0 | H37: 32 | I37: =IF(H37="","",IF(AND(H37<=4*12,(MOD(H37-1,12/Prem_Freq)=0)),-Calculation!$E$23,IF(H37=(PT*12+1),SUM(Working!$M$4:$M$7)*IF(Variant="Titanium",105%,Calculation!$E$15),0))) -> 0 | K37: 32 | L37: =IF(K37="","",IF(AND(K37<=PPT*12,(MOD(K37-1,12/Prem_Freq)=0)),-Calculation!$E$23,IF(K37=(PT*12+1),Calculation!$D$1,0))) -> 0
B38: 33 | C38: =IF(B38="","",IF(AND(B38<=2*12,(MOD(B38-1,12/Prem_Freq)=0)),-Calculation!$E$23,IF(B38=(PT*12+1),SUM(Working!$M$4:$M$5)*IF(Variant="Titanium",105%,Calculation!$E$15),0))) -> 0 | E38: 33 | F38: =IF(E38="","",IF(AND(E38<=3*12,(MOD(E38-1,12/Prem_Freq)=0)),-Calculation!$E$23,IF(E38=(PT*12+1),SUM(Working!$M$4:$M$6)*IF(Variant="Titanium",105%,Calculation!$E$15),0))) -> 0 | H38: 33 | I38: =IF(H38="","",IF(AND(H38<=4*12,(MOD(H38-1,12/Prem_Freq)=0)),-Calculation!$E$23,IF(H38=(PT*12+1),SUM(Working!$M$4:$M$7)*IF(Variant="Titanium",105%,Calculation!$E$15),0))) -> 0 | K38: 33 | L38: =IF(K38="","",IF(AND(K38<=PPT*12,(MOD(K38-1,12/Prem_Freq)=0)),-Calculation!$E$23,IF(K38=(PT*12+1),Calculation!$D$1,0))) -> 0
B39: 34 | C39: =IF(B39="","",IF(AND(B39<=2*12,(MOD(B39-1,12/Prem_Freq)=0)),-Calculation!$E$23,IF(B39=(PT*12+1),SUM(Working!$M$4:$M$5)*IF(Variant="Titanium",105%,Calculation!$E$15),0))) -> 0 | E39: 34 | F39: =IF(E39="","",IF(AND(E39<=3*12,(MOD(E39-1,12/Prem_Freq)=0)),-Calculation!$E$23,IF(E39=(PT*12+1),SUM(Working!$M$4:$M$6)*IF(Variant="Titanium",105%,Calculation!$E$15),0))) -> 0 | H39: 34 | I39: =IF(H39="","",IF(AND(H39<=4*12,(MOD(H39-1,12/Prem_Freq)=0)),-Calculation!$E$23,IF(H39=(PT*12+1),SUM(Working!$M$4:$M$7)*IF(Variant="Titanium",105%,Calculation!$E$15),0))) -> 0 | K39: 34 | L39: =IF(K39="","",IF(AND(K39<=PPT*12,(MOD(K39-1,12/Prem_Freq)=0)),-Calculation!$E$23,IF(K39=(PT*12+1),Calculation!$D$1,0))) -> 0
B40: 35 | C40: =IF(B40="","",IF(AND(B40<=2*12,(MOD(B40-1,12/Prem_Freq)=0)),-Calculation!$E$23,IF(B40=(PT*12+1),SUM(Working!$M$4:$M$5)*IF(Variant="Titanium",105%,Calculation!$E$15),0))) -> 0 | E40: 35 | F40: =IF(E40="","",IF(AND(E40<=3*12,(MOD(E40-1,12/Prem_Freq)=0)),-Calculation!$E$23,IF(E40=(PT*12+1),SUM(Working!$M$4:$M$6)*IF(Variant="Titanium",105%,Calculation!$E$15),0))) -> 0 | H40: 35 | I40: =IF(H40="","",IF(AND(H40<=4*12,(MOD(H40-1,12/Prem_Freq)=0)),-Calculation!$E$23,IF(H40=(PT*12+1),SUM(Working!$M$4:$M$7)*IF(Variant="Titanium",105%,Calculation!$E$15),0))) -> 0 | K40: 35 | L40: =IF(K40="","",IF(AND(K40<=PPT*12,(MOD(K40-1,12/Prem_Freq)=0)),-Calculation!$E$23,IF(K40=(PT*12+1),Calculation!$D$1,0))) -> 0
B41: 36 | C41: =IF(B41="","",IF(AND(B41<=2*12,(MOD(B41-1,12/Prem_Freq)=0)),-Calculation!$E$23,IF(B41=(PT*12+1),SUM(Working!$M$4:$M$5)*IF(Variant="Titanium",105%,Calculation!$E$15),0))) -> 0 | E41: 36 | F41: =IF(E41="","",IF(AND(E41<=3*12,(MOD(E41-1,12/Prem_Freq)=0)),-Calculation!$E$23,IF(E41=(PT*12+1),SUM(Working!$M$4:$M$6)*IF(Variant="Titanium",105%,Calculation!$E$15),0))) -> 0 | H41: 36 | I41: =IF(H41="","",IF(AND(H41<=4*12,(MOD(H41-1,12/Prem_Freq)=0)),-Calculation!$E$23,IF(H41=(PT*12+1),SUM(Working!$M$4:$M$7)*IF(Variant="Titanium",105%,Calculation!$E$15),0))) -> 0 | K41: 36 | L41: =IF(K41="","",IF(AND(K41<=PPT*12,(MOD(K41-1,12/Prem_Freq)=0)),-Calculation!$E$23,IF(K41=(PT*12+1),Calculation!$D$1,0))) -> 0
B42: 37 | C42: =IF(B42="","",IF(AND(B42<=2*12,(MOD(B42-1,12/Prem_Freq)=0)),-Calculation!$E$23,IF(B42=(PT*12+1),SUM(Working!$M$4:$M$5)*IF(Variant="Titanium",105%,Calculation!$E$15),0))) -> 0 | E42: 37 | F42: =IF(E42="","",IF(AND(E42<=3*12,(MOD(E42-1,12/Prem_Freq)=0)),-Calculation!$E$23,IF(E42=(PT*12+1),SUM(Working!$M$4:$M$6)*IF(Variant="Titanium",105%,Calculation!$E$15),0))) -> 0 | H42: 37 | I42: =IF(H42="","",IF(AND(H42<=4*12,(MOD(H42-1,12/Prem_Freq)=0)),-Calculation!$E$23,IF(H42=(PT*12+1),SUM(Working!$M$4:$M$7)*IF(Variant="Titanium",105%,Calculation!$E$15),0))) -> -5000 | K42: 37 | L42: =IF(K42="","",IF(AND(K42<=PPT*12,(MOD(K42-1,12/Prem_Freq)=0)),-Calculation!$E$23,IF(K42=(PT*12+1),Calculation!$D$1,0))) -> -5000
B43: 38 | C43: =IF(B43="","",IF(AND(B43<=2*12,(MOD(B43-1,12/Prem_Freq)=0)),-Calculation!$E$23,IF(B43=(PT*12+1),SUM(Working!$M$4:$M$5)*IF(Variant="Titanium",105%,Calculation!$E$15),0))) -> 0 | E43: 38 | F43: =IF(E43="","",IF(AND(E43<=3*12,(MOD(E43-1,12/Prem_Freq)=0)),-Calculation!$E$23,IF(E43=(PT*12+1),SUM(Working!$M$4:$M$6)*IF(Variant="Titanium",105%,Calculation!$E$15),0))) -> 0 | H43: 38 | I43: =IF(H43="","",IF(AND(H43<=4*12,(MOD(H43-1,12/Prem_Freq)=0)),-Calculation!$E$23,IF(H43=(PT*12+1),SUM(Working!$M$4:$M$7)*IF(Variant="Titanium",105%,Calculation!$E$15),0))) -> 0 | K43: 38 | L43: =IF(K43="","",IF(AND(K43<=PPT*12,(MOD(K43-1,12/Prem_Freq)=0)),-Calculation!$E$23,IF(K43=(PT*12+1),Calculation!$D$1,0))) -> 0
B44: 39 | C44: =IF(B44="","",IF(AND(B44<=2*12,(MOD(B44-1,12/Prem_Freq)=0)),-Calculation!$E$23,IF(B44=(PT*12+1),SUM(Working!$M$4:$M$5)*IF(Variant="Titanium",105%,Calculation!$E$15),0))) -> 0 | E44: 39 | F44: =IF(E44="","",IF(AND(E44<=3*12,(MOD(E44-1,12/Prem_Freq)=0)),-Calculation!$E$23,IF(E44=(PT*12+1),SUM(Working!$M$4:$M$6)*IF(Variant="Titanium",105%,Calculation!$E$15),0))) -> 0 | H44: 39 | I44: =IF(H44="","",IF(AND(H44<=4*12,(MOD(H44-1,12/Prem_Freq)=0)),-Calculation!$E$23,IF(H44=(PT*12+1),SUM(Working!$M$4:$M$7)*IF(Variant="Titanium",105%,Calculation!$E$15),0))) -> 0 | K44: 39 | L44: =IF(K44="","",IF(AND(K44<=PPT*12,(MOD(K44-1,12/Prem_Freq)=0)),-Calculation!$E$23,IF(K44=(PT*12+1),Calculation!$D$1,0))) -> 0
B45: 40 | C45: =IF(B45="","",IF(AND(B45<=2*12,(MOD(B45-1,12/Prem_Freq)=0)),-Calculation!$E$23,IF(B45=(PT*12+1),SUM(Working!$M$4:$M$5)*IF(Variant="Titanium",105%,Calculation!$E$15),0))) -> 0 | E45: 40 | F45: =IF(E45="","",IF(AND(E45<=3*12,(MOD(E45-1,12/Prem_Freq)=0)),-Calculation!$E$23,IF(E45=(PT*12+1),SUM(Working!$M$4:$M$6)*IF(Variant="Titanium",105%,Calculation!$E$15),0))) -> 0 | H45: 40 | I45: =IF(H45="","",IF(AND(H45<=4*12,(MOD(H45-1,12/Prem_Freq)=0)),-Calculation!$E$23,IF(H45=(PT*12+1),SUM(Working!$M$4:$M$7)*IF(Variant="Titanium",105%,Calculation!$E$15),0))) -> 0 | K45: 40 | L45: =IF(K45="","",IF(AND(K45<=PPT*12,(MOD(K45-1,12/Prem_Freq)=0)),-Calculation!$E$23,IF(K45=(PT*12+1),Calculation!$D$1,0))) -> 0
B46: 41 | C46: =IF(B46="","",IF(AND(B46<=2*12,(MOD(B46-1,12/Prem_Freq)=0)),-Calculation!$E$23,IF(B46=(PT*12+1),SUM(Working!$M$4:$M$5)*IF(Variant="Titanium",105%,Calculation!$E$15),0))) -> 0 | E46: 41 | F46: =IF(E46="","",IF(AND(E46<=3*12,(MOD(E46-1,12/Prem_Freq)=0)),-Calculation!$E$23,IF(E46=(PT*12+1),SUM(Working!$M$4:$M$6)*IF(Variant="Titanium",105%,Calculation!$E$15),0))) -> 0 | H46: 41 | I46: =IF(H46="","",IF(AND(H46<=4*12,(MOD(H46-1,12/Prem_Freq)=0)),-Calculation!$E$23,IF(H46=(PT*12+1),SUM(Working!$M$4:$M$7)*IF(Variant="Titanium",105%,Calculation!$E$15),0))) -> 0 | K46: 41 | L46: =IF(K46="","",IF(AND(K46<=PPT*12,(MOD(K46-1,12/Prem_Freq)=0)),-Calculation!$E$23,IF(K46=(PT*12+1),Calculation!$D$1,0))) -> 0
B47: 42 | C47: =IF(B47="","",IF(AND(B47<=2*12,(MOD(B47-1,12/Prem_Freq)=0)),-Calculation!$E$23,IF(B47=(PT*12+1),SUM(Working!$M$4:$M$5)*IF(Variant="Titanium",105%,Calculation!$E$15),0))) -> 0 | E47: 42 | F47: =IF(E47="","",IF(AND(E47<=3*12,(MOD(E47-1,12/Prem_Freq)=0)),-Calculation!$E$23,IF(E47=(PT*12+1),SUM(Working!$M$4:$M$6)*IF(Variant="Titanium",105%,Calculation!$E$15),0))) -> 0 | H47: 42 | I47: =IF(H47="","",IF(AND(H47<=4*12,(MOD(H47-1,12/Prem_Freq)=0)),-Calculation!$E$23,IF(H47=(PT*12+1),SUM(Working!$M$4:$M$7)*IF(Variant="Titanium",105%,Calculation!$E$15),0))) -> 0 | K47: 42 | L47: =IF(K47="","",IF(AND(K47<=PPT*12,(MOD(K47-1,12/Prem_Freq)=0)),-Calculation!$E$23,IF(K47=(PT*12+1),Calculation!$D$1,0))) -> 0
B48: 43 | C48: =IF(B48="","",IF(AND(B48<=2*12,(MOD(B48-1,12/Prem_Freq)=0)),-Calculation!$E$23,IF(B48=(PT*12+1),SUM(Working!$M$4:$M$5)*IF(Variant="Titanium",105%,Calculation!$E$15),0))) -> 0 | E48: 43 | F48: =IF(E48="","",IF(AND(E48<=3*12,(MOD(E48-1,12/Prem_Freq)=0)),-Calculation!$E$23,IF(E48=(PT*12+1),SUM(Working!$M$4:$M$6)*IF(Variant="Titanium",105%,Calculation!$E$15),0))) -> 0 | H48: 43 | I48: =IF(H48="","",IF(AND(H48<=4*12,(MOD(H48-1,12/Prem_Freq)=0)),-Calculation!$E$23,IF(H48=(PT*12+1),SUM(Working!$M$4:$M$7)*IF(Variant="Titanium",105%,Calculation!$E$15),0))) -> 0 | K48: 43 | L48: =IF(K48="","",IF(AND(K48<=PPT*12,(MOD(K48-1,12/Prem_Freq)=0)),-Calculation!$E$23,IF(K48=(PT*12+1),Calculation!$D$1,0))) -> 0
B49: 44 | C49: =IF(B49="","",IF(AND(B49<=2*12,(MOD(B49-1,12/Prem_Freq)=0)),-Calculation!$E$23,IF(B49=(PT*12+1),SUM(Working!$M$4:$M$5)*IF(Variant="Titanium",105%,Calculation!$E$15),0))) -> 0 | E49: 44 | F49: =IF(E49="","",IF(AND(E49<=3*12,(MOD(E49-1,12/Prem_Freq)=0)),-Calculation!$E$23,IF(E49=(PT*12+1),SUM(Working!$M$4:$M$6)*IF(Variant="Titanium",105%,Calculation!$E$15),0))) -> 0 | H49: 44 | I49: =IF(H49="","",IF(AND(H49<=4*12,(MOD(H49-1,12/Prem_Freq)=0)),-Calculation!$E$23,IF(H49=(PT*12+1),SUM(Working!$M$4:$M$7)*IF(Variant="Titanium",105%,Calculation!$E$15),0))) -> 0 | K49: 44 | L49: =IF(K49="","",IF(AND(K49<=PPT*12,(MOD(K49-1,12/Prem_Freq)=0)),-Calculation!$E$23,IF(K49=(PT*12+1),Calculation!$D$1,0))) -> 0
B50: 45 | C50: =IF(B50="","",IF(AND(B50<=2*12,(MOD(B50-1,12/Prem_Freq)=0)),-Calculation!$E$23,IF(B50=(PT*12+1),SUM(Working!$M$4:$M$5)*IF(Variant="Titanium",105%,Calculation!$E$15),0))) -> 0 | E50: 45 | F50: =IF(E50="","",IF(AND(E50<=3*12,(MOD(E50-1,12/Prem_Freq)=0)),-Calculation!$E$23,IF(E50=(PT*12+1),SUM(Working!$M$4:$M$6)*IF(Variant="Titanium",105%,Calculation!$E$15),0))) -> 0 | H50: 45 | I50: =IF(H50="","",IF(AND(H50<=4*12,(MOD(H50-1,12/Prem_Freq)=0)),-Calculation!$E$23,IF(H50=(PT*12+1),SUM(Working!$M$4:$M$7)*IF(Variant="Titanium",105%,Calculation!$E$15),0))) -> 0 | K50: 45 | L50: =IF(K50="","",IF(AND(K50<=PPT*12,(MOD(K50-1,12/Prem_Freq)=0)),-Calculation!$E$23,IF(K50=(PT*12+1),Calculation!$D$1,0))) -> 0
B51: 46 | C51: =IF(B51="","",IF(AND(B51<=2*12,(MOD(B51-1,12/Prem_Freq)=0)),-Calculation!$E$23,IF(B51=(PT*12+1),SUM(Working!$M$4:$M$5)*IF(Variant="Titanium",105%,Calculation!$E$15),0))) -> 0 | E51: 46 | F51: =IF(E51="","",IF(AND(E51<=3*12,(MOD(E51-1,12/Prem_Freq)=0)),-Calculation!$E$23,IF(E51=(PT*12+1),SUM(Working!$M$4:$M$6)*IF(Variant="Titanium",105%,Calculation!$E$15),0))) -> 0 | H51: 46 | I51: =IF(H51="","",IF(AND(H51<=4*12,(MOD(H51-1,12/Prem_Freq)=0)),-Calculation!$E$23,IF(H51=(PT*12+1),SUM(Working!$M$4:$M$7)*IF(Variant="Titanium",105%,Calculation!$E$15),0))) -> 0 | K51: 46 | L51: =IF(K51="","",IF(AND(K51<=PPT*12,(MOD(K51-1,12/Prem_Freq)=0)),-Calculation!$E$23,IF(K51=(PT*12+1),Calculation!$D$1,0))) -> 0
B52: 47 | C52: =IF(B52="","",IF(AND(B52<=2*12,(MOD(B52-1,12/Prem_Freq)=0)),-Calculation!$E$23,IF(B52=(PT*12+1),SUM(Working!$M$4:$M$5)*IF(Variant="Titanium",105%,Calculation!$E$15),0))) -> 0 | E52: 47 | F52: =IF(E52="","",IF(AND(E52<=3*12,(MOD(E52-1,12/Prem_Freq)=0)),-Calculation!$E$23,IF(E52=(PT*12+1),SUM(Working!$M$4:$M$6)*IF(Variant="Titanium",105%,Calculation!$E$15),0))) -> 0 | H52: 47 | I52: =IF(H52="","",IF(AND(H52<=4*12,(MOD(H52-1,12/Prem_Freq)=0)),-Calculation!$E$23,IF(H52=(PT*12+1),SUM(Working!$M$4:$M$7)*IF(Variant="Titanium",105%,Calculation!$E$15),0))) -> 0 | K52: 47 | L52: =IF(K52="","",IF(AND(K52<=PPT*12,(MOD(K52-1,12/Prem_Freq)=0)),-Calculation!$E$23,IF(K52=(PT*12+1),Calculation!$D$1,0))) -> 0
B53: 48 | C53: =IF(B53="","",IF(AND(B53<=2*12,(MOD(B53-1,12/Prem_Freq)=0)),-Calculation!$E$23,IF(B53=(PT*12+1),SUM(Working!$M$4:$M$5)*IF(Variant="Titanium",105%,Calculation!$E$15),0))) -> 0 | E53: 48 | F53: =IF(E53="","",IF(AND(E53<=3*12,(MOD(E53-1,12/Prem_Freq)=0)),-Calculation!$E$23,IF(E53=(PT*12+1),SUM(Working!$M$4:$M$6)*IF(Variant="Titanium",105%,Calculation!$E$15),0))) -> 0 | H53: 48 | I53: =IF(H53="","",IF(AND(H53<=4*12,(MOD(H53-1,12/Prem_Freq)=0)),-Calculation!$E$23,IF(H53=(PT*12+1),SUM(Working!$M$4:$M$7)*IF(Variant="Titanium",105%,Calculation!$E$15),0))) -> 0 | K53: 48 | L53: =IF(K53="","",IF(AND(K53<=PPT*12,(MOD(K53-1,12/Prem_Freq)=0)),-Calculation!$E$23,IF(K53=(PT*12+1),Calculation!$D$1,0))) -> 0
B54: 49 | C54: =IF(B54="","",IF(AND(B54<=2*12,(MOD(B54-1,12/Prem_Freq)=0)),-Calculation!$E$23,IF(B54=(PT*12+1),SUM(Working!$M$4:$M$5)*IF(Variant="Titanium",105%,Calculation!$E$15),0))) -> 0 | E54: 49 | F54: =IF(E54="","",IF(AND(E54<=3*12,(MOD(E54-1,12/Prem_Freq)=0)),-Calculation!$E$23,IF(E54=(PT*12+1),SUM(Working!$M$4:$M$6)*IF(Variant="Titanium",105%,Calculation!$E$15),0))) -> 0 | H54: 49 | I54: =IF(H54="","",IF(AND(H54<=4*12,(MOD(H54-1,12/Prem_Freq)=0)),-Calculation!$E$23,IF(H54=(PT*12+1),SUM(Working!$M$4:$M$7)*IF(Variant="Titanium",105%,Calculation!$E$15),0))) -> 0 | K54: 49 | L54: =IF(K54="","",IF(AND(K54<=PPT*12,(MOD(K54-1,12/Prem_Freq)=0)),-Calculation!$E$23,IF(K54=(PT*12+1),Calculation!$D$1,0))) -> -5000
B55: 50 | C55: =IF(B55="","",IF(AND(B55<=2*12,(MOD(B55-1,12/Prem_Freq)=0)),-Calculation!$E$23,IF(B55=(PT*12+1),SUM(Working!$M$4:$M$5)*IF(Variant="Titanium",105%,Calculation!$E$15),0))) -> 0 | E55: 50 | F55: =IF(E55="","",IF(AND(E55<=3*12,(MOD(E55-1,12/Prem_Freq)=0)),-Calculation!$E$23,IF(E55=(PT*12+1),SUM(Working!$M$4:$M$6)*IF(Variant="Titanium",105%,Calculation!$E$15),0))) -> 0 | H55: 50 | I55: =IF(H55="","",IF(AND(H55<=4*12,(MOD(H55-1,12/Prem_Freq)=0)),-Calculation!$E$23,IF(H55=(PT*12+1),SUM(Working!$M$4:$M$7)*IF(Variant="Titanium",105%,Calculation!$E$15),0))) -> 0 | K55: 50 | L55: =IF(K55="","",IF(AND(K55<=PPT*12,(MOD(K55-1,12/Prem_Freq)=0)),-Calculation!$E$23,IF(K55=(PT*12+1),Calculation!$D$1,0))) -> 0
B56: 51 | C56: =IF(B56="","",IF(AND(B56<=2*12,(MOD(B56-1,12/Prem_Freq)=0)),-Calculation!$E$23,IF(B56=(PT*12+1),SUM(Working!$M$4:$M$5)*IF(Variant="Titanium",105%,Calculation!$E$15),0))) -> 0 | E56: 51 | F56: =IF(E56="","",IF(AND(E56<=3*12,(MOD(E56-1,12/Prem_Freq)=0)),-Calculation!$E$23,IF(E56=(PT*12+1),SUM(Working!$M$4:$M$6)*IF(Variant="Titanium",105%,Calculation!$E$15),0))) -> 0 | H56: 51 | I56: =IF(H56="","",IF(AND(H56<=4*12,(MOD(H56-1,12/Prem_Freq)=0)),-Calculation!$E$23,IF(H56=(PT*12+1),SUM(Working!$M$4:$M$7)*IF(Variant="Titanium",105%,Calculation!$E$15),0))) -> 0 | K56: 51 | L56: =IF(K56="","",IF(AND(K56<=PPT*12,(MOD(K56-1,12/Prem_Freq)=0)),-Calculation!$E$23,IF(K56=(PT*12+1),Calculation!$D$1,0))) -> 0
B57: 52 | C57: =IF(B57="","",IF(AND(B57<=2*12,(MOD(B57-1,12/Prem_Freq)=0)),-Calculation!$E$23,IF(B57=(PT*12+1),SUM(Working!$M$4:$M$5)*IF(Variant="Titanium",105%,Calculation!$E$15),0))) -> 0 | E57: 52 | F57: =IF(E57="","",IF(AND(E57<=3*12,(MOD(E57-1,12/Prem_Freq)=0)),-Calculation!$E$23,IF(E57=(PT*12+1),SUM(Working!$M$4:$M$6)*IF(Variant="Titanium",105%,Calculation!$E$15),0))) -> 0 | H57: 52 | I57: =IF(H57="","",IF(AND(H57<=4*12,(MOD(H57-1,12/Prem_Freq)=0)),-Calculation!$E$23,IF(H57=(PT*12+1),SUM(Working!$M$4:$M$7)*IF(Variant="Titanium",105%,Calculation!$E$15),0))) -> 0 | K57: 52 | L57: =IF(K57="","",IF(AND(K57<=PPT*12,(MOD(K57-1,12/Prem_Freq)=0)),-Calculation!$E$23,IF(K57=(PT*12+1),Calculation!$D$1,0))) -> 0
B58: 53 | C58: =IF(B58="","",IF(AND(B58<=2*12,(MOD(B58-1,12/Prem_Freq)=0)),-Calculation!$E$23,IF(B58=(PT*12+1),SUM(Working!$M$4:$M$5)*IF(Variant="Titanium",105%,Calculation!$E$15),0))) -> 0 | E58: 53 | F58: =IF(E58="","",IF(AND(E58<=3*12,(MOD(E58-1,12/Prem_Freq)=0)),-Calculation!$E$23,IF(E58=(PT*12+1),SUM(Working!$M$4:$M$6)*IF(Variant="Titanium",105%,Calculation!$E$15),0))) -> 0 | H58: 53 | I58: =IF(H58="","",IF(AND(H58<=4*12,(MOD(H58-1,12/Prem_Freq)=0)),-Calculation!$E$23,IF(H58=(PT*12+1),SUM(Working!$M$4:$M$7)*IF(Variant="Titanium",105%,Calculation!$E$15),0))) -> 0 | K58: 53 | L58: =IF(K58="","",IF(AND(K58<=PPT*12,(MOD(K58-1,12/Prem_Freq)=0)),-Calculation!$E$23,IF(K58=(PT*12+1),Calculation!$D$1,0))) -> 0
B59: 54 | C59: =IF(B59="","",IF(AND(B59<=2*12,(MOD(B59-1,12/Prem_Freq)=0)),-Calculation!$E$23,IF(B59=(PT*12+1),SUM(Working!$M$4:$M$5)*IF(Variant="Titanium",105%,Calculation!$E$15),0))) -> 0 | E59: 54 | F59: =IF(E59="","",IF(AND(E59<=3*12,(MOD(E59-1,12/Prem_Freq)=0)),-Calculation!$E$23,IF(E59=(PT*12+1),SUM(Working!$M$4:$M$6)*IF(Variant="Titanium",105%,Calculation!$E$15),0))) -> 0 | H59: 54 | I59: =IF(H59="","",IF(AND(H59<=4*12,(MOD(H59-1,12/Prem_Freq)=0)),-Calculation!$E$23,IF(H59=(PT*12+1),SUM(Working!$M$4:$M$7)*IF(Variant="Titanium",105%,Calculation!$E$15),0))) -> 0 | K59: 54 | L59: =IF(K59="","",IF(AND(K59<=PPT*12,(MOD(K59-1,12/Prem_Freq)=0)),-Calculation!$E$23,IF(K59=(PT*12+1),Calculation!$D$1,0))) -> 0
B60: 55 | C60: =IF(B60="","",IF(AND(B60<=2*12,(MOD(B60-1,12/Prem_Freq)=0)),-Calculation!$E$23,IF(B60=(PT*12+1),SUM(Working!$M$4:$M$5)*IF(Variant="Titanium",105%,Calculation!$E$15),0))) -> 0 | E60: 55 | F60: =IF(E60="","",IF(AND(E60<=3*12,(MOD(E60-1,12/Prem_Freq)=0)),-Calculation!$E$23,IF(E60=(PT*12+1),SUM(Working!$M$4:$M$6)*IF(Variant="Titanium",105%,Calculation!$E$15),0))) -> 0 | H60: 55 | I60: =IF(H60="","",IF(AND(H60<=4*12,(MOD(H60-1,12/Prem_Freq)=0)),-Calculation!$E$23,IF(H60=(PT*12+1),SUM(Working!$M$4:$M$7)*IF(Variant="Titanium",105%,Calculation!$E$15),0))) -> 0 | K60: 55 | L60: =IF(K60="","",IF(AND(K60<=PPT*12,(MOD(K60-1,12/Prem_Freq)=0)),-Calculation!$E$23,IF(K60=(PT*12+1),Calculation!$D$1,0))) -> 0
B61: 56 | C61: =IF(B61="","",IF(AND(B61<=2*12,(MOD(B61-1,12/Prem_Freq)=0)),-Calculation!$E$23,IF(B61=(PT*12+1),SUM(Working!$M$4:$M$5)*IF(Variant="Titanium",105%,Calculation!$E$15),0))) -> 0 | E61: 56 | F61: =IF(E61="","",IF(AND(E61<=3*12,(MOD(E61-1,12/Prem_Freq)=0)),-Calculation!$E$23,IF(E61=(PT*12+1),SUM(Working!$M$4:$M$6)*IF(Variant="Titanium",105%,Calculation!$E$15),0))) -> 0 | H61: 56 | I61: =IF(H61="","",IF(AND(H61<=4*12,(MOD(H61-1,12/Prem_Freq)=0)),-Calculation!$E$23,IF(H61=(PT*12+1),SUM(Working!$M$4:$M$7)*IF(Variant="Titanium",105%,Calculation!$E$15),0))) -> 0 | K61: 56 | L61: =IF(K61="","",IF(AND(K61<=PPT*12,(MOD(K61-1,12/Prem_Freq)=0)),-Calculation!$E$23,IF(K61=(PT*12+1),Calculation!$D$1,0))) -> 0
B62: 57 | C62: =IF(B62="","",IF(AND(B62<=2*12,(MOD(B62-1,12/Prem_Freq)=0)),-Calculation!$E$23,IF(B62=(PT*12+1),SUM(Working!$M$4:$M$5)*IF(Variant="Titanium",105%,Calculation!$E$15),0))) -> 0 | E62: 57 | F62: =IF(E62="","",IF(AND(E62<=3*12,(MOD(E62-1,12/Prem_Freq)=0)),-Calculation!$E$23,IF(E62=(PT*12+1),SUM(Working!$M$4:$M$6)*IF(Variant="Titanium",105%,Calculation!$E$15),0))) -> 0 | H62: 57 | I62: =IF(H62="","",IF(AND(H62<=4*12,(MOD(H62-1,12/Prem_Freq)=0)),-Calculation!$E$23,IF(H62=(PT*12+1),SUM(Working!$M$4:$M$7)*IF(Variant="Titanium",105%,Calculation!$E$15),0))) -> 0 | K62: 57 | L62: =IF(K62="","",IF(AND(K62<=PPT*12,(MOD(K62-1,12/Prem_Freq)=0)),-Calculation!$E$23,IF(K62=(PT*12+1),Calculation!$D$1,0))) -> 0
B63: 58 | C63: =IF(B63="","",IF(AND(B63<=2*12,(MOD(B63-1,12/Prem_Freq)=0)),-Calculation!$E$23,IF(B63=(PT*12+1),SUM(Working!$M$4:$M$5)*IF(Variant="Titanium",105%,Calculation!$E$15),0))) -> 0 | E63: 58 | F63: =IF(E63="","",IF(AND(E63<=3*12,(MOD(E63-1,12/Prem_Freq)=0)),-Calculation!$E$23,IF(E63=(PT*12+1),SUM(Working!$M$4:$M$6)*IF(Variant="Titanium",105%,Calculation!$E$15),0))) -> 0 | H63: 58 | I63: =IF(H63="","",IF(AND(H63<=4*12,(MOD(H63-1,12/Prem_Freq)=0)),-Calculation!$E$23,IF(H63=(PT*12+1),SUM(Working!$M$4:$M$7)*IF(Variant="Titanium",105%,Calculation!$E$15),0))) -> 0 | K63: 58 | L63: =IF(K63="","",IF(AND(K63<=PPT*12,(MOD(K63-1,12/Prem_Freq)=0)),-Calculation!$E$23,IF(K63=(PT*12+1),Calculation!$D$1,0))) -> 0
B64: 59 | C64: =IF(B64="","",IF(AND(B64<=2*12,(MOD(B64-1,12/Prem_Freq)=0)),-Calculation!$E$23,IF(B64=(PT*12+1),SUM(Working!$M$4:$M$5)*IF(Variant="Titanium",105%,Calculation!$E$15),0))) -> 0 | E64: 59 | F64: =IF(E64="","",IF(AND(E64<=3*12,(MOD(E64-1,12/Prem_Freq)=0)),-Calculation!$E$23,IF(E64=(PT*12+1),SUM(Working!$M$4:$M$6)*IF(Variant="Titanium",105%,Calculation!$E$15),0))) -> 0 | H64: 59 | I64: =IF(H64="","",IF(AND(H64<=4*12,(MOD(H64-1,12/Prem_Freq)=0)),-Calculation!$E$23,IF(H64=(PT*12+1),SUM(Working!$M$4:$M$7)*IF(Variant="Titanium",105%,Calculation!$E$15),0))) -> 0 | K64: 59 | L64: =IF(K64="","",IF(AND(K64<=PPT*12,(MOD(K64-1,12/Prem_Freq)=0)),-Calculation!$E$23,IF(K64=(PT*12+1),Calculation!$D$1,0))) -> 0
B65: 60 | C65: =IF(B65="","",IF(AND(B65<=2*12,(MOD(B65-1,12/Prem_Freq)=0)),-Calculation!$E$23,IF(B65=(PT*12+1),SUM(Working!$M$4:$M$5)*IF(Variant="Titanium",105%,Calculation!$E$15),0))) -> 0 | E65: 60 | F65: =IF(E65="","",IF(AND(E65<=3*12,(MOD(E65-1,12/Prem_Freq)=0)),-Calculation!$E$23,IF(E65=(PT*12+1),SUM(Working!$M$4:$M$6)*IF(Variant="Titanium",105%,Calculation!$E$15),0))) -> 0 | H65: 60 | I65: =IF(H65="","",IF(AND(H65<=4*12,(MOD(H65-1,12/Prem_Freq)=0)),-Calculation!$E$23,IF(H65=(PT*12+1),SUM(Working!$M$4:$M$7)*IF(Variant="Titanium",105%,Calculation!$E$15),0))) -> 0 | K65: 60 | L65: =IF(K65="","",IF(AND(K65<=PPT*12,(MOD(K65-1,12/Prem_Freq)=0)),-Calculation!$E$23,IF(K65=(PT*12+1),Calculation!$D$1,0))) -> 0
B66: 61 | C66: =IF(B66="","",IF(AND(B66<=2*12,(MOD(B66-1,12/Prem_Freq)=0)),-Calculation!$E$23,IF(B66=(PT*12+1),SUM(Working!$M$4:$M$5)*IF(Variant="Titanium",105%,Calculation!$E$15),0))) -> 0 | E66: 61 | F66: =IF(E66="","",IF(AND(E66<=3*12,(MOD(E66-1,12/Prem_Freq)=0)),-Calculation!$E$23,IF(E66=(PT*12+1),SUM(Working!$M$4:$M$6)*IF(Variant="Titanium",105%,Calculation!$E$15),0))) -> 0 | H66: 61 | I66: =IF(H66="","",IF(AND(H66<=4*12,(MOD(H66-1,12/Prem_Freq)=0)),-Calculation!$E$23,IF(H66=(PT*12+1),SUM(Working!$M$4:$M$7)*IF(Variant="Titanium",105%,Calculation!$E$15),0))) -> 0 | K66: 61 | L66: =IF(K66="","",IF(AND(K66<=PPT*12,(MOD(K66-1,12/Prem_Freq)=0)),-Calculation!$E$23,IF(K66=(PT*12+1),Calculation!$D$1,0))) -> -5000
B67: 62 | C67: =IF(B67="","",IF(AND(B67<=2*12,(MOD(B67-1,12/Prem_Freq)=0)),-Calculation!$E$23,IF(B67=(PT*12+1),SUM(Working!$M$4:$M$5)*IF(Variant="Titanium",105%,Calculation!$E$15),0))) -> 0 | E67: 62 | F67: =IF(E67="","",IF(AND(E67<=3*12,(MOD(E67-1,12/Prem_Freq)=0)),-Calculation!$E$23,IF(E67=(PT*12+1),SUM(Working!$M$4:$M$6)*IF(Variant="Titanium",105%,Calculation!$E$15),0))) -> 0 | H67: 62 | I67: =IF(H67="","",IF(AND(H67<=4*12,(MOD(H67-1,12/Prem_Freq)=0)),-Calculation!$E$23,IF(H67=(PT*12+1),SUM(Working!$M$4:$M$7)*IF(Variant="Titanium",105%,Calculation!$E$15),0))) -> 0 | K67: 62 | L67: =IF(K67="","",IF(AND(K67<=PPT*12,(MOD(K67-1,12/Prem_Freq)=0)),-Calculation!$E$23,IF(K67=(PT*12+1),Calculation!$D$1,0))) -> 0
B68: 63 | C68: =IF(B68="","",IF(AND(B68<=2*12,(MOD(B68-1,12/Prem_Freq)=0)),-Calculation!$E$23,IF(B68=(PT*12+1),SUM(Working!$M$4:$M$5)*IF(Variant="Titanium",105%,Calculation!$E$15),0))) -> 0 | E68: 63 | F68: =IF(E68="","",IF(AND(E68<=3*12,(MOD(E68-1,12/Prem_Freq)=0)),-Calculation!$E$23,IF(E68=(PT*12+1),SUM(Working!$M$4:$M$6)*IF(Variant="Titanium",105%,Calculation!$E$15),0))) -> 0 | H68: 63 | I68: =IF(H68="","",IF(AND(H68<=4*12,(MOD(H68-1,12/Prem_Freq)=0)),-Calculation!$E$23,IF(H68=(PT*12+1),SUM(Working!$M$4:$M$7)*IF(Variant="Titanium",105%,Calculation!$E$15),0))) -> 0 | K68: 63 | L68: =IF(K68="","",IF(AND(K68<=PPT*12,(MOD(K68-1,12/Prem_Freq)=0)),-Calculation!$E$23,IF(K68=(PT*12+1),Calculation!$D$1,0))) -> 0
B69: 64 | C69: =IF(B69="","",IF(AND(B69<=2*12,(MOD(B69-1,12/Prem_Freq)=0)),-Calculation!$E$23,IF(B69=(PT*12+1),SUM(Working!$M$4:$M$5)*IF(Variant="Titanium",105%,Calculation!$E$15),0))) -> 0 | E69: 64 | F69: =IF(E69="","",IF(AND(E69<=3*12,(MOD(E69-1,12/Prem_Freq)=0)),-Calculation!$E$23,IF(E69=(PT*12+1),SUM(Working!$M$4:$M$6)*IF(Variant="Titanium",105%,Calculation!$E$15),0))) -> 0 | H69: 64 | I69: =IF(H69="","",IF(AND(H69<=4*12,(MOD(H69-1,12/Prem_Freq)=0)),-Calculation!$E$23,IF(H69=(PT*12+1),SUM(Working!$M$4:$M$7)*IF(Variant="Titanium",105%,Calculation!$E$15),0))) -> 0 | K69: 64 | L69: =IF(K69="","",IF(AND(K69<=PPT*12,(MOD(K69-1,12/Prem_Freq)=0)),-Calculation!$E$23,IF(K69=(PT*12+1),Calculation!$D$1,0))) -> 0
B70: 65 | C70: =IF(B70="","",IF(AND(B70<=2*12,(MOD(B70-1,12/Prem_Freq)=0)),-Calculation!$E$23,IF(B70=(PT*12+1),SUM(Working!$M$4:$M$5)*IF(Variant="Titanium",105%,Calculation!$E$15),0))) -> 0 | E70: 65 | F70: =IF(E70="","",IF(AND(E70<=3*12,(MOD(E70-1,12/Prem_Freq)=0)),-Calculation!$E$23,IF(E70=(PT*12+1),SUM(Working!$M$4:$M$6)*IF(Variant="Titanium",105%,Calculation!$E$15),0))) -> 0 | H70: 65 | I70: =IF(H70="","",IF(AND(H70<=4*12,(MOD(H70-1,12/Prem_Freq)=0)),-Calculation!$E$23,IF(H70=(PT*12+1),SUM(Working!$M$4:$M$7)*IF(Variant="Titanium",105%,Calculation!$E$15),0))) -> 0 | K70: 65 | L70: =IF(K70="","",IF(AND(K70<=PPT*12,(MOD(K70-1,12/Prem_Freq)=0)),-Calculation!$E$23,IF(K70=(PT*12+1),Calculation!$D$1,0))) -> 0
B71: =IF(B70>(PT*12),"",B70+1) -> 66 | C71: =IF(B71="","",IF(AND(B71<=2*12,(MOD(B71-1,12/Prem_Freq)=0)),-Calculation!$E$23,IF(B71=(PT*12+1),SUM(Working!$M$4:$M$5)*IF(Variant="Titanium",105%,Calculation!$E$15),0))) -> 0 | E71: =IF(E70>(PT*12),"",E70+1) -> 66 | F71: =IF(E71="","",IF(AND(E71<=3*12,(MOD(E71-1,12/Prem_Freq)=0)),-Calculation!$E$23,IF(E71=(PT*12+1),SUM(Working!$M$4:$M$6)*IF(Variant="Titanium",105%,Calculation!$E$15),0))) -> 0 | H71: =IF(H70>(PT*12),"",H70+1) -> 66 | I71: =IF(H71="","",IF(AND(H71<=4*12,(MOD(H71-1,12/Prem_Freq)=0)),-Calculation!$E$23,IF(H71=(PT*12+1),SUM(Working!$M$4:$M$7)*IF(Variant="Titanium",105%,Calculation!$E$15),0))) -> 0 | K71: =IF(K70>(PT*12),"",K70+1) -> 66 | L71: =IF(K71="","",IF(AND(K71<=PPT*12,(MOD(K71-1,12/Prem_Freq)=0)),-Calculation!$E$23,IF(K71=(PT*12+1),Calculation!$D$1,0))) -> 0
B72: 67 | C72: =IF(B72="","",IF(AND(B72<=2*12,(MOD(B72-1,12/Prem_Freq)=0)),-Calculation!$E$23,IF(B72=(PT*12+1),SUM(Working!$M$4:$M$5)*IF(Variant="Titanium",105%,Calculation!$E$15),0))) -> 0 | E72: 67 | F72: =IF(E72="","",IF(AND(E72<=3*12,(MOD(E72-1,12/Prem_Freq)=0)),-Calculation!$E$23,IF(E72=(PT*12+1),SUM(Working!$M$4:$M$6)*IF(Variant="Titanium",105%,Calculation!$E$15),0))) -> 0 | H72: 67 | I72: =IF(H72="","",IF(AND(H72<=4*12,(MOD(H72-1,12/Prem_Freq)=0)),-Calculation!$E$23,IF(H72=(PT*12+1),SUM(Working!$M$4:$M$7)*IF(Variant="Titanium",105%,Calculation!$E$15),0))) -> 0 | K72: 67 | L72: =IF(K72="","",IF(AND(K72<=PPT*12,(MOD(K72-1,12/Prem_Freq)=0)),-Calculation!$E$23,IF(K72=(PT*12+1),Calculation!$D$1,0))) -> 0
B73: 68 | C73: =IF(B73="","",IF(AND(B73<=2*12,(MOD(B73-1,12/Prem_Freq)=0)),-Calculation!$E$23,IF(B73=(PT*12+1),SUM(Working!$M$4:$M$5)*IF(Variant="Titanium",105%,Calculation!$E$15),0))) -> 0 | E73: 68 | F73: =IF(E73="","",IF(AND(E73<=3*12,(MOD(E73-1,12/Prem_Freq)=0)),-Calculation!$E$23,IF(E73=(PT*12+1),SUM(Working!$M$4:$M$6)*IF(Variant="Titanium",105%,Calculation!$E$15),0))) -> 0 | H73: 68 | I73: =IF(H73="","",IF(AND(H73<=4*12,(MOD(H73-1,12/Prem_Freq)=0)),-Calculation!$E$23,IF(H73=(PT*12+1),SUM(Working!$M$4:$M$7)*IF(Variant="Titanium",105%,Calculation!$E$15),0))) -> 0 | K73: 68 | L73: =IF(K73="","",IF(AND(K73<=PPT*12,(MOD(K73-1,12/Prem_Freq)=0)),-Calculation!$E$23,IF(K73=(PT*12+1),Calculation!$D$1,0))) -> 0
B74: 69 | C74: =IF(B74="","",IF(AND(B74<=2*12,(MOD(B74-1,12/Prem_Freq)=0)),-Calculation!$E$23,IF(B74=(PT*12+1),SUM(Working!$M$4:$M$5)*IF(Variant="Titanium",105%,Calculation!$E$15),0))) -> 0 | E74: 69 | F74: =IF(E74="","",IF(AND(E74<=3*12,(MOD(E74-1,12/Prem_Freq)=0)),-Calculation!$E$23,IF(E74=(PT*12+1),SUM(Working!$M$4:$M$6)*IF(Variant="Titanium",105%,Calculation!$E$15),0))) -> 0 | H74: 69 | I74: =IF(H74="","",IF(AND(H74<=4*12,(MOD(H74-1,12/Prem_Freq)=0)),-Calculation!$E$23,IF(H74=(PT*12+1),SUM(Working!$M$4:$M$7)*IF(Variant="Titanium",105%,Calculation!$E$15),0))) -> 0 | K74: 69 | L74: =IF(K74="","",IF(AND(K74<=PPT*12,(MOD(K74-1,12/Prem_Freq)=0)),-Calculation!$E$23,IF(K74=(PT*12+1),Calculation!$D$1,0))) -> 0
B75: 70 | C75: =IF(B75="","",IF(AND(B75<=2*12,(MOD(B75-1,12/Prem_Freq)=0)),-Calculation!$E$23,IF(B75=(PT*12+1),SUM(Working!$M$4:$M$5)*IF(Variant="Titanium",105%,Calculation!$E$15),0))) -> 0 | E75: 70 | F75: =IF(E75="","",IF(AND(E75<=3*12,(MOD(E75-1,12/Prem_Freq)=0)),-Calculation!$E$23,IF(E75=(PT*12+1),SUM(Working!$M$4:$M$6)*IF(Variant="Titanium",105%,Calculation!$E$15),0))) -> 0 | H75: 70 | I75: =IF(H75="","",IF(AND(H75<=4*12,(MOD(H75-1,12/Prem_Freq)=0)),-Calculation!$E$23,IF(H75=(PT*12+1),SUM(Working!$M$4:$M$7)*IF(Variant="Titanium",105%,Calculation!$E$15),0))) -> 0 | K75: 70 | L75: =IF(K75="","",IF(AND(K75<=PPT*12,(MOD(K75-1,12/Prem_Freq)=0)),-Calculation!$E$23,IF(K75=(PT*12+1),Calculation!$D$1,0))) -> 0
B76: 71 | C76: =IF(B76="","",IF(AND(B76<=2*12,(MOD(B76-1,12/Prem_Freq)=0)),-Calculation!$E$23,IF(B76=(PT*12+1),SUM(Working!$M$4:$M$5)*IF(Variant="Titanium",105%,Calculation!$E$15),0))) -> 0 | E76: 71 | F76: =IF(E76="","",IF(AND(E76<=3*12,(MOD(E76-1,12/Prem_Freq)=0)),-Calculation!$E$23,IF(E76=(PT*12+1),SUM(Working!$M$4:$M$6)*IF(Variant="Titanium",105%,Calculation!$E$15),0))) -> 0 | H76: 71 | I76: =IF(H76="","",IF(AND(H76<=4*12,(MOD(H76-1,12/Prem_Freq)=0)),-Calculation!$E$23,IF(H76=(PT*12+1),SUM(Working!$M$4:$M$7)*IF(Variant="Titanium",105%,Calculation!$E$15),0))) -> 0 | K76: 71 | L76: =IF(K76="","",IF(AND(K76<=PPT*12,(MOD(K76-1,12/Prem_Freq)=0)),-Calculation!$E$23,IF(K76=(PT*12+1),Calculation!$D$1,0))) -> 0
B77: 72 | C77: =IF(B77="","",IF(AND(B77<=2*12,(MOD(B77-1,12/Prem_Freq)=0)),-Calculation!$E$23,IF(B77=(PT*12+1),SUM(Working!$M$4:$M$5)*IF(Variant="Titanium",105%,Calculation!$E$15),0))) -> 0 | E77: 72 | F77: =IF(E77="","",IF(AND(E77<=3*12,(MOD(E77-1,12/Prem_Freq)=0)),-Calculation!$E$23,IF(E77=(PT*12+1),SUM(Working!$M$4:$M$6)*IF(Variant="Titanium",105%,Calculation!$E$15),0))) -> 0 | H77: 72 | I77: =IF(H77="","",IF(AND(H77<=4*12,(MOD(H77-1,12/Prem_Freq)=0)),-Calculation!$E$23,IF(H77=(PT*12+1),SUM(Working!$M$4:$M$7)*IF(Variant="Titanium",105%,Calculation!$E$15),0))) -> 0 | K77: 72 | L77: =IF(K77="","",IF(AND(K77<=PPT*12,(MOD(K77-1,12/Prem_Freq)=0)),-Calculation!$E$23,IF(K77=(PT*12+1),Calculation!$D$1,0))) -> 0
B78: 73 | C78: =IF(B78="","",IF(AND(B78<=2*12,(MOD(B78-1,12/Prem_Freq)=0)),-Calculation!$E$23,IF(B78=(PT*12+1),SUM(Working!$M$4:$M$5)*IF(Variant="Titanium",105%,Calculation!$E$15),0))) -> 0 | E78: 73 | F78: =IF(E78="","",IF(AND(E78<=3*12,(MOD(E78-1,12/Prem_Freq)=0)),-Calculation!$E$23,IF(E78=(PT*12+1),SUM(Working!$M$4:$M$6)*IF(Variant="Titanium",105%,Calculation!$E$15),0))) -> 0 | H78: 73 | I78: =IF(H78="","",IF(AND(H78<=4*12,(MOD(H78-1,12/Prem_Freq)=0)),-Calculation!$E$23,IF(H78=(PT*12+1),SUM(Working!$M$4:$M$7)*IF(Variant="Titanium",105%,Calculation!$E$15),0))) -> 0 | K78: 73 | L78: =IF(K78="","",IF(AND(K78<=PPT*12,(MOD(K78-1,12/Prem_Freq)=0)),-Calculation!$E$23,IF(K78=(PT*12+1),Calculation!$D$1,0))) -> -5000
B79: 74 | C79: =IF(B79="","",IF(AND(B79<=2*12,(MOD(B79-1,12/Prem_Freq)=0)),-Calculation!$E$23,IF(B79=(PT*12+1),SUM(Working!$M$4:$M$5)*IF(Variant="Titanium",105%,Calculation!$E$15),0))) -> 0 | E79: 74 | F79: =IF(E79="","",IF(AND(E79<=3*12,(MOD(E79-1,12/Prem_Freq)=0)),-Calculation!$E$23,IF(E79=(PT*12+1),SUM(Working!$M$4:$M$6)*IF(Variant="Titanium",105%,Calculation!$E$15),0))) -> 0 | H79: 74 | I79: =IF(H79="","",IF(AND(H79<=4*12,(MOD(H79-1,12/Prem_Freq)=0)),-Calculation!$E$23,IF(H79=(PT*12+1),SUM(Working!$M$4:$M$7)*IF(Variant="Titanium",105%,Calculation!$E$15),0))) -> 0 | K79: 74 | L79: =IF(K79="","",IF(AND(K79<=PPT*12,(MOD(K79-1,12/Prem_Freq)=0)),-Calculation!$E$23,IF(K79=(PT*12+1),Calculation!$D$1,0))) -> 0
B80: 75 | C80: =IF(B80="","",IF(AND(B80<=2*12,(MOD(B80-1,12/Prem_Freq)=0)),-Calculation!$E$23,IF(B80=(PT*12+1),SUM(Working!$M$4:$M$5)*IF(Variant="Titanium",105%,Calculation!$E$15),0))) -> 0 | E80: 75 | F80: =IF(E80="","",IF(AND(E80<=3*12,(MOD(E80-1,12/Prem_Freq)=0)),-Calculation!$E$23,IF(E80=(PT*12+1),SUM(Working!$M$4:$M$6)*IF(Variant="Titanium",105%,Calculation!$E$15),0))) -> 0 | H80: 75 | I80: =IF(H80="","",IF(AND(H80<=4*12,(MOD(H80-1,12/Prem_Freq)=0)),-Calculation!$E$23,IF(H80=(PT*12+1),SUM(Working!$M$4:$M$7)*IF(Variant="Titanium",105%,Calculation!$E$15),0))) -> 0 | K80: 75 | L80: =IF(K80="","",IF(AND(K80<=PPT*12,(MOD(K80-1,12/Prem_Freq)=0)),-Calculation!$E$23,IF(K80=(PT*12+1),Calculation!$D$1,0))) -> 0
B81: 76 | C81: =IF(B81="","",IF(AND(B81<=2*12,(MOD(B81-1,12/Prem_Freq)=0)),-Calculation!$E$23,IF(B81=(PT*12+1),SUM(Working!$M$4:$M$5)*IF(Variant="Titanium",105%,Calculation!$E$15),0))) -> 0 | E81: 76 | F81: =IF(E81="","",IF(AND(E81<=3*12,(MOD(E81-1,12/Prem_Freq)=0)),-Calculation!$E$23,IF(E81=(PT*12+1),SUM(Working!$M$4:$M$6)*IF(Variant="Titanium",105%,Calculation!$E$15),0))) -> 0 | H81: 76 | I81: =IF(H81="","",IF(AND(H81<=4*12,(MOD(H81-1,12/Prem_Freq)=0)),-Calculation!$E$23,IF(H81=(PT*12+1),SUM(Working!$M$4:$M$7)*IF(Variant="Titanium",105%,Calculation!$E$15),0))) -> 0 | K81: 76 | L81: =IF(K81="","",IF(AND(K81<=PPT*12,(MOD(K81-1,12/Prem_Freq)=0)),-Calculation!$E$23,IF(K81=(PT*12+1),Calculation!$D$1,0))) -> 0
B82: 77 | C82: =IF(B82="","",IF(AND(B82<=2*12,(MOD(B82-1,12/Prem_Freq)=0)),-Calculation!$E$23,IF(B82=(PT*12+1),SUM(Working!$M$4:$M$5)*IF(Variant="Titanium",105%,Calculation!$E$15),0))) -> 0 | E82: 77 | F82: =IF(E82="","",IF(AND(E82<=3*12,(MOD(E82-1,12/Prem_Freq)=0)),-Calculation!$E$23,IF(E82=(PT*12+1),SUM(Working!$M$4:$M$6)*IF(Variant="Titanium",105%,Calculation!$E$15),0))) -> 0 | H82: 77 | I82: =IF(H82="","",IF(AND(H82<=4*12,(MOD(H82-1,12/Prem_Freq)=0)),-Calculation!$E$23,IF(H82=(PT*12+1),SUM(Working!$M$4:$M$7)*IF(Variant="Titanium",105%,Calculation!$E$15),0))) -> 0 | K82: 77 | L82: =IF(K82="","",IF(AND(K82<=PPT*12,(MOD(K82-1,12/Prem_Freq)=0)),-Calculation!$E$23,IF(K82=(PT*12+1),Calculation!$D$1,0))) -> 0
B83: 78 | C83: =IF(B83="","",IF(AND(B83<=2*12,(MOD(B83-1,12/Prem_Freq)=0)),-Calculation!$E$23,IF(B83=(PT*12+1),SUM(Working!$M$4:$M$5)*IF(Variant="Titanium",105%,Calculation!$E$15),0))) -> 0 | E83: 78 | F83: =IF(E83="","",IF(AND(E83<=3*12,(MOD(E83-1,12/Prem_Freq)=0)),-Calculation!$E$23,IF(E83=(PT*12+1),SUM(Working!$M$4:$M$6)*IF(Variant="Titanium",105%,Calculation!$E$15),0))) -> 0 | H83: 78 | I83: =IF(H83="","",IF(AND(H83<=4*12,(MOD(H83-1,12/Prem_Freq)=0)),-Calculation!$E$23,IF(H83=(PT*12+1),SUM(Working!$M$4:$M$7)*IF(Variant="Titanium",105%,Calculation!$E$15),0))) -> 0 | K83: 78 | L83: =IF(K83="","",IF(AND(K83<=PPT*12,(MOD(K83-1,12/Prem_Freq)=0)),-Calculation!$E$23,IF(K83=(PT*12+1),Calculation!$D$1,0))) -> 0
B84: 79 | C84: =IF(B84="","",IF(AND(B84<=2*12,(MOD(B84-1,12/Prem_Freq)=0)),-Calculation!$E$23,IF(B84=(PT*12+1),SUM(Working!$M$4:$M$5)*IF(Variant="Titanium",105%,Calculation!$E$15),0))) -> 0 | E84: 79 | F84: =IF(E84="","",IF(AND(E84<=3*12,(MOD(E84-1,12/Prem_Freq)=0)),-Calculation!$E$23,IF(E84=(PT*12+1),SUM(Working!$M$4:$M$6)*IF(Variant="Titanium",105%,Calculation!$E$15),0))) -> 0 | H84: 79 | I84: =IF(H84="","",IF(AND(H84<=4*12,(MOD(H84-1,12/Prem_Freq)=0)),-Calculation!$E$23,IF(H84=(PT*12+1),SUM(Working!$M$4:$M$7)*IF(Variant="Titanium",105%,Calculation!$E$15),0))) -> 0 | K84: 79 | L84: =IF(K84="","",IF(AND(K84<=PPT*12,(MOD(K84-1,12/Prem_Freq)=0)),-Calculation!$E$23,IF(K84=(PT*12+1),Calculation!$D$1,0))) -> 0
B85: 80 | C85: =IF(B85="","",IF(AND(B85<=2*12,(MOD(B85-1,12/Prem_Freq)=0)),-Calculation!$E$23,IF(B85=(PT*12+1),SUM(Working!$M$4:$M$5)*IF(Variant="Titanium",105%,Calculation!$E$15),0))) -> 0 | E85: 80 | F85: =IF(E85="","",IF(AND(E85<=3*12,(MOD(E85-1,12/Prem_Freq)=0)),-Calculation!$E$23,IF(E85=(PT*12+1),SUM(Working!$M$4:$M$6)*IF(Variant="Titanium",105%,Calculation!$E$15),0))) -> 0 | H85: 80 | I85: =IF(H85="","",IF(AND(H85<=4*12,(MOD(H85-1,12/Prem_Freq)=0)),-Calculation!$E$23,IF(H85=(PT*12+1),SUM(Working!$M$4:$M$7)*IF(Variant="Titanium",105%,Calculation!$E$15),0))) -> 0 | K85: 80 | L85: =IF(K85="","",IF(AND(K85<=PPT*12,(MOD(K85-1,12/Prem_Freq)=0)),-Calculation!$E$23,IF(K85=(PT*12+1),Calculation!$D$1,0))) -> 0
B86: 81 | C86: =IF(B86="","",IF(AND(B86<=2*12,(MOD(B86-1,12/Prem_Freq)=0)),-Calculation!$E$23,IF(B86=(PT*12+1),SUM(Working!$M$4:$M$5)*IF(Variant="Titanium",105%,Calculation!$E$15),0))) -> 0 | E86: 81 | F86: =IF(E86="","",IF(AND(E86<=3*12,(MOD(E86-1,12/Prem_Freq)=0)),-Calculation!$E$23,IF(E86=(PT*12+1),SUM(Working!$M$4:$M$6)*IF(Variant="Titanium",105%,Calculation!$E$15),0))) -> 0 | H86: 81 | I86: =IF(H86="","",IF(AND(H86<=4*12,(MOD(H86-1,12/Prem_Freq)=0)),-Calculation!$E$23,IF(H86=(PT*12+1),SUM(Working!$M$4:$M$7)*IF(Variant="Titanium",105%,Calculation!$E$15),0))) -> 0 | K86: 81 | L86: =IF(K86="","",IF(AND(K86<=PPT*12,(MOD(K86-1,12/Prem_Freq)=0)),-Calculation!$E$23,IF(K86=(PT*12+1),Calculation!$D$1,0))) -> 0
B87: 82 | C87: =IF(B87="","",IF(AND(B87<=2*12,(MOD(B87-1,12/Prem_Freq)=0)),-Calculation!$E$23,IF(B87=(PT*12+1),SUM(Working!$M$4:$M$5)*IF(Variant="Titanium",105%,Calculation!$E$15),0))) -> 0 | E87: 82 | F87: =IF(E87="","",IF(AND(E87<=3*12,(MOD(E87-1,12/Prem_Freq)=0)),-Calculation!$E$23,IF(E87=(PT*12+1),SUM(Working!$M$4:$M$6)*IF(Variant="Titanium",105%,Calculation!$E$15),0))) -> 0 | H87: 82 | I87: =IF(H87="","",IF(AND(H87<=4*12,(MOD(H87-1,12/Prem_Freq)=0)),-Calculation!$E$23,IF(H87=(PT*12+1),SUM(Working!$M$4:$M$7)*IF(Variant="Titanium",105%,Calculation!$E$15),0))) -> 0 | K87: 82 | L87: =IF(K87="","",IF(AND(K87<=PPT*12,(MOD(K87-1,12/Prem_Freq)=0)),-Calculation!$E$23,IF(K87=(PT*12+1),Calculation!$D$1,0))) -> 0
B88: 83 | C88: =IF(B88="","",IF(AND(B88<=2*12,(MOD(B88-1,12/Prem_Freq)=0)),-Calculation!$E$23,IF(B88=(PT*12+1),SUM(Working!$M$4:$M$5)*IF(Variant="Titanium",105%,Calculation!$E$15),0))) -> 0 | E88: 83 | F88: =IF(E88="","",IF(AND(E88<=3*12,(MOD(E88-1,12/Prem_Freq)=0)),-Calculation!$E$23,IF(E88=(PT*12+1),SUM(Working!$M$4:$M$6)*IF(Variant="Titanium",105%,Calculation!$E$15),0))) -> 0 | H88: 83 | I88: =IF(H88="","",IF(AND(H88<=4*12,(MOD(H88-1,12/Prem_Freq)=0)),-Calculation!$E$23,IF(H88=(PT*12+1),SUM(Working!$M$4:$M$7)*IF(Variant="Titanium",105%,Calculation!$E$15),0))) -> 0 | K88: 83 | L88: =IF(K88="","",IF(AND(K88<=PPT*12,(MOD(K88-1,12/Prem_Freq)=0)),-Calculation!$E$23,IF(K88=(PT*12+1),Calculation!$D$1,0))) -> 0
B89: 84 | C89: =IF(B89="","",IF(AND(B89<=2*12,(MOD(B89-1,12/Prem_Freq)=0)),-Calculation!$E$23,IF(B89=(PT*12+1),SUM(Working!$M$4:$M$5)*IF(Variant="Titanium",105%,Calculation!$E$15),0))) -> 0 | E89: 84 | F89: =IF(E89="","",IF(AND(E89<=3*12,(MOD(E89-1,12/Prem_Freq)=0)),-Calculation!$E$23,IF(E89=(PT*12+1),SUM(Working!$M$4:$M$6)*IF(Variant="Titanium",105%,Calculation!$E$15),0))) -> 0 | H89: 84 | I89: =IF(H89="","",IF(AND(H89<=4*12,(MOD(H89-1,12/Prem_Freq)=0)),-Calculation!$E$23,IF(H89=(PT*12+1),SUM(Working!$M$4:$M$7)*IF(Variant="Titanium",105%,Calculation!$E$15),0))) -> 0 | K89: 84 | L89: =IF(K89="","",IF(AND(K89<=PPT*12,(MOD(K89-1,12/Prem_Freq)=0)),-Calculation!$E$23,IF(K89=(PT*12+1),Calculation!$D$1,0))) -> 0
B90: 85 | C90: =IF(B90="","",IF(AND(B90<=2*12,(MOD(B90-1,12/Prem_Freq)=0)),-Calculation!$E$23,IF(B90=(PT*12+1),SUM(Working!$M$4:$M$5)*IF(Variant="Titanium",105%,Calculation!$E$15),0))) -> 0 | E90: 85 | F90: =IF(E90="","",IF(AND(E90<=3*12,(MOD(E90-1,12/Prem_Freq)=0)),-Calculation!$E$23,IF(E90=(PT*12+1),SUM(Working!$M$4:$M$6)*IF(Variant="Titanium",105%,Calculation!$E$15),0))) -> 0 | H90: 85 | I90: =IF(H90="","",IF(AND(H90<=4*12,(MOD(H90-1,12/Prem_Freq)=0)),-Calculation!$E$23,IF(H90=(PT*12+1),SUM(Working!$M$4:$M$7)*IF(Variant="Titanium",105%,Calculation!$E$15),0))) -> 0 | K90: 85 | L90: =IF(K90="","",IF(AND(K90<=PPT*12,(MOD(K90-1,12/Prem_Freq)=0)),-Calculation!$E$23,IF(K90=(PT*12+1),Calculation!$D$1,0))) -> -5000
B91: 86 | C91: =IF(B91="","",IF(AND(B91<=2*12,(MOD(B91-1,12/Prem_Freq)=0)),-Calculation!$E$23,IF(B91=(PT*12+1),SUM(Working!$M$4:$M$5)*IF(Variant="Titanium",105%,Calculation!$E$15),0))) -> 0 | E91: 86 | F91: =IF(E91="","",IF(AND(E91<=3*12,(MOD(E91-1,12/Prem_Freq)=0)),-Calculation!$E$23,IF(E91=(PT*12+1),SUM(Working!$M$4:$M$6)*IF(Variant="Titanium",105%,Calculation!$E$15),0))) -> 0 | H91: 86 | I91: =IF(H91="","",IF(AND(H91<=4*12,(MOD(H91-1,12/Prem_Freq)=0)),-Calculation!$E$23,IF(H91=(PT*12+1),SUM(Working!$M$4:$M$7)*IF(Variant="Titanium",105%,Calculation!$E$15),0))) -> 0 | K91: 86 | L91: =IF(K91="","",IF(AND(K91<=PPT*12,(MOD(K91-1,12/Prem_Freq)=0)),-Calculation!$E$23,IF(K91=(PT*12+1),Calculation!$D$1,0))) -> 0
B92: 87 | C92: =IF(B92="","",IF(AND(B92<=2*12,(MOD(B92-1,12/Prem_Freq)=0)),-Calculation!$E$23,IF(B92=(PT*12+1),SUM(Working!$M$4:$M$5)*IF(Variant="Titanium",105%,Calculation!$E$15),0))) -> 0 | E92: 87 | F92: =IF(E92="","",IF(AND(E92<=3*12,(MOD(E92-1,12/Prem_Freq)=0)),-Calculation!$E$23,IF(E92=(PT*12+1),SUM(Working!$M$4:$M$6)*IF(Variant="Titanium",105%,Calculation!$E$15),0))) -> 0 | H92: 87 | I92: =IF(H92="","",IF(AND(H92<=4*12,(MOD(H92-1,12/Prem_Freq)=0)),-Calculation!$E$23,IF(H92=(PT*12+1),SUM(Working!$M$4:$M$7)*IF(Variant="Titanium",105%,Calculation!$E$15),0))) -> 0 | K92: 87 | L92: =IF(K92="","",IF(AND(K92<=PPT*12,(MOD(K92-1,12/Prem_Freq)=0)),-Calculation!$E$23,IF(K92=(PT*12+1),Calculation!$D$1,0))) -> 0
B93: 88 | C93: =IF(B93="","",IF(AND(B93<=2*12,(MOD(B93-1,12/Prem_Freq)=0)),-Calculation!$E$23,IF(B93=(PT*12+1),SUM(Working!$M$4:$M$5)*IF(Variant="Titanium",105%,Calculation!$E$15),0))) -> 0 | E93: 88 | F93: =IF(E93="","",IF(AND(E93<=3*12,(MOD(E93-1,12/Prem_Freq)=0)),-Calculation!$E$23,IF(E93=(PT*12+1),SUM(Working!$M$4:$M$6)*IF(Variant="Titanium",105%,Calculation!$E$15),0))) -> 0 | H93: 88 | I93: =IF(H93="","",IF(AND(H93<=4*12,(MOD(H93-1,12/Prem_Freq)=0)),-Calculation!$E$23,IF(H93=(PT*12+1),SUM(Working!$M$4:$M$7)*IF(Variant="Titanium",105%,Calculation!$E$15),0))) -> 0 | K93: 88 | L93: =IF(K93="","",IF(AND(K93<=PPT*12,(MOD(K93-1,12/Prem_Freq)=0)),-Calculation!$E$23,IF(K93=(PT*12+1),Calculation!$D$1,0))) -> 0
B94: 89 | C94: =IF(B94="","",IF(AND(B94<=2*12,(MOD(B94-1,12/Prem_Freq)=0)),-Calculation!$E$23,IF(B94=(PT*12+1),SUM(Working!$M$4:$M$5)*IF(Variant="Titanium",105%,Calculation!$E$15),0))) -> 0 | E94: 89 | F94: =IF(E94="","",IF(AND(E94<=3*12,(MOD(E94-1,12/Prem_Freq)=0)),-Calculation!$E$23,IF(E94=(PT*12+1),SUM(Working!$M$4:$M$6)*IF(Variant="Titanium",105%,Calculation!$E$15),0))) -> 0 | H94: 89 | I94: =IF(H94="","",IF(AND(H94<=4*12,(MOD(H94-1,12/Prem_Freq)=0)),-Calculation!$E$23,IF(H94=(PT*12+1),SUM(Working!$M$4:$M$7)*IF(Variant="Titanium",105%,Calculation!$E$15),0))) -> 0 | K94: 89 | L94: =IF(K94="","",IF(AND(K94<=PPT*12,(MOD(K94-1,12/Prem_Freq)=0)),-Calculation!$E$23,IF(K94=(PT*12+1),Calculation!$D$1,0))) -> 0
B95: 90 | C95: =IF(B95="","",IF(AND(B95<=2*12,(MOD(B95-1,12/Prem_Freq)=0)),-Calculation!$E$23,IF(B95=(PT*12+1),SUM(Working!$M$4:$M$5)*IF(Variant="Titanium",105%,Calculation!$E$15),0))) -> 0 | E95: 90 | F95: =IF(E95="","",IF(AND(E95<=3*12,(MOD(E95-1,12/Prem_Freq)=0)),-Calculation!$E$23,IF(E95=(PT*12+1),SUM(Working!$M$4:$M$6)*IF(Variant="Titanium",105%,Calculation!$E$15),0))) -> 0 | H95: 90 | I95: =IF(H95="","",IF(AND(H95<=4*12,(MOD(H95-1,12/Prem_Freq)=0)),-Calculation!$E$23,IF(H95=(PT*12+1),SUM(Working!$M$4:$M$7)*IF(Variant="Titanium",105%,Calculation!$E$15),0))) -> 0 | K95: 90 | L95: =IF(K95="","",IF(AND(K95<=PPT*12,(MOD(K95-1,12/Prem_Freq)=0)),-Calculation!$E$23,IF(K95=(PT*12+1),Calculation!$D$1,0))) -> 0
B96: 91 | C96: =IF(B96="","",IF(AND(B96<=2*12,(MOD(B96-1,12/Prem_Freq)=0)),-Calculation!$E$23,IF(B96=(PT*12+1),SUM(Working!$M$4:$M$5)*IF(Variant="Titanium",105%,Calculation!$E$15),0))) -> 0 | E96: 91 | F96: =IF(E96="","",IF(AND(E96<=3*12,(MOD(E96-1,12/Prem_Freq)=0)),-Calculation!$E$23,IF(E96=(PT*12+1),SUM(Working!$M$4:$M$6)*IF(Variant="Titanium",105%,Calculation!$E$15),0))) -> 0 | H96: 91 | I96: =IF(H96="","",IF(AND(H96<=4*12,(MOD(H96-1,12/Prem_Freq)=0)),-Calculation!$E$23,IF(H96=(PT*12+1),SUM(Working!$M$4:$M$7)*IF(Variant="Titanium",105%,Calculation!$E$15),0))) -> 0 | K96: 91 | L96: =IF(K96="","",IF(AND(K96<=PPT*12,(MOD(K96-1,12/Prem_Freq)=0)),-Calculation!$E$23,IF(K96=(PT*12+1),Calculation!$D$1,0))) -> 0
B97: 92 | C97: =IF(B97="","",IF(AND(B97<=2*12,(MOD(B97-1,12/Prem_Freq)=0)),-Calculation!$E$23,IF(B97=(PT*12+1),SUM(Working!$M$4:$M$5)*IF(Variant="Titanium",105%,Calculation!$E$15),0))) -> 0 | E97: 92 | F97: =IF(E97="","",IF(AND(E97<=3*12,(MOD(E97-1,12/Prem_Freq)=0)),-Calculation!$E$23,IF(E97=(PT*12+1),SUM(Working!$M$4:$M$6)*IF(Variant="Titanium",105%,Calculation!$E$15),0))) -> 0 | H97: 92 | I97: =IF(H97="","",IF(AND(H97<=4*12,(MOD(H97-1,12/Prem_Freq)=0)),-Calculation!$E$23,IF(H97=(PT*12+1),SUM(Working!$M$4:$M$7)*IF(Variant="Titanium",105%,Calculation!$E$15),0))) -> 0 | K97: 92 | L97: =IF(K97="","",IF(AND(K97<=PPT*12,(MOD(K97-1,12/Prem_Freq)=0)),-Calculation!$E$23,IF(K97=(PT*12+1),Calculation!$D$1,0))) -> 0
B98: 93 | C98: =IF(B98="","",IF(AND(B98<=2*12,(MOD(B98-1,12/Prem_Freq)=0)),-Calculation!$E$23,IF(B98=(PT*12+1),SUM(Working!$M$4:$M$5)*IF(Variant="Titanium",105%,Calculation!$E$15),0))) -> 0 | E98: 93 | F98: =IF(E98="","",IF(AND(E98<=3*12,(MOD(E98-1,12/Prem_Freq)=0)),-Calculation!$E$23,IF(E98=(PT*12+1),SUM(Working!$M$4:$M$6)*IF(Variant="Titanium",105%,Calculation!$E$15),0))) -> 0 | H98: 93 | I98: =IF(H98="","",IF(AND(H98<=4*12,(MOD(H98-1,12/Prem_Freq)=0)),-Calculation!$E$23,IF(H98=(PT*12+1),SUM(Working!$M$4:$M$7)*IF(Variant="Titanium",105%,Calculation!$E$15),0))) -> 0 | K98: 93 | L98: =IF(K98="","",IF(AND(K98<=PPT*12,(MOD(K98-1,12/Prem_Freq)=0)),-Calculation!$E$23,IF(K98=(PT*12+1),Calculation!$D$1,0))) -> 0
B99: 94 | C99: =IF(B99="","",IF(AND(B99<=2*12,(MOD(B99-1,12/Prem_Freq)=0)),-Calculation!$E$23,IF(B99=(PT*12+1),SUM(Working!$M$4:$M$5)*IF(Variant="Titanium",105%,Calculation!$E$15),0))) -> 0 | E99: 94 | F99: =IF(E99="","",IF(AND(E99<=3*12,(MOD(E99-1,12/Prem_Freq)=0)),-Calculation!$E$23,IF(E99=(PT*12+1),SUM(Working!$M$4:$M$6)*IF(Variant="Titanium",105%,Calculation!$E$15),0))) -> 0 | H99: 94 | I99: =IF(H99="","",IF(AND(H99<=4*12,(MOD(H99-1,12/Prem_Freq)=0)),-Calculation!$E$23,IF(H99=(PT*12+1),SUM(Working!$M$4:$M$7)*IF(Variant="Titanium",105%,Calculation!$E$15),0))) -> 0 | K99: 94 | L99: =IF(K99="","",IF(AND(K99<=PPT*12,(MOD(K99-1,12/Prem_Freq)=0)),-Calculation!$E$23,IF(K99=(PT*12+1),Calculation!$D$1,0))) -> 0
B100: 95 | C100: =IF(B100="","",IF(AND(B100<=2*12,(MOD(B100-1,12/Prem_Freq)=0)),-Calculation!$E$23,IF(B100=(PT*12+1),SUM(Working!$M$4:$M$5)*IF(Variant="Titanium",105%,Calculation!$E$15),0))) -> 0 | E100: 95 | F100: =IF(E100="","",IF(AND(E100<=3*12,(MOD(E100-1,12/Prem_Freq)=0)),-Calculation!$E$23,IF(E100=(PT*12+1),SUM(Working!$M$4:$M$6)*IF(Variant="Titanium",105%,Calculation!$E$15),0))) -> 0 | H100: 95 | I100: =IF(H100="","",IF(AND(H100<=4*12,(MOD(H100-1,12/Prem_Freq)=0)),-Calculation!$E$23,IF(H100=(PT*12+1),SUM(Working!$M$4:$M$7)*IF(Variant="Titanium",105%,Calculation!$E$15),0))) -> 0 | K100: 95 | L100: =IF(K100="","",IF(AND(K100<=PPT*12,(MOD(K100-1,12/Prem_Freq)=0)),-Calculation!$E$23,IF(K100=(PT*12+1),Calculation!$D$1,0))) -> 0
B101: 96 | C101: =IF(B101="","",IF(AND(B101<=2*12,(MOD(B101-1,12/Prem_Freq)=0)),-Calculation!$E$23,IF(B101=(PT*12+1),SUM(Working!$M$4:$M$5)*IF(Variant="Titanium",105%,Calculation!$E$15),0))) -> 0 | E101: 96 | F101: =IF(E101="","",IF(AND(E101<=3*12,(MOD(E101-1,12/Prem_Freq)=0)),-Calculation!$E$23,IF(E101=(PT*12+1),SUM(Working!$M$4:$M$6)*IF(Variant="Titanium",105%,Calculation!$E$15),0))) -> 0 | H101: 96 | I101: =IF(H101="","",IF(AND(H101<=4*12,(MOD(H101-1,12/Prem_Freq)=0)),-Calculation!$E$23,IF(H101=(PT*12+1),SUM(Working!$M$4:$M$7)*IF(Variant="Titanium",105%,Calculation!$E$15),0))) -> 0 | K101: 96 | L101: =IF(K101="","",IF(AND(K101<=PPT*12,(MOD(K101-1,12/Prem_Freq)=0)),-Calculation!$E$23,IF(K101=(PT*12+1),Calculation!$D$1,0))) -> 0
B102: 97 | C102: =IF(B102="","",IF(AND(B102<=2*12,(MOD(B102-1,12/Prem_Freq)=0)),-Calculation!$E$23,IF(B102=(PT*12+1),SUM(Working!$M$4:$M$5)*IF(Variant="Titanium",105%,Calculation!$E$15),0))) -> 0 | E102: 97 | F102: =IF(E102="","",IF(AND(E102<=3*12,(MOD(E102-1,12/Prem_Freq)=0)),-Calculation!$E$23,IF(E102=(PT*12+1),SUM(Working!$M$4:$M$6)*IF(Variant="Titanium",105%,Calculation!$E$15),0))) -> 0 | H102: 97 | I102: =IF(H102="","",IF(AND(H102<=4*12,(MOD(H102-1,12/Prem_Freq)=0)),-Calculation!$E$23,IF(H102=(PT*12+1),SUM(Working!$M$4:$M$7)*IF(Variant="Titanium",105%,Calculation!$E$15),0))) -> 0 | K102: 97 | L102: =IF(K102="","",IF(AND(K102<=PPT*12,(MOD(K102-1,12/Prem_Freq)=0)),-Calculation!$E$23,IF(K102=(PT*12+1),Calculation!$D$1,0))) -> -5000
B103: 98 | C103: =IF(B103="","",IF(AND(B103<=2*12,(MOD(B103-1,12/Prem_Freq)=0)),-Calculation!$E$23,IF(B103=(PT*12+1),SUM(Working!$M$4:$M$5)*IF(Variant="Titanium",105%,Calculation!$E$15),0))) -> 0 | E103: 98 | F103: =IF(E103="","",IF(AND(E103<=3*12,(MOD(E103-1,12/Prem_Freq)=0)),-Calculation!$E$23,IF(E103=(PT*12+1),SUM(Working!$M$4:$M$6)*IF(Variant="Titanium",105%,Calculation!$E$15),0))) -> 0 | H103: 98 | I103: =IF(H103="","",IF(AND(H103<=4*12,(MOD(H103-1,12/Prem_Freq)=0)),-Calculation!$E$23,IF(H103=(PT*12+1),SUM(Working!$M$4:$M$7)*IF(Variant="Titanium",105%,Calculation!$E$15),0))) -> 0 | K103: 98 | L103: =IF(K103="","",IF(AND(K103<=PPT*12,(MOD(K103-1,12/Prem_Freq)=0)),-Calculation!$E$23,IF(K103=(PT*12+1),Calculation!$D$1,0))) -> 0
B104: 99 | C104: =IF(B104="","",IF(AND(B104<=2*12,(MOD(B104-1,12/Prem_Freq)=0)),-Calculation!$E$23,IF(B104=(PT*12+1),SUM(Working!$M$4:$M$5)*IF(Variant="Titanium",105%,Calculation!$E$15),0))) -> 0 | E104: 99 | F104: =IF(E104="","",IF(AND(E104<=3*12,(MOD(E104-1,12/Prem_Freq)=0)),-Calculation!$E$23,IF(E104=(PT*12+1),SUM(Working!$M$4:$M$6)*IF(Variant="Titanium",105%,Calculation!$E$15),0))) -> 0 | H104: 99 | I104: =IF(H104="","",IF(AND(H104<=4*12,(MOD(H104-1,12/Prem_Freq)=0)),-Calculation!$E$23,IF(H104=(PT*12+1),SUM(Working!$M$4:$M$7)*IF(Variant="Titanium",105%,Calculation!$E$15),0))) -> 0 | K104: 99 | L104: =IF(K104="","",IF(AND(K104<=PPT*12,(MOD(K104-1,12/Prem_Freq)=0)),-Calculation!$E$23,IF(K104=(PT*12+1),Calculation!$D$1,0))) -> 0
B105: 100 | C105: =IF(B105="","",IF(AND(B105<=2*12,(MOD(B105-1,12/Prem_Freq)=0)),-Calculation!$E$23,IF(B105=(PT*12+1),SUM(Working!$M$4:$M$5)*IF(Variant="Titanium",105%,Calculation!$E$15),0))) -> 0 | E105: 100 | F105: =IF(E105="","",IF(AND(E105<=3*12,(MOD(E105-1,12/Prem_Freq)=0)),-Calculation!$E$23,IF(E105=(PT*12+1),SUM(Working!$M$4:$M$6)*IF(Variant="Titanium",105%,Calculation!$E$15),0))) -> 0 | H105: 100 | I105: =IF(H105="","",IF(AND(H105<=4*12,(MOD(H105-1,12/Prem_Freq)=0)),-Calculation!$E$23,IF(H105=(PT*12+1),SUM(Working!$M$4:$M$7)*IF(Variant="Titanium",105%,Calculation!$E$15),0))) -> 0 | K105: 100 | L105: =IF(K105="","",IF(AND(K105<=PPT*12,(MOD(K105-1,12/Prem_Freq)=0)),-Calculation!$E$23,IF(K105=(PT*12+1),Calculation!$D$1,0))) -> 0
B106: 101 | C106: =IF(B106="","",IF(AND(B106<=2*12,(MOD(B106-1,12/Prem_Freq)=0)),-Calculation!$E$23,IF(B106=(PT*12+1),SUM(Working!$M$4:$M$5)*IF(Variant="Titanium",105%,Calculation!$E$15),0))) -> 0 | E106: 101 | F106: =IF(E106="","",IF(AND(E106<=3*12,(MOD(E106-1,12/Prem_Freq)=0)),-Calculation!$E$23,IF(E106=(PT*12+1),SUM(Working!$M$4:$M$6)*IF(Variant="Titanium",105%,Calculation!$E$15),0))) -> 0 | H106: 101 | I106: =IF(H106="","",IF(AND(H106<=4*12,(MOD(H106-1,12/Prem_Freq)=0)),-Calculation!$E$23,IF(H106=(PT*12+1),SUM(Working!$M$4:$M$7)*IF(Variant="Titanium",105%,Calculation!$E$15),0))) -> 0 | K106: 101 | L106: =IF(K106="","",IF(AND(K106<=PPT*12,(MOD(K106-1,12/Prem_Freq)=0)),-Calculation!$E$23,IF(K106=(PT*12+1),Calculation!$D$1,0))) -> 0
B107: 102 | C107: =IF(B107="","",IF(AND(B107<=2*12,(MOD(B107-1,12/Prem_Freq)=0)),-Calculation!$E$23,IF(B107=(PT*12+1),SUM(Working!$M$4:$M$5)*IF(Variant="Titanium",105%,Calculation!$E$15),0))) -> 0 | E107: 102 | F107: =IF(E107="","",IF(AND(E107<=3*12,(MOD(E107-1,12/Prem_Freq)=0)),-Calculation!$E$23,IF(E107=(PT*12+1),SUM(Working!$M$4:$M$6)*IF(Variant="Titanium",105%,Calculation!$E$15),0))) -> 0 | H107: 102 | I107: =IF(H107="","",IF(AND(H107<=4*12,(MOD(H107-1,12/Prem_Freq)=0)),-Calculation!$E$23,IF(H107=(PT*12+1),SUM(Working!$M$4:$M$7)*IF(Variant="Titanium",105%,Calculation!$E$15),0))) -> 0 | K107: 102 | L107: =IF(K107="","",IF(AND(K107<=PPT*12,(MOD(K107-1,12/Prem_Freq)=0)),-Calculation!$E$23,IF(K107=(PT*12+1),Calculation!$D$1,0))) -> 0
B108: 103 | C108: =IF(B108="","",IF(AND(B108<=2*12,(MOD(B108-1,12/Prem_Freq)=0)),-Calculation!$E$23,IF(B108=(PT*12+1),SUM(Working!$M$4:$M$5)*IF(Variant="Titanium",105%,Calculation!$E$15),0))) -> 0 | E108: 103 | F108: =IF(E108="","",IF(AND(E108<=3*12,(MOD(E108-1,12/Prem_Freq)=0)),-Calculation!$E$23,IF(E108=(PT*12+1),SUM(Working!$M$4:$M$6)*IF(Variant="Titanium",105%,Calculation!$E$15),0))) -> 0 | H108: 103 | I108: =IF(H108="","",IF(AND(H108<=4*12,(MOD(H108-1,12/Prem_Freq)=0)),-Calculation!$E$23,IF(H108=(PT*12+1),SUM(Working!$M$4:$M$7)*IF(Variant="Titanium",105%,Calculation!$E$15),0))) -> 0 | K108: 103 | L108: =IF(K108="","",IF(AND(K108<=PPT*12,(MOD(K108-1,12/Prem_Freq)=0)),-Calculation!$E$23,IF(K108=(PT*12+1),Calculation!$D$1,0))) -> 0
B109: 104 | C109: =IF(B109="","",IF(AND(B109<=2*12,(MOD(B109-1,12/Prem_Freq)=0)),-Calculation!$E$23,IF(B109=(PT*12+1),SUM(Working!$M$4:$M$5)*IF(Variant="Titanium",105%,Calculation!$E$15),0))) -> 0 | E109: 104 | F109: =IF(E109="","",IF(AND(E109<=3*12,(MOD(E109-1,12/Prem_Freq)=0)),-Calculation!$E$23,IF(E109=(PT*12+1),SUM(Working!$M$4:$M$6)*IF(Variant="Titanium",105%,Calculation!$E$15),0))) -> 0 | H109: 104 | I109: =IF(H109="","",IF(AND(H109<=4*12,(MOD(H109-1,12/Prem_Freq)=0)),-Calculation!$E$23,IF(H109=(PT*12+1),SUM(Working!$M$4:$M$7)*IF(Variant="Titanium",105%,Calculation!$E$15),0))) -> 0 | K109: 104 | L109: =IF(K109="","",IF(AND(K109<=PPT*12,(MOD(K109-1,12/Prem_Freq)=0)),-Calculation!$E$23,IF(K109=(PT*12+1),Calculation!$D$1,0))) -> 0
B110: 105 | C110: =IF(B110="","",IF(AND(B110<=2*12,(MOD(B110-1,12/Prem_Freq)=0)),-Calculation!$E$23,IF(B110=(PT*12+1),SUM(Working!$M$4:$M$5)*IF(Variant="Titanium",105%,Calculation!$E$15),0))) -> 0 | E110: 105 | F110: =IF(E110="","",IF(AND(E110<=3*12,(MOD(E110-1,12/Prem_Freq)=0)),-Calculation!$E$23,IF(E110=(PT*12+1),SUM(Working!$M$4:$M$6)*IF(Variant="Titanium",105%,Calculation!$E$15),0))) -> 0 | H110: 105 | I110: =IF(H110="","",IF(AND(H110<=4*12,(MOD(H110-1,12/Prem_Freq)=0)),-Calculation!$E$23,IF(H110=(PT*12+1),SUM(Working!$M$4:$M$7)*IF(Variant="Titanium",105%,Calculation!$E$15),0))) -> 0 | K110: 105 | L110: =IF(K110="","",IF(AND(K110<=PPT*12,(MOD(K110-1,12/Prem_Freq)=0)),-Calculation!$E$23,IF(K110=(PT*12+1),Calculation!$D$1,0))) -> 0
B111: 106 | C111: =IF(B111="","",IF(AND(B111<=2*12,(MOD(B111-1,12/Prem_Freq)=0)),-Calculation!$E$23,IF(B111=(PT*12+1),SUM(Working!$M$4:$M$5)*IF(Variant="Titanium",105%,Calculation!$E$15),0))) -> 0 | E111: 106 | F111: =IF(E111="","",IF(AND(E111<=3*12,(MOD(E111-1,12/Prem_Freq)=0)),-Calculation!$E$23,IF(E111=(PT*12+1),SUM(Working!$M$4:$M$6)*IF(Variant="Titanium",105%,Calculation!$E$15),0))) -> 0 | H111: 106 | I111: =IF(H111="","",IF(AND(H111<=4*12,(MOD(H111-1,12/Prem_Freq)=0)),-Calculation!$E$23,IF(H111=(PT*12+1),SUM(Working!$M$4:$M$7)*IF(Variant="Titanium",105%,Calculation!$E$15),0))) -> 0 | K111: 106 | L111: =IF(K111="","",IF(AND(K111<=PPT*12,(MOD(K111-1,12/Prem_Freq)=0)),-Calculation!$E$23,IF(K111=(PT*12+1),Calculation!$D$1,0))) -> 0
B112: 107 | C112: =IF(B112="","",IF(AND(B112<=2*12,(MOD(B112-1,12/Prem_Freq)=0)),-Calculation!$E$23,IF(B112=(PT*12+1),SUM(Working!$M$4:$M$5)*IF(Variant="Titanium",105%,Calculation!$E$15),0))) -> 0 | E112: 107 | F112: =IF(E112="","",IF(AND(E112<=3*12,(MOD(E112-1,12/Prem_Freq)=0)),-Calculation!$E$23,IF(E112=(PT*12+1),SUM(Working!$M$4:$M$6)*IF(Variant="Titanium",105%,Calculation!$E$15),0))) -> 0 | H112: 107 | I112: =IF(H112="","",IF(AND(H112<=4*12,(MOD(H112-1,12/Prem_Freq)=0)),-Calculation!$E$23,IF(H112=(PT*12+1),SUM(Working!$M$4:$M$7)*IF(Variant="Titanium",105%,Calculation!$E$15),0))) -> 0 | K112: 107 | L112: =IF(K112="","",IF(AND(K112<=PPT*12,(MOD(K112-1,12/Prem_Freq)=0)),-Calculation!$E$23,IF(K112=(PT*12+1),Calculation!$D$1,0))) -> 0
B113: 108 | C113: =IF(B113="","",IF(AND(B113<=2*12,(MOD(B113-1,12/Prem_Freq)=0)),-Calculation!$E$23,IF(B113=(PT*12+1),SUM(Working!$M$4:$M$5)*IF(Variant="Titanium",105%,Calculation!$E$15),0))) -> 0 | E113: 108 | F113: =IF(E113="","",IF(AND(E113<=3*12,(MOD(E113-1,12/Prem_Freq)=0)),-Calculation!$E$23,IF(E113=(PT*12+1),SUM(Working!$M$4:$M$6)*IF(Variant="Titanium",105%,Calculation!$E$15),0))) -> 0 | H113: 108 | I113: =IF(H113="","",IF(AND(H113<=4*12,(MOD(H113-1,12/Prem_Freq)=0)),-Calculation!$E$23,IF(H113=(PT*12+1),SUM(Working!$M$4:$M$7)*IF(Variant="Titanium",105%,Calculation!$E$15),0))) -> 0 | K113: 108 | L113: =IF(K113="","",IF(AND(K113<=PPT*12,(MOD(K113-1,12/Prem_Freq)=0)),-Calculation!$E$23,IF(K113=(PT*12+1),Calculation!$D$1,0))) -> 0
B114: 109 | C114: =IF(B114="","",IF(AND(B114<=2*12,(MOD(B114-1,12/Prem_Freq)=0)),-Calculation!$E$23,IF(B114=(PT*12+1),SUM(Working!$M$4:$M$5)*IF(Variant="Titanium",105%,Calculation!$E$15),0))) -> 0 | E114: 109 | F114: =IF(E114="","",IF(AND(E114<=3*12,(MOD(E114-1,12/Prem_Freq)=0)),-Calculation!$E$23,IF(E114=(PT*12+1),SUM(Working!$M$4:$M$6)*IF(Variant="Titanium",105%,Calculation!$E$15),0))) -> 0 | H114: 109 | I114: =IF(H114="","",IF(AND(H114<=4*12,(MOD(H114-1,12/Prem_Freq)=0)),-Calculation!$E$23,IF(H114=(PT*12+1),SUM(Working!$M$4:$M$7)*IF(Variant="Titanium",105%,Calculation!$E$15),0))) -> 0 | K114: 109 | L114: =IF(K114="","",IF(AND(K114<=PPT*12,(MOD(K114-1,12/Prem_Freq)=0)),-Calculation!$E$23,IF(K114=(PT*12+1),Calculation!$D$1,0))) -> -5000
B115: 110 | C115: =IF(B115="","",IF(AND(B115<=2*12,(MOD(B115-1,12/Prem_Freq)=0)),-Calculation!$E$23,IF(B115=(PT*12+1),SUM(Working!$M$4:$M$5)*IF(Variant="Titanium",105%,Calculation!$E$15),0))) -> 0 | E115: 110 | F115: =IF(E115="","",IF(AND(E115<=3*12,(MOD(E115-1,12/Prem_Freq)=0)),-Calculation!$E$23,IF(E115=(PT*12+1),SUM(Working!$M$4:$M$6)*IF(Variant="Titanium",105%,Calculation!$E$15),0))) -> 0 | H115: 110 | I115: =IF(H115="","",IF(AND(H115<=4*12,(MOD(H115-1,12/Prem_Freq)=0)),-Calculation!$E$23,IF(H115=(PT*12+1),SUM(Working!$M$4:$M$7)*IF(Variant="Titanium",105%,Calculation!$E$15),0))) -> 0 | K115: 110 | L115: =IF(K115="","",IF(AND(K115<=PPT*12,(MOD(K115-1,12/Prem_Freq)=0)),-Calculation!$E$23,IF(K115=(PT*12+1),Calculation!$D$1,0))) -> 0
B116: 111 | C116: =IF(B116="","",IF(AND(B116<=2*12,(MOD(B116-1,12/Prem_Freq)=0)),-Calculation!$E$23,IF(B116=(PT*12+1),SUM(Working!$M$4:$M$5)*IF(Variant="Titanium",105%,Calculation!$E$15),0))) -> 0 | E116: 111 | F116: =IF(E116="","",IF(AND(E116<=3*12,(MOD(E116-1,12/Prem_Freq)=0)),-Calculation!$E$23,IF(E116=(PT*12+1),SUM(Working!$M$4:$M$6)*IF(Variant="Titanium",105%,Calculation!$E$15),0))) -> 0 | H116: 111 | I116: =IF(H116="","",IF(AND(H116<=4*12,(MOD(H116-1,12/Prem_Freq)=0)),-Calculation!$E$23,IF(H116=(PT*12+1),SUM(Working!$M$4:$M$7)*IF(Variant="Titanium",105%,Calculation!$E$15),0))) -> 0 | K116: 111 | L116: =IF(K116="","",IF(AND(K116<=PPT*12,(MOD(K116-1,12/Prem_Freq)=0)),-Calculation!$E$23,IF(K116=(PT*12+1),Calculation!$D$1,0))) -> 0
B117: 112 | C117: =IF(B117="","",IF(AND(B117<=2*12,(MOD(B117-1,12/Prem_Freq)=0)),-Calculation!$E$23,IF(B117=(PT*12+1),SUM(Working!$M$4:$M$5)*IF(Variant="Titanium",105%,Calculation!$E$15),0))) -> 0 | E117: 112 | F117: =IF(E117="","",IF(AND(E117<=3*12,(MOD(E117-1,12/Prem_Freq)=0)),-Calculation!$E$23,IF(E117=(PT*12+1),SUM(Working!$M$4:$M$6)*IF(Variant="Titanium",105%,Calculation!$E$15),0))) -> 0 | H117: 112 | I117: =IF(H117="","",IF(AND(H117<=4*12,(MOD(H117-1,12/Prem_Freq)=0)),-Calculation!$E$23,IF(H117=(PT*12+1),SUM(Working!$M$4:$M$7)*IF(Variant="Titanium",105%,Calculation!$E$15),0))) -> 0 | K117: 112 | L117: =IF(K117="","",IF(AND(K117<=PPT*12,(MOD(K117-1,12/Prem_Freq)=0)),-Calculation!$E$23,IF(K117=(PT*12+1),Calculation!$D$1,0))) -> 0
B118: 113 | C118: =IF(B118="","",IF(AND(B118<=2*12,(MOD(B118-1,12/Prem_Freq)=0)),-Calculation!$E$23,IF(B118=(PT*12+1),SUM(Working!$M$4:$M$5)*IF(Variant="Titanium",105%,Calculation!$E$15),0))) -> 0 | E118: 113 | F118: =IF(E118="","",IF(AND(E118<=3*12,(MOD(E118-1,12/Prem_Freq)=0)),-Calculation!$E$23,IF(E118=(PT*12+1),SUM(Working!$M$4:$M$6)*IF(Variant="Titanium",105%,Calculation!$E$15),0))) -> 0 | H118: 113 | I118: =IF(H118="","",IF(AND(H118<=4*12,(MOD(H118-1,12/Prem_Freq)=0)),-Calculation!$E$23,IF(H118=(PT*12+1),SUM(Working!$M$4:$M$7)*IF(Variant="Titanium",105%,Calculation!$E$15),0))) -> 0 | K118: 113 | L118: =IF(K118="","",IF(AND(K118<=PPT*12,(MOD(K118-1,12/Prem_Freq)=0)),-Calculation!$E$23,IF(K118=(PT*12+1),Calculation!$D$1,0))) -> 0
B119: 114 | C119: =IF(B119="","",IF(AND(B119<=2*12,(MOD(B119-1,12/Prem_Freq)=0)),-Calculation!$E$23,IF(B119=(PT*12+1),SUM(Working!$M$4:$M$5)*IF(Variant="Titanium",105%,Calculation!$E$15),0))) -> 0 | E119: 114 | F119: =IF(E119="","",IF(AND(E119<=3*12,(MOD(E119-1,12/Prem_Freq)=0)),-Calculation!$E$23,IF(E119=(PT*12+1),SUM(Working!$M$4:$M$6)*IF(Variant="Titanium",105%,Calculation!$E$15),0))) -> 0 | H119: 114 | I119: =IF(H119="","",IF(AND(H119<=4*12,(MOD(H119-1,12/Prem_Freq)=0)),-Calculation!$E$23,IF(H119=(PT*12+1),SUM(Working!$M$4:$M$7)*IF(Variant="Titanium",105%,Calculation!$E$15),0))) -> 0 | K119: 114 | L119: =IF(K119="","",IF(AND(K119<=PPT*12,(MOD(K119-1,12/Prem_Freq)=0)),-Calculation!$E$23,IF(K119=(PT*12+1),Calculation!$D$1,0))) -> 0
